Workbook

Sheet GUIA PARA PREENCHIMENTO
A1: GUIA PARA PREENCHIMENTO
A3: 1 - Preencher apenas as guias azuis:
A5: 2 - Recomendamos preencher somente as células com fundo azul claro. As demais possuem fórmulas e sugerimos não alterá-las.

Sheet MODELO PROPOSTA
B2: MODELO DA PROPOSTA COMPLETA
B4: .
B5: I – FORMALIZAÇÃO
B7: PREGÃO ELETRÔNICO N. 38/2023
B8: OBJETO: Prestação de serviços continuados nas áreas de limpeza e conservação nos Edifícios Anexos II e III da Câmara dos Deputados, pelo período de trinta meses, com fornecimento de materiais e equipamentos e prestação de serviços, sob demanda, de desinsetização e desratização.
B9: LICITANTE: _____________________________________________________
B10: CNPJ: ________________________________________________________
B11: ENDEREÇO COMPLETO: _________________________________________
B12: TELEFONE:_____________________________________________________
B13: E-MAIL: ________________________________________________________
B15: Apresentamos nossa proposta para o item único da presente licitação, de acordo com as disposições do Edital.
B16: Decorre do conteúdo da presente proposta a explicitação do seguinte PREÇO DE JULGAMENTO (GLOBAL) PARA O ITEM ÚNICO, REFERENTE AO PERÍODO DE TRINTA MESES:
B17: =Resumo!H98 -> 42045307.46
B18: =Extenso_Valor(B17) -> quarenta e dois milhões, quarenta e cinco mil, trezentos e sete reais e quarenta e seis centavos
B20: (por extenso)
B22: No valor proposto estão incluídos todos os custos e todas as despesas, diretas e indiretas, para a execução dos serviços objeto da licitação, em conformidade com as especificações e demais condições e exigências constantes do Edital.
B23: Informamos que eventuais rubricas dispostas em Acordo ou Convenção Coletiva de Trabalho que não se relacionem ao custo direto da venda do serviço, tais como “Participação nos Resultados” e “Abono substitutivo de Participação nos Resultados”, serão consideradas nos custos indiretos da proposta.
B24: O prazo de validade da presente proposta é de ______ (por extenso) dias. (observado o disposto no Título 11 do Edital).
B26: Convenção coletiva de trabalho ou a norma coletiva a que estamos obrigados:
B27: Data-Base:
B28: Número do Registro SRT:
B29: Regime de tributação da empresa:
B30: Empresa é beneficiada pela desoneração da folha de pagamento instituída pela Lei n. 12.546, de 2001, alterada pela Lei n. 13.161, de 2015?
B31: Empresa adere ao PAT (Programa de Alimentação do Trabalhador)?
B32: (Se adere ao PAT): Os valores do auxílio-alimentação apresentados na presente proposta correspondem somente aos efetivamente pagos pela empresa aos empregados?
B34: DECLARAÇÕES
B36: Declaramos que seremos responsáveis pelo descarte ambientalmente responsável de qualquer resíduo do serviço a ser prestado – incluindo consumíveis, peças usadas, embalagens – e que temos conhecimento da legislação ambiental sobre o descarte de materiais, em especial a Lei n. 9.605, de 1998 e a Lei n. 12.305, de 2010, além da NBR 10.004.
B38: A SEREM PRESTADAS SOMENTE NA HIPÓTESE DE LICITANTE MICROEMPRESA OU EMPRESA DE PEQUENO PORTE, EM CONFORMIDADE COM OS ARTIGOS 17, 18, 30 E 31 DA LEI COMPLEMENTAR N. 123, de 2006, E O ACÓRDÃO TCU 2798/2010-PLENÁRIO
B39: Declaramos que:
B40: a) em se tratando dos serviços vedados descritos no artigo 17 da Lei Complementar n. 123, de 2006, notadamente os descritos no inciso XII (cessão ou locação de mão de obra), ressalvados os serviços listados nos parágrafos 5o-B a 5o-E do artigo 18 da referida Lei, a proposta apresentada não contempla qualquer benefício tributário referente ao SIMPLES NACIONAL, conforme os subitens 5.7 e 5.8 do Edital;
B41: b) na hipótese de contratação desta Microempresa ou Empresa de Pequeno Porte inscrita no SIMPLES NACIONAL e executora de atividade vedada, ficamos sujeitos à exclusão obrigatória no SIMPLES NACIONAL a contar do mês seguinte ao da contratação, em consequência do que dispõem o artigo 17, inciso XII e o artigo 31, inciso II da Lei Complementar n, 123, de 2006, devendo entregar à Câmara dos Deputados, à título de comprovação, cópia de ofício – com comprovante de entrega e recebimento, que comunique a assinatura do contrato de prestação de serviços mediante cessão de mão de obra e encaminhado pela contratada à Receita Federal do Brasil até o último dia útil do mês subsequente ao da contratação, consoante artigo 30, § 1º, inciso II da Lei Complementar n. 123, de 2006.
B44: A SEREM PRESTADAS SOMENTE NA HIPÓTESE DE LICITANTE BENEFICIADA PELA DESONERAÇÃO DA FOLHA DE PAGAMENTO INSTITUÍDA PELA LEI N. 12.546, DE 2011, ALTERADA PELA LEI N. 13.161, DE 2015.
B46: Declaramos, sob as penas da Lei, que:
B47: a) recolhemos a contribuição previdenciária incidente sobre o valor da receita bruta, em substituição às contribuições previdenciárias incidentes sobre a folha de pagamento, previstas nos incisos I e III do caput do artigo 22 da Lei n. 8.212, de 24 de julho de 1991, na forma do caput do artigo 7º (ou 8º) da Lei n. 12.546, de 14 de dezembro de 2011, alterada pela Lei n. 13.161, de 31 de agosto de 2015;
B48: b) temos ciência que nossa manifestação, conforme alínea “a” anterior, será remetida à Receita Federal do Brasil e que, em caso de constatação de falsidade, estará sujeita às sanções administrativas cabíveis, sem prejuízo do encaminhamento dos documentos ao Ministério Público para apuração de eventual responsabilidade criminal desta declarante.
B50: A SEREM PRESTADAS SOMENTE PARA A LICITANTE QUE SEJA A ATUAL TITULAR DO CONTRATO QUE SERÁ SUCEDIDO PELA CONTRATAÇÃO DECORRENTE DO PREGÃO EM EPÍGRAFE, NA HIPÓTESE DE HAVER SALÁRIO(S) PRATICADO(S) NO CONTRATO VIGENTE SUPERIOR(ES) AOS MÍNIMOS FIXADOS NO EDITAL E QUE TENHA OPTADO POR TOMAR COMO BASE EM SEUS LANCES E NA PRESENTE PROPOSTA DE PREÇOS SALÁRIO(S) FIXADO(S) NESTE EDITAL:
B51: Declaramos que:
B52: a) estamos cientes de que deveremos apresentar à Câmara dos Deputados, no prazo improrrogável de 60 (sessenta) dias, contado da data de assinatura do contrato, a convenção ou acordo coletivo de trabalho, entabulado com a participação do sindicato dos trabalhadores, em que se autoriza a redução salarial, na forma do art. 7°, VI, da Constituição Federal, observado o disposto no Título 10 do Anexo n. 6 do Edital;
B53: b) estamos cientes de que, na hipótese de não cumprirmos o disposto no teor da declaração da alínea anterior (“a”) e não logrado êxito na contratação de remanescente, sendo necessária a realização de nova licitação, caso participemos do certame, deveremos tomar como base em nossos lances e em nossa proposta de preços o(s) salário(s) maior(es), absorvendo ou acrescentando eventual diferença no BDI, sob pena de desclassificação.
B54: É OBRIGATÓRIA A COMPROVAÇÃO A QUE SE REFERE O SUBITEM 5.9.4 DO TÍTULO 5 DO EDITAL.
B56: DADOS PARA ASSINATURA DO CONTRATO
B57: Nome do signatário
B58: Cargo
B59: Qualificação (CPF, naturalidade e domicílio)
B60: OBS.: O signatário deve possuir poderes de administração estabelecidos em contrato social e/ou possuir procuração com poderes para assinar contratos em nome da empresa. A documentação comprobatória deverá ser encaminhada quando da assinatura do contrato.
B63: Brasília, de de 2023.
B65: Assinatura do representante legal da empresa
B68: Nome do representante legal da empresa

Sheet Remunerações
B1: QUADRO DE REMUNERAÇÕES
C3: ITEM | D3: POSTO DE TRABALHO | E3: QUANTIDADE | F3: SALÁRIO | G3: ADICIONAL DE PERICULOSIDADE | H3: ADICIONAL DE INSALUBRIDADE | I3: ADICIONAL NOTURNO | J3: OUTROS | K3: SALÁRIO COM ADICIONAIS
D4: POSTO DE TRABALHO - EQUIPE DE TRABALHO
C5: 1 | D5: =HLOOKUP($C5,'Dados Gerais'!$D$5:$L$68,6) -> ENCARREGADO GERAL | E5: =HLOOKUP($C5,'Dados Gerais'!$D$5:$L$68,10) -> 1 | F5: =HLOOKUP($C5,'Dados Gerais'!$D$5:$L$68,8) -> 7376.1 | G5: =HLOOKUP($C5,'Dados Gerais'!$D$5:$L$68,26) -> 0 | H5: =HLOOKUP($C5,'Dados Gerais'!$D$5:$L$68,31) -> 0 | I5: =HLOOKUP($C5,'Dados Gerais'!$D$5:$L$68,46) -> 0 | J5: =HLOOKUP($C5,'Dados Gerais'!$D$5:$L$68,33) -> 0 | K5: =SUM(F5:J5) -> 7376.1
C6: 2 | D6: =HLOOKUP($C6,'Dados Gerais'!$D$5:$L$68,6) -> ENCARREGADO SETORIAL | E6: =HLOOKUP($C6,'Dados Gerais'!$D$5:$L$68,10) -> 1 | F6: =HLOOKUP($C6,'Dados Gerais'!$D$5:$L$68,8) -> 3951.73 | G6: =HLOOKUP($C6,'Dados Gerais'!$D$5:$L$68,26) -> 0 | H6: =HLOOKUP($C6,'Dados Gerais'!$D$5:$L$68,31) -> 0 | I6: =HLOOKUP($C6,'Dados Gerais'!$D$5:$L$68,46) -> 0 | J6: =HLOOKUP($C6,'Dados Gerais'!$D$5:$L$68,33) -> 0 | K6: =SUM(F6:J6) -> 3951.73
C7: 3 | D7: =HLOOKUP($C7,'Dados Gerais'!$D$5:$L$68,6) -> ENCARREGADO DE SERVIÇO | E7: =HLOOKUP($C7,'Dados Gerais'!$D$5:$L$68,10) -> 13 | F7: =HLOOKUP($C7,'Dados Gerais'!$D$5:$L$68,8) -> 3317.57 | G7: =HLOOKUP($C7,'Dados Gerais'!$D$5:$L$68,26) -> 0 | H7: =HLOOKUP($C7,'Dados Gerais'!$D$5:$L$68,31) -> 0 | I7: =HLOOKUP($C7,'Dados Gerais'!$D$5:$L$68,46) -> 0 | J7: =HLOOKUP($C7,'Dados Gerais'!$D$5:$L$68,33) -> 0 | K7: 3317.57
C8: 4 | D8: =HLOOKUP($C8,'Dados Gerais'!$D$5:$L$68,6) -> ENCARREGADO DE SERVIÇO COM ADICIONAL DE INSALUBRIDADE | E8: =HLOOKUP($C8,'Dados Gerais'!$D$5:$L$68,10) -> 2 | F8: =HLOOKUP($C8,'Dados Gerais'!$D$5:$L$68,8) -> 3317.57 | G8: =HLOOKUP($C8,'Dados Gerais'!$D$5:$L$68,26) -> 0 | H8: =HLOOKUP($C8,'Dados Gerais'!$D$5:$L$68,31) -> 260.4 | I8: =HLOOKUP($C8,'Dados Gerais'!$D$5:$L$68,46) -> 0 | J8: =HLOOKUP($C8,'Dados Gerais'!$D$5:$L$68,33) -> 0 | K8: =SUM(F8:J8) -> 3577.97
C9: 5 | D9: =HLOOKUP($C9,'Dados Gerais'!$D$5:$L$68,6) -> AUXILIAR DE ENCARREGADO | E9: =HLOOKUP($C9,'Dados Gerais'!$D$5:$L$68,10) -> 1 | F9: =HLOOKUP($C9,'Dados Gerais'!$D$5:$L$68,8) -> 2244.21 | G9: =HLOOKUP($C9,'Dados Gerais'!$D$5:$L$68,26) -> 0 | H9: =HLOOKUP($C9,'Dados Gerais'!$D$5:$L$68,31) -> 0 | I9: =HLOOKUP($C9,'Dados Gerais'!$D$5:$L$68,46) -> 0 | J9: =HLOOKUP($C9,'Dados Gerais'!$D$5:$L$68,33) -> 0 | K9: 2244.21
C10: 6 | D10: =HLOOKUP($C10,'Dados Gerais'!$D$5:$L$68,6) -> ALMOXARIFE | E10: =HLOOKUP($C10,'Dados Gerais'!$D$5:$L$68,10) -> 2 | F10: =HLOOKUP($C10,'Dados Gerais'!$D$5:$L$68,8) -> 2686.07 | G10: =HLOOKUP($C10,'Dados Gerais'!$D$5:$L$68,26) -> 0 | H10: =HLOOKUP($C10,'Dados Gerais'!$D$5:$L$68,31) -> 0 | I10: =HLOOKUP($C10,'Dados Gerais'!$D$5:$L$68,46) -> 0 | J10: =HLOOKUP($C10,'Dados Gerais'!$D$5:$L$68,33) -> 0 | K10: =SUM(F10:J10) -> 2686.07
C11: 7 | D11: =HLOOKUP($C11,'Dados Gerais'!$D$5:$L$68,6) -> SERVENTE | E11: =HLOOKUP($C11,'Dados Gerais'!$D$5:$L$68,10) -> 151 | F11: =HLOOKUP($C11,'Dados Gerais'!$D$5:$L$68,8) -> 1898.58 | G11: =HLOOKUP($C11,'Dados Gerais'!$D$5:$L$68,26) -> 0 | H11: =HLOOKUP($C11,'Dados Gerais'!$D$5:$L$68,31) -> 0 | I11: =HLOOKUP($C11,'Dados Gerais'!$D$5:$L$68,46) -> 0 | J11: =HLOOKUP($C11,'Dados Gerais'!$D$5:$L$68,33) -> 0 | K11: 1898.58
C12: 8 | D12: =HLOOKUP($C12,'Dados Gerais'!$D$5:$L$68,6) -> SERVENTE COM ADICIONAL DE INSALUBRIDADE | E12: =HLOOKUP($C12,'Dados Gerais'!$D$5:$L$68,10) -> 25 | F12: =HLOOKUP($C12,'Dados Gerais'!$D$5:$L$68,8) -> 1898.58 | G12: =HLOOKUP($C12,'Dados Gerais'!$D$5:$L$68,26) -> 0 | H12: =HLOOKUP($C12,'Dados Gerais'!$D$5:$L$68,31) -> 260.4 | I12: =HLOOKUP($C12,'Dados Gerais'!$D$5:$L$68,46) -> 0 | J12: =HLOOKUP($C12,'Dados Gerais'!$D$5:$L$68,33) -> 0 | K12: 2158.98
C13: 9 | D13: =HLOOKUP($C13,'Dados Gerais'!$D$5:$L$68,6) -> SERVENTE COM ADICIONAL DE INSALUBRIDADE E ADICIONAL NOTURNO | E13: =HLOOKUP($C13,'Dados Gerais'!$D$5:$L$68,10) -> 2 | F13: =HLOOKUP($C13,'Dados Gerais'!$D$5:$L$68,8) -> 1898.58 | G13: =HLOOKUP($C13,'Dados Gerais'!$D$5:$L$68,26) -> 0 | H13: =HLOOKUP($C13,'Dados Gerais'!$D$5:$L$68,31) -> 260.4 | I13: =HLOOKUP($C13,'Dados Gerais'!$D$5:$L$68,46) -> 54.43 | J13: =HLOOKUP($C13,'Dados Gerais'!$D$5:$L$68,33) -> 0 | K13: 2213.41
D15: TOTAL DE POSTOS | E15: =SUM(E5:E14) -> 198

Sheet Resumo
B3: RESUMO - TOTAIS MENSAIS - FATURA ORDINÁRIA (SEM O 13º E SEM OS ITENS SOB DEMANDA)
C6: ITEM | D6: POSTO DE TRABALHO | E6: QUANTIDADE | F6: PREÇO UNIT (SEM O 13º) | G6: DESTAQUE DO 13º | H6: PREÇO POR EMPREGADO | I6: PREÇO TOTAL (MENSAL)
C7: 1 | D7: =HLOOKUP(C7,'Dados Gerais'!$D$5:$BK$10,6) -> ENCARREGADO GERAL | E7: =HLOOKUP(C7,'Dados Gerais'!$D$5:$BK$14,10) -> 1 | F7: ='1'!$E$116 -> 16024.87198 | G7: 0 | H7: =G7+F7 -> 16024.87198 | I7: =H7*E7 -> 16024.87198
C8: 2 | D8: =HLOOKUP(C8,'Dados Gerais'!$D$5:$BK$10,6) -> ENCARREGADO SETORIAL | E8: =HLOOKUP(C8,'Dados Gerais'!$D$5:$BK$14,10) -> 1 | F8: ='2'!$E$116 -> 9401.332792 | G8: 0 | H8: 9401.332792 | I8: 9401.332792
C9: 3 | D9: =HLOOKUP(C9,'Dados Gerais'!$D$5:$BK$10,6) -> ENCARREGADO DE SERVIÇO | E9: =HLOOKUP(C9,'Dados Gerais'!$D$5:$BK$14,10) -> 13 | F9: ='3'!$E$115 -> 8109.54856 | G9: 0 | H9: 8109.54856 | I9: 105424.1313
C10: 4 | D10: =HLOOKUP(C10,'Dados Gerais'!$D$5:$BK$10,6) -> ENCARREGADO DE SERVIÇO COM ADICIONAL DE INSALUBRIDADE | E10: =HLOOKUP(C10,'Dados Gerais'!$D$5:$BK$14,10) -> 2 | F10: ='4'!$E$115 -> 8625.126704 | G10: 0 | H10: =G10+F10 -> 8625.126704 | I10: =H10*E10 -> 17250.25341
C11: 5 | D11: =HLOOKUP(C11,'Dados Gerais'!$D$5:$BK$10,6) -> AUXILIAR DE ENCARREGADO | E11: =HLOOKUP(C11,'Dados Gerais'!$D$5:$BK$14,10) -> 1 | F11: ='5'!$E$115 -> 6063.026448 | G11: 0 | H11: 6063.026448 | I11: 6063.026448
C12: 6 | D12: =HLOOKUP(C12,'Dados Gerais'!$D$5:$BK$10,6) -> ALMOXARIFE | E12: =HLOOKUP(C12,'Dados Gerais'!$D$5:$BK$14,10) -> 2 | F12: ='6'!$E$115 -> 6828.510616 | G12: 0 | H12: 6828.510616 | I12: 13657.02123
C13: 7 | D13: =HLOOKUP(C13,'Dados Gerais'!$D$5:$BK$10,6) -> SERVENTE | E13: =HLOOKUP(C13,'Dados Gerais'!$D$5:$BK$14,10) -> 151 | F13: ='7'!$E$115 -> 5337.62764 | G13: 0 | H13: =G13+F13 -> 5337.62764 | I13: =H13*E13 -> 805981.7736
C14: 8 | D14: =HLOOKUP(C14,'Dados Gerais'!$D$5:$BK$10,6) -> SERVENTE COM ADICIONAL DE INSALUBRIDADE | E14: =HLOOKUP(C14,'Dados Gerais'!$D$5:$BK$14,10) -> 25 | F14: ='8'!$E$115 -> 5853.157048 | G14: 0 | H14: 5853.157048 | I14: 146328.9262
C15: 9 | D15: =HLOOKUP(C15,'Dados Gerais'!$D$5:$BK$10,6) -> SERVENTE COM ADICIONAL DE INSALUBRIDADE E ADICIONAL NOTURNO | E15: =HLOOKUP(C15,'Dados Gerais'!$D$5:$BK$14,10) -> 2 | F15: ='9'!$E$115 -> 5960.924528 | G15: 0 | H15: 5960.924528 | I15: 11921.84906
D17: TOTAL MENSAL - SALÁRIOS | I17: =SUM(I7:I16) -> 1132053.186
B20: RESUMO - TOTAIS MENSAIS - DESTAQUE DO 13º SALÁRIO
C23: ITEM | D23: POSTO DE TRABALHO | E23: QUANTIDADE | F23: PREÇO UNIT (SEM O 13º) | G23: DESTAQUE DO 13º | H23: PREÇO POR EMPREGADO | I23: PREÇO TOTAL (MENSAL)
C24: 1 | D24: =HLOOKUP(C24,'Dados Gerais'!$D$5:$BK$10,6) -> ENCARREGADO GERAL | E24: =HLOOKUP(C24,'Dados Gerais'!$D$5:$BK$14,10) -> 1 | F24: 0 | G24: =G41 -> 1080.41 | H24: =G24+F24 -> 1080.41 | I24: =H24*E24 -> 1080.41
C25: 2 | D25: =HLOOKUP(C25,'Dados Gerais'!$D$5:$BK$10,6) -> ENCARREGADO SETORIAL | E25: =HLOOKUP(C25,'Dados Gerais'!$D$5:$BK$14,10) -> 1 | F25: 0 | G25: =G42 -> 578.83 | H25: =G25+F25 -> 578.83 | I25: 578.83
C26: 3 | D26: =HLOOKUP(C26,'Dados Gerais'!$D$5:$BK$10,6) -> ENCARREGADO DE SERVIÇO | E26: =HLOOKUP(C26,'Dados Gerais'!$D$5:$BK$14,10) -> 13 | F26: 0 | G26: =G43 -> 460.8 | H26: 460.8 | I26: 5990.4
C27: 4 | D27: =HLOOKUP(C27,'Dados Gerais'!$D$5:$BK$10,6) -> ENCARREGADO DE SERVIÇO COM ADICIONAL DE INSALUBRIDADE | E27: =HLOOKUP(C27,'Dados Gerais'!$D$5:$BK$14,10) -> 2 | F27: 0 | G27: 496.96 | H27: =G27+F27 -> 496.96 | I27: =H27*E27 -> 993.92
C28: 5 | D28: =HLOOKUP(C28,'Dados Gerais'!$D$5:$BK$10,6) -> AUXILIAR DE ENCARREGADO | E28: =HLOOKUP(C28,'Dados Gerais'!$D$5:$BK$14,10) -> 1 | F28: 0 | G28: 311.72 | H28: 311.72 | I28: 311.72
C29: 6 | D29: =HLOOKUP(C29,'Dados Gerais'!$D$5:$BK$10,6) -> ALMOXARIFE | E29: =HLOOKUP(C29,'Dados Gerais'!$D$5:$BK$14,10) -> 2 | F29: 0 | G29: 373.09 | H29: 373.09 | I29: 746.18
C30: 7 | D30: =HLOOKUP(C30,'Dados Gerais'!$D$5:$BK$10,6) -> SERVENTE | E30: =HLOOKUP(C30,'Dados Gerais'!$D$5:$BK$14,10) -> 151 | F30: 0 | G30: 263.71 | H30: =G30+F30 -> 263.71 | I30: =H30*E30 -> 39820.21
C31: 8 | D31: =HLOOKUP(C31,'Dados Gerais'!$D$5:$BK$10,6) -> SERVENTE COM ADICIONAL DE INSALUBRIDADE | E31: =HLOOKUP(C31,'Dados Gerais'!$D$5:$BK$14,10) -> 25 | F31: 0 | G31: 299.88 | H31: 299.88 | I31: 7497
C32: 9 | D32: =HLOOKUP(C32,'Dados Gerais'!$D$5:$BK$10,6) -> SERVENTE COM ADICIONAL DE INSALUBRIDADE E ADICIONAL NOTURNO | E32: =HLOOKUP(C32,'Dados Gerais'!$D$5:$BK$14,10) -> 2 | F32: 0 | G32: 307.44 | H32: 307.44 | I32: 614.88
D34: TOTAL MENSAL - DESTAQUE DO 13º | I34: =SUM(I24:I33) -> 57633.55
B37: RESUMO - TOTAIS MENSAIS - FATURA ORDINÁRIA TOTAL
C40: ITEM | D40: POSTO DE TRABALHO | E40: QUANTIDADE | F40: PREÇO UNIT (SEM O 13º) | G40: DESTAQUE DO 13º | H40: PREÇO POR EMPREGADO | I40: PREÇO TOTAL (MENSAL)
C41: 1 | D41: =HLOOKUP(C41,'Dados Gerais'!$D$5:$BK$10,6) -> ENCARREGADO GERAL | E41: =HLOOKUP(C41,'Dados Gerais'!$D$5:$BK$14,10) -> 1 | F41: =F7 -> 16024.87198 | G41: ='1'!$E$117 -> 1080.41 | H41: =G41+F41 -> 17105.28198 | I41: =H41*E41 -> 17105.28198 | K41: =I41/$I$51 -> 0.01437797149 | L41: =$I$64*K41 -> 3045.592424
C42: 2 | D42: =HLOOKUP(C42,'Dados Gerais'!$D$5:$BK$10,6) -> ENCARREGADO SETORIAL | E42: =HLOOKUP(C42,'Dados Gerais'!$D$5:$BK$14,10) -> 1 | F42: =F8 -> 9401.332792 | G42: ='2'!$E$117 -> 578.83 | H42: 9980.162792 | I42: 9980.162792 | K42: 0.008388899775 | L42: 1776.966216
C43: 3 | D43: =HLOOKUP(C43,'Dados Gerais'!$D$5:$BK$10,6) -> ENCARREGADO DE SERVIÇO | E43: =HLOOKUP(C43,'Dados Gerais'!$D$5:$BK$14,10) -> 13 | F43: 8109.54856 | G43: ='3'!$E$116 -> 460.8 | H43: 8570.34856 | I43: 111414.5313 | K43: 0.0936503097 | L43: 19837.33755
C44: 4 | D44: =HLOOKUP(C44,'Dados Gerais'!$D$5:$BK$10,6) -> ENCARREGADO DE SERVIÇO COM ADICIONAL DE INSALUBRIDADE | E44: =HLOOKUP(C44,'Dados Gerais'!$D$5:$BK$14,10) -> 2 | F44: 8625.126704 | G44: ='4'!$E$116 -> 496.96 | H44: =G44+F44 -> 9122.086704 | I44: =H44*E44 -> 18244.17341 | K44: =I44/$I$51 -> 0.01533527512 | L44: =$I$64*K44 -> 3248.371842
C45: 5 | D45: =HLOOKUP(C45,'Dados Gerais'!$D$5:$BK$10,6) -> AUXILIAR DE ENCARREGADO | E45: =HLOOKUP(C45,'Dados Gerais'!$D$5:$BK$14,10) -> 1 | F45: 6063.026448 | G45: ='5'!$E$116 -> 311.72 | H45: 6374.746448 | I45: 6374.746448 | K45: 0.005358340355 | L45: 1135.022475
C46: 6 | D46: =HLOOKUP(C46,'Dados Gerais'!$D$5:$BK$10,6) -> ALMOXARIFE | E46: =HLOOKUP(C46,'Dados Gerais'!$D$5:$BK$14,10) -> 2 | F46: 6828.510616 | G46: ='6'!$E$116 -> 373.09 | H46: 7201.600616 | I46: 14403.20123 | K46: 0.0121067175 | L46: 2564.487427
C47: 7 | D47: =HLOOKUP(C47,'Dados Gerais'!$D$5:$BK$10,6) -> SERVENTE | E47: =HLOOKUP(C47,'Dados Gerais'!$D$5:$BK$14,10) -> 151 | F47: 5337.62764 | G47: ='7'!$E$116 -> 263.71 | H47: =G47+F47 -> 5601.33764 | I47: =H47*E47 -> 845801.9836 | K47: 0.7109451236 | L47: 150594.8933
C48: 8 | D48: =HLOOKUP(C48,'Dados Gerais'!$D$5:$BK$10,6) -> SERVENTE COM ADICIONAL DE INSALUBRIDADE | E48: =HLOOKUP(C48,'Dados Gerais'!$D$5:$BK$14,10) -> 25 | F48: 5853.157048 | G48: ='8'!$E$116 -> 299.88 | H48: 6153.037048 | I48: 153825.9262 | K48: 0.1292995219 | L48: 27388.6789
C49: 9 | D49: =HLOOKUP(C49,'Dados Gerais'!$D$5:$BK$10,6) -> SERVENTE COM ADICIONAL DE INSALUBRIDADE E ADICIONAL NOTURNO | E49: =HLOOKUP(C49,'Dados Gerais'!$D$5:$BK$14,10) -> 2 | F49: 5960.924528 | G49: ='9'!$E$116 -> 307.44 | H49: 6268.364528 | I49: 12536.72906 | K49: 0.01053784049 | L49: 2232.162387
D51: TOTAL MENSAL - SALÁRIOS | I51: =SUM(I41:I50) -> 1189686.736
C53: ITEM | D53: DESCRIÇÃO | I53: PREÇO TOTAL (MENSAL)
C54: EQUIP | D54: EQUIPAMENTOS NÃO RELACIONADOS DIRETAMENTE A UM POSTO DE TRABALHO | I54: ='Não Rel - Depr'!M62 -> 0
C55: HEXTRA | D55: HORAS EXTRAS | I55: ='Não Rel - Depr'!M62 -> 0
C56: HNOT | D56: ADICIONAL DE HORAS NOTURNAS (SOB DEMANDA) | I56: 0
C57: SREP | D57: SISTEMA DE REGISTRO ELETRÔNICO DE PRESENÇA - SREP | I57: =SREP!$M$46 -> 460.94
C58: EPI - N.REL | D58: EQUIPAMENTOS DE PROTEÇÃO INDIVIDUAL NÃO RELACIONADOS DIRETAMENTE A UM POSTO DE TRABALHO | I58: ='Não Rel - EPI'!K34 -> 2438.330833
C59: EQUIP - N.REL | D59: EQUIPAMENTOS NÃO RELACIONADAS DIRETAMENTE A UM POSTO DE TRABALHO | I59: ='Não Rel - Depr'!M63 -> 4697.03
C60: MAT | D60: MATERIAIS NÃO RELACIONADOS DIRETAMENTE A UM POSTO DE TRABALHO | I60: ='Não Rel - Mat Consumo'!L56 -> 194147.255
C61: MAT CONS DURAVEL | D61: MATERIAIS DE CONSUMO DURÁVEL NÃO RELACIONADOS DIRETAMENTE A UM POSTO DE TRABALHO | I61: ='Não Rel - Mat Cons Durável'!M37 -> 6659.298333
C62: EQ SOB DEMANDA | D62: SERVIÇOS NÃO RELACIONADOS DIRETAMENTE A UM POSTO DE TRABALHO | I62: 3420.658333
D64: TOTAL MENSAL | I64: =SUM(I54:I63) -> 211823.5125 | K64: =(I64+I51)*12 -> 16818122.98
D66: TOTAL MENSAL - ITENS ORDINÁRIOS
D67: DESCRIÇÃO | H67: VALOR
D68: Postos de Trabalho - Inclusive 13º Salário | H68: =I51 -> 1189686.736
D69: Adicional de Horas Noturnas | H69: =I56 -> 0
D70: Sistema de Registro Eletrônico de Presença - SREP | H70: =I57 -> 460.94
D71: Equipamentos de Proteção Individual não relacionados diretamente a um posto de trabalho | H71: =I58 -> 2438.330833
D72: Equipamentos não relacionadas diretamente a um posto de trabalho | H72: =I59 -> 4697.03
D73: Materiais de consumo não relacionados diretamente a um posto de trabalho | H73: =$I$60 -> 194147.255
D74: Materiais de consumo duráveis não relacionados diretamente a um posto de trabalho | H74: =$I$61 -> 6659.298333
G76: TOTAL MENSAL DA CONTRATAÇÃO | H76: =SUM(H68:H75) -> 1398089.59 | K76: =Extenso_Valor(H76) -> um milhão, trezentos e noventa e oito mil e oitenta e nove reais e cinquenta e nove centavos
D78: TOTAL ANUAL - ITENS ORDINÁRIOS
G80: 12 x TOTAL MENSAL | H80: =H76*12 -> 16777075.08
D82: TOTAL MENSAL - ITENS SOB DEMANDA
D83: DESCRIÇÃO | H83: VALOR
D84: Serviços não relacionados diretamente a um posto de trabalho - AQUISIÇÃO SOB DEMANDA | H84: 3420.658333
G86: TOTAL MENSAL DA CONTRATAÇÃO | H86: 3420.658333
D88: TOTAL ANUAL - ITENS SOB DEMANDA
G90: 12 x TOTAL MENSAL | H90: =H86*12 -> 41047.9
D92: TOTAL ANUAL DA CONTRATAÇÃO
H94: =H90+H80 -> 16818122.98 | K94: =Extenso_Valor(H94) -> dezesseis milhões, oitocentos e dezoito mil, cento e vinte e dois reais e noventa e oito centavos
D96: TOTAL GLOBAL DA CONTRATAÇÃO (30 MESES)
H98: =H94/12*30 -> 42045307.46
H103: =H76+H86 -> 1401510.249 | K103: =Extenso_Valor(H103) -> um milhão, quatrocentos e um mil, quinhentos e dez reais e vinte e cinco centavos

Sheet 1
B2: PLANILHA DE ESTIMATIVA DE CUSTOS
B3: Padrão IN 05/2017 e IN 07/2018 - MPDG
B5: 1 | D5: =HLOOKUP($B$5,'Dados Gerais'!$D$5:$BK$20,6) -> ENCARREGADO GERAL | E5: QUANTIDADE | F5: =HLOOKUP($B$5,'Dados Gerais'!$D$5:$BK$20,10) -> 1
B6: CCT | D6: =HLOOKUP($B$5,'Dados Gerais'!$D$5:$BK$20,15) -> SEAC/DF X SINDISERVIÇOS/DF 2023/2023 Nº DF000037/2023 | E6: DATA-BASE | F6: =HLOOKUP($B$5,'Dados Gerais'!$D$5:$BK$20,16) -> 2023-01-01
B8: MÓDULO 1 - COMPOSIÇÃO DA REMUNERAÇÃO | F8: Valor
C9: A | D9: Salário-Base | F9: =HLOOKUP($B$5,'Dados Gerais'!$D$5:$BK$20,8) -> 7376.1
C10: B | D10: Adicional de Periculosidade | F10: =HLOOKUP($B$5,'Dados Gerais'!$D$5:$BK$37,25) -> 0
C11: C | D11: Adicional de Insalubridade | F11: =HLOOKUP($B$5,'Dados Gerais'!$D$5:$BK$37,31) -> 0
C12: D | D12: Adicional Noturno | F12: =HLOOKUP($B$5,'Dados Gerais'!$D$5:$BK$50,46) -> 0 | H12: * Nota 1 - O Módulo 1 refere-se ao valor mensal devido ao empregado pela prestação do serviço no período de 12 meses.
C13: E | D13: Adicional de Hora Extra | F13: =HLOOKUP($B$5,'Dados Gerais'!$D$5:$BK$67,63) -> 0 | H13: * Nota 2 - O adicional de hora extra no feriado trabalhado foi suprimido pela Lei 13.467/17
C14: F | D14: Outros (especificar) | F14: =HLOOKUP($B$5,'Dados Gerais'!$D$5:$BK$59,33) -> 0 | H14: * Nota 3 - ART. 7º, § 2º, DA LEI Nº 605/49.Sendo mensalista o obreiro, o adicional noturno pago de forma fixa já é considerado integrado para os efeitos do pagamento do repouso semanal remunerado, nos termos do art. 7º, § 2º, da Lei nº 605/49.
D16: TOTAL DA REMUNERAÇÃO | F16: =SUM(F9:F14) -> 7376.1
B18: MÓDULO 2 - ENCARGOS E BENEFÍCIOS ANUAIS, MENSAIS E DIÁRIOS | E18: Percentuais | F18: Valor
B19: Submódulo 2.1 - 13º Salário, Férias e Adicional de Férias
C20: A | D20: 13º Salário - Calculado no Módulo 7 - Destacado | E20: 0 | F20: =ROUND(E20*F$16,2) -> 0
C21: B | D21: Férias e Adicional de Férias | E21: ='Encargos Sociais'!E31 -> 0.0303030303 | F21: =ROUND(E21*F$16,2) -> 223.52 | H21: * Nota 1 - Provisiona-se, mensalmente, o proporcional a 1/12 dos valores referentes a gratificação natalina, férias e adicional de férias.
H22: * Nota 2 - O adicional de férias contido no Submódulo 2.1 corresponde a 1/3 da remuneração que, por sua vez, é dividida por 12 contome Nota 1.
B23: Submódulo 2.2 - Encargos Previdenciários (GPS), Fundo de Garantia por Tempo de Serviço (FGTS) e Outras Contribuições
C24: A | D24: INSS (art. 22, inciso I, Lei nº 8.212/91) | E24: ='Encargos Sociais'!E14 -> 0.2 | F24: =ROUND(E24*($F$16+$F$41+$F$73),2) -> 1683.59
C25: B | D25: Salário Educação (art. 3º, inciso I, Decreto nº 87.043/82) | E25: ='Encargos Sociais'!E15 -> 0.025 | F25: =ROUND(E25*($F$16+$F$41+$F$73),2) -> 210.45
C26: C | D26: SAT/RAT (art. 22, II, Lei 8.212/91 e Anexo V, Decreto 6.042/07) - Enquadramento 8211-3/00 | E26: ='Encargos Sociais'!E16 -> 0.03 | F26: 252.54
C27: D | D27: SESC ou SESI (art. 30, Lei nº 8.036/90 e art. 1º, Lei 8.154/90) | E27: ='Encargos Sociais'!E17 -> 0.015 | F27: 126.27
C28: E | D28: SENAI ou SENAC (Decreto nº 2.318/86) | E28: ='Encargos Sociais'!E18 -> 0.01 | F28: 84.18
C29: F | D29: SEBRAE (§ 3º, art. 8º, Lei 8.029/90, alterada pela Lei nº 8.154/90) | E29: ='Encargos Sociais'!E19 -> 0.006 | F29: 50.51
C30: G | D30: INCRA (art. 1º, I, Decreto Lei 1.146/70 e Lei 7.787, de 30/06/89) | E30: ='Encargos Sociais'!E20 -> 0.002 | F30: 16.84 | H30: * Nota 1 - Os percentuais dos encargos previdenciários, do FGTS e demais contribuições são estabelecidos por legislação vigente.
C31: H | D31: FGTS (Lei Complementar nº 110/01 e art. 30, Lei nº 8.036/90) | E31: ='Encargos Sociais'!E21 -> 0.08 | F31: 673.44 | H31: * Nota 2 - O SAT, a depender do grau de risco do serviço, irá variar entre 1%, para risco leve, de 2%, para risco médio, e de 3% para risco grave.
C32: I | D32: SECONCI (Convenções Coletivas de Trabalho da construção) | E32: ='Encargos Sociais'!E22 -> 0 | F32: 0 | H32: * Nota 3 - Os percentuais do Submódulo 2.2 incidem sobre o Módulo 1 e o Submódulo 2.1.
B34: Submódulo 2.3 - Benefícios Mensais e Diários
C35: A | D35: Auxílio Transporte | F35: =HLOOKUP($B$5,'Dados Gerais'!$D$5:$BK$93,82) -> 0
C36: B | D36: Auxílio Alimentação | F36: =HLOOKUP($B$5,'Dados Gerais'!$D$5:$BK$93,89) -> 972
C37: C | D37: Assistência Médica e Familiar | F37: =HLOOKUP($B$5,'Dados Gerais'!$D$5:$BK$101,97) -> 0
C38: D | D38: Outros (Seguro de vida e auxílio funeral e auxílio odontológico) | F38: =HLOOKUP($B$5,'Dados Gerais'!$D$5:$BK$118,114) -> 0 | H38: * Nota 1 - O valor informado deverá ser o custo real do benefício (descontado o valor eventualmente pago pelo empregado).
H39: * Nota 2 - Observar a previsão dos benefícios contidos em Acordos, Convenções e Dissídios Coletivos de Trabalho e o disposto no art. 6º da IN 5/2017
D40: QUADRO-RESUMO DO MÓDULO 2
D41: 2.1 - 13º Salário, Férias e Adicional de Férias - 13º Destacado - Calculado no Módulo 7 | E41: =SUM(E20:E21) -> 0.0303030303 | F41: =F20+F21 -> 223.52
D42: 2.2 - Encargos Previdenciários (GPS), Fundo de Garantia por Tempo de Serviço (FGTS) e Contribuições | E42: =SUM(E24:E32) -> 0.368 | F42: =SUM(F24:F32) -> 3097.82
D43: 2.3 - Benefícios Mensais e Diários | F43: =SUM(F35:F38) -> 972
D45: TOTAL DOS ENCARGOS E BENEFÍCIOS | F45: =SUM(F41:F43) -> 4293.34
B47: MÓDULO 3 - PREVISÃO PARA RESCISÃO | E47: Percentuais | F47: Valor
C48: A | D48: Aviso Prévio Indenizado (Art. 7º, inciso XXI, da CF/1988 e arts. 477, 487, §1º, e 491 da CLT) | E48: ='Encargos Sociais'!E36 -> 0.008333333333 | F48: =ROUND(E48*$F$16,2) -> 61.47
C49: B | D49: Incidência do FGTS sobre o Aviso Prévio Indenizado (Súmula 305 TST) | E49: ='Encargos Sociais'!E37 -> 0.0006666666667 | F49: 4.92 | H49: * Nota 1 - Adotou-se os parâmetros do estudo do STF (http://www.stf.jus.br/arquivo/cms/sobrestfestudosci/anexo/encargos_sociais_03102007.pdf), onde 5% do pessoal é demitido pelo empregador no decurso do contrato (para estes, considerou-se o aviso prévio indenizado). Desprezou-se as demissões por justa causa e os pedidos de demissão.
C50: C | D50: Multa do FGTS e Contribuição Social sobre o Aviso Prévio Indenizado (Art. 18, §1º, da Lei 8.036/1990 e art. 1º da LC nº 110/2001) | E50: ='Encargos Sociais'!E38 -> 0.007717066667 | F50: 56.92 | H50: * Nota 2 - No cálculo do percentual, considerou-se 36 dias, correspondendo à metade da duração média dos contratos (2 anos)
C51: D | D51: Aviso Prévio Trabalhado (Art. 488, parágrafo único, CLT) | E51: ='Encargos Sociais'!E39 -> 0.01203703704 | F51: 88.79 | H51: * Nota 3 - Incide sobre a Remuneração + 13º salário (1/12) + Férias (1/12) + Adicional de Férias (1/36) x 50% multa (40% para o empregado e 10% de contribuição social) x 8% FGTS
C52: E | D52: Incidência de GPS, FGTS e outras contribuições sobre o Aviso Prévio Trabalhado | E52: ='Encargos Sociais'!E40 -> 0.00442962963 | F52: 32.67 | H52: * Nota 4 - Os 95% restantes do cálculo, a um prazo médio de contrato de 4 anos. Assim, calcula-se 7 dias para o 1º ano de contrato e mais 3 dias para os 3 anos seguintes.
C53: F | D53: Multa do FGTS e Contribuição Social sobre o Aviso Prévio Trabalhado | E53: ='Encargos Sociais'!E41 -> 0.03050515556 | F53: 225.01
D55: TOTAL DE PREVISÃO PARA RESCISÃO | F55: =SUM(F48:F53) -> 469.78
B57: MÓDULO 4 - CUSTO DO PROFISSIONAL AUSENTE | E57: Percentuais | F57: Valor
B58: Submódulo 4.1 - Ausências Legais
C59: A | D59: Férias (Arts. 129 e 130, inc. I, da CLT) | E59: ='Encargos Sociais'!E25 -> 0.09090909091 | F59: =ROUND(E59*$F$16,2) -> 670.55 | H59: * Nota 1 - As alíneas “A” a “F” referem-se somente ao custo que será pago ao repositor pelos dias trabalhados quando da necessidade de substituir a mão de obra alocada na prestação do serviço.
C60: B | D60: Ausências Legais (Arts. 131 e 473 da CLT) | E60: ='Encargos Sociais'!E26 -> 0.007936507937 | F60: 58.54 | H60: * Nota 2 - Adotou-se a estimativa do SINAPI de 2 dias por ano.
C61: C | D61: Licença-Paternidade (Art. 7º, XIX, e art. 10, §1º, do ADCT, CF/1988 e Art. 1º, II, da Lei 11.770/2008) | E61: ='Encargos Sociais'!E27 -> 0.0008277777778 | F61: 6.11 | H61: * Nota 3 - Utilizada a proporção de 50% para homens, 5 dias de afastamento, e a probabilidade de um trabalhador requerer a Licença Paternidade em 5,22%, conforme SINAPI (citando dados da PNAD 2015)
C62: D | D62: Ausência por Acidente de Trabalho (Art. 131, III, da CLT) | E62: ='Encargos Sociais'!E28 -> 0.0008541666667 | F62: 6.3 | H62: * Nota 4 - Utilzada a estatística de 1,96% dos contribuintes beneficiados com a emissão do auxílio, conforme Anuário Estatístico da Previdência Social. Afastamento de 15 dias a cargo da empresa.
C63: E | D63: Afastamento Maternidade (Art. 71 da Lei nº 8.213/1991) | E63: ='Encargos Sociais'!E29 -> 0.003292592593 | F63: 24.29 | H63: * Nota 5 - Utilizada a proporção de 50% para mulheres, 180 dias de afastamento, e a probabilidade de uma trabalhadora requerer a Licença Maternidade em 4,91%, conforme SINAPI (citando dados do IBGE 2016)
C64: F | D64: Auxílio Enfermidade - Doença (Art. 59 da Lei nº 8.213/1991) | E64: ='Encargos Sociais'!E30 -> 0.007122222222 | F64: 52.53 | H64: * Nota 6 - Utilizada a estatística de 3,37% dos contribuintes beneficiados com o auxílio, conforme Anuário Estatístico da Previdência Social de 2015 (acrescidos de 2 dias ao ano, para os quais o trabalhador nem requer o benefício da Previdência - conforme SINAPI)
B66: Submódulo 4.2 - Intrajornada
C67: A | D67: Intervalo para repouso ou alimentação | E67: ='Encargos Sociais'!E33 -> 0 | F67: =ROUND(E67*$F$16,2) -> 0
D69: QUADRO-RESUMO DO MÓDULO 4 | F69: Valor
D70: 4.1 - Ausências Legais | E70: =SUM(E59:E64) -> 0.1109423581 | F70: =ROUND(E70*$F$16,2) -> 818.32
D71: 4.2 - Intrajornada | E71: =E67 -> 0 | F71: =ROUND(E71*$F$16,2) -> 0
D73: TOTAL DE PREVISÃO PARA RESCISÃO E INTERVALO INTRAJORNADA | F73: =SUM(F70:F71) -> 818.32
B75: MÓDULO 5 - INSUMOS DIVERSOS | F75: Valor
C76: A | D76: Uniformes - aquisição | F76: =ROUND(HLOOKUP($B$5,Uniformes!L4:EA95,3)/12,2) -> 185.08
C77: B | D77: Materiais de consumo relacionados ao posto - aquisição | F77: =ROUND(HLOOKUP(B5,'Mat Cons'!I11:DX13,3)/12,2) -> 0
C78: C | D78: Materiais permanentes relacionados ao posto - remuneração da sua depreciação / manutenção | F78: =HLOOKUP(B5,'Mat Perm'!Q11:EF13,3) -> 0
C79: D | D79: Equipamentos relacionados ao posto - remuneração da sua depreciação / manutenção | F79: =HLOOKUP(B5,'Equip Rel'!Q11:EF13,3) -> 0
C80: E | D80: Equipamentos de Proteção Individual - EPI - aquisição | F80: =ROUND(HLOOKUP(B5,EPI!J4:DY6,3)/12,2) -> 9.77
D82: TOTAL DE INSUMOS DIVERSOS | F82: =SUM(F76:F81) -> 194.85 | H82: * Nota - Valores mensais por empregado
B84: MÓDULO 6 - CUSTOS INDIRETOS, TRIBUTOS E LUCRO - BDI | E84: Percentuais | F84: Valor
C85: A | D85: Custos Indiretos | E85: =BDI!E6 -> 0.027
C86: A.1 | D86: Administração Central | E86: =BDI!E7 -> 0.0216
C87: A.2 | D87: Seguros, Garantias e Riscos | E87: =BDI!E8 -> 0.0054
C88: B | D88: Lucro | E88: =BDI!E10 -> 0.0334
C89: C | D89: Tributos | E89: =SUM(E90:E91) -> 0.124
C90: C.1 | D90: Tributos Federais (COFINS, PIS e CPRB) | E90: =BDI!E18 -> 0.074
C91: C.2 | D91: Tributos Distritais (ISS) | E91: =BDI!E23 -> 0.05 | H91: * Nota - Utilizou-se o indicado pelo Sindicato da Arquitetura e da Engenharia (Sinaenco, 2008, p. 22), que adota um percentual redutor de 20% no cálculo dos custos tributários relativos às contribuições PIS e COFINS
C92: D | D92: Despesas Financeiras | E92: =BDI!E13 -> 0.005639499547
D94: TOTAL DE BDI | E94: =BDI!E26 -> 0.2184 | F94: =E94*E102 -> 2872.481976
D96: QUADRO-RESUMO DO CUSTO MENSAL POR EMPREGADO - SEM O 13º | E96: Valor
D97: Módulo 1 - Composição da Remuneração | E97: =F16 -> 7376.1
D98: Módulo 2 - Encargos e Benefícios Anuais, Mensais e Diários | E98: =F45 -> 4293.34
D99: Módulo 3 - Provisão para Rescisão | E99: =F55 -> 469.78
D100: Módulo 4 - Custo de Reposição do Profissional Ausente | E100: =F73 -> 818.32
D101: Módulo 5 - Insumos Diversos | E101: =F82 -> 194.85
D102: SUBTOTAL (A+B+C+D+E) | E102: =SUM(E97:E101) -> 13152.39
D103: Módulo 6 - Custos Indiretos, Tributos e Lucro | E103: =F94 -> 2872.481976
D105: TOTAL DO POSTO | E105: =SUM(E102:E103) -> 16024.87198
B107: MÓDULO 7 - DESTAQUE DO MÓDULO 2 - 13º SALÁRIO | E107: Percentuais | F107: Valor
C108: A | D108: 13º Salário | E108: ='Encargos Sociais'!E32 -> 0.08333333333 | F108: =ROUND(E108*F$16,2) -> 614.68
C109: B | D109: Encargos Sociais sobre o 13º Salário - Taxa calculada no SUBMÓDULO 2.2 | E109: =SUM($E$24:$E$32) -> 0.368 | F109: =ROUND(E109*$F$108,2) -> 226.2 | H109: * Nota 1 - Provisiona-se, mensalmente, o proporcional a 1/12 dos valores referentes a gratificação natalina e adicional de férias.
C110: C | D110: Reincidência de férias sobre o 13º Salário | E110: =E59 -> 0.09090909091 | F110: =ROUND(E110*$F$108,2) -> 55.88
C111: D | D111: BDI sobre o 13º Salário - Taxa calculada no MÓDULO 6 | E111: =E94 -> 0.2184 | F111: =ROUND(E111*($F$108+$F$109),2) -> 183.65
D113: TOTAL DO DESTAQUE DO 13º SALÁRIO | F113: =SUM(F108:F111) -> 1080.41
D115: QUADRO-RESUMO DO CUSTO MENSAL POR EMPREGADO | E115: Valor
D116: Custo total - sem o 13º Salário | E116: =E105 -> 16024.87198
D117: Destaque do 13º Salário (valor mensal) | E117: =F113 -> 1080.41
D119: TOTAL DO POSTO | E119: =E116+E117 -> 17105.28198

Sheet 2
B2: PLANILHA DE ESTIMATIVA DE CUSTOS
B3: Padrão IN 05/2017 e IN 07/2018 - MPDG
B5: 2 | D5: =HLOOKUP($B$5,'Dados Gerais'!$D$5:$BK$20,6) -> ENCARREGADO SETORIAL | E5: QUANTIDADE | F5: =HLOOKUP($B$5,'Dados Gerais'!$D$5:$BK$20,10) -> 1
B6: CCT | D6: =HLOOKUP($B$5,'Dados Gerais'!$D$5:$BK$20,15) -> SEAC/DF X SINDISERVIÇOS/DF 2023/2023 Nº DF000037/2023 | E6: DATA-BASE | F6: =HLOOKUP($B$5,'Dados Gerais'!$D$5:$BK$20,16) -> 2023-01-01
B8: MÓDULO 1 - COMPOSIÇÃO DA REMUNERAÇÃO | F8: Valor
C9: A | D9: Salário-Base | F9: =HLOOKUP($B$5,'Dados Gerais'!$D$5:$BK$20,8) -> 3951.73
C10: B | D10: Adicional de Periculosidade | F10: =HLOOKUP($B$5,'Dados Gerais'!$D$5:$BK$37,25) -> 0
C11: C | D11: Adicional de Insalubridade | F11: =HLOOKUP($B$5,'Dados Gerais'!$D$5:$BK$37,31) -> 0
C12: D | D12: Adicional Noturno | F12: =HLOOKUP($B$5,'Dados Gerais'!$D$5:$BK$50,46) -> 0 | H12: * Nota 1 - O Módulo 1 refere-se ao valor mensal devido ao empregado pela prestação do serviço no período de 12 meses.
C13: E | D13: Adicional de Hora Extra | F13: =HLOOKUP($B$5,'Dados Gerais'!$D$5:$BK$67,63) -> 0 | H13: * Nota 2 - O adicional de hora extra no feriado trabalhado foi suprimido pela Lei 13.467/17
C14: F | D14: Outros (especificar) | F14: =HLOOKUP($B$5,'Dados Gerais'!$D$5:$BK$59,33) -> 0 | H14: * Nota 3 - ART. 7º, § 2º, DA LEI Nº 605/49.Sendo mensalista o obreiro, o adicional noturno pago de forma fixa já é considerado integrado para os efeitos do pagamento do repouso semanal remunerado, nos termos do art. 7º, § 2º, da Lei nº 605/49.
D16: TOTAL DA REMUNERAÇÃO | F16: =SUM(F9:F14) -> 3951.73
B18: MÓDULO 2 - ENCARGOS E BENEFÍCIOS ANUAIS, MENSAIS E DIÁRIOS | E18: Percentuais | F18: Valor
B19: Submódulo 2.1 - 13º Salário, Férias e Adicional de Férias
C20: A | D20: 13º Salário - Calculado no Módulo 7 - Destacado | E20: 0 | F20: =ROUND(E20*F$16,2) -> 0
C21: B | D21: Férias e Adicional de Férias | E21: ='Encargos Sociais'!E31 -> 0.0303030303 | F21: =ROUND(E21*F$16,2) -> 119.75 | H21: * Nota 1 - Provisiona-se, mensalmente, o proporcional a 1/12 dos valores referentes a gratificação natalina, férias e adicional de férias.
H22: * Nota 2 - O adicional de férias contido no Submódulo 2.1 corresponde a 1/3 da remuneração que, por sua vez, é dividida por 12 contome Nota 1.
B23: Submódulo 2.2 - Encargos Previdenciários (GPS), Fundo de Garantia por Tempo de Serviço (FGTS) e Outras Contribuições
C24: A | D24: INSS (art. 22, inciso I, Lei nº 8.212/91) | E24: ='Encargos Sociais'!E14 -> 0.2 | F24: =ROUND(E24*($F$16+$F$41+$F$73),2) -> 901.98
C25: B | D25: Salário Educação (art. 3º, inciso I, Decreto nº 87.043/82) | E25: ='Encargos Sociais'!E15 -> 0.025 | F25: =ROUND(E25*($F$16+$F$41+$F$73),2) -> 112.75
C26: C | D26: SAT/RAT (art. 22, II, Lei 8.212/91 e Anexo V, Decreto 6.042/07) - Enquadramento 8211-3/00 | E26: ='Encargos Sociais'!E16 -> 0.03 | F26: 135.3
C27: D | D27: SESC ou SESI (art. 30, Lei nº 8.036/90 e art. 1º, Lei 8.154/90) | E27: ='Encargos Sociais'!E17 -> 0.015 | F27: 67.65
C28: E | D28: SENAI ou SENAC (Decreto nº 2.318/86) | E28: ='Encargos Sociais'!E18 -> 0.01 | F28: 45.1
C29: F | D29: SEBRAE (§ 3º, art. 8º, Lei 8.029/90, alterada pela Lei nº 8.154/90) | E29: ='Encargos Sociais'!E19 -> 0.006 | F29: 27.06
C30: G | D30: INCRA (art. 1º, I, Decreto Lei 1.146/70 e Lei 7.787, de 30/06/89) | E30: ='Encargos Sociais'!E20 -> 0.002 | F30: 9.02 | H30: * Nota 1 - Os percentuais dos encargos previdenciários, do FGTS e demais contribuições são estabelecidos por legislação vigente.
C31: H | D31: FGTS (Lei Complementar nº 110/01 e art. 30, Lei nº 8.036/90) | E31: ='Encargos Sociais'!E21 -> 0.08 | F31: 360.79 | H31: * Nota 2 - O SAT, a depender do grau de risco do serviço, irá variar entre 1%, para risco leve, de 2%, para risco médio, e de 3% para risco grave.
C32: I | D32: SECONCI (Convenções Coletivas de Trabalho da construção) | E32: ='Encargos Sociais'!E22 -> 0 | F32: 0 | H32: * Nota 3 - Os percentuais do Submódulo 2.2 incidem sobre o Módulo 1 e o Submódulo 2.1.
B34: Submódulo 2.3 - Benefícios Mensais e Diários
C35: A | D35: Auxílio Transporte | F35: =HLOOKUP($B$5,'Dados Gerais'!$D$5:$BK$93,82) -> 118.29
C36: B | D36: Auxílio Alimentação | F36: =HLOOKUP($B$5,'Dados Gerais'!$D$5:$BK$93,89) -> 972
C37: C | D37: Assistência Médica e Familiar | F37: =HLOOKUP($B$5,'Dados Gerais'!$D$5:$BK$101,97) -> 0
C38: D | D38: Outros (Seguro de vida e auxílio funeral e auxílio odontológico) | F38: =HLOOKUP($B$5,'Dados Gerais'!$D$5:$BK$118,114) -> 0 | H38: * Nota 1 - O valor informado deverá ser o custo real do benefício (descontado o valor eventualmente pago pelo empregado).
H39: * Nota 2 - Observar a previsão dos benefícios contidos em Acordos, Convenções e Dissídios Coletivos de Trabalho e o disposto no art. 6º da IN 5/2017
D40: QUADRO-RESUMO DO MÓDULO 2
D41: 2.1 - 13º Salário, Férias e Adicional de Férias - 13º Destacado - Calculado no Módulo 7 | E41: =SUM(E20:E21) -> 0.0303030303 | F41: =F20+F21 -> 119.75
D42: 2.2 - Encargos Previdenciários (GPS), Fundo de Garantia por Tempo de Serviço (FGTS) e Contribuições | E42: =SUM(E24:E32) -> 0.368 | F42: =SUM(F24:F32) -> 1659.65
D43: 2.3 - Benefícios Mensais e Diários | F43: =SUM(F35:F38) -> 1090.29
D45: TOTAL DOS ENCARGOS E BENEFÍCIOS | F45: =SUM(F41:F43) -> 2869.69
B47: MÓDULO 3 - PREVISÃO PARA RESCISÃO | E47: Percentuais | F47: Valor
C48: A | D48: Aviso Prévio Indenizado (Art. 7º, inciso XXI, da CF/1988 e arts. 477, 487, §1º, e 491 da CLT) | E48: ='Encargos Sociais'!E36 -> 0.008333333333 | F48: =ROUND(E48*$F$16,2) -> 32.93
C49: B | D49: Incidência do FGTS sobre o Aviso Prévio Indenizado (Súmula 305 TST) | E49: ='Encargos Sociais'!E37 -> 0.0006666666667 | F49: 2.63 | H49: * Nota 1 - Adotou-se os parâmetros do estudo do STF (http://www.stf.jus.br/arquivo/cms/sobrestfestudosci/anexo/encargos_sociais_03102007.pdf), onde 5% do pessoal é demitido pelo empregador no decurso do contrato (para estes, considerou-se o aviso prévio indenizado). Desprezou-se as demissões por justa causa e os pedidos de demissão.
C50: C | D50: Multa do FGTS e Contribuição Social sobre o Aviso Prévio Indenizado (Art. 18, §1º, da Lei 8.036/1990 e art. 1º da LC nº 110/2001) | E50: ='Encargos Sociais'!E38 -> 0.007717066667 | F50: 30.5 | H50: * Nota 2 - No cálculo do percentual, considerou-se 36 dias, correspondendo à metade da duração média dos contratos (2 anos)
C51: D | D51: Aviso Prévio Trabalhado (Art. 488, parágrafo único, CLT) | E51: ='Encargos Sociais'!E39 -> 0.01203703704 | F51: 47.57 | H51: * Nota 3 - Incide sobre a Remuneração + 13º salário (1/12) + Férias (1/12) + Adicional de Férias (1/36) x 50% multa (40% para o empregado e 10% de contribuição social) x 8% FGTS
C52: E | D52: Incidência de GPS, FGTS e outras contribuições sobre o Aviso Prévio Trabalhado | E52: ='Encargos Sociais'!E40 -> 0.00442962963 | F52: 17.5 | H52: * Nota 4 - Os 95% restantes do cálculo, a um prazo médio de contrato de 4 anos. Assim, calcula-se 7 dias para o 1º ano de contrato e mais 3 dias para os 3 anos seguintes.
C53: F | D53: Multa do FGTS e Contribuição Social sobre o Aviso Prévio Trabalhado | E53: ='Encargos Sociais'!E41 -> 0.03050515556 | F53: 120.55
D55: TOTAL DE PREVISÃO PARA RESCISÃO | F55: =SUM(F48:F53) -> 251.68
B57: MÓDULO 4 - CUSTO DO PROFISSIONAL AUSENTE | E57: Percentuais | F57: Valor
B58: Submódulo 4.1 - Ausências Legais
C59: A | D59: Férias (Arts. 129 e 130, inc. I, da CLT) | E59: ='Encargos Sociais'!E25 -> 0.09090909091 | F59: =ROUND(E59*$F$16,2) -> 359.25 | H59: * Nota 1 - As alíneas “A” a “F” referem-se somente ao custo que será pago ao repositor pelos dias trabalhados quando da necessidade de substituir a mão de obra alocada na prestação do serviço.
C60: B | D60: Ausências Legais (Arts. 131 e 473 da CLT) | E60: ='Encargos Sociais'!E26 -> 0.007936507937 | F60: 31.36 | H60: * Nota 2 - Adotou-se a estimativa do SINAPI de 2 dias por ano.
C61: C | D61: Licença-Paternidade (Art. 7º, XIX, e art. 10, §1º, do ADCT, CF/1988 e Art. 1º, II, da Lei 11.770/2008) | E61: ='Encargos Sociais'!E27 -> 0.0008277777778 | F61: 3.27 | H61: * Nota 3 - Utilizada a proporção de 50% para homens, 5 dias de afastamento, e a probabilidade de um trabalhador requerer a Licença Paternidade em 5,22%, conforme SINAPI (citando dados da PNAD 2015)
C62: D | D62: Ausência por Acidente de Trabalho (Art. 131, III, da CLT) | E62: ='Encargos Sociais'!E28 -> 0.0008541666667 | F62: 3.38 | H62: * Nota 4 - Utilzada a estatística de 1,96% dos contribuintes beneficiados com a emissão do auxílio, conforme Anuário Estatístico da Previdência Social. Afastamento de 15 dias a cargo da empresa.
C63: E | D63: Afastamento Maternidade (Art. 71 da Lei nº 8.213/1991) | E63: ='Encargos Sociais'!E29 -> 0.003292592593 | F63: 13.01 | H63: * Nota 5 - Utilizada a proporção de 50% para mulheres, 180 dias de afastamento, e a probabilidade de uma trabalhadora requerer a Licença Maternidade em 4,91%, conforme SINAPI (citando dados do IBGE 2016)
C64: F | D64: Auxílio Enfermidade - Doença (Art. 59 da Lei nº 8.213/1991) | E64: ='Encargos Sociais'!E30 -> 0.007122222222 | F64: 28.15 | H64: * Nota 6 - Utilizada a estatística de 3,37% dos contribuintes beneficiados com o auxílio, conforme Anuário Estatístico da Previdência Social de 2015 (acrescidos de 2 dias ao ano, para os quais o trabalhador nem requer o benefício da Previdência - conforme SINAPI)
B66: Submódulo 4.2 - Intrajornada
C67: A | D67: Intervalo para repouso ou alimentação | E67: ='Encargos Sociais'!E33 -> 0 | F67: =ROUND(E67*$F$16,2) -> 0
D69: QUADRO-RESUMO DO MÓDULO 4 | F69: Valor
D70: 4.1 - Ausências Legais | E70: =SUM(E59:E64) -> 0.1109423581 | F70: =ROUND(E70*$F$16,2) -> 438.41
D71: 4.2 - Intrajornada | E71: =E67 -> 0 | F71: =ROUND(E71*$F$16,2) -> 0
D73: TOTAL DE PREVISÃO PARA RESCISÃO E INTERVALO INTRAJORNADA | F73: =SUM(F70:F71) -> 438.41
B75: MÓDULO 5 - INSUMOS DIVERSOS | F75: Valor
C76: A | D76: Uniformes - aquisição | F76: =ROUND(HLOOKUP($B$5,Uniformes!L4:EA95,3)/12,2) -> 185.08
C77: B | D77: Materiais de consumo relacionados ao posto - aquisição | F77: =ROUND(HLOOKUP(B5,'Mat Cons'!I11:DX13,3)/12,2) -> 0
C78: C | D78: Materiais permanentes relacionados ao posto - remuneração da sua depreciação / manutenção | F78: =HLOOKUP(B5,'Mat Perm'!Q11:EF13,3) -> 0
C79: D | D79: Equipamentos relacionados ao posto - remuneração da sua depreciação / manutenção | F79: =HLOOKUP(B5,'Equip Rel'!Q11:EF13,3) -> 0
C80: E | D80: Equipamentos de Proteção Individual - EPI - aquisição | F80: =ROUND(HLOOKUP(B5,EPI!J4:DY6,3)/12,2) -> 19.54
D82: TOTAL DE INSUMOS DIVERSOS | F82: =SUM(F76:F81) -> 204.62 | H82: * Nota - Valores mensais por empregado
B84: MÓDULO 6 - CUSTOS INDIRETOS, TRIBUTOS E LUCRO - BDI | E84: Percentuais | F84: Valor
C85: A | D85: Custos Indiretos | E85: =BDI!E6 -> 0.027
C86: A.1 | D86: Administração Central | E86: =BDI!E7 -> 0.0216
C87: A.2 | D87: Seguros, Garantias e Riscos | E87: =BDI!E8 -> 0.0054
C88: B | D88: Lucro | E88: =BDI!E10 -> 0.0334
C89: C | D89: Tributos | E89: =SUM(E90:E91) -> 0.124
C90: C.1 | D90: Tributos Federais (COFINS, PIS e CPRB) | E90: =BDI!E18 -> 0.074
C91: C.2 | D91: Tributos Distritais (ISS) | E91: =BDI!E23 -> 0.05 | H91: * Nota - Utilizou-se o indicado pelo Sindicato da Arquitetura e da Engenharia (Sinaenco, 2008, p. 22), que adota um percentual redutor de 20% no cálculo dos custos tributários relativos às contribuições PIS e COFINS
C92: D | D92: Despesas Financeiras | E92: =BDI!E13 -> 0.005639499547
D94: TOTAL DE BDI | E94: =BDI!E26 -> 0.2184 | F94: =E94*E102 -> 1685.202792
D96: QUADRO-RESUMO DO CUSTO MENSAL POR EMPREGADO - SEM O 13º | E96: Valor
D97: Módulo 1 - Composição da Remuneração | E97: =F16 -> 3951.73
D98: Módulo 2 - Encargos e Benefícios Anuais, Mensais e Diários | E98: =F45 -> 2869.69
D99: Módulo 3 - Provisão para Rescisão | E99: =F55 -> 251.68
D100: Módulo 4 - Custo de Reposição do Profissional Ausente | E100: =F73 -> 438.41
D101: Módulo 5 - Insumos Diversos | E101: =F82 -> 204.62
D102: SUBTOTAL (A+B+C+D+E) | E102: =SUM(E97:E101) -> 7716.13
D103: Módulo 6 - Custos Indiretos, Tributos e Lucro | E103: =F94 -> 1685.202792
D105: TOTAL DO POSTO | E105: =SUM(E102:E103) -> 9401.332792
B107: MÓDULO 7 - DESTAQUE DO MÓDULO 2 - 13º SALÁRIO | E107: Percentuais | F107: Valor
C108: A | D108: 13º Salário | E108: ='Encargos Sociais'!E32 -> 0.08333333333 | F108: =ROUND(E108*F$16,2) -> 329.31
C109: B | D109: Encargos Sociais sobre o 13º Salário - Taxa calculada no SUBMÓDULO 2.2 | E109: =SUM($E$24:$E$32) -> 0.368 | F109: =ROUND(E109*$F$108,2) -> 121.19 | H109: * Nota 1 - Provisiona-se, mensalmente, o proporcional a 1/12 dos valores referentes a gratificação natalina e adicional de férias.
C110: C | D110: Reincidência de férias sobre o 13º Salário | E110: =E59 -> 0.09090909091 | F110: =ROUND(E110*$F$108,2) -> 29.94
C111: D | D111: BDI sobre o 13º Salário - Taxa calculada no MÓDULO 6 | E111: =E94 -> 0.2184 | F111: =ROUND(E111*($F$108+$F$109),2) -> 98.39
D113: TOTAL DO DESTAQUE DO 13º SALÁRIO | F113: =SUM(F108:F111) -> 578.83
D115: QUADRO-RESUMO DO CUSTO MENSAL POR EMPREGADO | E115: Valor
D116: Custo total - sem o 13º Salário | E116: =E105 -> 9401.332792
D117: Destaque do 13º Salário (valor mensal) | E117: =F113 -> 578.83
D119: TOTAL DO POSTO | E119: =E116+E117 -> 9980.162792

Sheet 3
B2: PLANILHA DE ESTIMATIVA DE CUSTOS
B3: Padrão IN 05/2017 e IN 07/2018 - MPDG
B5: 3 | D5: =HLOOKUP($B$5,'Dados Gerais'!$D$5:$BK$20,6) -> ENCARREGADO DE SERVIÇO | E5: QUANTIDADE | F5: =HLOOKUP($B$5,'Dados Gerais'!$D$5:$BK$20,10) -> 13
B6: CCT | D6: =HLOOKUP($B$5,'Dados Gerais'!$D$5:$BK$20,15) -> SEAC/DF X SINDISERVIÇOS/DF 2023/2023 Nº DF000037/2023 | E6: DATA-BASE | F6: =HLOOKUP($B$5,'Dados Gerais'!$D$5:$BK$20,16) -> 2023-01-01
B8: MÓDULO 1 - COMPOSIÇÃO DA REMUNERAÇÃO | F8: Valor
C9: A | D9: Salário-Base | F9: =HLOOKUP($B$5,'Dados Gerais'!$D$5:$BK$20,8) -> 3317.57
C10: B | D10: Adicional de Periculosidade | F10: =HLOOKUP($B$5,'Dados Gerais'!$D$5:$BK$37,25) -> 0
C11: C | D11: Adicional de Insalubridade | F11: =HLOOKUP($B$5,'Dados Gerais'!$D$5:$BK$37,31) -> 0
C12: D | D12: Adicional Noturno | F12: =HLOOKUP($B$5,'Dados Gerais'!$D$5:$BK$50,46) -> 0 | H12: * Nota 1 - O Módulo 1 refere-se ao valor mensal devido ao empregado pela prestação do serviço no período de 12 meses.
C13: E | D13: Adicional de Hora Extra | F13: =HLOOKUP($B$5,'Dados Gerais'!$D$5:$BK$67,63) -> 0 | H13: * Nota 2 - O adicional de hora extra no feriado trabalhado foi suprimido pela Lei 13.467/17
C14: F | D14: Outros (especificar) | F14: =HLOOKUP($B$5,'Dados Gerais'!$D$5:$BK$59,33) -> 0 | H14: * Nota 3 - ART. 7º, § 2º, DA LEI Nº 605/49.Sendo mensalista o obreiro, o adicional noturno pago de forma fixa já é considerado integrado para os efeitos do pagamento do repouso semanal remunerado, nos termos do art. 7º, § 2º, da Lei nº 605/49.
D16: TOTAL DA REMUNERAÇÃO | F16: =SUM(F9:F14) -> 3317.57
B18: MÓDULO 2 - ENCARGOS E BENEFÍCIOS ANUAIS, MENSAIS E DIÁRIOS | E18: Percentuais | F18: Valor
B19: Submódulo 2.1 - 13º Salário, Férias e Adicional de Férias
C20: A | D20: 13º Salário - Calculado no Módulo 7 - Destacado | E20: 0 | F20: =ROUND(E20*F$16,2) -> 0
C21: B | D21: Férias e Adicional de Férias | E21: ='Encargos Sociais'!E31 -> 0.0303030303 | F21: =ROUND(E21*F$16,2) -> 100.53 | H21: * Nota 1 - Provisiona-se, mensalmente, o proporcional a 1/12 dos valores referentes a gratificação natalina, férias e adicional de férias.
H22: * Nota 2 - O adicional de férias contido no Submódulo 2.1 corresponde a 1/3 da remuneração que, por sua vez, é dividida por 12 contome Nota 1.
B23: Submódulo 2.2 - Encargos Previdenciários (GPS), Fundo de Garantia por Tempo de Serviço (FGTS) e Outras Contribuições
C24: A | D24: INSS (art. 22, inciso I, Lei nº 8.212/91) | E24: ='Encargos Sociais'!E14 -> 0.2 | F24: =ROUND(E24*($F$16+$F$41+$F$73),2) -> 757.23
C25: B | D25: Salário Educação (art. 3º, inciso I, Decreto nº 87.043/82) | E25: ='Encargos Sociais'!E15 -> 0.025 | F25: =ROUND(E25*($F$16+$F$41+$F$73),2) -> 94.65
C26: C | D26: SAT/RAT (art. 22, II, Lei 8.212/91 e Anexo V, Decreto 6.042/07) - Enquadramento 8211-3/00 | E26: ='Encargos Sociais'!E16 -> 0.03 | F26: 113.58
C27: D | D27: SESC ou SESI (art. 30, Lei nº 8.036/90 e art. 1º, Lei 8.154/90) | E27: ='Encargos Sociais'!E17 -> 0.015 | F27: 56.79
C28: E | D28: SENAI ou SENAC (Decreto nº 2.318/86) | E28: ='Encargos Sociais'!E18 -> 0.01 | F28: 37.86
C29: F | D29: SEBRAE (§ 3º, art. 8º, Lei 8.029/90, alterada pela Lei nº 8.154/90) | E29: ='Encargos Sociais'!E19 -> 0.006 | F29: 22.72
C30: G | D30: INCRA (art. 1º, I, Decreto Lei 1.146/70 e Lei 7.787, de 30/06/89) | E30: ='Encargos Sociais'!E20 -> 0.002 | F30: 7.57 | H30: * Nota 1 - Os percentuais dos encargos previdenciários, do FGTS e demais contribuições são estabelecidos por legislação vigente.
C31: H | D31: FGTS (Lei Complementar nº 110/01 e art. 30, Lei nº 8.036/90) | E31: ='Encargos Sociais'!E21 -> 0.08 | F31: 302.89 | H31: * Nota 2 - O SAT, a depender do grau de risco do serviço, irá variar entre 1%, para risco leve, de 2%, para risco médio, e de 3% para risco grave.
C32: I | D32: SECONCI (Convenções Coletivas de Trabalho da construção) | E32: ='Encargos Sociais'!E22 -> 0 | F32: 0 | H32: * Nota 3 - Os percentuais do Submódulo 2.2 incidem sobre o Módulo 1 e o Submódulo 2.1.
B34: Submódulo 2.3 - Benefícios Mensais e Diários
C35: A | D35: Auxílio Transporte | F35: =HLOOKUP($B$5,'Dados Gerais'!$D$5:$BK$93,82) -> 156.34
C36: B | D36: Auxílio Alimentação | F36: =HLOOKUP($B$5,'Dados Gerais'!$D$5:$BK$93,89) -> 972
C37: C | D37: Assistência Médica e Familiar | F37: =HLOOKUP($B$5,'Dados Gerais'!$D$5:$BK$101,97) -> 0
C38: D | D38: Outros (Seguro de vida e auxílio funeral e auxílio odontológico) | F38: =HLOOKUP($B$5,'Dados Gerais'!$D$5:$BK$118,114) -> 0 | H38: * Nota 1 - O valor informado deverá ser o custo real do benefício (descontado o valor eventualmente pago pelo empregado).
H39: * Nota 2 - Observar a previsão dos benefícios contidos em Acordos, Convenções e Dissídios Coletivos de Trabalho e o disposto no art. 6º da IN 5/2017
D40: QUADRO-RESUMO DO MÓDULO 2
D41: 2.1 - 13º Salário, Férias e Adicional de Férias - 13º Destacado - Calculado no Módulo 7 | E41: =SUM(E20:E21) -> 0.0303030303 | F41: =F20+F21 -> 100.53
D42: 2.2 - Encargos Previdenciários (GPS), Fundo de Garantia por Tempo de Serviço (FGTS) e Contribuições | E42: =SUM(E24:E32) -> 0.368 | F42: =SUM(F24:F32) -> 1393.29
D43: 2.3 - Benefícios Mensais e Diários | F43: =SUM(F35:F38) -> 1128.34
D45: TOTAL DOS ENCARGOS E BENEFÍCIOS | F45: =SUM(F41:F43) -> 2622.16
B47: MÓDULO 3 - PREVISÃO PARA RESCISÃO | E47: Percentuais | F47: Valor
C48: A | D48: Aviso Prévio Indenizado (Art. 7º, inciso XXI, da CF/1988 e arts. 477, 487, §1º, e 491 da CLT) | E48: ='Encargos Sociais'!E36 -> 0.008333333333 | F48: =ROUND(E48*$F$16,2) -> 27.65
C49: B | D49: Incidência do FGTS sobre o Aviso Prévio Indenizado (Súmula 305 TST) | E49: ='Encargos Sociais'!E37 -> 0.0006666666667 | F49: 2.21 | H49: * Nota 1 - Adotou-se os parâmetros do estudo do STF (http://www.stf.jus.br/arquivo/cms/sobrestfestudosci/anexo/encargos_sociais_03102007.pdf), onde 5% do pessoal é demitido pelo empregador no decurso do contrato (para estes, considerou-se o aviso prévio indenizado). Desprezou-se as demissões por justa causa e os pedidos de demissão.
C50: C | D50: Multa do FGTS e Contribuição Social sobre o Aviso Prévio Indenizado (Art. 18, §1º, da Lei 8.036/1990 e art. 1º da LC nº 110/2001) | E50: ='Encargos Sociais'!E38 -> 0.007717066667 | F50: 25.6 | H50: * Nota 2 - No cálculo do percentual, considerou-se 36 dias, correspondendo à metade da duração média dos contratos (2 anos)
C51: D | D51: Aviso Prévio Trabalhado (Art. 488, parágrafo único, CLT) | E51: ='Encargos Sociais'!E39 -> 0.01203703704 | F51: 39.93 | H51: * Nota 3 - Incide sobre a Remuneração + 13º salário (1/12) + Férias (1/12) + Adicional de Férias (1/36) x 50% multa (40% para o empregado e 10% de contribuição social) x 8% FGTS
C52: E | D52: Incidência de GPS, FGTS e outras contribuições sobre o Aviso Prévio Trabalhado | E52: ='Encargos Sociais'!E40 -> 0.00442962963 | F52: 14.7 | H52: * Nota 4 - Os 95% restantes do cálculo, a um prazo médio de contrato de 4 anos. Assim, calcula-se 7 dias para o 1º ano de contrato e mais 3 dias para os 3 anos seguintes.
C53: F | D53: Multa do FGTS e Contribuição Social sobre o Aviso Prévio Trabalhado | E53: ='Encargos Sociais'!E41 -> 0.03050515556 | F53: 101.2
D55: TOTAL DE PREVISÃO PARA RESCISÃO | F55: =SUM(F48:F53) -> 211.29
B57: MÓDULO 4 - CUSTO DO PROFISSIONAL AUSENTE | E57: Percentuais | F57: Valor
B58: Submódulo 4.1 - Ausências Legais
C59: A | D59: Férias (Arts. 129 e 130, inc. I, da CLT) | E59: ='Encargos Sociais'!E25 -> 0.09090909091 | F59: =ROUND(E59*$F$16,2) -> 301.6 | H59: * Nota 1 - As alíneas “A” a “F” referem-se somente ao custo que será pago ao repositor pelos dias trabalhados quando da necessidade de substituir a mão de obra alocada na prestação do serviço.
C60: B | D60: Ausências Legais (Arts. 131 e 473 da CLT) | E60: ='Encargos Sociais'!E26 -> 0.007936507937 | F60: 26.33 | H60: * Nota 2 - Adotou-se a estimativa do SINAPI de 2 dias por ano.
C61: C | D61: Licença-Paternidade (Art. 7º, XIX, e art. 10, §1º, do ADCT, CF/1988 e Art. 1º, II, da Lei 11.770/2008) | E61: ='Encargos Sociais'!E27 -> 0.0008277777778 | F61: 2.75 | H61: * Nota 3 - Utilizada a proporção de 50% para homens, 5 dias de afastamento, e a probabilidade de um trabalhador requerer a Licença Paternidade em 5,22%, conforme SINAPI (citando dados da PNAD 2015)
C62: D | D62: Ausência por Acidente de Trabalho (Art. 131, III, da CLT) | E62: ='Encargos Sociais'!E28 -> 0.0008541666667 | F62: 2.83 | H62: * Nota 4 - Utilzada a estatística de 1,96% dos contribuintes beneficiados com a emissão do auxílio, conforme Anuário Estatístico da Previdência Social. Afastamento de 15 dias a cargo da empresa.
C63: E | D63: Afastamento Maternidade (Art. 71 da Lei nº 8.213/1991) | E63: ='Encargos Sociais'!E29 -> 0.003292592593 | F63: 10.92 | H63: * Nota 5 - Utilizada a proporção de 50% para mulheres, 180 dias de afastamento, e a probabilidade de uma trabalhadora requerer a Licença Maternidade em 4,91%, conforme SINAPI (citando dados do IBGE 2016)
C64: F | D64: Auxílio Enfermidade - Doença (Art. 59 da Lei nº 8.213/1991) | E64: ='Encargos Sociais'!E30 -> 0.007122222222 | F64: 23.63 | H64: * Nota 6 - Utilizada a estatística de 3,37% dos contribuintes beneficiados com o auxílio, conforme Anuário Estatístico da Previdência Social de 2015 (acrescidos de 2 dias ao ano, para os quais o trabalhador nem requer o benefício da Previdência - conforme SINAPI)
B66: Submódulo 4.2 - Intrajornada
C67: A | D67: Intervalo para repouso ou alimentação | E67: ='Encargos Sociais'!E33 -> 0 | F67: =ROUND(E67*$F$16,2) -> 0
D69: QUADRO-RESUMO DO MÓDULO 4 | F69: Valor
D70: 4.1 - Ausências Legais | E70: =SUM(E59:E64) -> 0.1109423581 | F70: =ROUND(E70*$F$16,2) -> 368.06
D71: 4.2 - Intrajornada | E71: =E67 -> 0 | F71: =ROUND(E71*$F$16,2) -> 0
D73: TOTAL DE PREVISÃO PARA RESCISÃO E INTERVALO INTRAJORNADA | F73: =SUM(F70:F71) -> 368.06
B75: MÓDULO 5 - INSUMOS DIVERSOS | F75: Valor
C76: A | D76: Uniformes - aquisição | F76: =ROUND(HLOOKUP($B$5,Uniformes!L4:EA6,3)/12,2) -> 116.82
C77: B | D77: Materiais de consumo relacionados ao posto - aquisição | F77: =ROUND(HLOOKUP(B5,'Mat Cons'!I11:DX13,3)/12,2) -> 0
C78: C | D78: Materiais permanentes relacionados ao posto - remuneração da sua depreciação / manutenção | F78: =HLOOKUP(B5,'Mat Perm'!Q11:EF13,3) -> 0
C79: D | D79: Equipamentos relacionados ao posto - remuneração da sua depreciação / manutenção | F79: =HLOOKUP(B5,'Equip Rel'!Q11:EF13,3) -> 0
C80: E | D80: Equipamentos de Proteção Individual - EPI - aquisição | F80: =ROUND(HLOOKUP(B5,EPI!J4:DY6,3)/12,2) -> 20
D82: TOTAL DE INSUMOS DIVERSOS | F82: =SUM(F76:F81) -> 136.82 | H82: * Nota - Valores mensais por empregado
B84: MÓDULO 6 - CUSTOS INDIRETOS, TRIBUTOS E LUCRO - BDI | E84: Percentuais | F84: Valor
C85: A | D85: Custos Indiretos | E85: =BDI!E6 -> 0.027
C86: A.1 | D86: Administração Central | E86: =BDI!E7 -> 0.0216
C87: A.2 | D87: Seguros, Garantias e Riscos | E87: =BDI!E8 -> 0.0054
C88: B | D88: Lucro | E88: =BDI!E10 -> 0.0334
C89: C | D89: Tributos | E89: =SUM(E90:E91) -> 0.124
C90: C.1 | D90: Tributos Federais (COFINS, PIS e CPRB) | E90: =BDI!E18 -> 0.074
C91: C.2 | D91: Tributos Distritais (ISS) | E91: =BDI!E23 -> 0.05 | H91: * Nota - Utilizou-se o indicado pelo Sindicato da Arquitetura e da Engenharia (Sinaenco, 2008, p. 22), que adota um percentual redutor de 20% no cálculo dos custos tributários relativos às contribuições PIS e COFINS
C92: D | D92: Despesas Financeiras | E92: =BDI!E13 -> 0.005639499547
D94: TOTAL DE BDI | E94: =BDI!E26 -> 0.2184 | F94: =E94*E102 -> 1453.64856
D96: QUADRO-RESUMO DO CUSTO MENSAL POR EMPREGADO - SEM O 13º | E96: Valor
D97: Módulo 1 - Composição da Remuneração | E97: =F16 -> 3317.57
D98: Módulo 2 - Encargos e Benefícios Anuais, Mensais e Diários | E98: =F45 -> 2622.16
D99: Módulo 3 - Provisão para Rescisão | E99: =F55 -> 211.29
D100: Módulo 4 - Custo de Reposição do Profissional Ausente | E100: =F73 -> 368.06
D101: Módulo 5 - Insumos Diversos | E101: =F82 -> 136.82
D102: SUBTOTAL (A+B+C+D+E) | E102: =SUM(E97:E101) -> 6655.9
D103: Módulo 6 - Custos Indiretos, Tributos e Lucro | E103: =F94 -> 1453.64856
D105: TOTAL DO POSTO | E105: =SUM(E102:E103) -> 8109.54856
B107: MÓDULO 7 - DESTAQUE DO MÓDULO 2 - 13º SALÁRIO | E107: Percentuais | F107: Valor
C108: A | D108: 13º Salário | E108: ='Encargos Sociais'!E32 -> 0.08333333333 | F108: =ROUND(E108*F$16,2) -> 276.46
C109: B | D109: Encargos Sociais sobre o 13º Salário - Taxa calculada no SUBMÓDULO 2.2 | E109: =SUM($E$24:$E$32) -> 0.368 | F109: =ROUND(E109*$F$108,2) -> 101.74 | H109: * Nota 1 - Provisiona-se, mensalmente, o proporcional a 1/12 dos valores referentes a gratificação natalina e adicional de férias.
C110: C | D110: BDI sobre o 13º Salário - Taxa calculada no MÓDULO 6 | E110: =E94 -> 0.2184 | F110: =ROUND(E110*($F$108+$F$109),2) -> 82.6
D112: TOTAL DO DESTAQUE DO 13º SALÁRIO | F112: =SUM(F108:F110) -> 460.8
D114: QUADRO-RESUMO DO CUSTO MENSAL POR EMPREGADO | E114: Valor
D115: Custo total - sem o 13º Salário | E115: =E105 -> 8109.54856
D116: Destaque do 13º Salário (valor mensal) | E116: =F112 -> 460.8
D118: TOTAL DO POSTO | E118: =E115+E116 -> 8570.34856

Sheet 4
B2: PLANILHA DE ESTIMATIVA DE CUSTOS
B3: Padrão IN 05/2017 e IN 07/2018 - MPDG
B5: 4 | D5: =HLOOKUP($B$5,'Dados Gerais'!$D$5:$BK$20,6) -> ENCARREGADO DE SERVIÇO COM ADICIONAL DE INSALUBRIDADE | E5: QUANTIDADE | F5: =HLOOKUP($B$5,'Dados Gerais'!$D$5:$BK$20,10) -> 2
B6: CCT | D6: =HLOOKUP($B$5,'Dados Gerais'!$D$5:$BK$20,15) -> SEAC/DF X SINDISERVIÇOS/DF 2023/2023 Nº DF000037/2023 | E6: DATA-BASE | F6: =HLOOKUP($B$5,'Dados Gerais'!$D$5:$BK$20,16) -> 2023-01-01
B8: MÓDULO 1 - COMPOSIÇÃO DA REMUNERAÇÃO | F8: Valor
C9: A | D9: Salário-Base | F9: =HLOOKUP($B$5,'Dados Gerais'!$D$5:$BK$20,8) -> 3317.57
C10: B | D10: Adicional de Periculosidade | F10: =HLOOKUP($B$5,'Dados Gerais'!$D$5:$BK$37,25) -> 0
C11: C | D11: Adicional de Insalubridade | F11: =HLOOKUP($B$5,'Dados Gerais'!$D$5:$BK$37,31) -> 260.4
C12: D | D12: Adicional Noturno | F12: =HLOOKUP($B$5,'Dados Gerais'!$D$5:$BK$50,46) -> 0 | H12: * Nota 1 - O Módulo 1 refere-se ao valor mensal devido ao empregado pela prestação do serviço no período de 12 meses.
C13: E | D13: Adicional de Hora Extra | F13: =HLOOKUP($B$5,'Dados Gerais'!$D$5:$BK$67,63) -> 0 | H13: * Nota 2 - O adicional de hora extra no feriado trabalhado foi suprimido pela Lei 13.467/17
C14: F | D14: Outros (especificar) | F14: =HLOOKUP($B$5,'Dados Gerais'!$D$5:$BK$59,33) -> 0 | H14: * Nota 3 - ART. 7º, § 2º, DA LEI Nº 605/49.Sendo mensalista o obreiro, o adicional noturno pago de forma fixa já é considerado integrado para os efeitos do pagamento do repouso semanal remunerado, nos termos do art. 7º, § 2º, da Lei nº 605/49.
D16: TOTAL DA REMUNERAÇÃO | F16: =SUM(F9:F14) -> 3577.97
B18: MÓDULO 2 - ENCARGOS E BENEFÍCIOS ANUAIS, MENSAIS E DIÁRIOS | E18: Percentuais | F18: Valor
B19: Submódulo 2.1 - 13º Salário, Férias e Adicional de Férias
C20: A | D20: 13º Salário - Calculado no Módulo 7 - Destacado | E20: 0 | F20: =ROUND(E20*F$16,2) -> 0
C21: B | D21: Férias e Adicional de Férias | E21: ='Encargos Sociais'!E31 -> 0.0303030303 | F21: =ROUND(E21*F$16,2) -> 108.42 | H21: * Nota 1 - Provisiona-se, mensalmente, o proporcional a 1/12 dos valores referentes a gratificação natalina, férias e adicional de férias.
H22: * Nota 2 - O adicional de férias contido no Submódulo 2.1 corresponde a 1/3 da remuneração que, por sua vez, é dividida por 12 contome Nota 1.
B23: Submódulo 2.2 - Encargos Previdenciários (GPS), Fundo de Garantia por Tempo de Serviço (FGTS) e Outras Contribuições
C24: A | D24: INSS (art. 22, inciso I, Lei nº 8.212/91) | E24: ='Encargos Sociais'!E14 -> 0.2 | F24: =ROUND(E24*($F$16+$F$41+$F$73),2) -> 816.67
C25: B | D25: Salário Educação (art. 3º, inciso I, Decreto nº 87.043/82) | E25: ='Encargos Sociais'!E15 -> 0.025 | F25: =ROUND(E25*($F$16+$F$41+$F$73),2) -> 102.08
C26: C | D26: SAT/RAT (art. 22, II, Lei 8.212/91 e Anexo V, Decreto 6.042/07) - Enquadramento 8211-3/00 | E26: ='Encargos Sociais'!E16 -> 0.03 | F26: 122.5
C27: D | D27: SESC ou SESI (art. 30, Lei nº 8.036/90 e art. 1º, Lei 8.154/90) | E27: ='Encargos Sociais'!E17 -> 0.015 | F27: 61.25
C28: E | D28: SENAI ou SENAC (Decreto nº 2.318/86) | E28: ='Encargos Sociais'!E18 -> 0.01 | F28: 40.83
C29: F | D29: SEBRAE (§ 3º, art. 8º, Lei 8.029/90, alterada pela Lei nº 8.154/90) | E29: ='Encargos Sociais'!E19 -> 0.006 | F29: 24.5
C30: G | D30: INCRA (art. 1º, I, Decreto Lei 1.146/70 e Lei 7.787, de 30/06/89) | E30: ='Encargos Sociais'!E20 -> 0.002 | F30: 8.17 | H30: * Nota 1 - Os percentuais dos encargos previdenciários, do FGTS e demais contribuições são estabelecidos por legislação vigente.
C31: H | D31: FGTS (Lei Complementar nº 110/01 e art. 30, Lei nº 8.036/90) | E31: ='Encargos Sociais'!E21 -> 0.08 | F31: 326.67 | H31: * Nota 2 - O SAT, a depender do grau de risco do serviço, irá variar entre 1%, para risco leve, de 2%, para risco médio, e de 3% para risco grave.
C32: I | D32: SECONCI (Convenções Coletivas de Trabalho da construção) | E32: ='Encargos Sociais'!E22 -> 0 | F32: 0 | H32: * Nota 3 - Os percentuais do Submódulo 2.2 incidem sobre o Módulo 1 e o Submódulo 2.1.
B34: Submódulo 2.3 - Benefícios Mensais e Diários
C35: A | D35: Auxílio Transporte | F35: =HLOOKUP($B$5,'Dados Gerais'!$D$5:$BK$93,82) -> 156.34
C36: B | D36: Auxílio Alimentação | F36: =HLOOKUP($B$5,'Dados Gerais'!$D$5:$BK$93,89) -> 972
C37: C | D37: Assistência Médica e Familiar | F37: =HLOOKUP($B$5,'Dados Gerais'!$D$5:$BK$101,97) -> 0
C38: D | D38: Outros (Seguro de vida e auxílio funeral e auxílio odontológico) | F38: =HLOOKUP($B$5,'Dados Gerais'!$D$5:$BK$118,114) -> 0 | H38: * Nota 1 - O valor informado deverá ser o custo real do benefício (descontado o valor eventualmente pago pelo empregado).
H39: * Nota 2 - Observar a previsão dos benefícios contidos em Acordos, Convenções e Dissídios Coletivos de Trabalho e o disposto no art. 6º da IN 5/2017
D40: QUADRO-RESUMO DO MÓDULO 2
D41: 2.1 - 13º Salário, Férias e Adicional de Férias - 13º Destacado - Calculado no Módulo 7 | E41: =SUM(E20:E21) -> 0.0303030303 | F41: =F20+F21 -> 108.42
D42: 2.2 - Encargos Previdenciários (GPS), Fundo de Garantia por Tempo de Serviço (FGTS) e Contribuições | E42: =SUM(E24:E32) -> 0.368 | F42: =SUM(F24:F32) -> 1502.67
D43: 2.3 - Benefícios Mensais e Diários | F43: =SUM(F35:F38) -> 1128.34
D45: TOTAL DOS ENCARGOS E BENEFÍCIOS | F45: =SUM(F41:F43) -> 2739.43
B47: MÓDULO 3 - PREVISÃO PARA RESCISÃO | E47: Percentuais | F47: Valor
C48: A | D48: Aviso Prévio Indenizado (Art. 7º, inciso XXI, da CF/1988 e arts. 477, 487, §1º, e 491 da CLT) | E48: ='Encargos Sociais'!E36 -> 0.008333333333 | F48: =ROUND(E48*$F$16,2) -> 29.82
C49: B | D49: Incidência do FGTS sobre o Aviso Prévio Indenizado (Súmula 305 TST) | E49: ='Encargos Sociais'!E37 -> 0.0006666666667 | F49: 2.39 | H49: * Nota 1 - Adotou-se os parâmetros do estudo do STF (http://www.stf.jus.br/arquivo/cms/sobrestfestudosci/anexo/encargos_sociais_03102007.pdf), onde 5% do pessoal é demitido pelo empregador no decurso do contrato (para estes, considerou-se o aviso prévio indenizado). Desprezou-se as demissões por justa causa e os pedidos de demissão.
C50: C | D50: Multa do FGTS e Contribuição Social sobre o Aviso Prévio Indenizado (Art. 18, §1º, da Lei 8.036/1990 e art. 1º da LC nº 110/2001) | E50: ='Encargos Sociais'!E38 -> 0.007717066667 | F50: 27.61 | H50: * Nota 2 - No cálculo do percentual, considerou-se 36 dias, correspondendo à metade da duração média dos contratos (2 anos)
C51: D | D51: Aviso Prévio Trabalhado (Art. 488, parágrafo único, CLT) | E51: ='Encargos Sociais'!E39 -> 0.01203703704 | F51: 43.07 | H51: * Nota 3 - Incide sobre a Remuneração + 13º salário (1/12) + Férias (1/12) + Adicional de Férias (1/36) x 50% multa (40% para o empregado e 10% de contribuição social) x 8% FGTS
C52: E | D52: Incidência de GPS, FGTS e outras contribuições sobre o Aviso Prévio Trabalhado | E52: ='Encargos Sociais'!E40 -> 0.00442962963 | F52: 15.85 | H52: * Nota 4 - Os 95% restantes do cálculo, a um prazo médio de contrato de 4 anos. Assim, calcula-se 7 dias para o 1º ano de contrato e mais 3 dias para os 3 anos seguintes.
C53: F | D53: Multa do FGTS e Contribuição Social sobre o Aviso Prévio Trabalhado | E53: ='Encargos Sociais'!E41 -> 0.03050515556 | F53: 109.15
D55: TOTAL DE PREVISÃO PARA RESCISÃO | F55: =SUM(F48:F53) -> 227.89
B57: MÓDULO 4 - CUSTO DO PROFISSIONAL AUSENTE | E57: Percentuais | F57: Valor
B58: Submódulo 4.1 - Ausências Legais
C59: A | D59: Férias (Arts. 129 e 130, inc. I, da CLT) | E59: ='Encargos Sociais'!E25 -> 0.09090909091 | F59: =ROUND(E59*$F$16,2) -> 325.27 | H59: * Nota 1 - As alíneas “A” a “F” referem-se somente ao custo que será pago ao repositor pelos dias trabalhados quando da necessidade de substituir a mão de obra alocada na prestação do serviço.
C60: B | D60: Ausências Legais (Arts. 131 e 473 da CLT) | E60: ='Encargos Sociais'!E26 -> 0.007936507937 | F60: 28.4 | H60: * Nota 2 - Adotou-se a estimativa do SINAPI de 2 dias por ano.
C61: C | D61: Licença-Paternidade (Art. 7º, XIX, e art. 10, §1º, do ADCT, CF/1988 e Art. 1º, II, da Lei 11.770/2008) | E61: ='Encargos Sociais'!E27 -> 0.0008277777778 | F61: 2.96 | H61: * Nota 3 - Utilizada a proporção de 50% para homens, 5 dias de afastamento, e a probabilidade de um trabalhador requerer a Licença Paternidade em 5,22%, conforme SINAPI (citando dados da PNAD 2015)
C62: D | D62: Ausência por Acidente de Trabalho (Art. 131, III, da CLT) | E62: ='Encargos Sociais'!E28 -> 0.0008541666667 | F62: 3.06 | H62: * Nota 4 - Utilzada a estatística de 1,96% dos contribuintes beneficiados com a emissão do auxílio, conforme Anuário Estatístico da Previdência Social. Afastamento de 15 dias a cargo da empresa.
C63: E | D63: Afastamento Maternidade (Art. 71 da Lei nº 8.213/1991) | E63: ='Encargos Sociais'!E29 -> 0.003292592593 | F63: 11.78 | H63: * Nota 5 - Utilizada a proporção de 50% para mulheres, 180 dias de afastamento, e a probabilidade de uma trabalhadora requerer a Licença Maternidade em 4,91%, conforme SINAPI (citando dados do IBGE 2016)
C64: F | D64: Auxílio Enfermidade - Doença (Art. 59 da Lei nº 8.213/1991) | E64: ='Encargos Sociais'!E30 -> 0.007122222222 | F64: 25.48 | H64: * Nota 6 - Utilizada a estatística de 3,37% dos contribuintes beneficiados com o auxílio, conforme Anuário Estatístico da Previdência Social de 2015 (acrescidos de 2 dias ao ano, para os quais o trabalhador nem requer o benefício da Previdência - conforme SINAPI)
B66: Submódulo 4.2 - Intrajornada
C67: A | D67: Intervalo para repouso ou alimentação | E67: ='Encargos Sociais'!E33 -> 0 | F67: =ROUND(E67*$F$16,2) -> 0
D69: QUADRO-RESUMO DO MÓDULO 4 | F69: Valor
D70: 4.1 - Ausências Legais | E70: =SUM(E59:E64) -> 0.1109423581 | F70: =ROUND(E70*$F$16,2) -> 396.95
D71: 4.2 - Intrajornada | E71: =E67 -> 0 | F71: =ROUND(E71*$F$16,2) -> 0
D73: TOTAL DE PREVISÃO PARA RESCISÃO E INTERVALO INTRAJORNADA | F73: =SUM(F70:F71) -> 396.95
B75: MÓDULO 5 - INSUMOS DIVERSOS | F75: Valor
C76: A | D76: Uniformes - aquisição | F76: =ROUND(HLOOKUP($B$5,Uniformes!L4:EA6,3)/12,2) -> 116.82
C77: B | D77: Materiais de consumo relacionados ao posto - aquisição | F77: =ROUND(HLOOKUP(B5,'Mat Cons'!I11:DX13,3)/12,2) -> 0
C78: C | D78: Materiais permanentes relacionados ao posto - remuneração da sua depreciação / manutenção | F78: =HLOOKUP(B5,'Mat Perm'!Q11:EF13,3) -> 0
C79: D | D79: Equipamentos relacionados ao posto - remuneração da sua depreciação / manutenção | F79: =HLOOKUP(B5,'Equip Rel'!Q11:EF13,3) -> 0
C80: E | D80: Equipamentos de Proteção Individual - EPI - aquisição | F80: =ROUND(HLOOKUP(B5,EPI!J4:DY6,3)/12,2) -> 20
D82: TOTAL DE INSUMOS DIVERSOS | F82: =SUM(F76:F81) -> 136.82 | H82: * Nota - Valores mensais por empregado
B84: MÓDULO 6 - CUSTOS INDIRETOS, TRIBUTOS E LUCRO - BDI | E84: Percentuais | F84: Valor
C85: A | D85: Custos Indiretos | E85: =BDI!E6 -> 0.027
C86: A.1 | D86: Administração Central | E86: =BDI!E7 -> 0.0216
C87: A.2 | D87: Seguros, Garantias e Riscos | E87: =BDI!E8 -> 0.0054
C88: B | D88: Lucro | E88: =BDI!E10 -> 0.0334
C89: C | D89: Tributos | E89: =SUM(E90:E91) -> 0.124
C90: C.1 | D90: Tributos Federais (COFINS, PIS e CPRB) | E90: =BDI!E18 -> 0.074
C91: C.2 | D91: Tributos Distritais (ISS) | E91: =BDI!E23 -> 0.05 | H91: * Nota - Utilizou-se o indicado pelo Sindicato da Arquitetura e da Engenharia (Sinaenco, 2008, p. 22), que adota um percentual redutor de 20% no cálculo dos custos tributários relativos às contribuições PIS e COFINS
C92: D | D92: Despesas Financeiras | E92: =BDI!E13 -> 0.005639499547
D94: TOTAL DE BDI | E94: =BDI!E26 -> 0.2184 | F94: =E94*E102 -> 1546.066704
D96: QUADRO-RESUMO DO CUSTO MENSAL POR EMPREGADO - SEM O 13º | E96: Valor
D97: Módulo 1 - Composição da Remuneração | E97: =F16 -> 3577.97
D98: Módulo 2 - Encargos e Benefícios Anuais, Mensais e Diários | E98: =F45 -> 2739.43
D99: Módulo 3 - Provisão para Rescisão | E99: =F55 -> 227.89
D100: Módulo 4 - Custo de Reposição do Profissional Ausente | E100: =F73 -> 396.95
D101: Módulo 5 - Insumos Diversos | E101: =F82 -> 136.82
D102: SUBTOTAL (A+B+C+D+E) | E102: =SUM(E97:E101) -> 7079.06
D103: Módulo 6 - Custos Indiretos, Tributos e Lucro | E103: =F94 -> 1546.066704
D105: TOTAL DO POSTO | E105: =SUM(E102:E103) -> 8625.126704
B107: MÓDULO 7 - DESTAQUE DO MÓDULO 2 - 13º SALÁRIO | E107: Percentuais | F107: Valor
C108: A | D108: 13º Salário | E108: ='Encargos Sociais'!E32 -> 0.08333333333 | F108: =ROUND(E108*F$16,2) -> 298.16
C109: B | D109: Encargos Sociais sobre o 13º Salário - Taxa calculada no SUBMÓDULO 2.2 | E109: =SUM($E$24:$E$32) -> 0.368 | F109: =ROUND(E109*$F$108,2) -> 109.72 | H109: * Nota 1 - Provisiona-se, mensalmente, o proporcional a 1/12 dos valores referentes a gratificação natalina e adicional de férias.
C110: C | D110: BDI sobre o 13º Salário - Taxa calculada no MÓDULO 6 | E110: =E94 -> 0.2184 | F110: =ROUND(E110*($F$108+$F$109),2) -> 89.08
D112: TOTAL DO DESTAQUE DO 13º SALÁRIO | F112: =SUM(F108:F110) -> 496.96
D114: QUADRO-RESUMO DO CUSTO MENSAL POR EMPREGADO | E114: Valor
D115: Custo total - sem o 13º Salário | E115: =E105 -> 8625.126704
D116: Destaque do 13º Salário (valor mensal) | E116: =F112 -> 496.96
D118: TOTAL DO POSTO | E118: =E115+E116 -> 9122.086704

Sheet 5
B2: PLANILHA DE ESTIMATIVA DE CUSTOS
B3: Padrão IN 05/2017 e IN 07/2018 - MPDG
B5: 5 | D5: =HLOOKUP($B$5,'Dados Gerais'!$D$5:$BK$20,6) -> AUXILIAR DE ENCARREGADO | E5: QUANTIDADE | F5: =HLOOKUP($B$5,'Dados Gerais'!$D$5:$BK$20,10) -> 1
B6: CCT | D6: =HLOOKUP($B$5,'Dados Gerais'!$D$5:$BK$20,15) -> SEAC/DF X SINDISERVIÇOS/DF 2023/2023 Nº DF000037/2023 | E6: DATA-BASE | F6: =HLOOKUP($B$5,'Dados Gerais'!$D$5:$BK$20,16) -> 2023-01-01
B8: MÓDULO 1 - COMPOSIÇÃO DA REMUNERAÇÃO | F8: Valor
C9: A | D9: Salário-Base | F9: =HLOOKUP($B$5,'Dados Gerais'!$D$5:$BK$20,8) -> 2244.21
C10: B | D10: Adicional de Periculosidade | F10: =HLOOKUP($B$5,'Dados Gerais'!$D$5:$BK$37,25) -> 0
C11: C | D11: Adicional de Insalubridade | F11: =HLOOKUP($B$5,'Dados Gerais'!$D$5:$BK$37,31) -> 0
C12: D | D12: Adicional Noturno | F12: =HLOOKUP($B$5,'Dados Gerais'!$D$5:$BK$50,46) -> 0 | H12: * Nota 1 - O Módulo 1 refere-se ao valor mensal devido ao empregado pela prestação do serviço no período de 12 meses.
C13: E | D13: Adicional de Hora Extra | F13: =HLOOKUP($B$5,'Dados Gerais'!$D$5:$BK$67,63) -> 0 | H13: * Nota 2 - O adicional de hora extra no feriado trabalhado foi suprimido pela Lei 13.467/17
C14: F | D14: Outros (especificar) | F14: =HLOOKUP($B$5,'Dados Gerais'!$D$5:$BK$59,33) -> 0 | H14: * Nota 3 - ART. 7º, § 2º, DA LEI Nº 605/49.Sendo mensalista o obreiro, o adicional noturno pago de forma fixa já é considerado integrado para os efeitos do pagamento do repouso semanal remunerado, nos termos do art. 7º, § 2º, da Lei nº 605/49.
D16: TOTAL DA REMUNERAÇÃO | F16: =SUM(F9:F14) -> 2244.21
B18: MÓDULO 2 - ENCARGOS E BENEFÍCIOS ANUAIS, MENSAIS E DIÁRIOS | E18: Percentuais | F18: Valor
B19: Submódulo 2.1 - 13º Salário, Férias e Adicional de Férias
C20: A | D20: 13º Salário - Calculado no Módulo 7 - Destacado | E20: 0 | F20: =ROUND(E20*F$16,2) -> 0
C21: B | D21: Férias e Adicional de Férias | E21: ='Encargos Sociais'!E31 -> 0.0303030303 | F21: =ROUND(E21*F$16,2) -> 68.01 | H21: * Nota 1 - Provisiona-se, mensalmente, o proporcional a 1/12 dos valores referentes a gratificação natalina, férias e adicional de férias.
H22: * Nota 2 - O adicional de férias contido no Submódulo 2.1 corresponde a 1/3 da remuneração que, por sua vez, é dividida por 12 contome Nota 1.
B23: Submódulo 2.2 - Encargos Previdenciários (GPS), Fundo de Garantia por Tempo de Serviço (FGTS) e Outras Contribuições
C24: A | D24: INSS (art. 22, inciso I, Lei nº 8.212/91) | E24: ='Encargos Sociais'!E14 -> 0.2 | F24: =ROUND(E24*($F$16+$F$41+$F$73),2) -> 512.24
C25: B | D25: Salário Educação (art. 3º, inciso I, Decreto nº 87.043/82) | E25: ='Encargos Sociais'!E15 -> 0.025 | F25: =ROUND(E25*($F$16+$F$41+$F$73),2) -> 64.03
C26: C | D26: SAT/RAT (art. 22, II, Lei 8.212/91 e Anexo V, Decreto 6.042/07) - Enquadramento 8211-3/00 | E26: ='Encargos Sociais'!E16 -> 0.03 | F26: 76.84
C27: D | D27: SESC ou SESI (art. 30, Lei nº 8.036/90 e art. 1º, Lei 8.154/90) | E27: ='Encargos Sociais'!E17 -> 0.015 | F27: 38.42
C28: E | D28: SENAI ou SENAC (Decreto nº 2.318/86) | E28: ='Encargos Sociais'!E18 -> 0.01 | F28: 25.61
C29: F | D29: SEBRAE (§ 3º, art. 8º, Lei 8.029/90, alterada pela Lei nº 8.154/90) | E29: ='Encargos Sociais'!E19 -> 0.006 | F29: 15.37
C30: G | D30: INCRA (art. 1º, I, Decreto Lei 1.146/70 e Lei 7.787, de 30/06/89) | E30: ='Encargos Sociais'!E20 -> 0.002 | F30: 5.12 | H30: * Nota 1 - Os percentuais dos encargos previdenciários, do FGTS e demais contribuições são estabelecidos por legislação vigente.
C31: H | D31: FGTS (Lei Complementar nº 110/01 e art. 30, Lei nº 8.036/90) | E31: ='Encargos Sociais'!E21 -> 0.08 | F31: 204.9 | H31: * Nota 2 - O SAT, a depender do grau de risco do serviço, irá variar entre 1%, para risco leve, de 2%, para risco médio, e de 3% para risco grave.
C32: I | D32: SECONCI (Convenções Coletivas de Trabalho da construção) | E32: ='Encargos Sociais'!E22 -> 0 | F32: 0 | H32: * Nota 3 - Os percentuais do Submódulo 2.2 incidem sobre o Módulo 1 e o Submódulo 2.1.
B34: Submódulo 2.3 - Benefícios Mensais e Diários
C35: A | D35: Auxílio Transporte | F35: =HLOOKUP($B$5,'Dados Gerais'!$D$5:$BK$93,82) -> 220.74
C36: B | D36: Auxílio Alimentação | F36: =HLOOKUP($B$5,'Dados Gerais'!$D$5:$BK$93,89) -> 972
C37: C | D37: Assistência Médica e Familiar | F37: =HLOOKUP($B$5,'Dados Gerais'!$D$5:$BK$101,97) -> 0
C38: D | D38: Outros (Seguro de vida e auxílio funeral e auxílio odontológico) | F38: =HLOOKUP($B$5,'Dados Gerais'!$D$5:$BK$118,114) -> 0 | H38: * Nota 1 - O valor informado deverá ser o custo real do benefício (descontado o valor eventualmente pago pelo empregado).
H39: * Nota 2 - Observar a previsão dos benefícios contidos em Acordos, Convenções e Dissídios Coletivos de Trabalho e o disposto no art. 6º da IN 5/2017
D40: QUADRO-RESUMO DO MÓDULO 2
D41: 2.1 - 13º Salário, Férias e Adicional de Férias - 13º Destacado - Calculado no Módulo 7 | E41: =SUM(E20:E21) -> 0.0303030303 | F41: =F20+F21 -> 68.01
D42: 2.2 - Encargos Previdenciários (GPS), Fundo de Garantia por Tempo de Serviço (FGTS) e Contribuições | E42: =SUM(E24:E32) -> 0.368 | F42: =SUM(F24:F32) -> 942.53
D43: 2.3 - Benefícios Mensais e Diários | F43: =SUM(F35:F38) -> 1192.74
D45: TOTAL DOS ENCARGOS E BENEFÍCIOS | F45: =SUM(F41:F43) -> 2203.28
B47: MÓDULO 3 - PREVISÃO PARA RESCISÃO | E47: Percentuais | F47: Valor
C48: A | D48: Aviso Prévio Indenizado (Art. 7º, inciso XXI, da CF/1988 e arts. 477, 487, §1º, e 491 da CLT) | E48: ='Encargos Sociais'!E36 -> 0.008333333333 | F48: =ROUND(E48*$F$16,2) -> 18.7
C49: B | D49: Incidência do FGTS sobre o Aviso Prévio Indenizado (Súmula 305 TST) | E49: ='Encargos Sociais'!E37 -> 0.0006666666667 | F49: 1.5 | H49: * Nota 1 - Adotou-se os parâmetros do estudo do STF (http://www.stf.jus.br/arquivo/cms/sobrestfestudosci/anexo/encargos_sociais_03102007.pdf), onde 5% do pessoal é demitido pelo empregador no decurso do contrato (para estes, considerou-se o aviso prévio indenizado). Desprezou-se as demissões por justa causa e os pedidos de demissão.
C50: C | D50: Multa do FGTS e Contribuição Social sobre o Aviso Prévio Indenizado (Art. 18, §1º, da Lei 8.036/1990 e art. 1º da LC nº 110/2001) | E50: ='Encargos Sociais'!E38 -> 0.007717066667 | F50: 17.32 | H50: * Nota 2 - No cálculo do percentual, considerou-se 36 dias, correspondendo à metade da duração média dos contratos (2 anos)
C51: D | D51: Aviso Prévio Trabalhado (Art. 488, parágrafo único, CLT) | E51: ='Encargos Sociais'!E39 -> 0.01203703704 | F51: 27.01 | H51: * Nota 3 - Incide sobre a Remuneração + 13º salário (1/12) + Férias (1/12) + Adicional de Férias (1/36) x 50% multa (40% para o empregado e 10% de contribuição social) x 8% FGTS
C52: E | D52: Incidência de GPS, FGTS e outras contribuições sobre o Aviso Prévio Trabalhado | E52: ='Encargos Sociais'!E40 -> 0.00442962963 | F52: 9.94 | H52: * Nota 4 - Os 95% restantes do cálculo, a um prazo médio de contrato de 4 anos. Assim, calcula-se 7 dias para o 1º ano de contrato e mais 3 dias para os 3 anos seguintes.
C53: F | D53: Multa do FGTS e Contribuição Social sobre o Aviso Prévio Trabalhado | E53: ='Encargos Sociais'!E41 -> 0.03050515556 | F53: 68.46
D55: TOTAL DE PREVISÃO PARA RESCISÃO | F55: =SUM(F48:F53) -> 142.93
B57: MÓDULO 4 - CUSTO DO PROFISSIONAL AUSENTE | E57: Percentuais | F57: Valor
B58: Submódulo 4.1 - Ausências Legais
C59: A | D59: Férias (Arts. 129 e 130, inc. I, da CLT) | E59: ='Encargos Sociais'!E25 -> 0.09090909091 | F59: =ROUND(E59*$F$16,2) -> 204.02 | H59: * Nota 1 - As alíneas “A” a “F” referem-se somente ao custo que será pago ao repositor pelos dias trabalhados quando da necessidade de substituir a mão de obra alocada na prestação do serviço.
C60: B | D60: Ausências Legais (Arts. 131 e 473 da CLT) | E60: ='Encargos Sociais'!E26 -> 0.007936507937 | F60: 17.81 | H60: * Nota 2 - Adotou-se a estimativa do SINAPI de 2 dias por ano.
C61: C | D61: Licença-Paternidade (Art. 7º, XIX, e art. 10, §1º, do ADCT, CF/1988 e Art. 1º, II, da Lei 11.770/2008) | E61: ='Encargos Sociais'!E27 -> 0.0008277777778 | F61: 1.86 | H61: * Nota 3 - Utilizada a proporção de 50% para homens, 5 dias de afastamento, e a probabilidade de um trabalhador requerer a Licença Paternidade em 5,22%, conforme SINAPI (citando dados da PNAD 2015)
C62: D | D62: Ausência por Acidente de Trabalho (Art. 131, III, da CLT) | E62: ='Encargos Sociais'!E28 -> 0.0008541666667 | F62: 1.92 | H62: * Nota 4 - Utilzada a estatística de 1,96% dos contribuintes beneficiados com a emissão do auxílio, conforme Anuário Estatístico da Previdência Social. Afastamento de 15 dias a cargo da empresa.
C63: E | D63: Afastamento Maternidade (Art. 71 da Lei nº 8.213/1991) | E63: ='Encargos Sociais'!E29 -> 0.003292592593 | F63: 7.39 | H63: * Nota 5 - Utilizada a proporção de 50% para mulheres, 180 dias de afastamento, e a probabilidade de uma trabalhadora requerer a Licença Maternidade em 4,91%, conforme SINAPI (citando dados do IBGE 2016)
C64: F | D64: Auxílio Enfermidade - Doença (Art. 59 da Lei nº 8.213/1991) | E64: ='Encargos Sociais'!E30 -> 0.007122222222 | F64: 15.98 | H64: * Nota 6 - Utilizada a estatística de 3,37% dos contribuintes beneficiados com o auxílio, conforme Anuário Estatístico da Previdência Social de 2015 (acrescidos de 2 dias ao ano, para os quais o trabalhador nem requer o benefício da Previdência - conforme SINAPI)
B66: Submódulo 4.2 - Intrajornada
C67: A | D67: Intervalo para repouso ou alimentação | E67: ='Encargos Sociais'!E33 -> 0 | F67: =ROUND(E67*$F$16,2) -> 0
D69: QUADRO-RESUMO DO MÓDULO 4 | F69: Valor
D70: 4.1 - Ausências Legais | E70: =SUM(E59:E64) -> 0.1109423581 | F70: =ROUND(E70*$F$16,2) -> 248.98
D71: 4.2 - Intrajornada | E71: =E67 -> 0 | F71: =ROUND(E71*$F$16,2) -> 0
D73: TOTAL DE PREVISÃO PARA RESCISÃO E INTERVALO INTRAJORNADA | F73: =SUM(F70:F71) -> 248.98
B75: MÓDULO 5 - INSUMOS DIVERSOS | F75: Valor
C76: A | D76: Uniformes - aquisição | F76: =ROUND(HLOOKUP($B$5,Uniformes!L4:EA6,3)/12,2) -> 116.82
C77: B | D77: Materiais de consumo relacionados ao posto - aquisição | F77: =ROUND(HLOOKUP(B5,'Mat Cons'!I11:DX13,3)/12,2) -> 0
C78: C | D78: Materiais permanentes relacionados ao posto - remuneração da sua depreciação / manutenção | F78: =HLOOKUP(B5,'Mat Perm'!Q11:EF13,3) -> 0
C79: D | D79: Equipamentos relacionados ao posto - remuneração da sua depreciação / manutenção | F79: =HLOOKUP(B5,'Equip Rel'!Q11:EF13,3) -> 0
C80: E | D80: Equipamentos de Proteção Individual - EPI - aquisição | F80: =ROUND(HLOOKUP(B5,EPI!J4:DY6,3)/12,2) -> 20
D82: TOTAL DE INSUMOS DIVERSOS | F82: =SUM(F76:F81) -> 136.82 | H82: * Nota - Valores mensais por empregado
B84: MÓDULO 6 - CUSTOS INDIRETOS, TRIBUTOS E LUCRO - BDI | E84: Percentuais | F84: Valor
C85: A | D85: Custos Indiretos | E85: =BDI!E6 -> 0.027
C86: A.1 | D86: Administração Central | E86: =BDI!E7 -> 0.0216
C87: A.2 | D87: Seguros, Garantias e Riscos | E87: =BDI!E8 -> 0.0054
C88: B | D88: Lucro | E88: =BDI!E10 -> 0.0334
C89: C | D89: Tributos | E89: =SUM(E90:E91) -> 0.124
C90: C.1 | D90: Tributos Federais (COFINS, PIS e CPRB) | E90: =BDI!E18 -> 0.074
C91: C.2 | D91: Tributos Distritais (ISS) | E91: =BDI!E23 -> 0.05 | H91: * Nota - Utilizou-se o indicado pelo Sindicato da Arquitetura e da Engenharia (Sinaenco, 2008, p. 22), que adota um percentual redutor de 20% no cálculo dos custos tributários relativos às contribuições PIS e COFINS
C92: D | D92: Despesas Financeiras | E92: =BDI!E13 -> 0.005639499547
D94: TOTAL DE BDI | E94: =BDI!E26 -> 0.2184 | F94: =E94*E102 -> 1086.806448
D96: QUADRO-RESUMO DO CUSTO MENSAL POR EMPREGADO - SEM O 13º | E96: Valor
D97: Módulo 1 - Composição da Remuneração | E97: =F16 -> 2244.21
D98: Módulo 2 - Encargos e Benefícios Anuais, Mensais e Diários | E98: =F45 -> 2203.28
D99: Módulo 3 - Provisão para Rescisão | E99: =F55 -> 142.93
D100: Módulo 4 - Custo de Reposição do Profissional Ausente | E100: =F73 -> 248.98
D101: Módulo 5 - Insumos Diversos | E101: =F82 -> 136.82
D102: SUBTOTAL (A+B+C+D+E) | E102: =SUM(E97:E101) -> 4976.22
D103: Módulo 6 - Custos Indiretos, Tributos e Lucro | E103: =F94 -> 1086.806448
D105: TOTAL DO POSTO | E105: =SUM(E102:E103) -> 6063.026448
B107: MÓDULO 7 - DESTAQUE DO MÓDULO 2 - 13º SALÁRIO | E107: Percentuais | F107: Valor
C108: A | D108: 13º Salário | E108: ='Encargos Sociais'!E32 -> 0.08333333333 | F108: =ROUND(E108*F$16,2) -> 187.02
C109: B | D109: Encargos Sociais sobre o 13º Salário - Taxa calculada no SUBMÓDULO 2.2 | E109: =SUM($E$24:$E$32) -> 0.368 | F109: =ROUND(E109*$F$108,2) -> 68.82 | H109: * Nota 1 - Provisiona-se, mensalmente, o proporcional a 1/12 dos valores referentes a gratificação natalina e adicional de férias.
C110: C | D110: BDI sobre o 13º Salário - Taxa calculada no MÓDULO 6 | E110: =E94 -> 0.2184 | F110: =ROUND(E110*($F$108+$F$109),2) -> 55.88
D112: TOTAL DO DESTAQUE DO 13º SALÁRIO | F112: =SUM(F108:F110) -> 311.72
D114: QUADRO-RESUMO DO CUSTO MENSAL POR EMPREGADO | E114: Valor
D115: Custo total - sem o 13º Salário | E115: =E105 -> 6063.026448
D116: Destaque do 13º Salário (valor mensal) | E116: =F112 -> 311.72
D118: TOTAL DO POSTO | E118: =E115+E116 -> 6374.746448

Sheet 6
B2: PLANILHA DE ESTIMATIVA DE CUSTOS
B3: Padrão IN 05/2017 e IN 07/2018 - MPDG
B5: 6 | D5: =HLOOKUP($B$5,'Dados Gerais'!$D$5:$BK$20,6) -> ALMOXARIFE | E5: QUANTIDADE | F5: =HLOOKUP($B$5,'Dados Gerais'!$D$5:$BK$20,10) -> 2
B6: CCT | D6: =HLOOKUP($B$5,'Dados Gerais'!$D$5:$BK$20,15) -> SEAC/DF X SINDISERVIÇOS/DF 2023/2023 Nº DF000037/2023 | E6: DATA-BASE | F6: =HLOOKUP($B$5,'Dados Gerais'!$D$5:$BK$20,16) -> 2023-01-01
B8: MÓDULO 1 - COMPOSIÇÃO DA REMUNERAÇÃO | F8: Valor
C9: A | D9: Salário-Base | F9: =HLOOKUP($B$5,'Dados Gerais'!$D$5:$BK$20,8) -> 2686.07
C10: B | D10: Adicional de Periculosidade | F10: =HLOOKUP($B$5,'Dados Gerais'!$D$5:$BK$37,25) -> 0
C11: C | D11: Adicional de Insalubridade | F11: =HLOOKUP($B$5,'Dados Gerais'!$D$5:$BK$37,31) -> 0
C12: D | D12: Adicional Noturno | F12: =HLOOKUP($B$5,'Dados Gerais'!$D$5:$BK$50,46) -> 0 | H12: * Nota 1 - O Módulo 1 refere-se ao valor mensal devido ao empregado pela prestação do serviço no período de 12 meses.
C13: E | D13: Adicional de Hora Extra | F13: =HLOOKUP($B$5,'Dados Gerais'!$D$5:$BK$67,63) -> 0 | H13: * Nota 2 - O adicional de hora extra no feriado trabalhado foi suprimido pela Lei 13.467/17
C14: F | D14: Outros (especificar) | F14: =HLOOKUP($B$5,'Dados Gerais'!$D$5:$BK$59,33) -> 0 | H14: * Nota 3 - ART. 7º, § 2º, DA LEI Nº 605/49.Sendo mensalista o obreiro, o adicional noturno pago de forma fixa já é considerado integrado para os efeitos do pagamento do repouso semanal remunerado, nos termos do art. 7º, § 2º, da Lei nº 605/49.
D16: TOTAL DA REMUNERAÇÃO | F16: =SUM(F9:F14) -> 2686.07
B18: MÓDULO 2 - ENCARGOS E BENEFÍCIOS ANUAIS, MENSAIS E DIÁRIOS | E18: Percentuais | F18: Valor
B19: Submódulo 2.1 - 13º Salário, Férias e Adicional de Férias
C20: A | D20: 13º Salário - Calculado no Módulo 7 - Destacado | E20: 0 | F20: =ROUND(E20*F$16,2) -> 0
C21: B | D21: Férias e Adicional de Férias | E21: ='Encargos Sociais'!E31 -> 0.0303030303 | F21: =ROUND(E21*F$16,2) -> 81.4 | H21: * Nota 1 - Provisiona-se, mensalmente, o proporcional a 1/12 dos valores referentes a gratificação natalina, férias e adicional de férias.
H22: * Nota 2 - O adicional de férias contido no Submódulo 2.1 corresponde a 1/3 da remuneração que, por sua vez, é dividida por 12 contome Nota 1.
B23: Submódulo 2.2 - Encargos Previdenciários (GPS), Fundo de Garantia por Tempo de Serviço (FGTS) e Outras Contribuições
C24: A | D24: INSS (art. 22, inciso I, Lei nº 8.212/91) | E24: ='Encargos Sociais'!E14 -> 0.2 | F24: =ROUND(E24*($F$16+$F$41+$F$73),2) -> 613.09
C25: B | D25: Salário Educação (art. 3º, inciso I, Decreto nº 87.043/82) | E25: ='Encargos Sociais'!E15 -> 0.025 | F25: =ROUND(E25*($F$16+$F$41+$F$73),2) -> 76.64
C26: C | D26: SAT/RAT (art. 22, II, Lei 8.212/91 e Anexo V, Decreto 6.042/07) - Enquadramento 8211-3/00 | E26: ='Encargos Sociais'!E16 -> 0.03 | F26: 91.96
C27: D | D27: SESC ou SESI (art. 30, Lei nº 8.036/90 e art. 1º, Lei 8.154/90) | E27: ='Encargos Sociais'!E17 -> 0.015 | F27: 45.98
C28: E | D28: SENAI ou SENAC (Decreto nº 2.318/86) | E28: ='Encargos Sociais'!E18 -> 0.01 | F28: 30.65
C29: F | D29: SEBRAE (§ 3º, art. 8º, Lei 8.029/90, alterada pela Lei nº 8.154/90) | E29: ='Encargos Sociais'!E19 -> 0.006 | F29: 18.39
C30: G | D30: INCRA (art. 1º, I, Decreto Lei 1.146/70 e Lei 7.787, de 30/06/89) | E30: ='Encargos Sociais'!E20 -> 0.002 | F30: 6.13 | H30: * Nota 1 - Os percentuais dos encargos previdenciários, do FGTS e demais contribuições são estabelecidos por legislação vigente.
C31: H | D31: FGTS (Lei Complementar nº 110/01 e art. 30, Lei nº 8.036/90) | E31: ='Encargos Sociais'!E21 -> 0.08 | F31: 245.24 | H31: * Nota 2 - O SAT, a depender do grau de risco do serviço, irá variar entre 1%, para risco leve, de 2%, para risco médio, e de 3% para risco grave.
C32: I | D32: SECONCI (Convenções Coletivas de Trabalho da construção) | E32: ='Encargos Sociais'!E22 -> 0 | F32: 0 | H32: * Nota 3 - Os percentuais do Submódulo 2.2 incidem sobre o Módulo 1 e o Submódulo 2.1.
B34: Submódulo 2.3 - Benefícios Mensais e Diários
C35: A | D35: Auxílio Transporte | F35: =HLOOKUP($B$5,'Dados Gerais'!$D$5:$BK$93,82) -> 194.23
C36: B | D36: Auxílio Alimentação | F36: =HLOOKUP($B$5,'Dados Gerais'!$D$5:$BK$93,89) -> 972
C37: C | D37: Assistência Médica e Familiar | F37: =HLOOKUP($B$5,'Dados Gerais'!$D$5:$BK$101,97) -> 0
C38: D | D38: Outros (Seguro de vida e auxílio funeral e auxílio odontológico) | F38: =HLOOKUP($B$5,'Dados Gerais'!$D$5:$BK$118,114) -> 0 | H38: * Nota 1 - O valor informado deverá ser o custo real do benefício (descontado o valor eventualmente pago pelo empregado).
H39: * Nota 2 - Observar a previsão dos benefícios contidos em Acordos, Convenções e Dissídios Coletivos de Trabalho e o disposto no art. 6º da IN 5/2017
D40: QUADRO-RESUMO DO MÓDULO 2
D41: 2.1 - 13º Salário, Férias e Adicional de Férias - 13º Destacado - Calculado no Módulo 7 | E41: =SUM(E20:E21) -> 0.0303030303 | F41: =F20+F21 -> 81.4
D42: 2.2 - Encargos Previdenciários (GPS), Fundo de Garantia por Tempo de Serviço (FGTS) e Contribuições | E42: =SUM(E24:E32) -> 0.368 | F42: =SUM(F24:F32) -> 1128.08
D43: 2.3 - Benefícios Mensais e Diários | F43: =SUM(F35:F38) -> 1166.23
D45: TOTAL DOS ENCARGOS E BENEFÍCIOS | F45: =SUM(F41:F43) -> 2375.71
B47: MÓDULO 3 - PREVISÃO PARA RESCISÃO | E47: Percentuais | F47: Valor
C48: A | D48: Aviso Prévio Indenizado (Art. 7º, inciso XXI, da CF/1988 e arts. 477, 487, §1º, e 491 da CLT) | E48: ='Encargos Sociais'!E36 -> 0.008333333333 | F48: =ROUND(E48*$F$16,2) -> 22.38
C49: B | D49: Incidência do FGTS sobre o Aviso Prévio Indenizado (Súmula 305 TST) | E49: ='Encargos Sociais'!E37 -> 0.0006666666667 | F49: 1.79 | H49: * Nota 1 - Adotou-se os parâmetros do estudo do STF (http://www.stf.jus.br/arquivo/cms/sobrestfestudosci/anexo/encargos_sociais_03102007.pdf), onde 5% do pessoal é demitido pelo empregador no decurso do contrato (para estes, considerou-se o aviso prévio indenizado). Desprezou-se as demissões por justa causa e os pedidos de demissão.
C50: C | D50: Multa do FGTS e Contribuição Social sobre o Aviso Prévio Indenizado (Art. 18, §1º, da Lei 8.036/1990 e art. 1º da LC nº 110/2001) | E50: ='Encargos Sociais'!E38 -> 0.007717066667 | F50: 20.73 | H50: * Nota 2 - No cálculo do percentual, considerou-se 36 dias, correspondendo à metade da duração média dos contratos (2 anos)
C51: D | D51: Aviso Prévio Trabalhado (Art. 488, parágrafo único, CLT) | E51: ='Encargos Sociais'!E39 -> 0.01203703704 | F51: 32.33 | H51: * Nota 3 - Incide sobre a Remuneração + 13º salário (1/12) + Férias (1/12) + Adicional de Férias (1/36) x 50% multa (40% para o empregado e 10% de contribuição social) x 8% FGTS
C52: E | D52: Incidência de GPS, FGTS e outras contribuições sobre o Aviso Prévio Trabalhado | E52: ='Encargos Sociais'!E40 -> 0.00442962963 | F52: 11.9 | H52: * Nota 4 - Os 95% restantes do cálculo, a um prazo médio de contrato de 4 anos. Assim, calcula-se 7 dias para o 1º ano de contrato e mais 3 dias para os 3 anos seguintes.
C53: F | D53: Multa do FGTS e Contribuição Social sobre o Aviso Prévio Trabalhado | E53: ='Encargos Sociais'!E41 -> 0.03050515556 | F53: 81.94
D55: TOTAL DE PREVISÃO PARA RESCISÃO | F55: =SUM(F48:F53) -> 171.07
B57: MÓDULO 4 - CUSTO DO PROFISSIONAL AUSENTE | E57: Percentuais | F57: Valor
B58: Submódulo 4.1 - Ausências Legais
C59: A | D59: Férias (Arts. 129 e 130, inc. I, da CLT) | E59: ='Encargos Sociais'!E25 -> 0.09090909091 | F59: =ROUND(E59*$F$16,2) -> 244.19 | H59: * Nota 1 - As alíneas “A” a “F” referem-se somente ao custo que será pago ao repositor pelos dias trabalhados quando da necessidade de substituir a mão de obra alocada na prestação do serviço.
C60: B | D60: Ausências Legais (Arts. 131 e 473 da CLT) | E60: ='Encargos Sociais'!E26 -> 0.007936507937 | F60: 21.32 | H60: * Nota 2 - Adotou-se a estimativa do SINAPI de 2 dias por ano.
C61: C | D61: Licença-Paternidade (Art. 7º, XIX, e art. 10, §1º, do ADCT, CF/1988 e Art. 1º, II, da Lei 11.770/2008) | E61: ='Encargos Sociais'!E27 -> 0.0008277777778 | F61: 2.22 | H61: * Nota 3 - Utilizada a proporção de 50% para homens, 5 dias de afastamento, e a probabilidade de um trabalhador requerer a Licença Paternidade em 5,22%, conforme SINAPI (citando dados da PNAD 2015)
C62: D | D62: Ausência por Acidente de Trabalho (Art. 131, III, da CLT) | E62: ='Encargos Sociais'!E28 -> 0.0008541666667 | F62: 2.29 | H62: * Nota 4 - Utilzada a estatística de 1,96% dos contribuintes beneficiados com a emissão do auxílio, conforme Anuário Estatístico da Previdência Social. Afastamento de 15 dias a cargo da empresa.
C63: E | D63: Afastamento Maternidade (Art. 71 da Lei nº 8.213/1991) | E63: ='Encargos Sociais'!E29 -> 0.003292592593 | F63: 8.84 | H63: * Nota 5 - Utilizada a proporção de 50% para mulheres, 180 dias de afastamento, e a probabilidade de uma trabalhadora requerer a Licença Maternidade em 4,91%, conforme SINAPI (citando dados do IBGE 2016)
C64: F | D64: Auxílio Enfermidade - Doença (Art. 59 da Lei nº 8.213/1991) | E64: ='Encargos Sociais'!E30 -> 0.007122222222 | F64: 19.13 | H64: * Nota 6 - Utilizada a estatística de 3,37% dos contribuintes beneficiados com o auxílio, conforme Anuário Estatístico da Previdência Social de 2015 (acrescidos de 2 dias ao ano, para os quais o trabalhador nem requer o benefício da Previdência - conforme SINAPI)
B66: Submódulo 4.2 - Intrajornada
C67: A | D67: Intervalo para repouso ou alimentação | E67: ='Encargos Sociais'!E33 -> 0 | F67: =ROUND(E67*$F$16,2) -> 0
D69: QUADRO-RESUMO DO MÓDULO 4 | F69: Valor
D70: 4.1 - Ausências Legais | E70: =SUM(E59:E64) -> 0.1109423581 | F70: =ROUND(E70*$F$16,2) -> 298
D71: 4.2 - Intrajornada | E71: =E67 -> 0 | F71: =ROUND(E71*$F$16,2) -> 0
D73: TOTAL DE PREVISÃO PARA RESCISÃO E INTERVALO INTRAJORNADA | F73: =SUM(F70:F71) -> 298
B75: MÓDULO 5 - INSUMOS DIVERSOS | F75: Valor
C76: A | D76: Uniformes - aquisição | F76: =ROUND(HLOOKUP($B$5,Uniformes!L4:EA6,3)/12,2) -> 43.27
C77: B | D77: Materiais de consumo relacionados ao posto - aquisição | F77: =ROUND(HLOOKUP(B5,'Mat Cons'!I11:DX13,3)/12,2) -> 0
C78: C | D78: Materiais permanentes relacionados ao posto - remuneração da sua depreciação / manutenção | F78: =HLOOKUP(B5,'Mat Perm'!Q11:EF13,3) -> 0
C79: D | D79: Equipamentos relacionados ao posto - remuneração da sua depreciação / manutenção | F79: =HLOOKUP(B5,'Equip Rel'!Q11:EF13,3) -> 0
C80: E | D80: Equipamentos de Proteção Individual - EPI - aquisição | F80: =ROUND(HLOOKUP(B5,EPI!J4:DY6,3)/12,2) -> 30.37
D82: TOTAL DE INSUMOS DIVERSOS | F82: =SUM(F76:F81) -> 73.64 | H82: * Nota - Valores mensais por empregado
B84: MÓDULO 6 - CUSTOS INDIRETOS, TRIBUTOS E LUCRO - BDI | E84: Percentuais | F84: Valor
C85: A | D85: Custos Indiretos | E85: =BDI!E6 -> 0.027
C86: A.1 | D86: Administração Central | E86: =BDI!E7 -> 0.0216
C87: A.2 | D87: Seguros, Garantias e Riscos | E87: =BDI!E8 -> 0.0054
C88: B | D88: Lucro | E88: =BDI!E10 -> 0.0334
C89: C | D89: Tributos | E89: =SUM(E90:E91) -> 0.124
C90: C.1 | D90: Tributos Federais (COFINS, PIS e CPRB) | E90: =BDI!E18 -> 0.074
C91: C.2 | D91: Tributos Distritais (ISS) | E91: =BDI!E23 -> 0.05 | H91: * Nota - Utilizou-se o indicado pelo Sindicato da Arquitetura e da Engenharia (Sinaenco, 2008, p. 22), que adota um percentual redutor de 20% no cálculo dos custos tributários relativos às contribuições PIS e COFINS
C92: D | D92: Despesas Financeiras | E92: =BDI!E13 -> 0.005639499547
D94: TOTAL DE BDI | E94: =BDI!E26 -> 0.2184 | F94: =E94*E102 -> 1224.020616
D96: QUADRO-RESUMO DO CUSTO MENSAL POR EMPREGADO - SEM O 13º | E96: Valor
D97: Módulo 1 - Composição da Remuneração | E97: =F16 -> 2686.07
D98: Módulo 2 - Encargos e Benefícios Anuais, Mensais e Diários | E98: =F45 -> 2375.71
D99: Módulo 3 - Provisão para Rescisão | E99: =F55 -> 171.07
D100: Módulo 4 - Custo de Reposição do Profissional Ausente | E100: =F73 -> 298
D101: Módulo 5 - Insumos Diversos | E101: =F82 -> 73.64
D102: SUBTOTAL (A+B+C+D+E) | E102: =SUM(E97:E101) -> 5604.49
D103: Módulo 6 - Custos Indiretos, Tributos e Lucro | E103: =F94 -> 1224.020616
D105: TOTAL DO POSTO | E105: =SUM(E102:E103) -> 6828.510616
B107: MÓDULO 7 - DESTAQUE DO MÓDULO 2 - 13º SALÁRIO | E107: Percentuais | F107: Valor
C108: A | D108: 13º Salário | E108: ='Encargos Sociais'!E32 -> 0.08333333333 | F108: =ROUND(E108*F$16,2) -> 223.84
C109: B | D109: Encargos Sociais sobre o 13º Salário - Taxa calculada no SUBMÓDULO 2.2 | E109: =SUM($E$24:$E$32) -> 0.368 | F109: =ROUND(E109*$F$108,2) -> 82.37 | H109: * Nota 1 - Provisiona-se, mensalmente, o proporcional a 1/12 dos valores referentes a gratificação natalina e adicional de férias.
C110: C | D110: BDI sobre o 13º Salário - Taxa calculada no MÓDULO 6 | E110: =E94 -> 0.2184 | F110: =ROUND(E110*($F$108+$F$109),2) -> 66.88
D112: TOTAL DO DESTAQUE DO 13º SALÁRIO | F112: =SUM(F108:F110) -> 373.09
D114: QUADRO-RESUMO DO CUSTO MENSAL POR EMPREGADO | E114: Valor
D115: Custo total - sem o 13º Salário | E115: =E105 -> 6828.510616
D116: Destaque do 13º Salário (valor mensal) | E116: =F112 -> 373.09
D118: TOTAL DO POSTO | E118: =E115+E116 -> 7201.600616

Sheet 7
B2: PLANILHA DE ESTIMATIVA DE CUSTOS
B3: Padrão IN 05/2017 e IN 07/2018 - MPDG
B5: 7 | D5: =HLOOKUP($B$5,'Dados Gerais'!$D$5:$BK$20,6) -> SERVENTE | E5: QUANTIDADE | F5: =HLOOKUP($B$5,'Dados Gerais'!$D$5:$BK$20,10) -> 151
B6: CCT | D6: =HLOOKUP($B$5,'Dados Gerais'!$D$5:$BK$20,15) -> SEAC/DF X SINDISERVIÇOS/DF 2023/2023 Nº DF000037/2023 | E6: DATA-BASE | F6: =HLOOKUP($B$5,'Dados Gerais'!$D$5:$BK$20,16) -> 2023-01-01
B8: MÓDULO 1 - COMPOSIÇÃO DA REMUNERAÇÃO | F8: Valor
C9: A | D9: Salário-Base | F9: =HLOOKUP($B$5,'Dados Gerais'!$D$5:$BK$20,8) -> 1898.58
C10: B | D10: Adicional de Periculosidade | F10: =HLOOKUP($B$5,'Dados Gerais'!$D$5:$BK$37,25) -> 0
C11: C | D11: Adicional de Insalubridade | F11: =HLOOKUP($B$5,'Dados Gerais'!$D$5:$BK$37,31) -> 0
C12: D | D12: Adicional Noturno | F12: =HLOOKUP($B$5,'Dados Gerais'!$D$5:$BK$50,46) -> 0 | H12: * Nota 1 - O Módulo 1 refere-se ao valor mensal devido ao empregado pela prestação do serviço no período de 12 meses.
C13: E | D13: Adicional de Hora Extra | F13: =HLOOKUP($B$5,'Dados Gerais'!$D$5:$BK$67,63) -> 0 | H13: * Nota 2 - O adicional de hora extra no feriado trabalhado foi suprimido pela Lei 13.467/17
C14: F | D14: Outros (especificar) | F14: =HLOOKUP($B$5,'Dados Gerais'!$D$5:$BK$59,33) -> 0 | H14: * Nota 3 - ART. 7º, § 2º, DA LEI Nº 605/49.Sendo mensalista o obreiro, o adicional noturno pago de forma fixa já é considerado integrado para os efeitos do pagamento do repouso semanal remunerado, nos termos do art. 7º, § 2º, da Lei nº 605/49.
D16: TOTAL DA REMUNERAÇÃO | F16: =SUM(F9:F14) -> 1898.58
B18: MÓDULO 2 - ENCARGOS E BENEFÍCIOS ANUAIS, MENSAIS E DIÁRIOS | E18: Percentuais | F18: Valor
B19: Submódulo 2.1 - 13º Salário, Férias e Adicional de Férias
C20: A | D20: 13º Salário - Calculado no Módulo 7 - Destacado | E20: 0 | F20: =ROUND(E20*F$16,2) -> 0
C21: B | D21: Férias e Adicional de Férias | E21: ='Encargos Sociais'!E31 -> 0.0303030303 | F21: =ROUND(E21*F$16,2) -> 57.53 | H21: * Nota 1 - Provisiona-se, mensalmente, o proporcional a 1/12 dos valores referentes a gratificação natalina, férias e adicional de férias.
H22: * Nota 2 - O adicional de férias contido no Submódulo 2.1 corresponde a 1/3 da remuneração que, por sua vez, é dividida por 12 contome Nota 1.
B23: Submódulo 2.2 - Encargos Previdenciários (GPS), Fundo de Garantia por Tempo de Serviço (FGTS) e Outras Contribuições
C24: A | D24: INSS (art. 22, inciso I, Lei nº 8.212/91) | E24: ='Encargos Sociais'!E14 -> 0.2 | F24: =ROUND(E24*($F$16+$F$41+$F$73),2) -> 433.35
C25: B | D25: Salário Educação (art. 3º, inciso I, Decreto nº 87.043/82) | E25: ='Encargos Sociais'!E15 -> 0.025 | F25: =ROUND(E25*($F$16+$F$41+$F$73),2) -> 54.17
C26: C | D26: SAT/RAT (art. 22, II, Lei 8.212/91 e Anexo V, Decreto 6.042/07) - Enquadramento 8211-3/00 | E26: ='Encargos Sociais'!E16 -> 0.03 | F26: 65
C27: D | D27: SESC ou SESI (art. 30, Lei nº 8.036/90 e art. 1º, Lei 8.154/90) | E27: ='Encargos Sociais'!E17 -> 0.015 | F27: 32.5
C28: E | D28: SENAI ou SENAC (Decreto nº 2.318/86) | E28: ='Encargos Sociais'!E18 -> 0.01 | F28: 21.67
C29: F | D29: SEBRAE (§ 3º, art. 8º, Lei 8.029/90, alterada pela Lei nº 8.154/90) | E29: ='Encargos Sociais'!E19 -> 0.006 | F29: 13
C30: G | D30: INCRA (art. 1º, I, Decreto Lei 1.146/70 e Lei 7.787, de 30/06/89) | E30: ='Encargos Sociais'!E20 -> 0.002 | F30: 4.33 | H30: * Nota 1 - Os percentuais dos encargos previdenciários, do FGTS e demais contribuições são estabelecidos por legislação vigente.
C31: H | D31: FGTS (Lei Complementar nº 110/01 e art. 30, Lei nº 8.036/90) | E31: ='Encargos Sociais'!E21 -> 0.08 | F31: 173.34 | H31: * Nota 2 - O SAT, a depender do grau de risco do serviço, irá variar entre 1%, para risco leve, de 2%, para risco médio, e de 3% para risco grave.
C32: I | D32: SECONCI (Convenções Coletivas de Trabalho da construção) | E32: ='Encargos Sociais'!E22 -> 0 | F32: 0 | H32: * Nota 3 - Os percentuais do Submódulo 2.2 incidem sobre o Módulo 1 e o Submódulo 2.1.
B34: Submódulo 2.3 - Benefícios Mensais e Diários
C35: A | D35: Auxílio Transporte | F35: =HLOOKUP($B$5,'Dados Gerais'!$D$5:$BK$93,82) -> 241.48
C36: B | D36: Auxílio Alimentação | F36: =HLOOKUP($B$5,'Dados Gerais'!$D$5:$BK$93,89) -> 972
C37: C | D37: Assistência Médica e Familiar | F37: =HLOOKUP($B$5,'Dados Gerais'!$D$5:$BK$101,97) -> 0
C38: D | D38: Outros (Seguro de vida e auxílio funeral e auxílio odontológico) | F38: =HLOOKUP($B$5,'Dados Gerais'!$D$5:$BK$118,114) -> 0 | H38: * Nota 1 - O valor informado deverá ser o custo real do benefício (descontado o valor eventualmente pago pelo empregado).
H39: * Nota 2 - Observar a previsão dos benefícios contidos em Acordos, Convenções e Dissídios Coletivos de Trabalho e o disposto no art. 6º da IN 5/2017
D40: QUADRO-RESUMO DO MÓDULO 2
D41: 2.1 - 13º Salário, Férias e Adicional de Férias - 13º Destacado - Calculado no Módulo 7 | E41: =SUM(E20:E21) -> 0.0303030303 | F41: =F20+F21 -> 57.53
D42: 2.2 - Encargos Previdenciários (GPS), Fundo de Garantia por Tempo de Serviço (FGTS) e Contribuições | E42: =SUM(E24:E32) -> 0.368 | F42: =SUM(F24:F32) -> 797.36
D43: 2.3 - Benefícios Mensais e Diários | F43: =SUM(F35:F38) -> 1213.48
D45: TOTAL DOS ENCARGOS E BENEFÍCIOS | F45: =SUM(F41:F43) -> 2068.37
B47: MÓDULO 3 - PREVISÃO PARA RESCISÃO | E47: Percentuais | F47: Valor
C48: A | D48: Aviso Prévio Indenizado (Art. 7º, inciso XXI, da CF/1988 e arts. 477, 487, §1º, e 491 da CLT) | E48: ='Encargos Sociais'!E36 -> 0.008333333333 | F48: =ROUND(E48*$F$16,2) -> 15.82
C49: B | D49: Incidência do FGTS sobre o Aviso Prévio Indenizado (Súmula 305 TST) | E49: ='Encargos Sociais'!E37 -> 0.0006666666667 | F49: 1.27 | H49: * Nota 1 - Adotou-se os parâmetros do estudo do STF (http://www.stf.jus.br/arquivo/cms/sobrestfestudosci/anexo/encargos_sociais_03102007.pdf), onde 5% do pessoal é demitido pelo empregador no decurso do contrato (para estes, considerou-se o aviso prévio indenizado). Desprezou-se as demissões por justa causa e os pedidos de demissão.
C50: C | D50: Multa do FGTS e Contribuição Social sobre o Aviso Prévio Indenizado (Art. 18, §1º, da Lei 8.036/1990 e art. 1º da LC nº 110/2001) | E50: ='Encargos Sociais'!E38 -> 0.007717066667 | F50: 14.65 | H50: * Nota 2 - No cálculo do percentual, considerou-se 36 dias, correspondendo à metade da duração média dos contratos (2 anos)
C51: D | D51: Aviso Prévio Trabalhado (Art. 488, parágrafo único, CLT) | E51: ='Encargos Sociais'!E39 -> 0.01203703704 | F51: 22.85 | H51: * Nota 3 - Incide sobre a Remuneração + 13º salário (1/12) + Férias (1/12) + Adicional de Férias (1/36) x 50% multa (40% para o empregado e 10% de contribuição social) x 8% FGTS
C52: E | D52: Incidência de GPS, FGTS e outras contribuições sobre o Aviso Prévio Trabalhado | E52: ='Encargos Sociais'!E40 -> 0.00442962963 | F52: 8.41 | H52: * Nota 4 - Os 95% restantes do cálculo, a um prazo médio de contrato de 4 anos. Assim, calcula-se 7 dias para o 1º ano de contrato e mais 3 dias para os 3 anos seguintes.
C53: F | D53: Multa do FGTS e Contribuição Social sobre o Aviso Prévio Trabalhado | E53: ='Encargos Sociais'!E41 -> 0.03050515556 | F53: 57.92
D55: TOTAL DE PREVISÃO PARA RESCISÃO | F55: =SUM(F48:F53) -> 120.92
B57: MÓDULO 4 - CUSTO DO PROFISSIONAL AUSENTE | E57: Percentuais | F57: Valor
B58: Submódulo 4.1 - Ausências Legais
C59: A | D59: Férias (Arts. 129 e 130, inc. I, da CLT) | E59: ='Encargos Sociais'!E25 -> 0.09090909091 | F59: =ROUND(E59*$F$16,2) -> 172.6 | H59: * Nota 1 - As alíneas “A” a “F” referem-se somente ao custo que será pago ao repositor pelos dias trabalhados quando da necessidade de substituir a mão de obra alocada na prestação do serviço.
C60: B | D60: Ausências Legais (Arts. 131 e 473 da CLT) | E60: ='Encargos Sociais'!E26 -> 0.007936507937 | F60: 15.07 | H60: * Nota 2 - Adotou-se a estimativa do SINAPI de 2 dias por ano.
C61: C | D61: Licença-Paternidade (Art. 7º, XIX, e art. 10, §1º, do ADCT, CF/1988 e Art. 1º, II, da Lei 11.770/2008) | E61: ='Encargos Sociais'!E27 -> 0.0008277777778 | F61: 1.57 | H61: * Nota 3 - Utilizada a proporção de 50% para homens, 5 dias de afastamento, e a probabilidade de um trabalhador requerer a Licença Paternidade em 5,22%, conforme SINAPI (citando dados da PNAD 2015)
C62: D | D62: Ausência por Acidente de Trabalho (Art. 131, III, da CLT) | E62: ='Encargos Sociais'!E28 -> 0.0008541666667 | F62: 1.62 | H62: * Nota 4 - Utilzada a estatística de 1,96% dos contribuintes beneficiados com a emissão do auxílio, conforme Anuário Estatístico da Previdência Social. Afastamento de 15 dias a cargo da empresa.
C63: E | D63: Afastamento Maternidade (Art. 71 da Lei nº 8.213/1991) | E63: ='Encargos Sociais'!E29 -> 0.003292592593 | F63: 6.25 | H63: * Nota 5 - Utilizada a proporção de 50% para mulheres, 180 dias de afastamento, e a probabilidade de uma trabalhadora requerer a Licença Maternidade em 4,91%, conforme SINAPI (citando dados do IBGE 2016)
C64: F | D64: Auxílio Enfermidade - Doença (Art. 59 da Lei nº 8.213/1991) | E64: ='Encargos Sociais'!E30 -> 0.007122222222 | F64: 13.52 | H64: * Nota 6 - Utilizada a estatística de 3,37% dos contribuintes beneficiados com o auxílio, conforme Anuário Estatístico da Previdência Social de 2015 (acrescidos de 2 dias ao ano, para os quais o trabalhador nem requer o benefício da Previdência - conforme SINAPI)
B66: Submódulo 4.2 - Intrajornada
C67: A | D67: Intervalo para repouso ou alimentação | E67: ='Encargos Sociais'!E33 -> 0 | F67: =ROUND(E67*$F$16,2) -> 0
D69: QUADRO-RESUMO DO MÓDULO 4 | F69: Valor
D70: 4.1 - Ausências Legais | E70: =SUM(E59:E64) -> 0.1109423581 | F70: =ROUND(E70*$F$16,2) -> 210.63
D71: 4.2 - Intrajornada | E71: =E67 -> 0 | F71: =ROUND(E71*$F$16,2) -> 0
D73: TOTAL DE PREVISÃO PARA RESCISÃO E INTERVALO INTRAJORNADA | F73: =SUM(F70:F71) -> 210.63
B75: MÓDULO 5 - INSUMOS DIVERSOS | F75: Valor
C76: A | D76: Uniformes - aquisição | F76: =ROUND(HLOOKUP($B$5,Uniformes!L4:EA6,3)/12,2) -> 43.27
C77: B | D77: Materiais de consumo relacionados ao posto - aquisição | F77: =ROUND(HLOOKUP(B5,'Mat Cons'!I11:DX13,3)/12,2) -> 0
C78: C | D78: Materiais permanentes relacionados ao posto - remuneração da sua depreciação / manutenção | F78: =HLOOKUP(B5,'Mat Perm'!Q11:EF13,3) -> 0
C79: D | D79: Equipamentos relacionados ao posto - remuneração da sua depreciação / manutenção | F79: =HLOOKUP(B5,'Equip Rel'!Q11:EF13,3) -> 0
C80: E | D80: Equipamentos de Proteção Individual - EPI - aquisição | F80: =ROUND(HLOOKUP(B5,EPI!J4:DY6,3)/12,2) -> 39.08
D82: TOTAL DE INSUMOS DIVERSOS | F82: =SUM(F76:F81) -> 82.35 | H82: * Nota - Valores mensais por empregado
B84: MÓDULO 6 - CUSTOS INDIRETOS, TRIBUTOS E LUCRO - BDI | E84: Percentuais | F84: Valor
C85: A | D85: Custos Indiretos | E85: =BDI!E6 -> 0.027
C86: A.1 | D86: Administração Central | E86: =BDI!E7 -> 0.0216
C87: A.2 | D87: Seguros, Garantias e Riscos | E87: =BDI!E8 -> 0.0054
C88: B | D88: Lucro | E88: =BDI!E10 -> 0.0334
C89: C | D89: Tributos | E89: =SUM(E90:E91) -> 0.124
C90: C.1 | D90: Tributos Federais (COFINS, PIS e CPRB) | E90: =BDI!E18 -> 0.074
C91: C.2 | D91: Tributos Distritais (ISS) | E91: =BDI!E23 -> 0.05 | H91: * Nota - Utilizou-se o indicado pelo Sindicato da Arquitetura e da Engenharia (Sinaenco, 2008, p. 22), que adota um percentual redutor de 20% no cálculo dos custos tributários relativos às contribuições PIS e COFINS
C92: D | D92: Despesas Financeiras | E92: =BDI!E13 -> 0.005639499547
D94: TOTAL DE BDI | E94: =BDI!E26 -> 0.2184 | F94: =E94*E102 -> 956.77764
D96: QUADRO-RESUMO DO CUSTO MENSAL POR EMPREGADO - SEM O 13º | E96: Valor
D97: Módulo 1 - Composição da Remuneração | E97: =F16 -> 1898.58
D98: Módulo 2 - Encargos e Benefícios Anuais, Mensais e Diários | E98: =F45 -> 2068.37
D99: Módulo 3 - Provisão para Rescisão | E99: =F55 -> 120.92
D100: Módulo 4 - Custo de Reposição do Profissional Ausente | E100: =F73 -> 210.63
D101: Módulo 5 - Insumos Diversos | E101: =F82 -> 82.35
D102: SUBTOTAL (A+B+C+D+E) | E102: =SUM(E97:E101) -> 4380.85
D103: Módulo 6 - Custos Indiretos, Tributos e Lucro | E103: =F94 -> 956.77764
D105: TOTAL DO POSTO | E105: =SUM(E102:E103) -> 5337.62764
B107: MÓDULO 7 - DESTAQUE DO MÓDULO 2 - 13º SALÁRIO | E107: Percentuais | F107: Valor
C108: A | D108: 13º Salário | E108: ='Encargos Sociais'!E32 -> 0.08333333333 | F108: =ROUND(E108*F$16,2) -> 158.22
C109: B | D109: Encargos Sociais sobre o 13º Salário - Taxa calculada no SUBMÓDULO 2.2 | E109: =SUM($E$24:$E$32) -> 0.368 | F109: =ROUND(E109*$F$108,2) -> 58.22 | H109: * Nota 1 - Provisiona-se, mensalmente, o proporcional a 1/12 dos valores referentes a gratificação natalina e adicional de férias.
C110: C | D110: BDI sobre o 13º Salário - Taxa calculada no MÓDULO 6 | E110: =E94 -> 0.2184 | F110: =ROUND(E110*($F$108+$F$109),2) -> 47.27
D112: TOTAL DO DESTAQUE DO 13º SALÁRIO | F112: =SUM(F108:F110) -> 263.71
D114: QUADRO-RESUMO DO CUSTO MENSAL POR EMPREGADO | E114: Valor
D115: Custo total - sem o 13º Salário | E115: =E105 -> 5337.62764
D116: Destaque do 13º Salário (valor mensal) | E116: =F112 -> 263.71
D118: TOTAL DO POSTO | E118: =E115+E116 -> 5601.33764

Sheet 8
B2: PLANILHA DE ESTIMATIVA DE CUSTOS
B3: Padrão IN 05/2017 e IN 07/2018 - MPDG
B5: 8 | D5: =HLOOKUP($B$5,'Dados Gerais'!$D$5:$BK$20,6) -> SERVENTE COM ADICIONAL DE INSALUBRIDADE | E5: QUANTIDADE | F5: =HLOOKUP($B$5,'Dados Gerais'!$D$5:$BK$20,10) -> 25
B6: CCT | D6: =HLOOKUP($B$5,'Dados Gerais'!$D$5:$BK$20,15) -> SEAC/DF X SINDISERVIÇOS/DF 2023/2023 Nº DF000037/2023 | E6: DATA-BASE | F6: =HLOOKUP($B$5,'Dados Gerais'!$D$5:$BK$20,16) -> 2023-01-01
B8: MÓDULO 1 - COMPOSIÇÃO DA REMUNERAÇÃO | F8: Valor
C9: A | D9: Salário-Base | F9: =HLOOKUP($B$5,'Dados Gerais'!$D$5:$BK$20,8) -> 1898.58
C10: B | D10: Adicional de Periculosidade | F10: =HLOOKUP($B$5,'Dados Gerais'!$D$5:$BK$37,25) -> 0
C11: C | D11: Adicional de Insalubridade | F11: =HLOOKUP($B$5,'Dados Gerais'!$D$5:$BK$37,31) -> 260.4
C12: D | D12: Adicional Noturno | F12: =HLOOKUP($B$5,'Dados Gerais'!$D$5:$BK$50,46) -> 0 | H12: * Nota 1 - O Módulo 1 refere-se ao valor mensal devido ao empregado pela prestação do serviço no período de 12 meses.
C13: E | D13: Adicional de Hora Extra | F13: =HLOOKUP($B$5,'Dados Gerais'!$D$5:$BK$67,63) -> 0 | H13: * Nota 2 - O adicional de hora extra no feriado trabalhado foi suprimido pela Lei 13.467/17
C14: F | D14: Outros (especificar) | F14: =HLOOKUP($B$5,'Dados Gerais'!$D$5:$BK$59,33) -> 0 | H14: * Nota 3 - ART. 7º, § 2º, DA LEI Nº 605/49.Sendo mensalista o obreiro, o adicional noturno pago de forma fixa já é considerado integrado para os efeitos do pagamento do repouso semanal remunerado, nos termos do art. 7º, § 2º, da Lei nº 605/49.
D16: TOTAL DA REMUNERAÇÃO | F16: =SUM(F9:F14) -> 2158.98
B18: MÓDULO 2 - ENCARGOS E BENEFÍCIOS ANUAIS, MENSAIS E DIÁRIOS | E18: Percentuais | F18: Valor
B19: Submódulo 2.1 - 13º Salário, Férias e Adicional de Férias
C20: A | D20: 13º Salário - Calculado no Módulo 7 - Destacado | E20: 0 | F20: =ROUND(E20*F$16,2) -> 0
C21: B | D21: Férias e Adicional de Férias | E21: ='Encargos Sociais'!E31 -> 0.0303030303 | F21: =ROUND(E21*F$16,2) -> 65.42 | H21: * Nota 1 - Provisiona-se, mensalmente, o proporcional a 1/12 dos valores referentes a gratificação natalina, férias e adicional de férias.
H22: * Nota 2 - O adicional de férias contido no Submódulo 2.1 corresponde a 1/3 da remuneração que, por sua vez, é dividida por 12 contome Nota 1.
B23: Submódulo 2.2 - Encargos Previdenciários (GPS), Fundo de Garantia por Tempo de Serviço (FGTS) e Outras Contribuições
C24: A | D24: INSS (art. 22, inciso I, Lei nº 8.212/91) | E24: ='Encargos Sociais'!E14 -> 0.2 | F24: =ROUND(E24*($F$16+$F$41+$F$73),2) -> 492.78
C25: B | D25: Salário Educação (art. 3º, inciso I, Decreto nº 87.043/82) | E25: ='Encargos Sociais'!E15 -> 0.025 | F25: =ROUND(E25*($F$16+$F$41+$F$73),2) -> 61.6
C26: C | D26: SAT/RAT (art. 22, II, Lei 8.212/91 e Anexo V, Decreto 6.042/07) - Enquadramento 8211-3/00 | E26: ='Encargos Sociais'!E16 -> 0.03 | F26: 73.92
C27: D | D27: SESC ou SESI (art. 30, Lei nº 8.036/90 e art. 1º, Lei 8.154/90) | E27: ='Encargos Sociais'!E17 -> 0.015 | F27: 36.96
C28: E | D28: SENAI ou SENAC (Decreto nº 2.318/86) | E28: ='Encargos Sociais'!E18 -> 0.01 | F28: 24.64
C29: F | D29: SEBRAE (§ 3º, art. 8º, Lei 8.029/90, alterada pela Lei nº 8.154/90) | E29: ='Encargos Sociais'!E19 -> 0.006 | F29: 14.78
C30: G | D30: INCRA (art. 1º, I, Decreto Lei 1.146/70 e Lei 7.787, de 30/06/89) | E30: ='Encargos Sociais'!E20 -> 0.002 | F30: 4.93 | H30: * Nota 1 - Os percentuais dos encargos previdenciários, do FGTS e demais contribuições são estabelecidos por legislação vigente.
C31: H | D31: FGTS (Lei Complementar nº 110/01 e art. 30, Lei nº 8.036/90) | E31: ='Encargos Sociais'!E21 -> 0.08 | F31: 197.11 | H31: * Nota 2 - O SAT, a depender do grau de risco do serviço, irá variar entre 1%, para risco leve, de 2%, para risco médio, e de 3% para risco grave.
C32: I | D32: SECONCI (Convenções Coletivas de Trabalho da construção) | E32: ='Encargos Sociais'!E22 -> 0 | F32: 0 | H32: * Nota 3 - Os percentuais do Submódulo 2.2 incidem sobre o Módulo 1 e o Submódulo 2.1.
B34: Submódulo 2.3 - Benefícios Mensais e Diários
C35: A | D35: Auxílio Transporte | F35: =HLOOKUP($B$5,'Dados Gerais'!$D$5:$BK$93,82) -> 241.48
C36: B | D36: Auxílio Alimentação | F36: =HLOOKUP($B$5,'Dados Gerais'!$D$5:$BK$93,89) -> 972
C37: C | D37: Assistência Médica e Familiar | F37: =HLOOKUP($B$5,'Dados Gerais'!$D$5:$BK$101,97) -> 0
C38: D | D38: Outros (Seguro de vida e auxílio funeral e auxílio odontológico) | F38: =HLOOKUP($B$5,'Dados Gerais'!$D$5:$BK$118,114) -> 0 | H38: * Nota 1 - O valor informado deverá ser o custo real do benefício (descontado o valor eventualmente pago pelo empregado).
H39: * Nota 2 - Observar a previsão dos benefícios contidos em Acordos, Convenções e Dissídios Coletivos de Trabalho e o disposto no art. 6º da IN 5/2017
D40: QUADRO-RESUMO DO MÓDULO 2
D41: 2.1 - 13º Salário, Férias e Adicional de Férias - 13º Destacado - Calculado no Módulo 7 | E41: =SUM(E20:E21) -> 0.0303030303 | F41: =F20+F21 -> 65.42
D42: 2.2 - Encargos Previdenciários (GPS), Fundo de Garantia por Tempo de Serviço (FGTS) e Contribuições | E42: =SUM(E24:E32) -> 0.368 | F42: =SUM(F24:F32) -> 906.72
D43: 2.3 - Benefícios Mensais e Diários | F43: =SUM(F35:F38) -> 1213.48
D45: TOTAL DOS ENCARGOS E BENEFÍCIOS | F45: =SUM(F41:F43) -> 2185.62
B47: MÓDULO 3 - PREVISÃO PARA RESCISÃO | E47: Percentuais | F47: Valor
C48: A | D48: Aviso Prévio Indenizado (Art. 7º, inciso XXI, da CF/1988 e arts. 477, 487, §1º, e 491 da CLT) | E48: ='Encargos Sociais'!E36 -> 0.008333333333 | F48: =ROUND(E48*$F$16,2) -> 17.99
C49: B | D49: Incidência do FGTS sobre o Aviso Prévio Indenizado (Súmula 305 TST) | E49: ='Encargos Sociais'!E37 -> 0.0006666666667 | F49: 1.44 | H49: * Nota 1 - Adotou-se os parâmetros do estudo do STF (http://www.stf.jus.br/arquivo/cms/sobrestfestudosci/anexo/encargos_sociais_03102007.pdf), onde 5% do pessoal é demitido pelo empregador no decurso do contrato (para estes, considerou-se o aviso prévio indenizado). Desprezou-se as demissões por justa causa e os pedidos de demissão.
C50: C | D50: Multa do FGTS e Contribuição Social sobre o Aviso Prévio Indenizado (Art. 18, §1º, da Lei 8.036/1990 e art. 1º da LC nº 110/2001) | E50: ='Encargos Sociais'!E38 -> 0.007717066667 | F50: 16.66 | H50: * Nota 2 - No cálculo do percentual, considerou-se 36 dias, correspondendo à metade da duração média dos contratos (2 anos)
C51: D | D51: Aviso Prévio Trabalhado (Art. 488, parágrafo único, CLT) | E51: ='Encargos Sociais'!E39 -> 0.01203703704 | F51: 25.99 | H51: * Nota 3 - Incide sobre a Remuneração + 13º salário (1/12) + Férias (1/12) + Adicional de Férias (1/36) x 50% multa (40% para o empregado e 10% de contribuição social) x 8% FGTS
C52: E | D52: Incidência de GPS, FGTS e outras contribuições sobre o Aviso Prévio Trabalhado | E52: ='Encargos Sociais'!E40 -> 0.00442962963 | F52: 9.56 | H52: * Nota 4 - Os 95% restantes do cálculo, a um prazo médio de contrato de 4 anos. Assim, calcula-se 7 dias para o 1º ano de contrato e mais 3 dias para os 3 anos seguintes.
C53: F | D53: Multa do FGTS e Contribuição Social sobre o Aviso Prévio Trabalhado | E53: ='Encargos Sociais'!E41 -> 0.03050515556 | F53: 65.86
D55: TOTAL DE PREVISÃO PARA RESCISÃO | F55: =SUM(F48:F53) -> 137.5
B57: MÓDULO 4 - CUSTO DO PROFISSIONAL AUSENTE | E57: Percentuais | F57: Valor
B58: Submódulo 4.1 - Ausências Legais
C59: A | D59: Férias (Arts. 129 e 130, inc. I, da CLT) | E59: ='Encargos Sociais'!E25 -> 0.09090909091 | F59: =ROUND(E59*$F$16,2) -> 196.27 | H59: * Nota 1 - As alíneas “A” a “F” referem-se somente ao custo que será pago ao repositor pelos dias trabalhados quando da necessidade de substituir a mão de obra alocada na prestação do serviço.
C60: B | D60: Ausências Legais (Arts. 131 e 473 da CLT) | E60: ='Encargos Sociais'!E26 -> 0.007936507937 | F60: 17.13 | H60: * Nota 2 - Adotou-se a estimativa do SINAPI de 2 dias por ano.
C61: C | D61: Licença-Paternidade (Art. 7º, XIX, e art. 10, §1º, do ADCT, CF/1988 e Art. 1º, II, da Lei 11.770/2008) | E61: ='Encargos Sociais'!E27 -> 0.0008277777778 | F61: 1.79 | H61: * Nota 3 - Utilizada a proporção de 50% para homens, 5 dias de afastamento, e a probabilidade de um trabalhador requerer a Licença Paternidade em 5,22%, conforme SINAPI (citando dados da PNAD 2015)
C62: D | D62: Ausência por Acidente de Trabalho (Art. 131, III, da CLT) | E62: ='Encargos Sociais'!E28 -> 0.0008541666667 | F62: 1.84 | H62: * Nota 4 - Utilzada a estatística de 1,96% dos contribuintes beneficiados com a emissão do auxílio, conforme Anuário Estatístico da Previdência Social. Afastamento de 15 dias a cargo da empresa.
C63: E | D63: Afastamento Maternidade (Art. 71 da Lei nº 8.213/1991) | E63: ='Encargos Sociais'!E29 -> 0.003292592593 | F63: 7.11 | H63: * Nota 5 - Utilizada a proporção de 50% para mulheres, 180 dias de afastamento, e a probabilidade de uma trabalhadora requerer a Licença Maternidade em 4,91%, conforme SINAPI (citando dados do IBGE 2016)
C64: F | D64: Auxílio Enfermidade - Doença (Art. 59 da Lei nº 8.213/1991) | E64: ='Encargos Sociais'!E30 -> 0.007122222222 | F64: 15.38 | H64: * Nota 6 - Utilizada a estatística de 3,37% dos contribuintes beneficiados com o auxílio, conforme Anuário Estatístico da Previdência Social de 2015 (acrescidos de 2 dias ao ano, para os quais o trabalhador nem requer o benefício da Previdência - conforme SINAPI)
B66: Submódulo 4.2 - Intrajornada
C67: A | D67: Intervalo para repouso ou alimentação | E67: ='Encargos Sociais'!E33 -> 0 | F67: =ROUND(E67*$F$16,2) -> 0
D69: QUADRO-RESUMO DO MÓDULO 4 | F69: Valor
D70: 4.1 - Ausências Legais | E70: =SUM(E59:E64) -> 0.1109423581 | F70: =ROUND(E70*$F$16,2) -> 239.52
D71: 4.2 - Intrajornada | E71: =E67 -> 0 | F71: =ROUND(E71*$F$16,2) -> 0
D73: TOTAL DE PREVISÃO PARA RESCISÃO E INTERVALO INTRAJORNADA | F73: =SUM(F70:F71) -> 239.52
B75: MÓDULO 5 - INSUMOS DIVERSOS | F75: Valor
C76: A | D76: Uniformes - aquisição | F76: =ROUND(HLOOKUP($B$5,Uniformes!L4:EA6,3)/12,2) -> 43.27
C77: B | D77: Materiais de consumo relacionados ao posto - aquisição | F77: =ROUND(HLOOKUP(B5,'Mat Cons'!I11:DX13,3)/12,2) -> 0
C78: C | D78: Materiais permanentes relacionados ao posto - remuneração da sua depreciação / manutenção | F78: =HLOOKUP(B5,'Mat Perm'!Q11:EF13,3) -> 0
C79: D | D79: Equipamentos relacionados ao posto - remuneração da sua depreciação / manutenção | F79: =HLOOKUP(B5,'Equip Rel'!Q11:EF13,3) -> 0
C80: E | D80: Equipamentos de Proteção Individual - EPI - aquisição | F80: =ROUND(HLOOKUP(B5,EPI!J4:DY6,3)/12,2) -> 39.08
D82: TOTAL DE INSUMOS DIVERSOS | F82: =SUM(F76:F81) -> 82.35 | H82: * Nota - Valores mensais por empregado
B84: MÓDULO 6 - CUSTOS INDIRETOS, TRIBUTOS E LUCRO - BDI | E84: Percentuais | F84: Valor
C85: A | D85: Custos Indiretos | E85: =BDI!E6 -> 0.027
C86: A.1 | D86: Administração Central | E86: =BDI!E7 -> 0.0216
C87: A.2 | D87: Seguros, Garantias e Riscos | E87: =BDI!E8 -> 0.0054
C88: B | D88: Lucro | E88: =BDI!E10 -> 0.0334
C89: C | D89: Tributos | E89: =SUM(E90:E91) -> 0.124
C90: C.1 | D90: Tributos Federais (COFINS, PIS e CPRB) | E90: =BDI!E18 -> 0.074
C91: C.2 | D91: Tributos Distritais (ISS) | E91: =BDI!E23 -> 0.05 | H91: * Nota - Utilizou-se o indicado pelo Sindicato da Arquitetura e da Engenharia (Sinaenco, 2008, p. 22), que adota um percentual redutor de 20% no cálculo dos custos tributários relativos às contribuições PIS e COFINS
C92: D | D92: Despesas Financeiras | E92: =BDI!E13 -> 0.005639499547
D94: TOTAL DE BDI | E94: =BDI!E26 -> 0.2184 | F94: =E94*E102 -> 1049.187048
D96: QUADRO-RESUMO DO CUSTO MENSAL POR EMPREGADO - SEM O 13º | E96: Valor
D97: Módulo 1 - Composição da Remuneração | E97: =F16 -> 2158.98
D98: Módulo 2 - Encargos e Benefícios Anuais, Mensais e Diários | E98: =F45 -> 2185.62
D99: Módulo 3 - Provisão para Rescisão | E99: =F55 -> 137.5
D100: Módulo 4 - Custo de Reposição do Profissional Ausente | E100: =F73 -> 239.52
D101: Módulo 5 - Insumos Diversos | E101: =F82 -> 82.35
D102: SUBTOTAL (A+B+C+D+E) | E102: =SUM(E97:E101) -> 4803.97
D103: Módulo 6 - Custos Indiretos, Tributos e Lucro | E103: =F94 -> 1049.187048
D105: TOTAL DO POSTO | E105: =SUM(E102:E103) -> 5853.157048
B107: MÓDULO 7 - DESTAQUE DO MÓDULO 2 - 13º SALÁRIO | E107: Percentuais | F107: Valor
C108: A | D108: 13º Salário | E108: ='Encargos Sociais'!E32 -> 0.08333333333 | F108: =ROUND(E108*F$16,2) -> 179.92
C109: B | D109: Encargos Sociais sobre o 13º Salário - Taxa calculada no SUBMÓDULO 2.2 | E109: =SUM($E$24:$E$32) -> 0.368 | F109: =ROUND(E109*$F$108,2) -> 66.21 | H109: * Nota 1 - Provisiona-se, mensalmente, o proporcional a 1/12 dos valores referentes a gratificação natalina e adicional de férias.
C110: C | D110: BDI sobre o 13º Salário - Taxa calculada no MÓDULO 6 | E110: =E94 -> 0.2184 | F110: =ROUND(E110*($F$108+$F$109),2) -> 53.75
D112: TOTAL DO DESTAQUE DO 13º SALÁRIO | F112: =SUM(F108:F110) -> 299.88
D114: QUADRO-RESUMO DO CUSTO MENSAL POR EMPREGADO | E114: Valor
D115: Custo total - sem o 13º Salário | E115: =E105 -> 5853.157048
D116: Destaque do 13º Salário (valor mensal) | E116: =F112 -> 299.88
D118: TOTAL DO POSTO | E118: =E115+E116 -> 6153.037048

Sheet 9
B2: PLANILHA DE ESTIMATIVA DE CUSTOS
B3: Padrão IN 05/2017 e IN 07/2018 - MPDG
B5: 9 | D5: =HLOOKUP($B$5,'Dados Gerais'!$D$5:$BK$20,6) -> SERVENTE COM ADICIONAL DE INSALUBRIDADE E ADICIONAL NOTURNO | E5: QUANTIDADE | F5: =HLOOKUP($B$5,'Dados Gerais'!$D$5:$BK$20,10) -> 2
B6: CCT | D6: =HLOOKUP($B$5,'Dados Gerais'!$D$5:$BK$20,15) -> SEAC/DF X SINDISERVIÇOS/DF 2023/2023 Nº DF000037/2023 | E6: DATA-BASE | F6: =HLOOKUP($B$5,'Dados Gerais'!$D$5:$BK$20,16) -> 2023-01-01
B8: MÓDULO 1 - COMPOSIÇÃO DA REMUNERAÇÃO | F8: Valor
C9: A | D9: Salário-Base | F9: =HLOOKUP($B$5,'Dados Gerais'!$D$5:$BK$20,8) -> 1898.58
C10: B | D10: Adicional de Periculosidade | F10: =HLOOKUP($B$5,'Dados Gerais'!$D$5:$BK$37,25) -> 0
C11: C | D11: Adicional de Insalubridade | F11: =HLOOKUP($B$5,'Dados Gerais'!$D$5:$BK$37,31) -> 260.4
C12: D | D12: Adicional Noturno | F12: =HLOOKUP($B$5,'Dados Gerais'!$D$5:$BK$50,46) -> 54.43 | H12: * Nota 1 - O Módulo 1 refere-se ao valor mensal devido ao empregado pela prestação do serviço no período de 12 meses.
C13: E | D13: Adicional de Hora Extra | F13: =HLOOKUP($B$5,'Dados Gerais'!$D$5:$BK$67,63) -> 0 | H13: * Nota 2 - O adicional de hora extra no feriado trabalhado foi suprimido pela Lei 13.467/17
C14: F | D14: Outros (especificar) | F14: =HLOOKUP($B$5,'Dados Gerais'!$D$5:$BK$59,33) -> 0 | H14: * Nota 3 - ART. 7º, § 2º, DA LEI Nº 605/49.Sendo mensalista o obreiro, o adicional noturno pago de forma fixa já é considerado integrado para os efeitos do pagamento do repouso semanal remunerado, nos termos do art. 7º, § 2º, da Lei nº 605/49.
D16: TOTAL DA REMUNERAÇÃO | F16: =SUM(F9:F14) -> 2213.41
B18: MÓDULO 2 - ENCARGOS E BENEFÍCIOS ANUAIS, MENSAIS E DIÁRIOS | E18: Percentuais | F18: Valor
B19: Submódulo 2.1 - 13º Salário, Férias e Adicional de Férias
C20: A | D20: 13º Salário - Calculado no Módulo 7 - Destacado | E20: 0 | F20: =ROUND(E20*F$16,2) -> 0
C21: B | D21: Férias e Adicional de Férias | E21: ='Encargos Sociais'!E31 -> 0.0303030303 | F21: =ROUND(E21*F$16,2) -> 67.07 | H21: * Nota 1 - Provisiona-se, mensalmente, o proporcional a 1/12 dos valores referentes a gratificação natalina, férias e adicional de férias.
H22: * Nota 2 - O adicional de férias contido no Submódulo 2.1 corresponde a 1/3 da remuneração que, por sua vez, é dividida por 12 contome Nota 1.
B23: Submódulo 2.2 - Encargos Previdenciários (GPS), Fundo de Garantia por Tempo de Serviço (FGTS) e Outras Contribuições
C24: A | D24: INSS (art. 22, inciso I, Lei nº 8.212/91) | E24: ='Encargos Sociais'!E14 -> 0.2 | F24: =ROUND(E24*($F$16+$F$41+$F$73),2) -> 505.21
C25: B | D25: Salário Educação (art. 3º, inciso I, Decreto nº 87.043/82) | E25: ='Encargos Sociais'!E15 -> 0.025 | F25: =ROUND(E25*($F$16+$F$41+$F$73),2) -> 63.15
C26: C | D26: SAT/RAT (art. 22, II, Lei 8.212/91 e Anexo V, Decreto 6.042/07) - Enquadramento 8211-3/00 | E26: ='Encargos Sociais'!E16 -> 0.03 | F26: 75.78
C27: D | D27: SESC ou SESI (art. 30, Lei nº 8.036/90 e art. 1º, Lei 8.154/90) | E27: ='Encargos Sociais'!E17 -> 0.015 | F27: 37.89
C28: E | D28: SENAI ou SENAC (Decreto nº 2.318/86) | E28: ='Encargos Sociais'!E18 -> 0.01 | F28: 25.26
C29: F | D29: SEBRAE (§ 3º, art. 8º, Lei 8.029/90, alterada pela Lei nº 8.154/90) | E29: ='Encargos Sociais'!E19 -> 0.006 | F29: 15.16
C30: G | D30: INCRA (art. 1º, I, Decreto Lei 1.146/70 e Lei 7.787, de 30/06/89) | E30: ='Encargos Sociais'!E20 -> 0.002 | F30: 5.05 | H30: * Nota 1 - Os percentuais dos encargos previdenciários, do FGTS e demais contribuições são estabelecidos por legislação vigente.
C31: H | D31: FGTS (Lei Complementar nº 110/01 e art. 30, Lei nº 8.036/90) | E31: ='Encargos Sociais'!E21 -> 0.08 | F31: 202.08 | H31: * Nota 2 - O SAT, a depender do grau de risco do serviço, irá variar entre 1%, para risco leve, de 2%, para risco médio, e de 3% para risco grave.
C32: I | D32: SECONCI (Convenções Coletivas de Trabalho da construção) | E32: ='Encargos Sociais'!E22 -> 0 | F32: 0 | H32: * Nota 3 - Os percentuais do Submódulo 2.2 incidem sobre o Módulo 1 e o Submódulo 2.1.
B34: Submódulo 2.3 - Benefícios Mensais e Diários
C35: A | D35: Auxílio Transporte | F35: =HLOOKUP($B$5,'Dados Gerais'!$D$5:$BK$93,82) -> 241.48
C36: B | D36: Auxílio Alimentação | F36: =HLOOKUP($B$5,'Dados Gerais'!$D$5:$BK$93,89) -> 972
C37: C | D37: Assistência Médica e Familiar | F37: =HLOOKUP($B$5,'Dados Gerais'!$D$5:$BK$101,97) -> 0
C38: D | D38: Outros (Seguro de vida e auxílio funeral e auxílio odontológico) | F38: =HLOOKUP($B$5,'Dados Gerais'!$D$5:$BK$118,114) -> 0 | H38: * Nota 1 - O valor informado deverá ser o custo real do benefício (descontado o valor eventualmente pago pelo empregado).
H39: * Nota 2 - Observar a previsão dos benefícios contidos em Acordos, Convenções e Dissídios Coletivos de Trabalho e o disposto no art. 6º da IN 5/2017
D40: QUADRO-RESUMO DO MÓDULO 2
D41: 2.1 - 13º Salário, Férias e Adicional de Férias - 13º Destacado - Calculado no Módulo 7 | E41: =SUM(E20:E21) -> 0.0303030303 | F41: =F20+F21 -> 67.07
D42: 2.2 - Encargos Previdenciários (GPS), Fundo de Garantia por Tempo de Serviço (FGTS) e Contribuições | E42: =SUM(E24:E32) -> 0.368 | F42: =SUM(F24:F32) -> 929.58
D43: 2.3 - Benefícios Mensais e Diários | F43: =SUM(F35:F38) -> 1213.48
D45: TOTAL DOS ENCARGOS E BENEFÍCIOS | F45: =SUM(F41:F43) -> 2210.13
B47: MÓDULO 3 - PREVISÃO PARA RESCISÃO | E47: Percentuais | F47: Valor
C48: A | D48: Aviso Prévio Indenizado (Art. 7º, inciso XXI, da CF/1988 e arts. 477, 487, §1º, e 491 da CLT) | E48: ='Encargos Sociais'!E36 -> 0.008333333333 | F48: =ROUND(E48*$F$16,2) -> 18.45
C49: B | D49: Incidência do FGTS sobre o Aviso Prévio Indenizado (Súmula 305 TST) | E49: ='Encargos Sociais'!E37 -> 0.0006666666667 | F49: 1.48 | H49: * Nota 1 - Adotou-se os parâmetros do estudo do STF (http://www.stf.jus.br/arquivo/cms/sobrestfestudosci/anexo/encargos_sociais_03102007.pdf), onde 5% do pessoal é demitido pelo empregador no decurso do contrato (para estes, considerou-se o aviso prévio indenizado). Desprezou-se as demissões por justa causa e os pedidos de demissão.
C50: C | D50: Multa do FGTS e Contribuição Social sobre o Aviso Prévio Indenizado (Art. 18, §1º, da Lei 8.036/1990 e art. 1º da LC nº 110/2001) | E50: ='Encargos Sociais'!E38 -> 0.007717066667 | F50: 17.08 | H50: * Nota 2 - No cálculo do percentual, considerou-se 36 dias, correspondendo à metade da duração média dos contratos (2 anos)
C51: D | D51: Aviso Prévio Trabalhado (Art. 488, parágrafo único, CLT) | E51: ='Encargos Sociais'!E39 -> 0.01203703704 | F51: 26.64 | H51: * Nota 3 - Incide sobre a Remuneração + 13º salário (1/12) + Férias (1/12) + Adicional de Férias (1/36) x 50% multa (40% para o empregado e 10% de contribuição social) x 8% FGTS
C52: E | D52: Incidência de GPS, FGTS e outras contribuições sobre o Aviso Prévio Trabalhado | E52: ='Encargos Sociais'!E40 -> 0.00442962963 | F52: 9.8 | H52: * Nota 4 - Os 95% restantes do cálculo, a um prazo médio de contrato de 4 anos. Assim, calcula-se 7 dias para o 1º ano de contrato e mais 3 dias para os 3 anos seguintes.
C53: F | D53: Multa do FGTS e Contribuição Social sobre o Aviso Prévio Trabalhado | E53: ='Encargos Sociais'!E41 -> 0.03050515556 | F53: 67.52
D55: TOTAL DE PREVISÃO PARA RESCISÃO | F55: =SUM(F48:F53) -> 140.97
B57: MÓDULO 4 - CUSTO DO PROFISSIONAL AUSENTE | E57: Percentuais | F57: Valor
B58: Submódulo 4.1 - Ausências Legais
C59: A | D59: Férias (Arts. 129 e 130, inc. I, da CLT) | E59: ='Encargos Sociais'!E25 -> 0.09090909091 | F59: =ROUND(E59*$F$16,2) -> 201.22 | H59: * Nota 1 - As alíneas “A” a “F” referem-se somente ao custo que será pago ao repositor pelos dias trabalhados quando da necessidade de substituir a mão de obra alocada na prestação do serviço.
C60: B | D60: Ausências Legais (Arts. 131 e 473 da CLT) | E60: ='Encargos Sociais'!E26 -> 0.007936507937 | F60: 17.57 | H60: * Nota 2 - Adotou-se a estimativa do SINAPI de 2 dias por ano.
C61: C | D61: Licença-Paternidade (Art. 7º, XIX, e art. 10, §1º, do ADCT, CF/1988 e Art. 1º, II, da Lei 11.770/2008) | E61: ='Encargos Sociais'!E27 -> 0.0008277777778 | F61: 1.83 | H61: * Nota 3 - Utilizada a proporção de 50% para homens, 5 dias de afastamento, e a probabilidade de um trabalhador requerer a Licença Paternidade em 5,22%, conforme SINAPI (citando dados da PNAD 2015)
C62: D | D62: Ausência por Acidente de Trabalho (Art. 131, III, da CLT) | E62: ='Encargos Sociais'!E28 -> 0.0008541666667 | F62: 1.89 | H62: * Nota 4 - Utilzada a estatística de 1,96% dos contribuintes beneficiados com a emissão do auxílio, conforme Anuário Estatístico da Previdência Social. Afastamento de 15 dias a cargo da empresa.
C63: E | D63: Afastamento Maternidade (Art. 71 da Lei nº 8.213/1991) | E63: ='Encargos Sociais'!E29 -> 0.003292592593 | F63: 7.29 | H63: * Nota 5 - Utilizada a proporção de 50% para mulheres, 180 dias de afastamento, e a probabilidade de uma trabalhadora requerer a Licença Maternidade em 4,91%, conforme SINAPI (citando dados do IBGE 2016)
C64: F | D64: Auxílio Enfermidade - Doença (Art. 59 da Lei nº 8.213/1991) | E64: ='Encargos Sociais'!E30 -> 0.007122222222 | F64: 15.76 | H64: * Nota 6 - Utilizada a estatística de 3,37% dos contribuintes beneficiados com o auxílio, conforme Anuário Estatístico da Previdência Social de 2015 (acrescidos de 2 dias ao ano, para os quais o trabalhador nem requer o benefício da Previdência - conforme SINAPI)
B66: Submódulo 4.2 - Intrajornada
C67: A | D67: Intervalo para repouso ou alimentação | E67: ='Encargos Sociais'!E33 -> 0 | F67: =ROUND(E67*$F$16,2) -> 0
D69: QUADRO-RESUMO DO MÓDULO 4 | F69: Valor
D70: 4.1 - Ausências Legais | E70: =SUM(E59:E64) -> 0.1109423581 | F70: =ROUND(E70*$F$16,2) -> 245.56
D71: 4.2 - Intrajornada | E71: =E67 -> 0 | F71: =ROUND(E71*$F$16,2) -> 0
D73: TOTAL DE PREVISÃO PARA RESCISÃO E INTERVALO INTRAJORNADA | F73: =SUM(F70:F71) -> 245.56
B75: MÓDULO 5 - INSUMOS DIVERSOS | F75: Valor
C76: A | D76: Uniformes - aquisição | F76: =ROUND(HLOOKUP($B$5,Uniformes!L4:EA6,3)/12,2) -> 43.27
C77: B | D77: Materiais de consumo relacionados ao posto - aquisição | F77: =ROUND(HLOOKUP(B5,'Mat Cons'!I11:DX13,3)/12,2) -> 0
C78: C | D78: Materiais permanentes relacionados ao posto - remuneração da sua depreciação / manutenção | F78: =HLOOKUP(B5,'Mat Perm'!Q11:EF13,3) -> 0
C79: D | D79: Equipamentos relacionados ao posto - remuneração da sua depreciação / manutenção | F79: =HLOOKUP(B5,'Equip Rel'!Q11:EF13,3) -> 0
C80: E | D80: Equipamentos de Proteção Individual - EPI - aquisição | F80: =ROUND(HLOOKUP(B5,EPI!J4:DY6,3)/12,2) -> 39.08
D82: TOTAL DE INSUMOS DIVERSOS | F82: =SUM(F76:F81) -> 82.35 | H82: * Nota - Valores mensais por empregado
B84: MÓDULO 6 - CUSTOS INDIRETOS, TRIBUTOS E LUCRO - BDI | E84: Percentuais | F84: Valor
C85: A | D85: Custos Indiretos | E85: =BDI!E6 -> 0.027
C86: A.1 | D86: Administração Central | E86: =BDI!E7 -> 0.0216
C87: A.2 | D87: Seguros, Garantias e Riscos | E87: =BDI!E8 -> 0.0054
C88: B | D88: Lucro | E88: =BDI!E10 -> 0.0334
C89: C | D89: Tributos | E89: =SUM(E90:E91) -> 0.124
C90: C.1 | D90: Tributos Federais (COFINS, PIS e CPRB) | E90: =BDI!E18 -> 0.074
C91: C.2 | D91: Tributos Distritais (ISS) | E91: =BDI!E23 -> 0.05 | H91: * Nota - Utilizou-se o indicado pelo Sindicato da Arquitetura e da Engenharia (Sinaenco, 2008, p. 22), que adota um percentual redutor de 20% no cálculo dos custos tributários relativos às contribuições PIS e COFINS
C92: D | D92: Despesas Financeiras | E92: =BDI!E13 -> 0.005639499547
D94: TOTAL DE BDI | E94: =BDI!E26 -> 0.2184 | F94: =E94*E102 -> 1068.504528
D96: QUADRO-RESUMO DO CUSTO MENSAL POR EMPREGADO - SEM O 13º | E96: Valor
D97: Módulo 1 - Composição da Remuneração | E97: =F16 -> 2213.41
D98: Módulo 2 - Encargos e Benefícios Anuais, Mensais e Diários | E98: =F45 -> 2210.13
D99: Módulo 3 - Provisão para Rescisão | E99: =F55 -> 140.97
D100: Módulo 4 - Custo de Reposição do Profissional Ausente | E100: =F73 -> 245.56
D101: Módulo 5 - Insumos Diversos | E101: =F82 -> 82.35
D102: SUBTOTAL (A+B+C+D+E) | E102: =SUM(E97:E101) -> 4892.42
D103: Módulo 6 - Custos Indiretos, Tributos e Lucro | E103: =F94 -> 1068.504528
D105: TOTAL DO POSTO | E105: =SUM(E102:E103) -> 5960.924528
B107: MÓDULO 7 - DESTAQUE DO MÓDULO 2 - 13º SALÁRIO | E107: Percentuais | F107: Valor
C108: A | D108: 13º Salário | E108: ='Encargos Sociais'!E32 -> 0.08333333333 | F108: =ROUND(E108*F$16,2) -> 184.45
C109: B | D109: Encargos Sociais sobre o 13º Salário - Taxa calculada no SUBMÓDULO 2.2 | E109: =SUM($E$24:$E$32) -> 0.368 | F109: =ROUND(E109*$F$108,2) -> 67.88 | H109: * Nota 1 - Provisiona-se, mensalmente, o proporcional a 1/12 dos valores referentes a gratificação natalina e adicional de férias.
C110: C | D110: BDI sobre o 13º Salário - Taxa calculada no MÓDULO 6 | E110: =E94 -> 0.2184 | F110: =ROUND(E110*($F$108+$F$109),2) -> 55.11
D112: TOTAL DO DESTAQUE DO 13º SALÁRIO | F112: =SUM(F108:F110) -> 307.44
D114: QUADRO-RESUMO DO CUSTO MENSAL POR EMPREGADO | E114: Valor
D115: Custo total - sem o 13º Salário | E115: =E105 -> 5960.924528
D116: Destaque do 13º Salário (valor mensal) | E116: =F112 -> 307.44
D118: TOTAL DO POSTO | E118: =E115+E116 -> 6268.364528

Sheet Dados Gerais
B3: INFORMAÇÕES DE ENTRADA
D5: 1 | E5: 2 | F5: 3 | G5: 4 | H5: 5 | I5: 6 | J5: 7 | K5: 8 | L5: 9 | M5: 10 | N5: 11 | O5: 12 | P5: 13 | Q5: 14 | R5: 15 | S5: 16 | T5: 17 | U5: 18 | V5: 19 | W5: 20 | X5: 21 | Y5: 22 | Z5: 23 | AA5: 24 | AB5: 25 | AC5: 26 | AD5: 27 | AE5: 28 | AF5: 29 | AG5: 30 | AH5: 31 | AI5: 32 | AJ5: 33 | AK5: 34 | AL5: 35 | AM5: 36 | AN5: 37 | AO5: 38 | AP5: 39 | AQ5: 40 | AR5: 41 | AS5: 42 | AT5: 43 | AU5: 44 | AV5: 45 | AW5: 46 | AX5: 47 | AY5: 48 | AZ5: 49 | BA5: 50 | BB5: 51 | BC5: 52 | BD5: 53 | BE5: 54 | BF5: 55 | BG5: 56 | BH5: 57 | BI5: 58 | BJ5: 59 | BK5: 60
D6: CARGO 1 | E6: CARGO 2 | F6: CARGO 3 | G6: CARGO 4 | H6: CARGO 5 | I6: CARGO 6 | J6: CARGO 7 | K6: CARGO 8 | L6: CARGO 9 | M6: CARGO 10 | N6: CARGO 11 | O6: CARGO 12 | P6: CARGO 13 | Q6: CARGO 14 | R6: CARGO 15 | S6: CARGO 16 | T6: CARGO 17 | U6: CARGO 18 | V6: CARGO 19 | W6: CARGO 20 | X6: CARGO 21 | Y6: CARGO 22 | Z6: CARGO 23 | AA6: CARGO 24 | AB6: CARGO 25 | AC6: CARGO 26 | AD6: CARGO 27 | AE6: CARGO 28 | AF6: CARGO 29 | AG6: CARGO 30 | AH6: CARGO 31 | AI6: CARGO 32 | AJ6: CARGO 33 | AK6: CARGO 34 | AL6: CARGO 35 | AM6: CARGO 36 | AN6: CARGO 37 | AO6: CARGO 38 | AP6: CARGO 39 | AQ6: CARGO 40 | AR6: CARGO 41 | AS6: CARGO 42 | AT6: CARGO 43 | AU6: CARGO 44 | AV6: CARGO 45 | AW6: CARGO 46 | AX6: CARGO 47 | AY6: CARGO 48 | AZ6: CARGO 49 | BA6: CARGO 50 | BB6: CARGO 51 | BC6: CARGO 52 | BD6: CARGO 53 | BE6: CARGO 54 | BF6: CARGO 55 | BG6: CARGO 56 | BH6: CARGO 57 | BI6: CARGO 58 | BJ6: CARGO 59 | BK6: CARGO 60
B7: INFORMAÇÕES BÁSICAS
B9: DESCRIÇÃO DOS POSTOS DE SERVIÇO
D10: ENCARREGADO GERAL | E10: ENCARREGADO SETORIAL | F10: ENCARREGADO DE SERVIÇO | G10: ENCARREGADO DE SERVIÇO COM ADICIONAL DE INSALUBRIDADE | H10: AUXILIAR DE ENCARREGADO | I10: ALMOXARIFE | J10: SERVENTE | K10: SERVENTE COM ADICIONAL DE INSALUBRIDADE | L10: SERVENTE COM ADICIONAL DE INSALUBRIDADE E ADICIONAL NOTURNO
B11: REMUNERAÇÕES
D12: 7376.1 | E12: 3951.73 | F12: 3317.57 | G12: =F12 -> 3317.57 | H12: 2244.21 | I12: 2686.07 | J12: 1898.58 | K12: =J12 -> 1898.58 | L12: =K12 -> 1898.58
B13: QUANTIDADE DE POSTOS
D14: 1 | E14: 1 | F14: =15-G14 -> 13 | G14: 2 | H14: 1 | I14: 2 | J14: =178-K14-L14 -> 151 | K14: 25 | L14: 2
B15: JORNADA
C16: HORAS | D16: 220 | E16: =44*5 -> 220 | F16: 220 | G16: 220 | H16: 220 | I16: 220 | J16: 220 | K16: 220 | L16: 220
C17: DIAS/MÊS | D17: 24 | E17: 24 | F17: 24 | G17: 24 | H17: 24 | I17: 24 | J17: 24 | K17: 24 | L17: 24
B18: CCT UTILIZADA
C19: SINDICATOS E REFERÊNCIA | D19: SEAC/DF X SINDISERVIÇOS/DF 2023/2023 Nº DF000037/2023 | E19: SEAC/DF X SINDISERVIÇOS/DF 2023/2023 Nº DF000037/2023 | F19: SEAC/DF X SINDISERVIÇOS/DF 2023/2023 Nº DF000037/2023 | G19: SEAC/DF X SINDISERVIÇOS/DF 2023/2023 Nº DF000037/2023 | H19: SEAC/DF X SINDISERVIÇOS/DF 2023/2023 Nº DF000037/2023 | I19: SEAC/DF X SINDISERVIÇOS/DF 2023/2023 Nº DF000037/2023 | J19: SEAC/DF X SINDISERVIÇOS/DF 2023/2023 Nº DF000037/2023 | K19: SEAC/DF X SINDISERVIÇOS/DF 2023/2023 Nº DF000037/2023 | L19: SEAC/DF X SINDISERVIÇOS/DF 2023/2023 Nº DF000037/2023
C20: DATA-BASE | D20: 2023-01-01 | E20: 2023-01-01 | F20: 2023-01-01 | G20: 2023-01-01 | H20: 2023-01-01 | I20: 2023-01-01 | J20: 2023-01-01 | K20: 2023-01-01 | L20: 2023-01-01
B22: ADICIONAIS LEGAIS E GRATIFICAÇÕES
B24: PERICULOSIDADE (PERCENTUAL)
D25: 0 | E25: 0 | F25: 0 | G25: 0 | H25: 0 | I25: 0 | J25: 0 | K25: 0 | L25: 0
B26: BASE DE CÁLCULO DO ADICIONAL DE PERICULOSIDADE (SALÁRIO BÁSICO)
D27: =D12 -> 7376.1 | E27: 2386.75 | F27: 2386.75 | G27: 2386.75 | H27: 2386.75 | I27: 2386.75 | J27: 2386.75 | K27: 2386.75 | L27: 2386.75
B28: VALOR MENSAL DO ADICIONAL DE PERICULOSIDADE
D29: =ROUND(D25*D12,2) -> 0 | E29: 0 | F29: 0 | G29: 0 | H29: 0 | I29: 0 | J29: 0 | K29: 0 | L29: 0
B30: INSALUBRIDADE (PERCENTUAL)
D31: 0 | E31: 0 | F31: 0 | G31: 0.2 | H31: 0 | I31: 0 | J31: 0 | K31: 0.2 | L31: 0.2
B32: BASE DE CÁLCULO DO ADICIONAL DE INSALUBRIDADE (SALÁRIO MÍNIMO LEGAL)
D33: 1302 | E33: =D33 -> 1302 | F33: =E33 -> 1302 | G33: 1302 | H33: 1302 | I33: 1302 | J33: 1302 | K33: 1302 | L33: 1302
B34: VALOR MENSAL DO ADICIONAL DE INSALUBRIDADE
D35: =D31*D33 -> 0 | E35: 0 | F35: 0 | G35: =G31*G33 -> 260.4 | H35: =H31*H33 -> 0 | I35: 0 | J35: 0 | K35: =K31*K33 -> 260.4 | L35: =L31*L33 -> 260.4
B36: GRATIFICAÇÃO - VALOR MENSAL (R$)
D37: 0 | E37: 0 | F37: 0 | G37: 0 | H37: 0 | I37: 0 | J37: 0 | K37: 0 | L37: 0
B39: ADICIONAL NOTURNO
B41: INCIDÊNCIA (PERCENTUAL CONFORME CCT)
D42: 0.2 | E42: =D42 -> 0.2 | F42: =E42 -> 0.2 | G42: 0.2 | H42: 0.2 | I42: 0.2 | J42: 0.2 | K42: 0.2 | L42: 0.2
B43: HORAS REAIS POR DIA
D44: 0 | E44: 0 | F44: 0 | G44: 0 | H44: 0 | I44: 0 | J44: 0 | K44: 0 | L44: =7*52/360 -> 1.011111111
B45: HORAS FICTAS POR DIA
D46: =D44*8/7 -> 0 | E46: 0 | F46: =F44*8/7 -> 0 | G46: =G44*8/7 -> 0 | H46: 0 | I46: 0 | J46: 0 | K46: =K44*8/7 -> 0 | L46: 1.155555556
B47: BASE DE CÁLCULO DO ADICIONAL NOTURNO (INCLUINDO ADICIONAIS E GRATIFICAÇÕES)
D48: =D12+D29+D35+D37 -> 7376.1 | E48: =E12+E29+E35+E37 -> 3951.73 | F48: =F12+F29+F35+F37 -> 3317.57 | G48: =G12+G29+G35+G37 -> 3577.97 | H48: =H12+H29+H35+H37 -> 2244.21 | I48: 2686.07 | J48: 1898.58 | K48: =K12+K29+K35+K37 -> 2158.98 | L48: =L12+L29+L35+L37 -> 2158.98
B49: VALOR MENSAL DO ADICIONAL NOTURNO (HORA NORMAL + HORA REDUZIDA) - POR POSTO
D50: =ROUND(D46*D17*D42*D48/D16,2) -> 0 | E50: =ROUND(E46*E17*E42*E48/E16,2) -> 0 | F50: =ROUND(F46*F17*F42*F48/F16,2) -> 0 | G50: =ROUND(G46*G17*G42*G48/G16,2) -> 0 | H50: 0 | I50: 0 | J50: 0 | K50: =ROUND(K46*K17*K42*K48/K16,2) -> 0 | L50: =ROUND(L46*L17*L42*L48/L16,2) -> 54.43
B52: ADICIONAL DE HORA EXTRA
B54: INCIDÊNCIA (PERCENTUAL 1)
D55: 0.5 | E55: 0.5 | F55: 0.5 | G55: 0.5 | H55: 0.5 | I55: 0.5 | J55: 0.5 | K55: 0.5 | L55: 0.5
B56: HORAS EXTRAS POR MÊS (PERCENTUAL 1)
D57: 0 | E57: 0 | F57: 0 | G57: 0 | H57: 0 | I57: 0 | J57: 0 | K57: 0 | L57: 0
B58: VALOR MENSAL DO ADICIONAL DE HORAS EXTRAS (PERCENTUAL 1) - POR POSTO
D59: =ROUND(D57*D55*D12/D16,2) -> 0 | E59: 0 | F59: 0 | G59: 0 | H59: 0 | I59: 0 | J59: 0 | K59: 0 | L59: 0
B60: INCIDÊNCIA (PERCENTUAL 2)
D61: 1 | E61: 1 | F61: 1 | G61: 1 | H61: 1 | I61: 1 | J61: 1 | K61: 1 | L61: 1
B62: HORAS EXTRAS POR MÊS (PERCENTUAL 2)
D63: 0 | E63: 0 | F63: 0 | G63: 0 | H63: 0 | I63: 0 | J63: 0 | K63: 0 | L63: 0
B64: VALOR MENSAL DO ADICIONAL DE HORAS EXTRAS (PERCENTUAL 2) - POR POSTO
D65: =ROUND(D63*D61*D12/D16,2) -> 0 | E65: 0 | F65: 0 | G65: 0 | H65: 0 | I65: 0 | J65: 0 | K65: 0 | L65: 0
B66: TOTAL MENSAL DOS ADICIONAIS DE HORAS EXTRAS - POR POSTO
D67: =D65+D59 -> 0 | E67: 0 | F67: 0 | G67: 0 | H67: 0 | I67: 0 | J67: 0 | K67: 0 | L67: 0
B69: BENEFÍCIOS COMUNS - AUXÍLIO TRANSPORTE
B71: DISTRIBUIÇÃO ESTIMADA DE PROCEDÊNCIA
C72: Cidade-satélite | D72: 0.68 | E72: 0.68 | F72: 0.68 | G72: 0.68 | H72: 0.68 | I72: 0.68 | J72: 0.68 | K72: 0.68 | L72: 0.68
C73: Região do entorno | D73: 0.32 | E73: 0.32 | F73: 0.32 | G73: 0.32 | H73: 0.32 | I73: 0.32 | J73: 0.32 | K73: 0.32 | L73: 0.32
C74: Esplanada - apenas para os que vêm do entorno | D74: =D73 -> 0.32 | E74: =E73 -> 0.32 | F74: 0.32 | G74: =G73 -> 0.32 | H74: 0.32 | I74: 0.32 | J74: 0.32 | K74: =K73 -> 0.32 | L74: 0.32
B75: VALORES DOS VALES
C76: Cidade-satélite | D76: 5.5 | E76: =D76 -> 5.5 | F76: =E76 -> 5.5 | G76: =F76 -> 5.5 | H76: =G76 -> 5.5 | I76: =H76 -> 5.5 | J76: =I76 -> 5.5 | K76: =J76 -> 5.5 | L76: =K76 -> 5.5
C77: Região do entorno | D77: 8.7 | E77: 8.7 | F77: 8.7 | G77: 8.7 | H77: 8.7 | I77: 8.7 | J77: 8.7 | K77: 8.7 | L77: 8.7
C78: Esplanada | D78: 2.75 | E78: 2.75 | F78: 2.75 | G78: 2.75 | H78: 2.75 | I78: 2.75 | J78: 2.75 | K78: 2.75 | L78: 2.75
B79: VALOR MENSAL BRUTO DE PAGAMENTO - POR POSTO
D80: =ROUND((D72*D76+D73*D77+D74*D78)*2*D17,2) -> 355.39 | E80: =ROUND((E72*E76+E73*E77+E74*E78)*2*E17,2) -> 355.39 | F80: 355.39 | G80: =ROUND((G72*G76+G73*G77+G74*G78)*2*G17,2) -> 355.39 | H80: 355.39 | I80: 355.39 | J80: 355.39 | K80: =ROUND((K72*K76+K73*K77+K74*K78)*2*K17,2) -> 355.39 | L80: 355.39
B81: PERCENTUAL DE DESCONTO
D82: 0.06 | E82: 0.06 | F82: 0.06 | G82: 0.06 | H82: 0.06 | I82: 0.06 | J82: 0.06 | K82: 0.06 | L82: 0.06
B83: VALOR MENSAL DO DESCONTO - POR POSTO
D84: =ROUND(D82*D12,2) -> 442.57 | E84: =ROUND(E82*E12,2) -> 237.1 | F84: =ROUND(F82*F12,2) -> 199.05 | G84: =ROUND(G82*G12,2) -> 199.05 | H84: 134.65 | I84: 161.16 | J84: 113.91 | K84: =ROUND(K82*K12,2) -> 113.91 | L84: 113.91
B85: VALOR MENSAL LÍQUIDO DO VALE TRANSPORTE - POR POSTO
D86: =IF(D80>D84,D80-D84,0) -> 0 | E86: 118.29 | F86: =IF(F80>F84,F80-F84,0) -> 156.34 | G86: =IF(G80>G84,G80-G84,0) -> 156.34 | H86: 220.74 | I86: 194.23 | J86: 241.48 | K86: =IF(K80>K84,K80-K84,0) -> 241.48 | L86: 241.48
D87: =D86*D14 -> 0 | E87: 2962.54 | F87: 2962.54 | G87: 2962.54 | H87: 2962.54 | I87: 2962.54 | J87: 2962.54 | K87: 2962.54 | L87: 2962.54
B88: BENEFÍCIOS COMUNS - AUXÍLIO ALIMENTAÇÃO
C90: VALOR CCT | D90: 40.5 | E90: =D90 -> 40.5 | F90: =E90 -> 40.5 | G90: 40.5 | H90: 40.5 | I90: 40.5 | J90: 40.5 | K90: 40.5 | L90: 40.5
C91: VALOR CD | D91: 35 | E91: 35 | F91: 35 | G91: 35 | H91: 35 | I91: 35 | J91: 35 | K91: 35 | L91: 35
B92: VALOR MENSAL DO AUXÍLIO ALIMENTAÇÃO - POR POSTO
D93: =ROUND(LARGE(D90:D91,1)*D17,2) -> 972 | E93: =ROUND(LARGE(E90:E91,1)*E17,2) -> 972 | F93: 972 | G93: =ROUND(LARGE(G90:G91,1)*G17,2) -> 972 | H93: 972 | I93: 972 | J93: 972 | K93: =ROUND(LARGE(K90:K91,1)*K17,2) -> 972 | L93: 972
D94: =D93*D14 -> 972 | E94: 10339.56 | F94: 10339.56 | G94: 10339.56 | H94: 10339.56 | I94: 10339.56 | J94: 10339.56 | K94: 10339.56 | L94: 10339.56
B95: BENEFÍCIOS ESPECIAIS - ASSISTÊNCIA MÉDICA E FAMILIAR
C97: OBRIGAÇÃO DE PAGTO | D97: NÃO | E97: NÃO | F97: NÃO | G97: NÃO | H97: NÃO | I97: NÃO | J97: NÃO | K97: NÃO | L97: NÃO
C98: VALOR CCT | D98: 0 | E98: 0 | F98: 0 | G98: 0 | H98: 0 | I98: 0 | J98: 0 | K98: 0 | L98: 0
C99: VALOR MERCADO | D99: 0 | E99: 0 | F99: 0 | G99: 0 | H99: 0 | I99: 0 | J99: 0 | K99: 0 | L99: 0
B100: VALOR MENSAL DO AUXÍLIO ESPECIAL - ASSISTÊNCIA MÉDICA E FAMILIAR - POR POSTO
D101: =IF(D97="SIM",ROUND(SMALL(D98:D99,1),2),0) -> 0 | E101: 0 | F101: =IF(F97="SIM",ROUND(SMALL(F98:F99,1),2),0) -> 0 | G101: =IF(G97="SIM",ROUND(SMALL(G98:G99,1),2),0) -> 0 | H101: 0 | I101: 0 | J101: 0 | K101: =IF(K97="SIM",ROUND(SMALL(K98:K99,1),2),0) -> 0 | L101: 0
B103: BENEFÍCIOS ESPECIAIS - SEGURO DE VIDA E AUXÍLIO-FUNERAL, AUX ODONT, AUX CRECHE
B105: SEGURO DE VIDA E AUXÍLIO FUNERAL
C106: OBRIGAÇÃO DE PAGTO | D106: NÃO | E106: NÃO | F106: NÃO | G106: NÃO | H106: NÃO | I106: NÃO | J106: NÃO | K106: NÃO | L106: NÃO
C107: VALOR CCT | D107: 0 | E107: 0 | F107: 0 | G107: 0 | H107: 0 | I107: 0 | J107: 0 | K107: 0 | L107: 0
C108: VALOR MERCADO | D108: 0 | E108: 0 | F108: 0 | G108: 0 | H108: 0 | I108: 0 | J108: 0 | K108: 0 | L108: 0
B109: VALOR MENSAL DO AUXÍLIO ESPECIAL - SEGURO DE VIDA E AUXÍLIO FUNERAL - POR POSTO
D110: =IF(D106="SIM",ROUND(SMALL(D107:D108,1),2),0) -> 0 | E110: 0 | F110: =IF(F106="SIM",ROUND(SMALL(F107:F108,1),2),0) -> 0 | G110: =IF(G106="SIM",ROUND(SMALL(G107:G108,1),2),0) -> 0 | H110: 0 | I110: 0 | J110: 0 | K110: =IF(K106="SIM",ROUND(SMALL(K107:K108,1),2),0) -> 0 | L110: 0
B111: AUXÍLIO ODONTOLÓGICO
C112: OBRIGAÇÃO DE PAGTO | D112: NÃO | E112: NÃO | F112: NÃO | G112: NÃO | H112: NÃO | I112: NÃO | J112: NÃO | K112: NÃO | L112: NÃO
C113: VALOR CCT | D113: 0 | E113: 0 | F113: 0 | G113: 0 | H113: 0 | I113: 0 | J113: 0 | K113: 0 | L113: 0
C114: VALOR MERCADO | D114: 0 | E114: 0 | F114: 0 | G114: 0 | H114: 0 | I114: 0 | J114: 0 | K114: 0 | L114: 0
B115: VALOR MENSAL DO AUXÍLIO ODONTOLÓGICO - POR POSTO
D116: =IF(D112="SIM",ROUND(SMALL(D113:D114,1),2)*D17,0) -> 0 | E116: 0 | F116: 0 | G116: 0 | H116: 0 | I116: 0 | J116: 0 | K116: 0 | L116: 0
B117: TOTAL MENSAL DOS AUXÍLIOS ESPECIAIS - POR POSTO
D118: =D116+D110 -> 0 | E118: 0 | F118: =F116+F110 -> 0 | G118: =G116+G110 -> 0 | H118: 0 | I118: 0 | J118: 0 | K118: =K116+K110 -> 0 | L118: 0

Sheet Encargos Sociais
B4: ENCARGOS SOCIAIS SOBRE A MÃO DE OBRA
E5: Percentuais
B7: Referência:
C8: SINAPI OUT/2018
B10: Categorias:
C11: TODAS
B13: GRUPO A: Encargos Sociais Básicos - Previdenciários (GPS), Fundo de Garantia por Tempo de Serviço (FGTS) e Outras Contribuições | E13: =ROUND(SUM(E14:E22),4) -> 0.368
C14: A | D14: INSS (art. 22, inciso I, Lei nº 8.212/91) | E14: 0.2
C15: B | D15: Salário Educação (art. 3º, inciso I, Decreto nº 87.043/82) | E15: 0.025
C16: C | D16: SAT/RAT (art. 22, II, Lei 8.212/91 e Anexo V, Decreto 6.042/07) - Enquadramento 8121-4/00 | E16: 0.03
C17: D | D17: SESC ou SESI (art. 30, Lei nº 8.036/90 e art. 1º, Lei 8.154/90) | E17: 0.015
C18: E | D18: SENAI ou SENAC (Decreto nº 2.318/86) | E18: 0.01
C19: F | D19: SEBRAE (§ 3º, art. 8º, Lei 8.029/90, alterada pela Lei nº 8.154/90) | E19: 0.006 | G19: * Nota 1 - Os percentuais dos encargos previdenciários, do FGTS e demais contribuições são estabelecidos por legislação vigente.
C20: G | D20: INCRA (art. 1º, I, Decreto Lei 1.146/70 e Lei 7.787, de 30/06/89) | E20: 0.002 | G20: * Nota 2 - O SAT, a depender do grau de risco do serviço, irá variar entre 1%, para risco leve, de 2%, para risco médio, e de 3% para risco grave.
C21: H | D21: FGTS (Lei Complementar nº 110/01 e art. 30, Lei nº 8.036/90) | E21: 0.08 | G21: * Nota 3 - Os percentuais do Submódulo 2.2 incidem sobre o Módulo 1, o Submódulo 2.1, o Módulo 3, o Módulo 4 e o Módulo 6.
C22: I | D22: SECONCI (Convenções Coletivas de Trabalho da construção) | E22: 0
B24: GRUPO B: Encargos Sociais Relacionados ao Custo do Profissional Ausente - Ausências Legais | E24: =ROUND(SUM(E25:E33),4) -> 0.2246
C25: A | D25: Férias (Arts. 129 e 130, inc. I, da CLT) | E25: =1/11 -> 0.09090909091 | G25: Nota 1 - As alíneas “A” a “F” referem-se ao custo que será pago pela empresa ao profissional ausente (férias e ausências legais)
C26: B | D26: Ausências Legais (Arts. 131 e 473 da CLT) | E26: =2/252 -> 0.007936507937 | G26: * Nota 2 - Adotou-se a estimativa do SINAPI de 2 dias por ano. Em 252 dias úteis por ano.
C27: C | D27: Licença-Paternidade (Art. 7º, XIX, e art. 10, §1º, do ADCT, CF/1988 e Art. 1º, II, da Lei 11.770/2008) | E27: =(5/(30*12))*0.0596 -> 0.0008277777778 | G27: * Nota 3 - Utilizada a proporção de 50% para homens, 5 dias de afastamento, e a probabilidade de um trabalhador requerer a Licença Paternidade em 5,96%, conforme SINAPI (Anuário Estatístico da Previdência Social - 2017)
C28: D | D28: Ausência por Acidente de Trabalho (Art. 131, III, da CLT) | E28: =0.0205*15/360 -> 0.0008541666667 | G28: * Nota 4 - Utilzada a estatística de 2,05% dos contribuintes beneficiados com a emissão do auxílio, conforme Anuário Estatístico da Previdência Social. Afastamento de 15 dias a cargo da empresa.
C29: E | D29: Afastamento Maternidade (Art. 71 da Lei nº 8.213/1991) | E29: =0.0508*(120/360)*(30+30*4/3)/360 -> 0.003292592593 | G29: * Nota 5 - Utilizada a estimativa de 120 dias de afastamento, e a probabilidade de uma trabalhadora requerer a Licença Maternidade em 5,08%, conforme SINAPI (citando dados do IBGE 2017) - A própria previdência paga o benefício pelos 120 dias, contudo o empregador arca com o 13º e com as férias
C30: F | D30: Auxílio Enfermidade - Doença (Art. 59 da Lei nº 8.213/1991) | E30: =((0.0376*15)+2)/360 -> 0.007122222222 | G30: * Nota 6 - Utilizada a estatística de 3,76% dos contribuintes beneficiados com o auxílio, conforme Anuário Estatístico da Previdência Social de 2016 (acrescidos de 2 dias ao ano, para os quais o trabalhador nem requer o benefício da Previdência - conforme SINAPI)
C31: G | D31: Adicional de Férias (componente do Submódulo 2.1) | E31: =1/3*1/11 -> 0.0303030303 | G31: * Nota 7 - O adicional de férias contido no Submódulo 2.1 corresponde a 1/3 da remuneração que, por sua vez, é dividida por 11 contome Nota 1.
C32: H | D32: 13º Salário (destacado na planilha de custos) | E32: =1/12 -> 0.08333333333 | G32: * Nota 8 - Provisiona-se, mensalmente, o proporcional a 1/12 dos valores referentes a gratificação natalina e adicional de férias.
C33: I | D33: Intervalo para repouso ou alimentação (componente do Submódulo 4.2) | E33: 0
B35: GRUPO C: Encargos Sociais Relacionados à Previsão para Rescisão Trabalhista | E35: =ROUND(SUM(E36:E41),4) -> 0.0637
C36: A | D36: Aviso Prévio Indenizado (Art. 7º, inciso XXI, da CF/1988 e arts. 477, 487, §1º, e 491 da CLT) | E36: =0.1*30/360 -> 0.008333333333 | G36: * Nota 1 - Considerou-se demissões de 10% por ano para substituições, a um prazo estimado de contrato de 3 anos. Aviso prévio - 1º ano 30 dias. Considerou-se os 10% demitidos sem justa causa e recebendo aviso indenizado.
C37: B | D37: Incidência do FGTS sobre o Aviso Prévio Indenizado (Súmula 305 TST) | E37: =E21*E36 -> 0.0006666666667
C38: C | D38: Multa do FGTS e Contribuição Social sobre o Aviso Prévio Indenizado (Art. 18, §1º, da Lei 8.036/1990 e art. 1º da LC nº 110/2001) | E38: =(1+1/12+1/12+1/36)*0.4*E21*0.2019 -> 0.007717066667 | G38: * Nota 2 - Incide sobre a Remuneração + 13º salário (1/12) + Férias (1/12) + Adicional de Férias (1/36) x 40% multa para o empregador x 8% FGTS
C39: D | D39: Aviso Prévio Trabalhado (Art. 488, parágrafo único, CLT) | E39: =((7+2*3)*100%/360)/3 -> 0.01203703704 | G39: * Nota 3 - Considerou-se demissões de 100% ao final do contrato, com um prazo médio estimado de 3 anos. Assim, calcula-se 7 dias para o 1º ano de contrato e mais 3 dias para os 2 anos seguintes. Total 13 dias.
C40: E | D40: Incidência de GPS, FGTS e outras contribuições sobre o Aviso Prévio Trabalhado | E40: =E39*E13 -> 0.00442962963
C41: F | D41: Multa do FGTS e Contribuição Social sobre o Aviso Prévio Trabalhado | E41: =(1+1/12+1/12+1/36)*0.4*E21*(1-0.2019) -> 0.03050515556 | G41: * Nota 4 - Incide sobre a Remuneração + 13º salário (1/12) + Férias (1/12) + Adicional de Férias (1/36) x 40% multa para o empregador x 8% FGTS
B43: GRUPO D: Reincidências | E43: =ROUND(SUM(E44:E44),4) -> 0.0827
C44: A | D44: Reincidência do Grupo A sobre o Grupo B | E44: =E13*E24 -> 0.0826528
D46: SOMATÓRIO - ENCARGOS SOCIAIS SOBRE A MÃO DE OBRA | E46: =E43+E35+E24+E13 -> 0.739

Sheet BDI
B3: COMPOSIÇÃO DA TAXA DE CUSTOS INDIRETOS, TRIBUTOS E LUCRO - BDI
B4: APLICAÇÃO: MÃO DE OBRA, 13º, MATERIAIS, EPC E EQUIPAMENTO DE REGISTRO DE FREQUÊNCIA | E4: Percentuais
B6: Custos Indiretos da Contratada | E6: =SUM(E7:E8) -> 0.027
C7: A | D7: Administração Central | E7: 0.0216 | G7: * Nota 1 - O Somatório da Administração Central com o Lucro deve ser inferior a 12%
C8: B | D8: Seguros, Garantias e Riscos | E8: =0.34%+0.2% -> 0.0054 | G8: * Nota 2 - O risco previsto para o porte do contrato majorado em mais 0,20% devido ao não pagamento dos insumos componentes do custo do posto quando da ausência do mesmo.
B10: Lucro | E10: =SUM(E11:E11) -> 0.0334
C11: A | D11: Lucro Real sobre os Custos Administrados | E11: 0.0334
B13: Despesas Financeiras | E13: =E14 -> 0.005639499547
C14: A | D14: Cálculo Baseado no Prazo para a Restituição dos Desembolsos Realizados pelo Contratado e na Taxa de Retorno Arbitrada | E14: =(1+E16)^(E15/252)-1 -> 0.005639499547 | G14: * Nota 1 - DF = [(1+TR)^(DU/252)]/100
C15: A.1 | D15: Dias Úteis Considerados | E15: 11 | G15: * Nota 2 - Diferença de dias entre o desembolso, pelo contratado, e o pagamento, pela Câmara
C16: A.2 | D16: Taxa de Retorno | E16: 0.1375 | G16: * Nota 3 - A taxa sugerida é a meta da SELIC
B18: Impostos - Tributos Federais | E18: =SUM(E19:E21) -> 0.074
C19: A | D19: Contribuição para o Financiamento da Seguridade Social - COFINS | E19: =0.8*7.6% -> 0.0608 | G19: * Nota 1 - Redução de 20% considerando as deduções permitidas em Lei, conforme SENGE, citado pelo TCU - Acórdão 2622/2013
C20: B | D20: Programa de Integração Social - PIS | E20: =0.8*1.65% -> 0.0132 | G20: * Nota 2 - Redução de 20% considerando as deduções permitidas em Lei, conforme SENGE, citado pelo TCU - Acórdão 2622/2013
C21: C | D21: Contribuição Previdenciária sobre a Receita Bruta - CPRB | E21: 0 | G21: * Nota 3 - Lei 12.546/2011 - Verificar atualizações e setores beneficiados
B23: Impostos - Tributos Distritais | E23: =SUM(E24:E24) -> 0.05
C24: A | D24: Imposto sobre Serviço de Qualquer Natureza - ISS | E24: 0.05
D26: SOMATÓRIO - ENCARGOS SOCIAIS SOBRE A MÃO DE OBRA | E26: =ROUND((((1+E6)*(1+E10)*(1+E13)/(1-E18-E23))-1),4) -> 0.2184 | G26: * Nota 1 - [(1+AC+SGR)*(1+L)*(1+DF)/(1-CONFINS-PIS-CPRB-ISS)]-1

Sheet Uniformes
B4: UNIFORMES - AQUISIÇÃO | L4: 1 | N4: =L4+1 -> 2 | P4: =N4+1 -> 3 | R4: =P4+1 -> 4 | T4: =R4+1 -> 5 | V4: =T4+1 -> 6 | X4: =V4+1 -> 7 | Z4: =X4+1 -> 8 | AB4: =Z4+1 -> 9 | AD4: =AB4+1 -> 10 | AF4: =AD4+1 -> 11 | AH4: =AF4+1 -> 12 | AJ4: =AH4+1 -> 13 | AL4: =AJ4+1 -> 14 | AN4: =AL4+1 -> 15 | AP4: =AN4+1 -> 16 | AR4: =AP4+1 -> 17 | AT4: =AR4+1 -> 18 | AV4: =AT4+1 -> 19 | AX4: =AV4+1 -> 20 | AZ4: =AX4+1 -> 21 | BB4: =AZ4+1 -> 22 | BD4: =BB4+1 -> 23 | BF4: =BD4+1 -> 24 | BH4: =BF4+1 -> 25 | BJ4: =BH4+1 -> 26 | BL4: =BJ4+1 -> 27 | BN4: =BL4+1 -> 28 | BP4: =BN4+1 -> 29 | BR4: =BP4+1 -> 30 | BT4: =BR4+1 -> 31 | BV4: =BT4+1 -> 32 | BX4: =BV4+1 -> 33 | BZ4: =BX4+1 -> 34 | CB4: =BZ4+1 -> 35 | CD4: =CB4+1 -> 36 | CF4: =CD4+1 -> 37 | CH4: =CF4+1 -> 38 | CJ4: =CH4+1 -> 39 | CL4: =CJ4+1 -> 40 | CN4: =CL4+1 -> 41 | CP4: =CN4+1 -> 42 | CR4: =CP4+1 -> 43 | CT4: =CR4+1 -> 44 | CV4: =CT4+1 -> 45 | CX4: =CV4+1 -> 46 | CZ4: =CX4+1 -> 47 | DB4: =CZ4+1 -> 48 | DD4: =DB4+1 -> 49 | DF4: =DD4+1 -> 50 | DH4: =DF4+1 -> 51 | DJ4: =DH4+1 -> 52 | DL4: =DJ4+1 -> 53 | DN4: =DL4+1 -> 54 | DP4: =DN4+1 -> 55 | DR4: =DP4+1 -> 56 | DT4: =DR4+1 -> 57 | DV4: =DT4+1 -> 58 | DX4: =DV4+1 -> 59 | DZ4: =DX4+1 -> 60
L6: =ROUND(SUM(M5:M114),2) -> 2221 | N6: =ROUND(SUM(O5:O114),2) -> 2221 | P6: =ROUND(SUM(Q5:Q114),2) -> 1401.85 | R6: =ROUND(SUM(S5:S114),2) -> 1401.85 | T6: =ROUND(SUM(U5:U114),2) -> 1401.85 | V6: =ROUND(SUM(W5:W114),2) -> 519.29 | X6: =ROUND(SUM(Y5:Y114),2) -> 519.29 | Z6: =ROUND(SUM(AA5:AA114),2) -> 519.29 | AB6: =ROUND(SUM(AC5:AC114),2) -> 519.29 | AD6: =ROUND(SUM(AE5:AE114),2) -> 0 | AF6: =ROUND(SUM(AG5:AG114),2) -> 0 | AH6: =ROUND(SUM(AI5:AI114),2) -> 0 | AJ6: =ROUND(SUM(AK5:AK114),2) -> 0 | AL6: =ROUND(SUM(AM5:AM114),2) -> 0 | AN6: =ROUND(SUM(AO5:AO114),2) -> 0 | AP6: =ROUND(SUM(AQ5:AQ114),2) -> 0 | AR6: =ROUND(SUM(AS5:AS114),2) -> 0 | AT6: =ROUND(SUM(AU5:AU114),2) -> 0 | AV6: =ROUND(SUM(AW5:AW114),2) -> 0 | AX6: =ROUND(SUM(AY5:AY114),2) -> 0 | AZ6: =ROUND(SUM(BA5:BA114),2) -> 0 | BB6: =ROUND(SUM(BC5:BC114),2) -> 0 | BD6: =ROUND(SUM(BE5:BE114),2) -> 0 | BF6: =ROUND(SUM(BG5:BG114),2) -> 0 | BH6: =ROUND(SUM(BI5:BI114),2) -> 0 | BJ6: =ROUND(SUM(BK5:BK114),2) -> 0 | BL6: =ROUND(SUM(BM5:BM114),2) -> 0 | BN6: =ROUND(SUM(BO5:BO114),2) -> 0 | BP6: =ROUND(SUM(BQ5:BQ114),2) -> 0 | BR6: =ROUND(SUM(BS5:BS114),2) -> 0 | BT6: =ROUND(SUM(BU5:BU114),2) -> 0 | BV6: =ROUND(SUM(BW5:BW114),2) -> 0 | BX6: =ROUND(SUM(BY5:BY114),2) -> 0 | BZ6: =ROUND(SUM(CA5:CA114),2) -> 0 | CB6: =ROUND(SUM(CC5:CC114),2) -> 0 | CD6: =ROUND(SUM(CE5:CE114),2) -> 0 | CF6: =ROUND(SUM(CG5:CG114),2) -> 0 | CH6: =ROUND(SUM(CI5:CI114),2) -> 0 | CJ6: =ROUND(SUM(CK5:CK114),2) -> 0 | CL6: =ROUND(SUM(CM5:CM114),2) -> 0 | CN6: =ROUND(SUM(CO5:CO114),2) -> 0 | CP6: =ROUND(SUM(CQ5:CQ114),2) -> 0 | CR6: =ROUND(SUM(CS5:CS114),2) -> 0 | CT6: =ROUND(SUM(CU5:CU114),2) -> 0 | CV6: =ROUND(SUM(CW5:CW114),2) -> 0 | CX6: =ROUND(SUM(CY5:CY114),2) -> 0 | CZ6: =ROUND(SUM(DA5:DA114),2) -> 0 | DB6: =ROUND(SUM(DC5:DC114),2) -> 0 | DD6: =ROUND(SUM(DE5:DE114),2) -> 0 | DF6: =ROUND(SUM(DG5:DG114),2) -> 0 | DH6: =ROUND(SUM(DI5:DI114),2) -> 0 | DJ6: =ROUND(SUM(DK5:DK114),2) -> 0 | DL6: =ROUND(SUM(DM5:DM114),2) -> 0 | DN6: =ROUND(SUM(DO5:DO114),2) -> 0 | DP6: =ROUND(SUM(DQ5:DQ114),2) -> 0 | DR6: =ROUND(SUM(DS5:DS114),2) -> 0 | DT6: =ROUND(SUM(DU5:DU114),2) -> 0 | DV6: =ROUND(SUM(DW5:DW114),2) -> 0 | DX6: =ROUND(SUM(DY5:DY114),2) -> 0 | DZ6: =ROUND(SUM(EA5:EA114),2) -> 0
C7: CATEGORIAS | I7: QUANTIDADE
L8: =IF($C8=L$4,1,0) -> 0
C9: 1 | D9: =HLOOKUP($C9,'Dados Gerais'!$D$5:$BK$10,6) -> ENCARREGADO GERAL | I9: =HLOOKUP($C9,'Dados Gerais'!$D$5:$BK$14,10) -> 1 | L9: 1 | N9: =IF($C9=N$4,1,0) -> 0 | P9: =IF($C9=P$4,1,0) -> 0 | R9: =IF($C9=R$4,1,0) -> 0 | T9: =IF($C9=T$4,1,0) -> 0 | V9: =IF($C9=V$4,1,0) -> 0 | X9: =IF($C9=X$4,1,0) -> 0 | Z9: =IF($C9=Z$4,1,0) -> 0 | AB9: =IF($C9=AB$4,1,0) -> 0 | AD9: =IF($C9=AD$4,1,0) -> 0 | AF9: =IF($C9=AF$4,1,0) -> 0 | AH9: =IF($C9=AH$4,1,0) -> 0 | AJ9: =IF($C9=AJ$4,1,0) -> 0 | AL9: =IF($C9=AL$4,1,0) -> 0 | AN9: =IF($C9=AN$4,1,0) -> 0 | AP9: =IF($C9=AP$4,1,0) -> 0 | AR9: =IF($C9=AR$4,1,0) -> 0 | AT9: =IF($C9=AT$4,1,0) -> 0 | AV9: =IF($C9=AV$4,1,0) -> 0 | AX9: =IF($C9=AX$4,1,0) -> 0 | AZ9: =IF($C9=AZ$4,1,0) -> 0 | BB9: =IF($C9=BB$4,1,0) -> 0 | BD9: =IF($C9=BD$4,1,0) -> 0 | BF9: =IF($C9=BF$4,1,0) -> 0 | BH9: =IF($C9=BH$4,1,0) -> 0 | BJ9: =IF($C9=BJ$4,1,0) -> 0 | BL9: =IF($C9=BL$4,1,0) -> 0 | BN9: =IF($C9=BN$4,1,0) -> 0 | BP9: =IF($C9=BP$4,1,0) -> 0 | BR9: =IF($C9=BR$4,1,0) -> 0 | BT9: =IF($C9=BT$4,1,0) -> 0 | BV9: =IF($C9=BV$4,1,0) -> 0 | BX9: =IF($C9=BX$4,1,0) -> 0 | BZ9: =IF($C9=BZ$4,1,0) -> 0 | CB9: =IF($C9=CB$4,1,0) -> 0 | CD9: =IF($C9=CD$4,1,0) -> 0 | CF9: =IF($C9=CF$4,1,0) -> 0 | CH9: =IF($C9=CH$4,1,0) -> 0 | CJ9: =IF($C9=CJ$4,1,0) -> 0 | CL9: =IF($C9=CL$4,1,0) -> 0 | CN9: =IF($C9=CN$4,1,0) -> 0 | CP9: =IF($C9=CP$4,1,0) -> 0 | CR9: =IF($C9=CR$4,1,0) -> 0 | CT9: =IF($C9=CT$4,1,0) -> 0 | CV9: =IF($C9=CV$4,1,0) -> 0 | CX9: =IF($C9=CX$4,1,0) -> 0 | CZ9: =IF($C9=CZ$4,1,0) -> 0 | DB9: =IF($C9=DB$4,1,0) -> 0 | DD9: =IF($C9=DD$4,1,0) -> 0 | DF9: =IF($C9=DF$4,1,0) -> 0 | DH9: =IF($C9=DH$4,1,0) -> 0 | DJ9: =IF($C9=DJ$4,1,0) -> 0 | DL9: =IF($C9=DL$4,1,0) -> 0 | DN9: =IF($C9=DN$4,1,0) -> 0 | DP9: =IF($C9=DP$4,1,0) -> 0 | DR9: =IF($C9=DR$4,1,0) -> 0 | DT9: =IF($C9=DT$4,1,0) -> 0 | DV9: =IF($C9=DV$4,1,0) -> 0 | DX9: =IF($C9=DX$4,1,0) -> 0 | DZ9: =IF($C9=DZ$4,1,0) -> 0
C10: 2 | D10: =HLOOKUP($C10,'Dados Gerais'!$D$5:$BK$10,6) -> ENCARREGADO SETORIAL | I10: =HLOOKUP($C10,'Dados Gerais'!$D$5:$BK$14,10) -> 1 | L10: =IF($C10=L$4,1,0) -> 0 | N10: 1 | P10: 0 | R10: 0 | T10: 0 | V10: 0 | X10: 0 | Z10: 0 | AB10: 0 | AD10: 0 | AF10: 0 | AH10: 0 | AJ10: 0 | AL10: 0 | AN10: 0 | AP10: 0 | AR10: 0 | AT10: 0 | AV10: 0 | AX10: 0 | AZ10: 0 | BB10: 0 | BD10: 0 | BF10: 0 | BH10: 0 | BJ10: 0 | BL10: 0 | BN10: 0 | BP10: 0 | BR10: 0 | BT10: 0 | BV10: 0 | BX10: 0 | BZ10: 0 | CB10: 0 | CD10: 0 | CF10: 0 | CH10: 0 | CJ10: 0 | CL10: 0 | CN10: 0 | CP10: 0 | CR10: 0 | CT10: 0 | CV10: 0 | CX10: 0 | CZ10: 0 | DB10: 0 | DD10: 0 | DF10: 0 | DH10: 0 | DJ10: 0 | DL10: 0 | DN10: 0 | DP10: 0 | DR10: 0 | DT10: 0 | DV10: 0 | DX10: 0 | DZ10: 0
L11: 0
C13: ITEM | D13: DESCRIÇÃO | E13: QUANT ANUAL POR POSTO | F13: % ESTIMADO POR GÊNERO | G13: Nº DE POSTOS | H13: QUANT ANUAL TOTAL ESTIMADA | I13: VALOR
M14: =IF(SUM(L$8:L$11)>0,$E14*$I14,0) -> 0 | O14: =IF(SUM(N$8:N$11)>0,$E14*$I14,0) -> 0 | Q14: =IF(SUM(P$8:P$11)>0,$E14*$I14,0) -> 0 | S14: =IF(SUM(R$8:R$11)>0,$E14*$I14,0) -> 0 | U14: =IF(SUM(T$8:T$11)>0,$E14*$I14,0) -> 0 | W14: =IF(SUM(V$8:V$11)>0,$E14*$I14,0) -> 0 | Y14: =IF(SUM(X$8:X$11)>0,$E14*$I14,0) -> 0 | AA14: =IF(SUM(Z$8:Z$11)>0,$E14*$I14,0) -> 0 | AC14: =IF(SUM(AB$8:AB$11)>0,$E14*$I14,0) -> 0 | AE14: =IF(SUM(AD$8:AD$11)>0,$E14*$I14,0) -> 0 | AG14: =IF(SUM(AF$8:AF$11)>0,$E14*$I14,0) -> 0 | AI14: =IF(SUM(AH$8:AH$11)>0,$E14*$I14,0) -> 0 | AK14: =IF(SUM(AJ$8:AJ$11)>0,$E14*$I14,0) -> 0 | AM14: =IF(SUM(AL$8:AL$11)>0,$E14*$I14,0) -> 0 | AO14: =IF(SUM(AN$8:AN$11)>0,$E14*$I14,0) -> 0 | AQ14: =IF(SUM(AP$8:AP$11)>0,$E14*$I14,0) -> 0 | AS14: =IF(SUM(AR$8:AR$11)>0,$E14*$I14,0) -> 0 | AU14: =IF(SUM(AT$8:AT$11)>0,$E14*$I14,0) -> 0 | AW14: =IF(SUM(AV$8:AV$11)>0,$E14*$I14,0) -> 0 | AY14: =IF(SUM(AX$8:AX$11)>0,$E14*$I14,0) -> 0 | BA14: =IF(SUM(AZ$8:AZ$11)>0,$E14*$I14,0) -> 0 | BC14: =IF(SUM(BB$8:BB$11)>0,$E14*$I14,0) -> 0 | BE14: =IF(SUM(BD$8:BD$11)>0,$E14*$I14,0) -> 0 | BG14: =IF(SUM(BF$8:BF$11)>0,$E14*$I14,0) -> 0 | BI14: =IF(SUM(BH$8:BH$11)>0,$E14*$I14,0) -> 0 | BK14: =IF(SUM(BJ$8:BJ$11)>0,$E14*$I14,0) -> 0 | BM14: =IF(SUM(BL$8:BL$11)>0,$E14*$I14,0) -> 0 | BO14: =IF(SUM(BN$8:BN$11)>0,$E14*$I14,0) -> 0 | BQ14: =IF(SUM(BP$8:BP$11)>0,$E14*$I14,0) -> 0 | BS14: =IF(SUM(BR$8:BR$11)>0,$E14*$I14,0) -> 0 | BU14: =IF(SUM(BT$8:BT$11)>0,$E14*$I14,0) -> 0 | BW14: =IF(SUM(BV$8:BV$11)>0,$E14*$I14,0) -> 0 | BY14: =IF(SUM(BX$8:BX$11)>0,$E14*$I14,0) -> 0 | CA14: =IF(SUM(BZ$8:BZ$11)>0,$E14*$I14,0) -> 0 | CC14: =IF(SUM(CB$8:CB$11)>0,$E14*$I14,0) -> 0 | CE14: =IF(SUM(CD$8:CD$11)>0,$E14*$I14,0) -> 0 | CG14: =IF(SUM(CF$8:CF$11)>0,$E14*$I14,0) -> 0 | CI14: =IF(SUM(CH$8:CH$11)>0,$E14*$I14,0) -> 0 | CK14: =IF(SUM(CJ$8:CJ$11)>0,$E14*$I14,0) -> 0 | CM14: =IF(SUM(CL$8:CL$11)>0,$E14*$I14,0) -> 0 | CO14: =IF(SUM(CN$8:CN$11)>0,$E14*$I14,0) -> 0 | CQ14: =IF(SUM(CP$8:CP$11)>0,$E14*$I14,0) -> 0 | CS14: =IF(SUM(CR$8:CR$11)>0,$E14*$I14,0) -> 0 | CU14: =IF(SUM(CT$8:CT$11)>0,$E14*$I14,0) -> 0 | CW14: =IF(SUM(CV$8:CV$11)>0,$E14*$I14,0) -> 0 | CY14: =IF(SUM(CX$8:CX$11)>0,$E14*$I14,0) -> 0 | DA14: =IF(SUM(CZ$8:CZ$11)>0,$E14*$I14,0) -> 0 | DC14: =IF(SUM(DB$8:DB$11)>0,$E14*$I14,0) -> 0 | DE14: =IF(SUM(DD$8:DD$11)>0,$E14*$I14,0) -> 0 | DG14: =IF(SUM(DF$8:DF$11)>0,$E14*$I14,0) -> 0 | DI14: =IF(SUM(DH$8:DH$11)>0,$E14*$I14,0) -> 0 | DK14: =IF(SUM(DJ$8:DJ$11)>0,$E14*$I14,0) -> 0 | DM14: =IF(SUM(DL$8:DL$11)>0,$E14*$I14,0) -> 0 | DO14: =IF(SUM(DN$8:DN$11)>0,$E14*$I14,0) -> 0 | DQ14: =IF(SUM(DP$8:DP$11)>0,$E14*$I14,0) -> 0 | DS14: =IF(SUM(DR$8:DR$11)>0,$E14*$I14,0) -> 0 | DU14: =IF(SUM(DT$8:DT$11)>0,$E14*$I14,0) -> 0 | DW14: =IF(SUM(DV$8:DV$11)>0,$E14*$I14,0) -> 0 | DY14: =IF(SUM(DX$8:DX$11)>0,$E14*$I14,0) -> 0 | EA14: =IF(SUM(DZ$8:DZ$11)>0,$E14*$I14,0) -> 0
C15: MASCULINO | D15: Terno completo (calça) na cor preta, em microfibra | E15: 4 | F15: =ROUNDUP(1/2,2) -> 0.5 | G15: =SUM($I$9:$I$10) -> 2 | H15: =ROUNDUP(E15*F15*G15,0) -> 4 | I15: 322.84 | M15: =IF(SUM(L$8:L$11)>0,$H15*$I15,0)/SUM($I$9:$I$10) -> 645.68 | O15: =IF(SUM(N$8:N$11)>0,$H15*$I15,0)/SUM($I$9:$I$10) -> 645.68 | Q15: =IF(SUM(P$8:P$11)>0,$H15*$I15,0)/SUM($I$9:$I$10) -> 0 | S15: =IF(SUM(R$8:R$11)>0,$H15*$I15,0) -> 0 | U15: =IF(SUM(T$8:T$11)>0,$H15*$I15,0) -> 0 | W15: =IF(SUM(V$8:V$11)>0,$H15*$I15,0) -> 0 | Y15: =IF(SUM(X$8:X$11)>0,$H15*$I15,0) -> 0 | AA15: =IF(SUM(Z$8:Z$11)>0,$H15*$I15,0) -> 0 | AC15: =IF(SUM(AB$8:AB$11)>0,$H15*$I15,0) -> 0 | AE15: =IF(SUM(AD$8:AD$11)>0,$H15*$I15,0) -> 0 | AG15: 0 | AI15: 0 | AK15: 0 | AM15: 0 | AO15: 0 | AQ15: 0 | AS15: 0 | AU15: =IF(SUM(AT$8:AT$11)>0,$H15*$I15,0) -> 0 | AW15: 0 | AY15: 0 | BA15: 0 | BC15: 0 | BE15: 0 | BG15: 0 | BI15: 0 | BK15: 0 | BM15: 0 | BO15: 0 | BQ15: 0 | BS15: 0 | BU15: 0 | BW15: 0 | BY15: 0 | CA15: 0 | CC15: 0 | CE15: 0 | CG15: 0 | CI15: 0 | CK15: 0 | CM15: 0 | CO15: 0 | CQ15: 0 | CS15: 0 | CU15: 0 | CW15: 0 | CY15: 0 | DA15: 0 | DC15: 0 | DE15: 0 | DG15: =IF(SUM(DF$8:DF$11)>0,$H15*$I15,0) -> 0 | DI15: 0 | DK15: 0 | DM15: 0 | DO15: 0 | DQ15: 0 | DS15: 0 | DU15: 0 | DW15: 0 | DY15: 0 | EA15: 0
D16: Camisa social branca, tecido leve em algodão | E16: 4 | F16: =F15 -> 0.5 | G16: 2 | H16: =ROUNDUP(E16*F16*G16,0) -> 4 | I16: 89.1 | M16: =IF(SUM(L$8:L$11)>0,$H16*$I16,0)/SUM($I$9:$I$10) -> 178.2 | O16: =IF(SUM(N$8:N$11)>0,$H16*$I16,0)/SUM($I$9:$I$10) -> 178.2 | Q16: 0 | S16: 0 | U16: 0 | W16: 0 | Y16: 0 | AA16: 0 | AC16: 0 | AE16: 0 | AG16: =IF(SUM(AF$8:AF$11)>0,$H16*$I16,0) -> 0 | AI16: 0 | AK16: 0 | AM16: 0 | AO16: 0 | AQ16: 0 | AS16: 0 | AU16: 0 | AW16: 0 | AY16: 0 | BA16: 0 | BC16: 0 | BE16: 0 | BG16: 0 | BI16: 0 | BK16: 0 | BM16: 0 | BO16: 0 | BQ16: 0 | BS16: 0 | BU16: 0 | BW16: 0 | BY16: 0 | CA16: 0 | CC16: 0 | CE16: 0 | CG16: 0 | CI16: 0 | CK16: 0 | CM16: 0 | CO16: 0 | CQ16: 0 | CS16: 0 | CU16: 0 | CW16: 0 | CY16: 0 | DA16: 0 | DC16: 0 | DE16: 0 | DG16: 0 | DI16: 0 | DK16: 0 | DM16: 0 | DO16: 0 | DQ16: 0 | DS16: 0 | DU16: 0 | DW16: 0 | DY16: 0 | EA16: 0
D17: Gravata na cor preta, tecido em poliéster | E17: 4 | F17: =F16 -> 0.5 | G17: 2 | H17: 4 | I17: 33.49 | M17: 66.98 | O17: =IF(SUM(N$8:N$11)>0,$H17*$I17,0)/SUM($I$9:$I$10) -> 66.98 | Q17: 0 | S17: 0 | U17: 0 | W17: 0 | Y17: 0 | AA17: 0 | AC17: 0 | AE17: 0 | AG17: 0 | AI17: 0 | AK17: 0 | AM17: 0 | AO17: 0 | AQ17: 0 | AS17: 0 | AU17: 0 | AW17: 0 | AY17: 0 | BA17: 0 | BC17: 0 | BE17: 0 | BG17: 0 | BI17: 0 | BK17: 0 | BM17: 0 | BO17: 0 | BQ17: 0 | BS17: 0 | BU17: 0 | BW17: 0 | BY17: 0 | CA17: 0 | CC17: 0 | CE17: 0 | CG17: 0 | CI17: 0 | CK17: 0 | CM17: 0 | CO17: 0 | CQ17: 0 | CS17: 0 | CU17: 0 | CW17: 0 | CY17: 0 | DA17: 0 | DC17: 0 | DE17: 0 | DG17: 0 | DI17: 0 | DK17: 0 | DM17: 0 | DO17: 0 | DQ17: 0 | DS17: 0 | DU17: 0 | DW17: 0 | DY17: 0 | EA17: 0
D18: Cinto em couro na cor preta | E18: 2 | F18: 0.5 | G18: 2 | H18: 2 | I18: 35.5 | M18: 35.5 | O18: =IF(SUM(N$8:N$11)>0,$H18*$I18,0)/SUM($I$9:$I$10) -> 35.5 | Q18: 0 | S18: 0 | U18: 0 | W18: 0 | Y18: 0 | AA18: 0 | AC18: 0 | AE18: 0 | AG18: 0 | AI18: 0 | AK18: 0 | AM18: 0 | AO18: 0 | AQ18: 0 | AS18: 0 | AU18: 0 | AW18: 0 | AY18: 0 | BA18: 0 | BC18: 0 | BE18: 0 | BG18: 0 | BI18: 0 | BK18: 0 | BM18: 0 | BO18: 0 | BQ18: 0 | BS18: 0 | BU18: 0 | BW18: 0 | BY18: 0 | CA18: 0 | CC18: 0 | CE18: 0 | CG18: 0 | CI18: 0 | CK18: 0 | CM18: 0 | CO18: 0 | CQ18: 0 | CS18: 0 | CU18: 0 | CW18: 0 | CY18: 0 | DA18: 0 | DC18: 0 | DE18: 0 | DG18: 0 | DI18: 0 | DK18: 0 | DM18: 0 | DO18: 0 | DQ18: 0 | DS18: 0 | DU18: 0 | DW18: 0 | DY18: 0 | EA18: 0
D19: Meia social na cor preta | E19: 4 | F19: 0.5 | G19: 2 | H19: 4 | I19: 14.5 | M19: 29 | O19: =IF(SUM(N$8:N$11)>0,$H19*$I19,0)/SUM($I$9:$I$10) -> 29 | Q19: 0 | S19: 0 | U19: 0 | W19: 0 | Y19: 0 | AA19: 0 | AC19: 0 | AE19: 0 | AG19: 0 | AI19: 0 | AK19: 0 | AM19: 0 | AO19: 0 | AQ19: 0 | AS19: 0 | AU19: 0 | AW19: 0 | AY19: 0 | BA19: 0 | BC19: 0 | BE19: 0 | BG19: 0 | BI19: 0 | BK19: 0 | BM19: 0 | BO19: 0 | BQ19: 0 | BS19: 0 | BU19: 0 | BW19: 0 | BY19: 0 | CA19: 0 | CC19: 0 | CE19: 0 | CG19: 0 | CI19: 0 | CK19: 0 | CM19: 0 | CO19: 0 | CQ19: 0 | CS19: 0 | CU19: 0 | CW19: 0 | CY19: 0 | DA19: 0 | DC19: 0 | DE19: 0 | DG19: 0 | DI19: 0 | DK19: 0 | DM19: 0 | DO19: 0 | DQ19: 0 | DS19: 0 | DU19: 0 | DW19: 0 | DY19: 0 | EA19: 0
D20: Sapato social preto, em couro acolchoado, com solo antiderrapante | E20: 4 | F20: 0.5 | G20: 2 | H20: 4 | I20: 93.63333333 | M20: 187.2666667 | O20: =IF(SUM(N$8:N$11)>0,$H20*$I20,0)/SUM($I$9:$I$10) -> 187.2666667 | Q20: 0 | S20: 0 | U20: 0 | W20: 0 | Y20: 0 | AA20: 0 | AC20: 0 | AE20: 0 | AG20: 0 | AI20: 0 | AK20: 0 | AM20: 0 | AO20: 0 | AQ20: 0 | AS20: 0 | AU20: 0 | AW20: 0 | AY20: 0 | BA20: 0 | BC20: 0 | BE20: 0 | BG20: 0 | BI20: 0 | BK20: 0 | BM20: 0 | BO20: 0 | BQ20: 0 | BS20: 0 | BU20: 0 | BW20: 0 | BY20: 0 | CA20: 0 | CC20: 0 | CE20: 0 | CG20: 0 | CI20: 0 | CK20: 0 | CM20: 0 | CO20: 0 | CQ20: 0 | CS20: 0 | CU20: 0 | CW20: 0 | CY20: 0 | DA20: 0 | DC20: 0 | DE20: 0 | DG20: 0 | DI20: 0 | DK20: 0 | DM20: 0 | DO20: 0 | DQ20: 0 | DS20: 0 | DU20: 0 | DW20: 0 | DY20: 0 | EA20: 0
C21: FEMININO | D21: Terno completo (saia) na cor preta, em microfibra | E21: =E15 -> 4 | F21: =100%-F20 -> 0.5 | G21: 2 | H21: 4 | I21: 228.85 | M21: 457.7 | O21: =IF(SUM(N$8:N$11)>0,$H21*$I21,0)/SUM($I$9:$I$10) -> 457.7 | Q21: 0 | S21: 0 | U21: 0 | W21: 0 | Y21: 0 | AA21: 0 | AC21: 0 | AE21: 0 | AG21: 0 | AI21: 0 | AK21: 0 | AM21: 0 | AO21: 0 | AQ21: 0 | AS21: 0 | AU21: 0 | AW21: 0 | AY21: 0 | BA21: 0 | BC21: 0 | BE21: 0 | BG21: 0 | BI21: 0 | BK21: 0 | BM21: 0 | BO21: 0 | BQ21: 0 | BS21: 0 | BU21: 0 | BW21: 0 | BY21: 0 | CA21: 0 | CC21: 0 | CE21: 0 | CG21: 0 | CI21: 0 | CK21: 0 | CM21: 0 | CO21: 0 | CQ21: 0 | CS21: 0 | CU21: 0 | CW21: 0 | CY21: 0 | DA21: 0 | DC21: 0 | DE21: 0 | DG21: 0 | DI21: 0 | DK21: 0 | DM21: 0 | DO21: 0 | DQ21: 0 | DS21: 0 | DU21: 0 | DW21: 0 | DY21: 0 | EA21: 0
D22: Blusa social branca, tecido leve em algodão | E22: =E16 -> 4 | F22: =F21 -> 0.5 | G22: 2 | H22: 4 | I22: 81.2175 | M22: 162.435 | O22: =IF(SUM(N$8:N$11)>0,$H22*$I22,0)/SUM($I$9:$I$10) -> 162.435 | Q22: 0 | S22: 0 | U22: 0 | W22: 0 | Y22: 0 | AA22: 0 | AC22: 0 | AE22: 0 | AG22: 0 | AI22: 0 | AK22: 0 | AM22: 0 | AO22: 0 | AQ22: 0 | AS22: 0 | AU22: 0 | AW22: 0 | AY22: 0 | BA22: 0 | BC22: 0 | BE22: 0 | BG22: 0 | BI22: 0 | BK22: 0 | BM22: 0 | BO22: 0 | BQ22: 0 | BS22: 0 | BU22: 0 | BW22: 0 | BY22: 0 | CA22: 0 | CC22: 0 | CE22: 0 | CG22: 0 | CI22: 0 | CK22: 0 | CM22: 0 | CO22: 0 | CQ22: 0 | CS22: 0 | CU22: 0 | CW22: 0 | CY22: 0 | DA22: 0 | DC22: 0 | DE22: 0 | DG22: 0 | DI22: 0 | DK22: 0 | DM22: 0 | DO22: 0 | DQ22: 0 | DS22: 0 | DU22: 0 | DW22: 0 | DY22: 0 | EA22: 0
D23: Lenço na cor preta, tecido em poliéster | E23: 4 | F23: =F22 -> 0.5 | G23: 2 | H23: 4 | I23: 34.95 | M23: 69.9 | O23: =IF(SUM(N$8:N$11)>0,$H23*$I23,0)/SUM($I$9:$I$10) -> 69.9 | Q23: 0 | S23: 0 | U23: 0 | W23: 0 | Y23: 0 | AA23: 0 | AC23: 0 | AE23: 0 | AG23: 0 | AI23: 0 | AK23: 0 | AM23: 0 | AO23: 0 | AQ23: 0 | AS23: 0 | AU23: 0 | AW23: 0 | AY23: 0 | BA23: 0 | BC23: 0 | BE23: 0 | BG23: 0 | BI23: 0 | BK23: 0 | BM23: 0 | BO23: 0 | BQ23: 0 | BS23: 0 | BU23: 0 | BW23: 0 | BY23: 0 | CA23: 0 | CC23: 0 | CE23: 0 | CG23: 0 | CI23: 0 | CK23: 0 | CM23: 0 | CO23: 0 | CQ23: =IF(SUM(CP$8:CP$11)>0,$H23*$I23,0) -> 0 | CS23: 0 | CU23: 0 | CW23: 0 | CY23: 0 | DA23: 0 | DC23: 0 | DE23: 0 | DG23: 0 | DI23: 0 | DK23: 0 | DM23: 0 | DO23: 0 | DQ23: 0 | DS23: 0 | DU23: 0 | DW23: 0 | DY23: 0 | EA23: 0
D24: Cinto em couro na cor preta | E24: 2 | F24: 0.5 | G24: 2 | H24: 2 | I24: 36.5 | M24: 36.5 | O24: =IF(SUM(N$8:N$11)>0,$H24*$I24,0)/SUM($I$9:$I$10) -> 36.5 | Q24: 0 | S24: 0 | U24: 0 | W24: 0 | Y24: 0 | AA24: 0 | AC24: 0 | AE24: 0 | AG24: =IF(SUM(AF$8:AF$11)>0,$H24*$I24,0) -> 0 | AI24: 0 | AK24: 0 | AM24: 0 | AO24: 0 | AQ24: 0 | AS24: 0 | AU24: 0 | AW24: 0 | AY24: 0 | BA24: 0 | BC24: 0 | BE24: 0 | BG24: 0 | BI24: 0 | BK24: 0 | BM24: 0 | BO24: 0 | BQ24: 0 | BS24: 0 | BU24: 0 | BW24: 0 | BY24: 0 | CA24: 0 | CC24: 0 | CE24: 0 | CG24: 0 | CI24: 0 | CK24: 0 | CM24: 0 | CO24: 0 | CQ24: 0 | CS24: 0 | CU24: 0 | CW24: 0 | CY24: 0 | DA24: 0 | DC24: 0 | DE24: 0 | DG24: 0 | DI24: 0 | DK24: 0 | DM24: 0 | DO24: 0 | DQ24: 0 | DS24: 0 | DU24: 0 | DW24: 0 | DY24: 0 | EA24: 0
D25: Meia social na cor preta | E25: 4 | F25: 0.5 | G25: 2 | H25: 4 | I25: 25.95 | M25: 51.9 | O25: =IF(SUM(N$8:N$11)>0,$H25*$I25,0)/SUM($I$9:$I$10) -> 51.9 | Q25: 0 | S25: 0 | U25: 0 | W25: 0 | Y25: 0 | AA25: 0 | AC25: 0 | AE25: 0 | AG25: 0 | AI25: 0 | AK25: 0 | AM25: 0 | AO25: 0 | AQ25: 0 | AS25: 0 | AU25: 0 | AW25: 0 | AY25: 0 | BA25: 0 | BC25: 0 | BE25: 0 | BG25: 0 | BI25: 0 | BK25: 0 | BM25: 0 | BO25: 0 | BQ25: 0 | BS25: 0 | BU25: 0 | BW25: 0 | BY25: 0 | CA25: 0 | CC25: 0 | CE25: 0 | CG25: 0 | CI25: 0 | CK25: 0 | CM25: 0 | CO25: 0 | CQ25: 0 | CS25: 0 | CU25: 0 | CW25: 0 | CY25: 0 | DA25: 0 | DC25: 0 | DE25: 0 | DG25: 0 | DI25: 0 | DK25: 0 | DM25: 0 | DO25: 0 | DQ25: 0 | DS25: 0 | DU25: 0 | DW25: 0 | DY25: 0 | EA25: 0
D26: Sapato social preto, em couro acolchoado, com solo antiderrapante | E26: 4 | F26: 0.5 | G26: 2 | H26: 4 | I26: 149.9666667 | M26: 299.9333333 | O26: =IF(SUM(N$8:N$11)>0,$H26*$I26,0)/SUM($I$9:$I$10) -> 299.9333333 | Q26: 0 | S26: 0 | U26: 0 | W26: 0 | Y26: 0 | AA26: 0 | AC26: 0 | AE26: 0 | AG26: 0 | AI26: 0 | AK26: 0 | AM26: 0 | AO26: 0 | AQ26: 0 | AS26: 0 | AU26: 0 | AW26: 0 | AY26: 0 | BA26: 0 | BC26: 0 | BE26: 0 | BG26: 0 | BI26: 0 | BK26: 0 | BM26: 0 | BO26: 0 | BQ26: 0 | BS26: 0 | BU26: 0 | BW26: 0 | BY26: 0 | CA26: 0 | CC26: 0 | CE26: 0 | CG26: 0 | CI26: 0 | CK26: 0 | CM26: 0 | CO26: 0 | CQ26: 0 | CS26: 0 | CU26: 0 | CW26: 0 | CY26: 0 | DA26: 0 | DC26: 0 | DE26: 0 | DG26: 0 | DI26: 0 | DK26: 0 | DM26: 0 | DO26: 0 | DQ26: 0 | DS26: 0 | DU26: 0 | DW26: 0 | DY26: 0 | EA26: 0
M27: =IF(SUM(L$8:L$11)>0,$E27*$I27,0) -> 0 | O27: =IF(SUM(N$8:N$11)>0,$E27*$I27,0) -> 0 | Q27: =IF(SUM(P$8:P$11)>0,$E27*$I27,0) -> 0 | S27: =IF(SUM(R$8:R$11)>0,$E27*$I27,0) -> 0 | U27: =IF(SUM(T$8:T$11)>0,$E27*$I27,0) -> 0 | W27: =IF(SUM(V$8:V$11)>0,$E27*$I27,0) -> 0 | Y27: =IF(SUM(X$8:X$11)>0,$E27*$I27,0) -> 0 | AA27: =IF(SUM(Z$8:Z$11)>0,$E27*$I27,0) -> 0 | AC27: =IF(SUM(AB$8:AB$11)>0,$E27*$I27,0) -> 0 | AE27: =IF(SUM(AD$8:AD$11)>0,$E27*$I27,0) -> 0 | AG27: =IF(SUM(AF$8:AF$11)>0,$E27*$I27,0) -> 0 | AI27: =IF(SUM(AH$8:AH$11)>0,$E27*$I27,0) -> 0 | AK27: =IF(SUM(AJ$8:AJ$11)>0,$E27*$I27,0) -> 0 | AM27: =IF(SUM(AL$8:AL$11)>0,$E27*$I27,0) -> 0 | AO27: =IF(SUM(AN$8:AN$11)>0,$E27*$I27,0) -> 0 | AQ27: =IF(SUM(AP$8:AP$11)>0,$E27*$I27,0) -> 0 | AS27: =IF(SUM(AR$8:AR$11)>0,$E27*$I27,0) -> 0 | AU27: =IF(SUM(AT$8:AT$11)>0,$E27*$I27,0) -> 0 | AW27: =IF(SUM(AV$8:AV$11)>0,$E27*$I27,0) -> 0 | AY27: =IF(SUM(AX$8:AX$11)>0,$E27*$I27,0) -> 0 | BA27: =IF(SUM(AZ$8:AZ$11)>0,$E27*$I27,0) -> 0 | BC27: =IF(SUM(BB$8:BB$11)>0,$E27*$I27,0) -> 0 | BE27: =IF(SUM(BD$8:BD$11)>0,$E27*$I27,0) -> 0 | BG27: =IF(SUM(BF$8:BF$11)>0,$E27*$I27,0) -> 0 | BI27: =IF(SUM(BH$8:BH$11)>0,$E27*$I27,0) -> 0 | BK27: =IF(SUM(BJ$8:BJ$11)>0,$E27*$I27,0) -> 0 | BM27: =IF(SUM(BL$8:BL$11)>0,$E27*$I27,0) -> 0 | BO27: =IF(SUM(BN$8:BN$11)>0,$E27*$I27,0) -> 0 | BQ27: =IF(SUM(BP$8:BP$11)>0,$E27*$I27,0) -> 0 | BS27: =IF(SUM(BR$8:BR$11)>0,$E27*$I27,0) -> 0 | BU27: =IF(SUM(BT$8:BT$11)>0,$E27*$I27,0) -> 0 | BW27: =IF(SUM(BV$8:BV$11)>0,$E27*$I27,0) -> 0 | BY27: =IF(SUM(BX$8:BX$11)>0,$E27*$I27,0) -> 0 | CA27: =IF(SUM(BZ$8:BZ$11)>0,$E27*$I27,0) -> 0 | CC27: =IF(SUM(CB$8:CB$11)>0,$E27*$I27,0) -> 0 | CE27: =IF(SUM(CD$8:CD$11)>0,$E27*$I27,0) -> 0 | CG27: =IF(SUM(CF$8:CF$11)>0,$E27*$I27,0) -> 0 | CI27: =IF(SUM(CH$8:CH$11)>0,$E27*$I27,0) -> 0 | CK27: =IF(SUM(CJ$8:CJ$11)>0,$E27*$I27,0) -> 0 | CM27: =IF(SUM(CL$8:CL$11)>0,$E27*$I27,0) -> 0 | CO27: =IF(SUM(CN$8:CN$11)>0,$E27*$I27,0) -> 0 | CQ27: =IF(SUM(CP$8:CP$11)>0,$E27*$I27,0) -> 0 | CS27: =IF(SUM(CR$8:CR$11)>0,$E27*$I27,0) -> 0 | CU27: =IF(SUM(CT$8:CT$11)>0,$E27*$I27,0) -> 0 | CW27: =IF(SUM(CV$8:CV$11)>0,$E27*$I27,0) -> 0 | CY27: =IF(SUM(CX$8:CX$11)>0,$E27*$I27,0) -> 0 | DA27: =IF(SUM(CZ$8:CZ$11)>0,$E27*$I27,0) -> 0 | DC27: =IF(SUM(DB$8:DB$11)>0,$E27*$I27,0) -> 0 | DE27: =IF(SUM(DD$8:DD$11)>0,$E27*$I27,0) -> 0 | DG27: =IF(SUM(DF$8:DF$11)>0,$E27*$I27,0) -> 0 | DI27: =IF(SUM(DH$8:DH$11)>0,$E27*$I27,0) -> 0 | DK27: =IF(SUM(DJ$8:DJ$11)>0,$E27*$I27,0) -> 0 | DM27: =IF(SUM(DL$8:DL$11)>0,$E27*$I27,0) -> 0 | DO27: =IF(SUM(DN$8:DN$11)>0,$E27*$I27,0) -> 0 | DQ27: =IF(SUM(DP$8:DP$11)>0,$E27*$I27,0) -> 0 | DS27: =IF(SUM(DR$8:DR$11)>0,$E27*$I27,0) -> 0 | DU27: =IF(SUM(DT$8:DT$11)>0,$E27*$I27,0) -> 0 | DW27: =IF(SUM(DV$8:DV$11)>0,$E27*$I27,0) -> 0 | DY27: =IF(SUM(DX$8:DX$11)>0,$E27*$I27,0) -> 0 | EA27: =IF(SUM(DZ$8:DZ$11)>0,$E27*$I27,0) -> 0
C29: CATEGORIAS | I29: QUANTIDADE
L30: =IF($C30=L$4,1,0) -> 0 | N30: =IF($C30=N$4,1,0) -> 0 | P30: =IF($C30=P$4,1,0) -> 0 | R30: =IF($C30=R$4,1,0) -> 0 | T30: =IF($C30=T$4,1,0) -> 0 | V30: =IF($C30=V$4,1,0) -> 0 | X30: =IF($C30=X$4,1,0) -> 0 | Z30: =IF($C30=Z$4,1,0) -> 0 | AB30: =IF($C30=AB$4,1,0) -> 0 | AD30: =IF($C30=AD$4,1,0) -> 0 | AF30: 0 | AH30: 0 | AJ30: 0 | AL30: 0 | AN30: 0 | AP30: 0 | AR30: 0 | AT30: 0 | AV30: 0 | AX30: 0 | AZ30: 0 | BB30: 0 | BD30: 0 | BF30: 0 | BH30: 0 | BJ30: 0 | BL30: 0 | BN30: 0 | BP30: 0 | BR30: 0 | BT30: 0 | BV30: 0 | BX30: 0 | BZ30: 0 | CB30: 0 | CD30: 0 | CF30: 0 | CH30: 0 | CJ30: 0 | CL30: 0 | CN30: 0 | CP30: =IF($C30=CP$4,1,0) -> 0 | CR30: 0 | CT30: 0 | CV30: 0 | CX30: 0 | CZ30: 0 | DB30: 0 | DD30: 0 | DF30: 0 | DH30: 0 | DJ30: 0 | DL30: 0 | DN30: 0 | DP30: 0 | DR30: 0 | DT30: 0 | DV30: 0 | DX30: 0 | DZ30: 0
D31: =HLOOKUP($C31,'Dados Gerais'!$D$5:$BK$10,6) ->  | I31: =HLOOKUP($C31,'Dados Gerais'!$D$5:$BK$14,10) ->  | L31: =IF($C31=L$4,1,0) -> 0 | N31: 0 | P31: 0 | R31: 0 | T31: 0 | V31: 0 | X31: 0 | Z31: 0 | AB31: 0 | AD31: 0 | AF31: 0 | AH31: 0 | AJ31: 0 | AL31: 0 | AN31: 0 | AP31: 0 | AR31: 0 | AT31: 0 | AV31: 0 | AX31: 0 | AZ31: 0 | BB31: 0 | BD31: 0 | BF31: 0 | BH31: 0 | BJ31: 0 | BL31: 0 | BN31: 0 | BP31: 0 | BR31: 0 | BT31: 0 | BV31: 0 | BX31: 0 | BZ31: 0 | CB31: 0 | CD31: 0 | CF31: 0 | CH31: 0 | CJ31: 0 | CL31: 0 | CN31: 0 | CP31: 0 | CR31: 0 | CT31: 0 | CV31: 0 | CX31: 0 | CZ31: 0 | DB31: 0 | DD31: 0 | DF31: 0 | DH31: 0 | DJ31: 0 | DL31: 0 | DN31: 0 | DP31: 0 | DR31: 0 | DT31: 0 | DV31: 0 | DX31: 0 | DZ31: 0
D32: =HLOOKUP($C32,'Dados Gerais'!$D$5:$BK$10,6) ->  | I32: =HLOOKUP($C32,'Dados Gerais'!$D$5:$BK$14,10) ->  | L32: 0 | N32: 0 | P32: 0 | R32: =IF($C32=R$4,1,0) -> 0 | T32: 0 | V32: 0 | X32: 0 | Z32: 0 | AB32: 0 | AD32: 0 | AF32: 0 | AH32: 0 | AJ32: 0 | AL32: 0 | AN32: 0 | AP32: 0 | AR32: 0 | AT32: 0 | AV32: 0 | AX32: 0 | AZ32: 0 | BB32: 0 | BD32: 0 | BF32: 0 | BH32: 0 | BJ32: 0 | BL32: 0 | BN32: 0 | BP32: 0 | BR32: 0 | BT32: 0 | BV32: 0 | BX32: 0 | BZ32: 0 | CB32: 0 | CD32: 0 | CF32: 0 | CH32: 0 | CJ32: 0 | CL32: 0 | CN32: 0 | CP32: 0 | CR32: 0 | CT32: 0 | CV32: 0 | CX32: 0 | CZ32: 0 | DB32: 0 | DD32: 0 | DF32: 0 | DH32: 0 | DJ32: 0 | DL32: 0 | DN32: 0 | DP32: 0 | DR32: 0 | DT32: 0 | DV32: 0 | DX32: 0 | DZ32: 0
L33: =IF($C33=L$4,1,0) -> 0 | N33: =IF($C33=N$4,1,0) -> 0 | P33: =IF($C33=P$4,1,0) -> 0 | R33: 0 | T33: 0 | V33: 0 | X33: 0 | Z33: 0 | AB33: 0 | AD33: 0 | AF33: =IF($C33=AF$4,1,0) -> 0 | AH33: 0 | AJ33: 0 | AL33: 0 | AN33: 0 | AP33: 0 | AR33: 0 | AT33: 0 | AV33: 0 | AX33: 0 | AZ33: 0 | BB33: 0 | BD33: 0 | BF33: 0 | BH33: 0 | BJ33: 0 | BL33: 0 | BN33: 0 | BP33: 0 | BR33: 0 | BT33: 0 | BV33: 0 | BX33: 0 | BZ33: 0 | CB33: 0 | CD33: 0 | CF33: 0 | CH33: 0 | CJ33: 0 | CL33: 0 | CN33: 0 | CP33: 0 | CR33: 0 | CT33: 0 | CV33: 0 | CX33: 0 | CZ33: 0 | DB33: 0 | DD33: 0 | DF33: 0 | DH33: 0 | DJ33: 0 | DL33: 0 | DN33: 0 | DP33: 0 | DR33: 0 | DT33: 0 | DV33: 0 | DX33: 0 | DZ33: 0
C35: ITEM | D35: DESCRIÇÃO | E35: QUANT ANUAL POR POSTO | G35: Nº DE POSTOS | H35: QUANT ANUAL TOTAL | I35: VALOR
M36: =IF(SUM(L$8:L$11)>0,$E36*$I36,0) -> 0 | O36: =IF(SUM(N$8:N$11)>0,$E36*$I36,0) -> 0 | Q36: =IF(SUM(P$8:P$11)>0,$E36*$I36,0) -> 0 | S36: =IF(SUM(R$8:R$11)>0,$E36*$I36,0) -> 0 | U36: =IF(SUM(T$8:T$11)>0,$E36*$I36,0) -> 0 | W36: =IF(SUM(V$8:V$11)>0,$E36*$I36,0) -> 0 | Y36: =IF(SUM(X$8:X$11)>0,$E36*$I36,0) -> 0 | AA36: =IF(SUM(Z$8:Z$11)>0,$E36*$I36,0) -> 0 | AC36: =IF(SUM(AB$8:AB$11)>0,$E36*$I36,0) -> 0 | AE36: =IF(SUM(AD$8:AD$11)>0,$E36*$I36,0) -> 0 | AG36: =IF(SUM(AF$8:AF$11)>0,$E36*$I36,0) -> 0 | AI36: =IF(SUM(AH$8:AH$11)>0,$E36*$I36,0) -> 0 | AK36: =IF(SUM(AJ$8:AJ$11)>0,$E36*$I36,0) -> 0 | AM36: =IF(SUM(AL$8:AL$11)>0,$E36*$I36,0) -> 0 | AO36: =IF(SUM(AN$8:AN$11)>0,$E36*$I36,0) -> 0 | AQ36: =IF(SUM(AP$8:AP$11)>0,$E36*$I36,0) -> 0 | AS36: =IF(SUM(AR$8:AR$11)>0,$E36*$I36,0) -> 0 | AU36: =IF(SUM(AT$8:AT$11)>0,$E36*$I36,0) -> 0 | AW36: =IF(SUM(AV$8:AV$11)>0,$E36*$I36,0) -> 0 | AY36: =IF(SUM(AX$8:AX$11)>0,$E36*$I36,0) -> 0 | BA36: =IF(SUM(AZ$8:AZ$11)>0,$E36*$I36,0) -> 0 | BC36: =IF(SUM(BB$8:BB$11)>0,$E36*$I36,0) -> 0 | BE36: =IF(SUM(BD$8:BD$11)>0,$E36*$I36,0) -> 0 | BG36: =IF(SUM(BF$8:BF$11)>0,$E36*$I36,0) -> 0 | BI36: =IF(SUM(BH$8:BH$11)>0,$E36*$I36,0) -> 0 | BK36: =IF(SUM(BJ$8:BJ$11)>0,$E36*$I36,0) -> 0 | BM36: =IF(SUM(BL$8:BL$11)>0,$E36*$I36,0) -> 0 | BO36: =IF(SUM(BN$8:BN$11)>0,$E36*$I36,0) -> 0 | BQ36: =IF(SUM(BP$8:BP$11)>0,$E36*$I36,0) -> 0 | BS36: =IF(SUM(BR$8:BR$11)>0,$E36*$I36,0) -> 0 | BU36: =IF(SUM(BT$8:BT$11)>0,$E36*$I36,0) -> 0 | BW36: =IF(SUM(BV$8:BV$11)>0,$E36*$I36,0) -> 0 | BY36: =IF(SUM(BX$8:BX$11)>0,$E36*$I36,0) -> 0 | CA36: =IF(SUM(BZ$8:BZ$11)>0,$E36*$I36,0) -> 0 | CC36: =IF(SUM(CB$8:CB$11)>0,$E36*$I36,0) -> 0 | CE36: =IF(SUM(CD$8:CD$11)>0,$E36*$I36,0) -> 0 | CG36: =IF(SUM(CF$8:CF$11)>0,$E36*$I36,0) -> 0 | CI36: =IF(SUM(CH$8:CH$11)>0,$E36*$I36,0) -> 0 | CK36: =IF(SUM(CJ$8:CJ$11)>0,$E36*$I36,0) -> 0 | CM36: =IF(SUM(CL$8:CL$11)>0,$E36*$I36,0) -> 0 | CO36: =IF(SUM(CN$8:CN$11)>0,$E36*$I36,0) -> 0 | CQ36: =IF(SUM(CP$8:CP$11)>0,$E36*$I36,0) -> 0 | CS36: =IF(SUM(CR$8:CR$11)>0,$E36*$I36,0) -> 0 | CU36: =IF(SUM(CT$8:CT$11)>0,$E36*$I36,0) -> 0 | CW36: =IF(SUM(CV$8:CV$11)>0,$E36*$I36,0) -> 0 | CY36: =IF(SUM(CX$8:CX$11)>0,$E36*$I36,0) -> 0 | DA36: =IF(SUM(CZ$8:CZ$11)>0,$E36*$I36,0) -> 0 | DC36: =IF(SUM(DB$8:DB$11)>0,$E36*$I36,0) -> 0 | DE36: =IF(SUM(DD$8:DD$11)>0,$E36*$I36,0) -> 0 | DG36: =IF(SUM(DF$8:DF$11)>0,$E36*$I36,0) -> 0 | DI36: =IF(SUM(DH$8:DH$11)>0,$E36*$I36,0) -> 0 | DK36: =IF(SUM(DJ$8:DJ$11)>0,$E36*$I36,0) -> 0 | DM36: =IF(SUM(DL$8:DL$11)>0,$E36*$I36,0) -> 0 | DO36: =IF(SUM(DN$8:DN$11)>0,$E36*$I36,0) -> 0 | DQ36: =IF(SUM(DP$8:DP$11)>0,$E36*$I36,0) -> 0 | DS36: =IF(SUM(DR$8:DR$11)>0,$E36*$I36,0) -> 0 | DU36: =IF(SUM(DT$8:DT$11)>0,$E36*$I36,0) -> 0 | DW36: =IF(SUM(DV$8:DV$11)>0,$E36*$I36,0) -> 0 | DY36: =IF(SUM(DX$8:DX$11)>0,$E36*$I36,0) -> 0 | EA36: =IF(SUM(DZ$8:DZ$11)>0,$E36*$I36,0) -> 0
C37: 7 | E37: 4 | G37: =I31+I32 ->  | H37: =G37*E37 ->  | M37: =IF(SUM(L$31:L$33)>0,$E37*$I37,0) -> 0 | O37: =IF(SUM(N$31:N$33)>0,$E37*$I37,0) -> 0 | Q37: =IF(SUM(P$31:P$33)>0,$E37*$I37,0) -> 0 | S37: =IF(SUM(R$31:R$33)>0,$E37*$I37,0) -> 0 | U37: =IF(SUM(T$31:T$33)>0,$E37*$I37,0) -> 0 | W37: =IF(SUM(V$31:V$33)>0,$E37*$I37,0) -> 0 | Y37: =IF(SUM(X$31:X$33)>0,$E37*$I37,0) -> 0 | AA37: =IF(SUM(Z$31:Z$33)>0,$E37*$I37,0) -> 0 | AC37: =IF(SUM(AB$31:AB$33)>0,$E37*$I37,0) -> 0 | AE37: =IF(SUM(AD$31:AD$33)>0,$E37*$I37,0) -> 0 | AG37: =IF(SUM(AF$31:AF$33)>0,$E37*$I37,0) -> 0 | AI37: =IF(SUM(AH$31:AH$33)>0,$E37*$I37,0) -> 0 | AK37: =IF(SUM(AJ$31:AJ$33)>0,$E37*$I37,0) -> 0 | AM37: =IF(SUM(AL$31:AL$33)>0,$E37*$I37,0) -> 0 | AO37: =IF(SUM(AN$31:AN$33)>0,$E37*$I37,0) -> 0 | AQ37: =IF(SUM(AP$31:AP$33)>0,$E37*$I37,0) -> 0 | AS37: =IF(SUM(AR$31:AR$33)>0,$E37*$I37,0) -> 0 | AU37: =IF(SUM(AT$31:AT$33)>0,$E37*$I37,0) -> 0 | AW37: =IF(SUM(AV$31:AV$33)>0,$E37*$I37,0) -> 0 | AY37: =IF(SUM(AX$31:AX$33)>0,$E37*$I37,0) -> 0 | BA37: =IF(SUM(AZ$31:AZ$33)>0,$E37*$I37,0) -> 0 | BC37: =IF(SUM(BB$31:BB$33)>0,$E37*$I37,0) -> 0 | BE37: =IF(SUM(BD$31:BD$33)>0,$E37*$I37,0) -> 0 | BG37: =IF(SUM(BF$31:BF$33)>0,$E37*$I37,0) -> 0 | BI37: =IF(SUM(BH$31:BH$33)>0,$E37*$I37,0) -> 0 | BK37: =IF(SUM(BJ$31:BJ$33)>0,$E37*$I37,0) -> 0 | BM37: =IF(SUM(BL$31:BL$33)>0,$E37*$I37,0) -> 0 | BO37: =IF(SUM(BN$31:BN$33)>0,$E37*$I37,0) -> 0 | BQ37: =IF(SUM(BP$31:BP$33)>0,$E37*$I37,0) -> 0 | BS37: =IF(SUM(BR$31:BR$33)>0,$E37*$I37,0) -> 0 | BU37: =IF(SUM(BT$31:BT$33)>0,$E37*$I37,0) -> 0 | BW37: =IF(SUM(BV$31:BV$33)>0,$E37*$I37,0) -> 0 | BY37: =IF(SUM(BX$31:BX$33)>0,$E37*$I37,0) -> 0 | CA37: =IF(SUM(BZ$31:BZ$33)>0,$E37*$I37,0) -> 0 | CC37: =IF(SUM(CB$31:CB$33)>0,$E37*$I37,0) -> 0 | CE37: =IF(SUM(CD$31:CD$33)>0,$E37*$I37,0) -> 0 | CG37: =IF(SUM(CF$31:CF$33)>0,$E37*$I37,0) -> 0 | CI37: =IF(SUM(CH$31:CH$33)>0,$E37*$I37,0) -> 0 | CK37: =IF(SUM(CJ$31:CJ$33)>0,$E37*$I37,0) -> 0 | CM37: =IF(SUM(CL$31:CL$33)>0,$E37*$I37,0) -> 0 | CO37: =IF(SUM(CN$31:CN$33)>0,$E37*$I37,0) -> 0 | CQ37: =IF(SUM(CP$31:CP$33)>0,$E37*$I37,0) -> 0 | CS37: =IF(SUM(CR$31:CR$33)>0,$E37*$I37,0) -> 0 | CU37: =IF(SUM(CT$31:CT$33)>0,$E37*$I37,0) -> 0 | CW37: =IF(SUM(CV$31:CV$33)>0,$E37*$I37,0) -> 0 | CY37: =IF(SUM(CX$31:CX$33)>0,$E37*$I37,0) -> 0 | DA37: =IF(SUM(CZ$31:CZ$33)>0,$E37*$I37,0) -> 0 | DC37: =IF(SUM(DB$31:DB$33)>0,$E37*$I37,0) -> 0 | DE37: =IF(SUM(DD$31:DD$33)>0,$E37*$I37,0) -> 0 | DG37: =IF(SUM(DF$31:DF$33)>0,$E37*$I37,0) -> 0 | DI37: =IF(SUM(DH$31:DH$33)>0,$E37*$I37,0) -> 0 | DK37: =IF(SUM(DJ$31:DJ$33)>0,$E37*$I37,0) -> 0 | DM37: =IF(SUM(DL$31:DL$33)>0,$E37*$I37,0) -> 0 | DO37: =IF(SUM(DN$31:DN$33)>0,$E37*$I37,0) -> 0 | DQ37: =IF(SUM(DP$31:DP$33)>0,$E37*$I37,0) -> 0 | DS37: =IF(SUM(DR$31:DR$33)>0,$E37*$I37,0) -> 0 | DU37: =IF(SUM(DT$31:DT$33)>0,$E37*$I37,0) -> 0 | DW37: =IF(SUM(DV$31:DV$33)>0,$E37*$I37,0) -> 0 | DY37: =IF(SUM(DX$31:DX$33)>0,$E37*$I37,0) -> 0 | EA37: =IF(SUM(DZ$31:DZ$33)>0,$E37*$I37,0) -> 0
C38: 8 | E38: =E37 -> 4 | G38: =G37 ->  | M38: 0 | O38: 0 | Q38: 0 | S38: 0 | U38: 0 | W38: 0 | Y38: 0 | AA38: 0 | AC38: 0 | AE38: 0 | AG38: 0 | AI38: 0 | AK38: 0 | AM38: 0 | AO38: 0 | AQ38: 0 | AS38: 0 | AU38: 0 | AW38: 0 | AY38: 0 | BA38: 0 | BC38: 0 | BE38: 0 | BG38: 0 | BI38: 0 | BK38: 0 | BM38: 0 | BO38: 0 | BQ38: 0 | BS38: 0 | BU38: 0 | BW38: 0 | BY38: 0 | CA38: 0 | CC38: 0 | CE38: 0 | CG38: 0 | CI38: 0 | CK38: 0 | CM38: 0 | CO38: 0 | CQ38: 0 | CS38: 0 | CU38: 0 | CW38: 0 | CY38: 0 | DA38: 0 | DC38: 0 | DE38: 0 | DG38: 0 | DI38: 0 | DK38: 0 | DM38: 0 | DO38: 0 | DQ38: 0 | DS38: 0 | DU38: 0 | DW38: 0 | DY38: 0 | EA38: 0
C39: 9 | E39: =E38 -> 4 | G39: =G38 ->  | M39: 0 | O39: 0 | Q39: 0 | S39: 0 | U39: 0 | W39: 0 | Y39: 0 | AA39: 0 | AC39: 0 | AE39: 0 | AG39: 0 | AI39: 0 | AK39: 0 | AM39: 0 | AO39: 0 | AQ39: 0 | AS39: 0 | AU39: 0 | AW39: 0 | AY39: 0 | BA39: 0 | BC39: 0 | BE39: 0 | BG39: 0 | BI39: 0 | BK39: 0 | BM39: 0 | BO39: 0 | BQ39: 0 | BS39: 0 | BU39: 0 | BW39: 0 | BY39: 0 | CA39: 0 | CC39: 0 | CE39: 0 | CG39: 0 | CI39: 0 | CK39: 0 | CM39: 0 | CO39: 0 | CQ39: 0 | CS39: 0 | CU39: 0 | CW39: 0 | CY39: 0 | DA39: 0 | DC39: 0 | DE39: 0 | DG39: 0 | DI39: 0 | DK39: 0 | DM39: 0 | DO39: 0 | DQ39: 0 | DS39: 0 | DU39: 0 | DW39: 0 | DY39: 0 | EA39: 0
C40: 10 | E40: 4 | M40: 0 | O40: 0 | Q40: 0 | S40: 0 | U40: 0 | W40: 0 | Y40: 0 | AA40: 0 | AC40: 0 | AE40: 0 | AG40: 0 | AI40: 0 | AK40: 0 | AM40: 0 | AO40: 0 | AQ40: 0 | AS40: 0 | AU40: 0 | AW40: 0 | AY40: 0 | BA40: 0 | BC40: 0 | BE40: 0 | BG40: 0 | BI40: 0 | BK40: 0 | BM40: 0 | BO40: 0 | BQ40: 0 | BS40: 0 | BU40: 0 | BW40: 0 | BY40: 0 | CA40: 0 | CC40: 0 | CE40: 0 | CG40: 0 | CI40: 0 | CK40: 0 | CM40: 0 | CO40: 0 | CQ40: 0 | CS40: 0 | CU40: 0 | CW40: 0 | CY40: 0 | DA40: 0 | DC40: 0 | DE40: 0 | DG40: 0 | DI40: 0 | DK40: 0 | DM40: 0 | DO40: 0 | DQ40: 0 | DS40: 0 | DU40: 0 | DW40: 0 | DY40: 0 | EA40: 0
C41: 11 | E41: 4 | M41: 0 | O41: 0 | Q41: 0 | S41: 0 | U41: 0 | W41: 0 | Y41: 0 | AA41: 0 | AC41: 0 | AE41: 0 | AG41: 0 | AI41: 0 | AK41: 0 | AM41: 0 | AO41: 0 | AQ41: 0 | AS41: 0 | AU41: 0 | AW41: 0 | AY41: 0 | BA41: 0 | BC41: 0 | BE41: 0 | BG41: 0 | BI41: 0 | BK41: 0 | BM41: 0 | BO41: 0 | BQ41: 0 | BS41: 0 | BU41: 0 | BW41: 0 | BY41: 0 | CA41: 0 | CC41: 0 | CE41: 0 | CG41: 0 | CI41: 0 | CK41: 0 | CM41: 0 | CO41: 0 | CQ41: 0 | CS41: 0 | CU41: 0 | CW41: 0 | CY41: 0 | DA41: 0 | DC41: 0 | DE41: 0 | DG41: 0 | DI41: 0 | DK41: 0 | DM41: 0 | DO41: 0 | DQ41: 0 | DS41: 0 | DU41: 0 | DW41: 0 | DY41: 0 | EA41: 0
C42: 12 | E42: 4 | M42: 0 | O42: 0 | Q42: 0 | S42: 0 | U42: 0 | W42: 0 | Y42: 0 | AA42: 0 | AC42: 0 | AE42: 0 | AG42: 0 | AI42: 0 | AK42: 0 | AM42: 0 | AO42: 0 | AQ42: 0 | AS42: 0 | AU42: 0 | AW42: 0 | AY42: 0 | BA42: 0 | BC42: 0 | BE42: 0 | BG42: 0 | BI42: 0 | BK42: 0 | BM42: 0 | BO42: 0 | BQ42: 0 | BS42: 0 | BU42: 0 | BW42: 0 | BY42: 0 | CA42: 0 | CC42: 0 | CE42: 0 | CG42: 0 | CI42: 0 | CK42: 0 | CM42: 0 | CO42: 0 | CQ42: 0 | CS42: 0 | CU42: 0 | CW42: 0 | CY42: 0 | DA42: 0 | DC42: 0 | DE42: 0 | DG42: 0 | DI42: 0 | DK42: 0 | DM42: 0 | DO42: 0 | DQ42: 0 | DS42: 0 | DU42: 0 | DW42: 0 | DY42: 0 | EA42: 0
M43: 0 | O43: 0 | Q43: 0 | S43: 0 | U43: 0 | W43: 0 | Y43: 0 | AA43: 0 | AC43: 0 | AE43: 0 | AG43: 0 | AI43: 0 | AK43: 0 | AM43: 0 | AO43: 0 | AQ43: 0 | AS43: 0 | AU43: 0 | AW43: 0 | AY43: 0 | BA43: 0 | BC43: 0 | BE43: 0 | BG43: 0 | BI43: 0 | BK43: 0 | BM43: 0 | BO43: 0 | BQ43: 0 | BS43: 0 | BU43: 0 | BW43: 0 | BY43: 0 | CA43: 0 | CC43: 0 | CE43: 0 | CG43: 0 | CI43: 0 | CK43: 0 | CM43: 0 | CO43: 0 | CQ43: 0 | CS43: 0 | CU43: 0 | CW43: 0 | CY43: 0 | DA43: 0 | DC43: 0 | DE43: 0 | DG43: 0 | DI43: 0 | DK43: 0 | DM43: 0 | DO43: 0 | DQ43: 0 | DS43: 0 | DU43: 0 | DW43: 0 | DY43: 0 | EA43: 0
C44: CATEGORIAS | I44: QUANTIDADE
L45: =IF($C45=L$4,1,0) -> 0 | N45: =IF($C45=N$4,1,0) -> 0 | P45: =IF($C45=P$4,1,0) -> 0 | R45: =IF($C45=R$4,1,0) -> 0 | T45: =IF($C45=T$4,1,0) -> 0 | V45: =IF($C45=V$4,1,0) -> 0 | X45: =IF($C45=X$4,1,0) -> 0 | Z45: =IF($C45=Z$4,1,0) -> 0 | AB45: =IF($C45=AB$4,1,0) -> 0 | AD45: =IF($C45=AD$4,1,0) -> 0 | AF45: 0 | AH45: 0 | AJ45: 0 | AL45: 0 | AN45: 0 | AP45: 0 | AR45: 0 | AT45: 0 | AV45: 0 | AX45: 0 | AZ45: 0 | BB45: 0 | BD45: 0 | BF45: 0 | BH45: 0 | BJ45: 0 | BL45: 0 | BN45: 0 | BP45: 0 | BR45: 0 | BT45: 0 | BV45: 0 | BX45: 0 | BZ45: 0 | CB45: 0 | CD45: 0 | CF45: 0 | CH45: 0 | CJ45: 0 | CL45: 0 | CN45: 0 | CP45: =IF($C45=CP$4,1,0) -> 0 | CR45: 0 | CT45: 0 | CV45: 0 | CX45: 0 | CZ45: 0 | DB45: 0 | DD45: 0 | DF45: 0 | DH45: 0 | DJ45: 0 | DL45: 0 | DN45: 0 | DP45: 0 | DR45: 0 | DT45: 0 | DV45: 0 | DX45: 0 | DZ45: 0
D46: =HLOOKUP($C46,'Dados Gerais'!$D$5:$BK$10,6) ->  | I46: =HLOOKUP($C46,'Dados Gerais'!$D$5:$BK$14,10) ->  | L46: =IF($C46=L$4,1,0) -> 0 | N46: 0 | P46: 0 | R46: 0 | T46: 0 | V46: 0 | X46: 0 | Z46: 0 | AB46: 0 | AD46: 0 | AF46: 0 | AH46: 0 | AJ46: 0 | AL46: 0 | AN46: 0 | AP46: 0 | AR46: 0 | AT46: 0 | AV46: 0 | AX46: 0 | AZ46: 0 | BB46: 0 | BD46: 0 | BF46: 0 | BH46: 0 | BJ46: 0 | BL46: 0 | BN46: 0 | BP46: 0 | BR46: 0 | BT46: 0 | BV46: 0 | BX46: 0 | BZ46: 0 | CB46: 0 | CD46: 0 | CF46: 0 | CH46: 0 | CJ46: 0 | CL46: 0 | CN46: 0 | CP46: 0 | CR46: 0 | CT46: 0 | CV46: 0 | CX46: 0 | CZ46: 0 | DB46: 0 | DD46: 0 | DF46: 0 | DH46: 0 | DJ46: 0 | DL46: 0 | DN46: 0 | DP46: 0 | DR46: 0 | DT46: 0 | DV46: 0 | DX46: 0 | DZ46: 0
D47: =HLOOKUP($C47,'Dados Gerais'!$D$5:$BK$10,6) ->  | I47: =HLOOKUP($C47,'Dados Gerais'!$D$5:$BK$14,10) ->  | L47: 0 | N47: 0 | P47: 0 | R47: =IF($C47=R$4,1,0) -> 0 | T47: 0 | V47: 0 | X47: 0 | Z47: 0 | AB47: 0 | AD47: 0 | AF47: 0 | AH47: 0 | AJ47: 0 | AL47: 0 | AN47: 0 | AP47: 0 | AR47: 0 | AT47: 0 | AV47: 0 | AX47: 0 | AZ47: 0 | BB47: 0 | BD47: 0 | BF47: 0 | BH47: 0 | BJ47: 0 | BL47: 0 | BN47: 0 | BP47: 0 | BR47: 0 | BT47: 0 | BV47: 0 | BX47: 0 | BZ47: 0 | CB47: 0 | CD47: 0 | CF47: 0 | CH47: 0 | CJ47: 0 | CL47: 0 | CN47: 0 | CP47: 0 | CR47: 0 | CT47: 0 | CV47: 0 | CX47: 0 | CZ47: 0 | DB47: 0 | DD47: 0 | DF47: 0 | DH47: 0 | DJ47: 0 | DL47: 0 | DN47: 0 | DP47: 0 | DR47: 0 | DT47: 0 | DV47: 0 | DX47: 0 | DZ47: 0
L48: =IF($C48=L$4,1,0) -> 0 | N48: =IF($C48=N$4,1,0) -> 0 | P48: =IF($C48=P$4,1,0) -> 0 | R48: 0 | T48: 0 | V48: 0 | X48: 0 | Z48: 0 | AB48: 0 | AD48: 0 | AF48: =IF($C48=AF$4,1,0) -> 0 | AH48: 0 | AJ48: 0 | AL48: 0 | AN48: 0 | AP48: 0 | AR48: 0 | AT48: 0 | AV48: 0 | AX48: 0 | AZ48: 0 | BB48: 0 | BD48: 0 | BF48: 0 | BH48: 0 | BJ48: 0 | BL48: 0 | BN48: 0 | BP48: 0 | BR48: 0 | BT48: 0 | BV48: 0 | BX48: 0 | BZ48: 0 | CB48: 0 | CD48: 0 | CF48: 0 | CH48: 0 | CJ48: 0 | CL48: 0 | CN48: 0 | CP48: 0 | CR48: 0 | CT48: 0 | CV48: 0 | CX48: 0 | CZ48: 0 | DB48: 0 | DD48: 0 | DF48: 0 | DH48: 0 | DJ48: 0 | DL48: 0 | DN48: 0 | DP48: 0 | DR48: 0 | DT48: 0 | DV48: 0 | DX48: 0 | DZ48: 0
C50: ITEM | D50: DESCRIÇÃO | E50: QUANT ANUAL POR POSTO | G50: Nº DE POSTOS | H50: QUANT ANUAL TOTAL | I50: VALOR
M51: =IF(SUM(L$8:L$11)>0,$E51*$I51,0) -> 0 | O51: =IF(SUM(N$8:N$11)>0,$E51*$I51,0) -> 0 | Q51: =IF(SUM(P$8:P$11)>0,$E51*$I51,0) -> 0 | S51: =IF(SUM(R$8:R$11)>0,$E51*$I51,0) -> 0 | U51: =IF(SUM(T$8:T$11)>0,$E51*$I51,0) -> 0 | W51: =IF(SUM(V$8:V$11)>0,$E51*$I51,0) -> 0 | Y51: =IF(SUM(X$8:X$11)>0,$E51*$I51,0) -> 0 | AA51: =IF(SUM(Z$8:Z$11)>0,$E51*$I51,0) -> 0 | AC51: =IF(SUM(AB$8:AB$11)>0,$E51*$I51,0) -> 0 | AE51: =IF(SUM(AD$8:AD$11)>0,$E51*$I51,0) -> 0 | AG51: =IF(SUM(AF$8:AF$11)>0,$E51*$I51,0) -> 0 | AI51: =IF(SUM(AH$8:AH$11)>0,$E51*$I51,0) -> 0 | AK51: =IF(SUM(AJ$8:AJ$11)>0,$E51*$I51,0) -> 0 | AM51: =IF(SUM(AL$8:AL$11)>0,$E51*$I51,0) -> 0 | AO51: =IF(SUM(AN$8:AN$11)>0,$E51*$I51,0) -> 0 | AQ51: =IF(SUM(AP$8:AP$11)>0,$E51*$I51,0) -> 0 | AS51: =IF(SUM(AR$8:AR$11)>0,$E51*$I51,0) -> 0 | AU51: =IF(SUM(AT$8:AT$11)>0,$E51*$I51,0) -> 0 | AW51: =IF(SUM(AV$8:AV$11)>0,$E51*$I51,0) -> 0 | AY51: =IF(SUM(AX$8:AX$11)>0,$E51*$I51,0) -> 0 | BA51: =IF(SUM(AZ$8:AZ$11)>0,$E51*$I51,0) -> 0 | BC51: =IF(SUM(BB$8:BB$11)>0,$E51*$I51,0) -> 0 | BE51: =IF(SUM(BD$8:BD$11)>0,$E51*$I51,0) -> 0 | BG51: =IF(SUM(BF$8:BF$11)>0,$E51*$I51,0) -> 0 | BI51: =IF(SUM(BH$8:BH$11)>0,$E51*$I51,0) -> 0 | BK51: =IF(SUM(BJ$8:BJ$11)>0,$E51*$I51,0) -> 0 | BM51: =IF(SUM(BL$8:BL$11)>0,$E51*$I51,0) -> 0 | BO51: =IF(SUM(BN$8:BN$11)>0,$E51*$I51,0) -> 0 | BQ51: =IF(SUM(BP$8:BP$11)>0,$E51*$I51,0) -> 0 | BS51: =IF(SUM(BR$8:BR$11)>0,$E51*$I51,0) -> 0 | BU51: =IF(SUM(BT$8:BT$11)>0,$E51*$I51,0) -> 0 | BW51: =IF(SUM(BV$8:BV$11)>0,$E51*$I51,0) -> 0 | BY51: =IF(SUM(BX$8:BX$11)>0,$E51*$I51,0) -> 0 | CA51: =IF(SUM(BZ$8:BZ$11)>0,$E51*$I51,0) -> 0 | CC51: =IF(SUM(CB$8:CB$11)>0,$E51*$I51,0) -> 0 | CE51: =IF(SUM(CD$8:CD$11)>0,$E51*$I51,0) -> 0 | CG51: =IF(SUM(CF$8:CF$11)>0,$E51*$I51,0) -> 0 | CI51: =IF(SUM(CH$8:CH$11)>0,$E51*$I51,0) -> 0 | CK51: =IF(SUM(CJ$8:CJ$11)>0,$E51*$I51,0) -> 0 | CM51: =IF(SUM(CL$8:CL$11)>0,$E51*$I51,0) -> 0 | CO51: =IF(SUM(CN$8:CN$11)>0,$E51*$I51,0) -> 0 | CQ51: =IF(SUM(CP$8:CP$11)>0,$E51*$I51,0) -> 0 | CS51: =IF(SUM(CR$8:CR$11)>0,$E51*$I51,0) -> 0 | CU51: =IF(SUM(CT$8:CT$11)>0,$E51*$I51,0) -> 0 | CW51: =IF(SUM(CV$8:CV$11)>0,$E51*$I51,0) -> 0 | CY51: =IF(SUM(CX$8:CX$11)>0,$E51*$I51,0) -> 0 | DA51: =IF(SUM(CZ$8:CZ$11)>0,$E51*$I51,0) -> 0 | DC51: =IF(SUM(DB$8:DB$11)>0,$E51*$I51,0) -> 0 | DE51: =IF(SUM(DD$8:DD$11)>0,$E51*$I51,0) -> 0 | DG51: =IF(SUM(DF$8:DF$11)>0,$E51*$I51,0) -> 0 | DI51: =IF(SUM(DH$8:DH$11)>0,$E51*$I51,0) -> 0 | DK51: =IF(SUM(DJ$8:DJ$11)>0,$E51*$I51,0) -> 0 | DM51: =IF(SUM(DL$8:DL$11)>0,$E51*$I51,0) -> 0 | DO51: =IF(SUM(DN$8:DN$11)>0,$E51*$I51,0) -> 0 | DQ51: =IF(SUM(DP$8:DP$11)>0,$E51*$I51,0) -> 0 | DS51: =IF(SUM(DR$8:DR$11)>0,$E51*$I51,0) -> 0 | DU51: =IF(SUM(DT$8:DT$11)>0,$E51*$I51,0) -> 0 | DW51: =IF(SUM(DV$8:DV$11)>0,$E51*$I51,0) -> 0 | DY51: =IF(SUM(DX$8:DX$11)>0,$E51*$I51,0) -> 0 | EA51: =IF(SUM(DZ$8:DZ$11)>0,$E51*$I51,0) -> 0
C52: 13 | E52: 4 | G52: =I46+I47 ->  | H52: =G52*E52 ->  | M52: =IF(SUM(L$45:L$48)>0,$E52*$I52,0) -> 0 | O52: =IF(SUM(N$45:N$48)>0,$E52*$I52,0) -> 0 | Q52: =IF(SUM(P$45:P$48)>0,$E52*$I52,0) -> 0 | S52: =IF(SUM(R$45:R$48)>0,$E52*$I52,0) -> 0 | U52: =IF(SUM(T$45:T$48)>0,$E52*$I52,0) -> 0 | W52: =IF(SUM(V$45:V$48)>0,$E52*$I52,0) -> 0 | Y52: =IF(SUM(X$45:X$48)>0,$E52*$I52,0) -> 0 | AA52: =IF(SUM(Z$45:Z$48)>0,$E52*$I52,0) -> 0 | AC52: =IF(SUM(AB$45:AB$48)>0,$E52*$I52,0) -> 0 | AE52: =IF(SUM(AD$45:AD$48)>0,$E52*$I52,0) -> 0 | AG52: =IF(SUM(AF$45:AF$48)>0,$E52*$I52,0) -> 0 | AI52: =IF(SUM(AH$45:AH$48)>0,$E52*$I52,0) -> 0 | AK52: =IF(SUM(AJ$45:AJ$48)>0,$E52*$I52,0) -> 0 | AM52: =IF(SUM(AL$45:AL$48)>0,$E52*$I52,0) -> 0 | AO52: =IF(SUM(AN$45:AN$48)>0,$E52*$I52,0) -> 0 | AQ52: =IF(SUM(AP$45:AP$48)>0,$E52*$I52,0) -> 0 | AS52: =IF(SUM(AR$45:AR$48)>0,$E52*$I52,0) -> 0 | AU52: =IF(SUM(AT$45:AT$48)>0,$E52*$I52,0) -> 0 | AW52: =IF(SUM(AV$45:AV$48)>0,$E52*$I52,0) -> 0 | AY52: =IF(SUM(AX$45:AX$48)>0,$E52*$I52,0) -> 0 | BA52: =IF(SUM(AZ$45:AZ$48)>0,$E52*$I52,0) -> 0 | BC52: =IF(SUM(BB$45:BB$48)>0,$E52*$I52,0) -> 0 | BE52: =IF(SUM(BD$45:BD$48)>0,$E52*$I52,0) -> 0 | BG52: =IF(SUM(BF$45:BF$48)>0,$E52*$I52,0) -> 0 | BI52: =IF(SUM(BH$45:BH$48)>0,$E52*$I52,0) -> 0 | BK52: =IF(SUM(BJ$45:BJ$48)>0,$E52*$I52,0) -> 0 | BM52: =IF(SUM(BL$45:BL$48)>0,$E52*$I52,0) -> 0 | BO52: =IF(SUM(BN$45:BN$48)>0,$E52*$I52,0) -> 0 | BQ52: =IF(SUM(BP$45:BP$48)>0,$E52*$I52,0) -> 0 | BS52: =IF(SUM(BR$45:BR$48)>0,$E52*$I52,0) -> 0 | BU52: =IF(SUM(BT$45:BT$48)>0,$E52*$I52,0) -> 0 | BW52: =IF(SUM(BV$45:BV$48)>0,$E52*$I52,0) -> 0 | BY52: =IF(SUM(BX$45:BX$48)>0,$E52*$I52,0) -> 0 | CA52: =IF(SUM(BZ$45:BZ$48)>0,$E52*$I52,0) -> 0 | CC52: =IF(SUM(CB$45:CB$48)>0,$E52*$I52,0) -> 0 | CE52: =IF(SUM(CD$45:CD$48)>0,$E52*$I52,0) -> 0 | CG52: =IF(SUM(CF$45:CF$48)>0,$E52*$I52,0) -> 0 | CI52: =IF(SUM(CH$45:CH$48)>0,$E52*$I52,0) -> 0 | CK52: =IF(SUM(CJ$45:CJ$48)>0,$E52*$I52,0) -> 0 | CM52: =IF(SUM(CL$45:CL$48)>0,$E52*$I52,0) -> 0 | CO52: =IF(SUM(CN$45:CN$48)>0,$E52*$I52,0) -> 0 | CQ52: =IF(SUM(CP$45:CP$48)>0,$E52*$I52,0) -> 0 | CS52: =IF(SUM(CR$45:CR$48)>0,$E52*$I52,0) -> 0 | CU52: =IF(SUM(CT$45:CT$48)>0,$E52*$I52,0) -> 0 | CW52: =IF(SUM(CV$45:CV$48)>0,$E52*$I52,0) -> 0 | CY52: =IF(SUM(CX$45:CX$48)>0,$E52*$I52,0) -> 0 | DA52: =IF(SUM(CZ$45:CZ$48)>0,$E52*$I52,0) -> 0 | DC52: =IF(SUM(DB$45:DB$48)>0,$E52*$I52,0) -> 0 | DE52: =IF(SUM(DD$45:DD$48)>0,$E52*$I52,0) -> 0 | DG52: =IF(SUM(DF$45:DF$48)>0,$E52*$I52,0) -> 0 | DI52: =IF(SUM(DH$45:DH$48)>0,$E52*$I52,0) -> 0 | DK52: =IF(SUM(DJ$45:DJ$48)>0,$E52*$I52,0) -> 0 | DM52: =IF(SUM(DL$45:DL$48)>0,$E52*$I52,0) -> 0 | DO52: =IF(SUM(DN$45:DN$48)>0,$E52*$I52,0) -> 0 | DQ52: =IF(SUM(DP$45:DP$48)>0,$E52*$I52,0) -> 0 | DS52: =IF(SUM(DR$45:DR$48)>0,$E52*$I52,0) -> 0 | DU52: =IF(SUM(DT$45:DT$48)>0,$E52*$I52,0) -> 0 | DW52: =IF(SUM(DV$45:DV$48)>0,$E52*$I52,0) -> 0 | DY52: =IF(SUM(DX$45:DX$48)>0,$E52*$I52,0) -> 0 | EA52: =IF(SUM(DZ$45:DZ$48)>0,$E52*$I52,0) -> 0
C53: 14 | E53: =E52 -> 4 | G53: =G52 ->  | M53: =IF(SUM(L$45:L$48)>0,$E53*$I53,0) -> 0 | O53: =IF(SUM(N$45:N$48)>0,$E53*$I53,0) -> 0 | Q53: =IF(SUM(P$45:P$48)>0,$E53*$I53,0) -> 0 | S53: =IF(SUM(R$45:R$48)>0,$E53*$I53,0) -> 0 | U53: =IF(SUM(T$45:T$48)>0,$E53*$I53,0) -> 0 | W53: =IF(SUM(V$45:V$48)>0,$E53*$I53,0) -> 0 | Y53: =IF(SUM(X$45:X$48)>0,$E53*$I53,0) -> 0 | AA53: =IF(SUM(Z$45:Z$48)>0,$E53*$I53,0) -> 0 | AC53: =IF(SUM(AB$45:AB$48)>0,$E53*$I53,0) -> 0 | AE53: =IF(SUM(AD$45:AD$48)>0,$E53*$I53,0) -> 0 | AG53: 0 | AI53: 0 | AK53: 0 | AM53: 0 | AO53: 0 | AQ53: 0 | AS53: 0 | AU53: 0 | AW53: 0 | AY53: 0 | BA53: 0 | BC53: 0 | BE53: 0 | BG53: 0 | BI53: 0 | BK53: 0 | BM53: 0 | BO53: 0 | BQ53: 0 | BS53: 0 | BU53: 0 | BW53: 0 | BY53: 0 | CA53: 0 | CC53: 0 | CE53: 0 | CG53: 0 | CI53: 0 | CK53: 0 | CM53: 0 | CO53: 0 | CQ53: 0 | CS53: 0 | CU53: 0 | CW53: 0 | CY53: 0 | DA53: 0 | DC53: 0 | DE53: 0 | DG53: 0 | DI53: 0 | DK53: 0 | DM53: 0 | DO53: 0 | DQ53: 0 | DS53: 0 | DU53: 0 | DW53: 0 | DY53: 0 | EA53: 0
C54: 15 | E54: 4 | M54: =IF(SUM(L$45:L$48)>0,$E54*$I54,0) -> 0 | O54: =IF(SUM(N$45:N$48)>0,$E54*$I54,0) -> 0 | Q54: =IF(SUM(P$45:P$48)>0,$E54*$I54,0) -> 0 | S54: =IF(SUM(R$45:R$48)>0,$E54*$I54,0) -> 0 | U54: =IF(SUM(T$45:T$48)>0,$E54*$I54,0) -> 0 | W54: =IF(SUM(V$45:V$48)>0,$E54*$I54,0) -> 0 | Y54: =IF(SUM(X$45:X$48)>0,$E54*$I54,0) -> 0 | AA54: =IF(SUM(Z$45:Z$48)>0,$E54*$I54,0) -> 0 | AC54: =IF(SUM(AB$45:AB$48)>0,$E54*$I54,0) -> 0 | AE54: =IF(SUM(AD$45:AD$48)>0,$E54*$I54,0) -> 0 | AG54: 0 | AI54: 0 | AK54: 0 | AM54: 0 | AO54: 0 | AQ54: 0 | AS54: 0 | AU54: 0 | AW54: 0 | AY54: 0 | BA54: 0 | BC54: 0 | BE54: 0 | BG54: 0 | BI54: 0 | BK54: 0 | BM54: 0 | BO54: 0 | BQ54: 0 | BS54: 0 | BU54: 0 | BW54: 0 | BY54: 0 | CA54: 0 | CC54: 0 | CE54: 0 | CG54: 0 | CI54: 0 | CK54: 0 | CM54: 0 | CO54: 0 | CQ54: 0 | CS54: 0 | CU54: 0 | CW54: 0 | CY54: 0 | DA54: 0 | DC54: 0 | DE54: 0 | DG54: 0 | DI54: 0 | DK54: 0 | DM54: 0 | DO54: 0 | DQ54: 0 | DS54: 0 | DU54: 0 | DW54: 0 | DY54: 0 | EA54: 0
C55: CATEGORIAS | I55: QUANTIDADE
L56: =IF($C56=L$4,1,0) -> 0 | N56: 0 | P56: 0 | R56: 0 | T56: 0 | V56: 0 | X56: 0 | Z56: 0 | AB56: =IF($C56=AB$4,1,0) -> 0 | AD56: 0 | AF56: 0 | AH56: 0 | AJ56: 0 | AL56: 0 | AN56: 0 | AP56: 0 | AR56: 0 | AT56: 0 | AV56: 0 | AX56: 0 | AZ56: 0 | BB56: 0 | BD56: 0 | BF56: 0 | BH56: 0 | BJ56: 0 | BL56: 0 | BN56: 0 | BP56: 0 | BR56: 0 | BT56: 0 | BV56: 0 | BX56: 0 | BZ56: 0 | CB56: 0 | CD56: 0 | CF56: 0 | CH56: 0 | CJ56: 0 | CL56: 0 | CN56: =IF($C56=CN$4,1,0) -> 0 | CP56: 0 | CR56: 0 | CT56: 0 | CV56: 0 | CX56: 0 | CZ56: 0 | DB56: 0 | DD56: 0 | DF56: 0 | DH56: 0 | DJ56: 0 | DL56: 0 | DN56: 0 | DP56: 0 | DR56: 0 | DT56: 0 | DV56: 0 | DX56: 0 | DZ56: 0
C57: 3 | D57: =HLOOKUP($C57,'Dados Gerais'!$D$5:$BK$10,6) -> ENCARREGADO DE SERVIÇO | F57: 6 | G57: 7 | I57: =HLOOKUP($C57,'Dados Gerais'!$D$5:$BK$14,10) -> 13 | L57: 0 | N57: 0 | P57: 1 | R57: =IF($C57=R$4,1,0) -> 0 | T57: 0 | V57: 0 | X57: 0 | Z57: 0 | AB57: 0 | AD57: 0 | AF57: 0 | AH57: 0 | AJ57: 0 | AL57: 0 | AN57: 0 | AP57: 0 | AR57: 0 | AT57: 0 | AV57: 0 | AX57: 0 | AZ57: 0 | BB57: 0 | BD57: 0 | BF57: 0 | BH57: 0 | BJ57: 0 | BL57: 0 | BN57: 0 | BP57: 0 | BR57: 0 | BT57: 0 | BV57: 0 | BX57: 0 | BZ57: 0 | CB57: 0 | CD57: 0 | CF57: 0 | CH57: 0 | CJ57: 0 | CL57: 0 | CN57: 0 | CP57: 0 | CR57: 0 | CT57: 0 | CV57: 0 | CX57: 0 | CZ57: 0 | DB57: 0 | DD57: 0 | DF57: 0 | DH57: 0 | DJ57: 0 | DL57: 0 | DN57: 0 | DP57: 0 | DR57: 0 | DT57: 0 | DV57: 0 | DX57: 0 | DZ57: 0
C58: 4 | D58: =HLOOKUP($C58,'Dados Gerais'!$D$5:$BK$10,6) -> ENCARREGADO DE SERVIÇO COM ADICIONAL DE INSALUBRIDADE | F58: 1 | G58: 1 | I58: =HLOOKUP($C58,'Dados Gerais'!$D$5:$BK$14,10) -> 2 | L58: 0 | N58: 0 | P58: 0 | R58: 1 | T58: 0 | V58: 0 | X58: 0 | Z58: 0 | AB58: 0 | AD58: 0 | AF58: =IF($C58=AF$4,1,0) -> 0 | AH58: 0 | AJ58: 0 | AL58: 0 | AN58: 0 | AP58: 0 | AR58: 0 | AT58: 0 | AV58: 0 | AX58: 0 | AZ58: 0 | BB58: 0 | BD58: 0 | BF58: 0 | BH58: 0 | BJ58: 0 | BL58: 0 | BN58: 0 | BP58: 0 | BR58: 0 | BT58: 0 | BV58: 0 | BX58: 0 | BZ58: 0 | CB58: 0 | CD58: 0 | CF58: 0 | CH58: 0 | CJ58: 0 | CL58: 0 | CN58: 0 | CP58: 0 | CR58: 0 | CT58: 0 | CV58: 0 | CX58: 0 | CZ58: 0 | DB58: 0 | DD58: 0 | DF58: 0 | DH58: 0 | DJ58: 0 | DL58: 0 | DN58: 0 | DP58: 0 | DR58: 0 | DT58: 0 | DV58: 0 | DX58: 0 | DZ58: 0
C59: 5 | D59: =HLOOKUP($C59,'Dados Gerais'!$D$5:$BK$10,6) -> AUXILIAR DE ENCARREGADO | G59: =HLOOKUP($C59,'Dados Gerais'!$D$5:$BK$14,10) -> 1 | I59: =HLOOKUP($C59,'Dados Gerais'!$D$5:$BK$14,10) -> 1 | L59: 0 | N59: 0 | P59: 0 | R59: 0 | T59: 1 | V59: 0 | X59: 0 | Z59: 0 | AB59: 0 | AD59: 0 | AF59: 0 | AH59: 0 | AJ59: 0 | AL59: 0 | AN59: 0 | AP59: 0 | AR59: 0 | AT59: 0 | AV59: 0 | AX59: 0 | AZ59: 0 | BB59: 0 | BD59: 0 | BF59: 0 | BH59: 0 | BJ59: 0 | BL59: 0 | BN59: 0 | BP59: 0 | BR59: 0 | BT59: 0 | BV59: 0 | BX59: 0 | BZ59: 0 | CB59: 0 | CD59: 0 | CF59: 0 | CH59: 0 | CJ59: 0 | CL59: 0 | CN59: 0 | CP59: 0 | CR59: 0 | CT59: 0 | CV59: 0 | CX59: 0 | CZ59: 0 | DB59: 0 | DD59: 0 | DF59: 0 | DH59: 0 | DJ59: 0 | DL59: 0 | DN59: 0 | DP59: 0 | DR59: 0 | DT59: 0 | DV59: 0 | DX59: 0 | DZ59: 0
L60: 0 | N60: 0 | P60: 0 | R60: 0 | T60: 0 | V60: 0 | X60: 0 | Z60: 0 | AB60: 0 | AD60: 0 | AF60: 0 | AH60: 0 | AJ60: 0 | AL60: 0 | AN60: 0 | AP60: 0 | AR60: 0 | AT60: 0 | AV60: 0 | AX60: 0 | AZ60: 0 | BB60: 0 | BD60: 0 | BF60: 0 | BH60: 0 | BJ60: 0 | BL60: 0 | BN60: 0 | BP60: 0 | BR60: 0 | BT60: 0 | BV60: 0 | BX60: 0 | BZ60: 0 | CB60: 0 | CD60: 0 | CF60: 0 | CH60: 0 | CJ60: 0 | CL60: 0 | CN60: 0 | CP60: 0 | CR60: 0 | CT60: 0 | CV60: 0 | CX60: 0 | CZ60: 0 | DB60: 0 | DD60: 0 | DF60: 0 | DH60: 0 | DJ60: 0 | DL60: 0 | DN60: 0 | DP60: 0 | DR60: 0 | DT60: 0 | DV60: 0 | DX60: 0 | DZ60: 0
C62: ITEM | D62: DESCRIÇÃO | E62: QUANT ANUAL POR POSTO | F62: % ESTIMADO POR GÊNERO | G62: Nº DE POSTOS | H62: QUANT ANUAL TOTAL ESTIMADA | I62: VALOR
M63: =IF(SUM(L$8:L$11)>0,$E63*$I63,0) -> 0 | O63: =IF(SUM(N$8:N$11)>0,$E63*$I63,0) -> 0 | Q63: =IF(SUM(P$8:P$11)>0,$E63*$I63,0) -> 0 | S63: =IF(SUM(R$8:R$11)>0,$E63*$I63,0) -> 0 | U63: =IF(SUM(T$8:T$11)>0,$E63*$I63,0) -> 0 | W63: =IF(SUM(V$8:V$11)>0,$E63*$I63,0) -> 0 | Y63: =IF(SUM(X$8:X$11)>0,$E63*$I63,0) -> 0 | AA63: =IF(SUM(Z$8:Z$11)>0,$E63*$I63,0) -> 0 | AC63: =IF(SUM(AB$8:AB$11)>0,$E63*$I63,0) -> 0 | AE63: =IF(SUM(AD$8:AD$11)>0,$E63*$I63,0) -> 0 | AG63: =IF(SUM(AF$8:AF$11)>0,$E63*$I63,0) -> 0 | AI63: =IF(SUM(AH$8:AH$11)>0,$E63*$I63,0) -> 0 | AK63: =IF(SUM(AJ$8:AJ$11)>0,$E63*$I63,0) -> 0 | AM63: =IF(SUM(AL$8:AL$11)>0,$E63*$I63,0) -> 0 | AO63: =IF(SUM(AN$8:AN$11)>0,$E63*$I63,0) -> 0 | AQ63: =IF(SUM(AP$8:AP$11)>0,$E63*$I63,0) -> 0 | AS63: =IF(SUM(AR$8:AR$11)>0,$E63*$I63,0) -> 0 | AU63: =IF(SUM(AT$8:AT$11)>0,$E63*$I63,0) -> 0 | AW63: =IF(SUM(AV$8:AV$11)>0,$E63*$I63,0) -> 0 | AY63: =IF(SUM(AX$8:AX$11)>0,$E63*$I63,0) -> 0 | BA63: =IF(SUM(AZ$8:AZ$11)>0,$E63*$I63,0) -> 0 | BC63: =IF(SUM(BB$8:BB$11)>0,$E63*$I63,0) -> 0 | BE63: =IF(SUM(BD$8:BD$11)>0,$E63*$I63,0) -> 0 | BG63: =IF(SUM(BF$8:BF$11)>0,$E63*$I63,0) -> 0 | BI63: =IF(SUM(BH$8:BH$11)>0,$E63*$I63,0) -> 0 | BK63: =IF(SUM(BJ$8:BJ$11)>0,$E63*$I63,0) -> 0 | BM63: =IF(SUM(BL$8:BL$11)>0,$E63*$I63,0) -> 0 | BO63: =IF(SUM(BN$8:BN$11)>0,$E63*$I63,0) -> 0 | BQ63: =IF(SUM(BP$8:BP$11)>0,$E63*$I63,0) -> 0 | BS63: =IF(SUM(BR$8:BR$11)>0,$E63*$I63,0) -> 0 | BU63: =IF(SUM(BT$8:BT$11)>0,$E63*$I63,0) -> 0 | BW63: =IF(SUM(BV$8:BV$11)>0,$E63*$I63,0) -> 0 | BY63: =IF(SUM(BX$8:BX$11)>0,$E63*$I63,0) -> 0 | CA63: =IF(SUM(BZ$8:BZ$11)>0,$E63*$I63,0) -> 0 | CC63: =IF(SUM(CB$8:CB$11)>0,$E63*$I63,0) -> 0 | CE63: =IF(SUM(CD$8:CD$11)>0,$E63*$I63,0) -> 0 | CG63: =IF(SUM(CF$8:CF$11)>0,$E63*$I63,0) -> 0 | CI63: =IF(SUM(CH$8:CH$11)>0,$E63*$I63,0) -> 0 | CK63: =IF(SUM(CJ$8:CJ$11)>0,$E63*$I63,0) -> 0 | CM63: =IF(SUM(CL$8:CL$11)>0,$E63*$I63,0) -> 0 | CO63: =IF(SUM(CN$8:CN$11)>0,$E63*$I63,0) -> 0 | CQ63: =IF(SUM(CP$8:CP$11)>0,$E63*$I63,0) -> 0 | CS63: =IF(SUM(CR$8:CR$11)>0,$E63*$I63,0) -> 0 | CU63: =IF(SUM(CT$8:CT$11)>0,$E63*$I63,0) -> 0 | CW63: =IF(SUM(CV$8:CV$11)>0,$E63*$I63,0) -> 0 | CY63: =IF(SUM(CX$8:CX$11)>0,$E63*$I63,0) -> 0 | DA63: =IF(SUM(CZ$8:CZ$11)>0,$E63*$I63,0) -> 0 | DC63: =IF(SUM(DB$8:DB$11)>0,$E63*$I63,0) -> 0 | DE63: =IF(SUM(DD$8:DD$11)>0,$E63*$I63,0) -> 0 | DG63: =IF(SUM(DF$8:DF$11)>0,$E63*$I63,0) -> 0 | DI63: =IF(SUM(DH$8:DH$11)>0,$E63*$I63,0) -> 0 | DK63: =IF(SUM(DJ$8:DJ$11)>0,$E63*$I63,0) -> 0 | DM63: =IF(SUM(DL$8:DL$11)>0,$E63*$I63,0) -> 0 | DO63: =IF(SUM(DN$8:DN$11)>0,$E63*$I63,0) -> 0 | DQ63: =IF(SUM(DP$8:DP$11)>0,$E63*$I63,0) -> 0 | DS63: =IF(SUM(DR$8:DR$11)>0,$E63*$I63,0) -> 0 | DU63: =IF(SUM(DT$8:DT$11)>0,$E63*$I63,0) -> 0 | DW63: =IF(SUM(DV$8:DV$11)>0,$E63*$I63,0) -> 0 | DY63: =IF(SUM(DX$8:DX$11)>0,$E63*$I63,0) -> 0 | EA63: =IF(SUM(DZ$8:DZ$11)>0,$E63*$I63,0) -> 0
C64: MASCULINO | D64: Calça social de tecido leve, na cor preta, em microfibra | E64: 4 | F64: =ROUNDUP(9/16,2) -> 0.57 | G64: =SUM($I$57:$I$59) -> 16 | H64: =ROUNDUP(E64*F64*G64,0) -> 37 | I64: 74.5 | M64: =IF(SUM(L$56:L$60)>0,$H64*$I64,0)/SUM($I$57:$I59) -> 0 | O64: =IF(SUM(N$56:N$60)>0,$H64*$I64,0)/SUM($I$57:$I59) -> 0 | Q64: =IF(SUM(P$56:P$60)>0,$H64*$I64,0)/SUM($I$57:$I$59) -> 172.28125 | S64: =IF(SUM(R$56:R$60)>0,$H64*$I64,0)/SUM($I$57:$I$59) -> 172.28125 | U64: =IF(SUM(T$56:T$60)>0,$H64*$I64,0)/SUM($I$57:$I$59) -> 172.28125 | W64: =IF(SUM(V$56:V$60)>0,$H64*$I64,0) -> 0 | Y64: =IF(SUM(X$56:X$60)>0,$H64*$I64,0) -> 0 | AA64: =IF(SUM(Z$56:Z$60)>0,$H64*$I64,0) -> 0 | AC64: =IF(SUM(AB$56:AB$60)>0,$H64*$I64,0) -> 0 | AE64: =IF(SUM(AD$56:AD$60)>0,$H64*$I64,0) -> 0 | AG64: 0 | AI64: 0 | AK64: 0 | AM64: 0 | AO64: 0 | AQ64: 0 | AS64: 0 | AU64: =IF(SUM(AT$56:AT$60)>0,$H64*$I64,0) -> 0 | AW64: 0 | AY64: 0 | BA64: 0 | BC64: 0 | BE64: 0 | BG64: 0 | BI64: 0 | BK64: 0 | BM64: 0 | BO64: 0 | BQ64: 0 | BS64: 0 | BU64: 0 | BW64: 0 | BY64: 0 | CA64: 0 | CC64: 0 | CE64: 0 | CG64: 0 | CI64: 0 | CK64: 0 | CM64: 0 | CO64: 0 | CQ64: 0 | CS64: 0 | CU64: 0 | CW64: 0 | CY64: 0 | DA64: 0 | DC64: 0 | DE64: 0 | DG64: =IF(SUM(DF$56:DF$60)>0,$H64*$I64,0) -> 0 | DI64: 0 | DK64: 0 | DM64: 0 | DO64: 0 | DQ64: 0 | DS64: 0 | DU64: 0 | DW64: 0 | DY64: 0 | EA64: 0
D65: Camisa social branca, tecido leve em algodão | E65: 4 | F65: =F64 -> 0.57 | G65: =SUM($I$57:$I$59) -> 16 | H65: =ROUNDUP(E65*F65*G65,0) -> 37 | I65: =I16 -> 89.1 | M65: =IF(SUM(L$56:L$60)>0,$H65*$I65,0)/SUM($I$57:$I60) -> 0 | O65: =IF(SUM(N$56:N$60)>0,$H65*$I65,0)/SUM($I$57:$I60) -> 0 | Q65: =IF(SUM(P$56:P$60)>0,$H65*$I65,0)/SUM($I$57:$I$59) -> 206.04375 | S65: 206.04375 | U65: =IF(SUM(T$56:T$60)>0,$H65*$I65,0)/SUM($I$57:$I$59) -> 206.04375 | W65: 0 | Y65: 0 | AA65: 0 | AC65: 0 | AE65: 0 | AG65: =IF(SUM(AF$56:AF$60)>0,$H65*$I65,0) -> 0 | AI65: 0 | AK65: 0 | AM65: 0 | AO65: 0 | AQ65: 0 | AS65: 0 | AU65: 0 | AW65: 0 | AY65: 0 | BA65: 0 | BC65: 0 | BE65: 0 | BG65: 0 | BI65: 0 | BK65: 0 | BM65: 0 | BO65: 0 | BQ65: 0 | BS65: 0 | BU65: 0 | BW65: 0 | BY65: 0 | CA65: 0 | CC65: 0 | CE65: 0 | CG65: 0 | CI65: 0 | CK65: 0 | CM65: 0 | CO65: 0 | CQ65: 0 | CS65: 0 | CU65: 0 | CW65: 0 | CY65: 0 | DA65: 0 | DC65: 0 | DE65: 0 | DG65: 0 | DI65: 0 | DK65: 0 | DM65: 0 | DO65: 0 | DQ65: 0 | DS65: 0 | DU65: 0 | DW65: 0 | DY65: 0 | EA65: 0
D66: Gravata na cor preta, tecido em poliéster | E66: 4 | F66: =F65 -> 0.57 | G66: 16 | H66: =ROUNDUP(E66*F66*G66,0) -> 37 | I66: =I17 -> 33.49 | M66: =IF(SUM(L$56:L$60)>0,$H66*$I66,0)/SUM($I$57:$I61) -> 0 | O66: =IF(SUM(N$56:N$60)>0,$H66*$I66,0)/SUM($I$57:$I61) -> 0 | Q66: 77.445625 | S66: 77.445625 | U66: =IF(SUM(T$56:T$60)>0,$H66*$I66,0)/SUM($I$57:$I$59) -> 77.445625 | W66: 0 | Y66: 0 | AA66: 0 | AC66: 0 | AE66: 0 | AG66: 0 | AI66: 0 | AK66: 0 | AM66: 0 | AO66: 0 | AQ66: 0 | AS66: 0 | AU66: 0 | AW66: 0 | AY66: 0 | BA66: 0 | BC66: 0 | BE66: 0 | BG66: 0 | BI66: 0 | BK66: 0 | BM66: 0 | BO66: 0 | BQ66: 0 | BS66: 0 | BU66: 0 | BW66: 0 | BY66: 0 | CA66: 0 | CC66: 0 | CE66: 0 | CG66: 0 | CI66: 0 | CK66: 0 | CM66: 0 | CO66: 0 | CQ66: 0 | CS66: 0 | CU66: 0 | CW66: 0 | CY66: 0 | DA66: 0 | DC66: 0 | DE66: 0 | DG66: 0 | DI66: 0 | DK66: 0 | DM66: 0 | DO66: 0 | DQ66: 0 | DS66: 0 | DU66: 0 | DW66: 0 | DY66: 0 | EA66: 0
D67: Cinto em couro na cor preta | E67: 2 | F67: =F65 -> 0.57 | G67: 16 | H67: 19 | I67: =I18 -> 35.5 | M67: =IF(SUM(L$56:L$60)>0,$H67*$I67,0)/SUM($I$57:$I62) -> 0 | O67: =IF(SUM(N$56:N$60)>0,$H67*$I67,0)/SUM($I$57:$I62) -> 0 | Q67: 42.15625 | S67: 42.15625 | U67: =IF(SUM(T$56:T$60)>0,$H67*$I67,0)/SUM($I$57:$I$59) -> 42.15625 | W67: 0 | Y67: 0 | AA67: 0 | AC67: 0 | AE67: 0 | AG67: 0 | AI67: 0 | AK67: 0 | AM67: 0 | AO67: 0 | AQ67: 0 | AS67: 0 | AU67: 0 | AW67: 0 | AY67: 0 | BA67: 0 | BC67: 0 | BE67: 0 | BG67: 0 | BI67: 0 | BK67: 0 | BM67: 0 | BO67: 0 | BQ67: 0 | BS67: 0 | BU67: 0 | BW67: 0 | BY67: 0 | CA67: 0 | CC67: 0 | CE67: 0 | CG67: 0 | CI67: 0 | CK67: 0 | CM67: 0 | CO67: 0 | CQ67: 0 | CS67: 0 | CU67: 0 | CW67: 0 | CY67: 0 | DA67: 0 | DC67: 0 | DE67: 0 | DG67: 0 | DI67: 0 | DK67: 0 | DM67: 0 | DO67: 0 | DQ67: 0 | DS67: 0 | DU67: 0 | DW67: 0 | DY67: 0 | EA67: 0
D68: Meia social na cor preta | E68: 4 | F68: =F66 -> 0.57 | G68: 16 | H68: =ROUNDUP(E68*F68*G68,0) -> 37 | I68: 14.5 | M68: =IF(SUM(L$56:L$60)>0,$H68*$I68,0)/SUM($I$57:$I63) -> 0 | O68: =IF(SUM(N$56:N$60)>0,$H68*$I68,0)/SUM($I$57:$I63) -> 0 | Q68: 33.53125 | S68: 33.53125 | U68: =IF(SUM(T$56:T$60)>0,$H68*$I68,0)/SUM($I$57:$I$59) -> 33.53125 | W68: 0 | Y68: 0 | AA68: 0 | AC68: 0 | AE68: 0 | AG68: 0 | AI68: 0 | AK68: 0 | AM68: 0 | AO68: 0 | AQ68: 0 | AS68: 0 | AU68: 0 | AW68: 0 | AY68: 0 | BA68: 0 | BC68: 0 | BE68: 0 | BG68: 0 | BI68: 0 | BK68: 0 | BM68: 0 | BO68: 0 | BQ68: 0 | BS68: 0 | BU68: 0 | BW68: 0 | BY68: 0 | CA68: 0 | CC68: 0 | CE68: 0 | CG68: 0 | CI68: 0 | CK68: 0 | CM68: 0 | CO68: 0 | CQ68: 0 | CS68: 0 | CU68: 0 | CW68: 0 | CY68: 0 | DA68: 0 | DC68: 0 | DE68: 0 | DG68: 0 | DI68: 0 | DK68: 0 | DM68: 0 | DO68: 0 | DQ68: 0 | DS68: 0 | DU68: 0 | DW68: 0 | DY68: 0 | EA68: 0
D69: Sapato social preto, em couro acolchoado, com solo antiderrapante | E69: 4 | F69: 0.57 | G69: 16 | H69: =ROUNDUP(E69*F69*G69,0) -> 37 | I69: 93.63333333 | M69: =IF(SUM(L$56:L$60)>0,$H69*$I69,0)/SUM($I$57:$I64) -> 0 | O69: =IF(SUM(N$56:N$60)>0,$H69*$I69,0)/SUM($I$57:$I64) -> 0 | Q69: 216.5270833 | S69: 216.5270833 | U69: =IF(SUM(T$56:T$60)>0,$H69*$I69,0)/SUM($I$57:$I$59) -> 216.5270833 | W69: 0 | Y69: 0 | AA69: 0 | AC69: 0 | AE69: 0 | AG69: 0 | AI69: 0 | AK69: 0 | AM69: 0 | AO69: 0 | AQ69: 0 | AS69: 0 | AU69: 0 | AW69: 0 | AY69: 0 | BA69: 0 | BC69: 0 | BE69: 0 | BG69: 0 | BI69: 0 | BK69: 0 | BM69: 0 | BO69: 0 | BQ69: 0 | BS69: 0 | BU69: 0 | BW69: 0 | BY69: 0 | CA69: 0 | CC69: 0 | CE69: 0 | CG69: 0 | CI69: 0 | CK69: 0 | CM69: 0 | CO69: 0 | CQ69: 0 | CS69: 0 | CU69: 0 | CW69: 0 | CY69: 0 | DA69: 0 | DC69: 0 | DE69: 0 | DG69: 0 | DI69: 0 | DK69: 0 | DM69: 0 | DO69: 0 | DQ69: 0 | DS69: 0 | DU69: 0 | DW69: 0 | DY69: 0 | EA69: 0
C70: FEMININO | D70: Saia de tecido leve, na cor preta, em microfibra | E70: =E64 -> 4 | F70: =100%-F69 -> 0.43 | G70: 16 | H70: 28 | I70: 63.3 | M70: =IF(SUM(L$56:L$60)>0,$H70*$I70,0)/SUM($I$57:$I65) -> 0 | O70: =IF(SUM(N$56:N$60)>0,$H70*$I70,0)/SUM($I$57:$I65) -> 0 | Q70: 110.775 | S70: 110.775 | U70: =IF(SUM(T$56:T$60)>0,$H70*$I70,0)/SUM($I$57:$I$59) -> 110.775 | W70: 0 | Y70: 0 | AA70: 0 | AC70: 0 | AE70: 0 | AG70: 0 | AI70: 0 | AK70: 0 | AM70: 0 | AO70: 0 | AQ70: 0 | AS70: 0 | AU70: 0 | AW70: 0 | AY70: 0 | BA70: 0 | BC70: 0 | BE70: 0 | BG70: 0 | BI70: 0 | BK70: 0 | BM70: 0 | BO70: 0 | BQ70: 0 | BS70: 0 | BU70: 0 | BW70: 0 | BY70: 0 | CA70: 0 | CC70: 0 | CE70: 0 | CG70: 0 | CI70: 0 | CK70: 0 | CM70: 0 | CO70: 0 | CQ70: 0 | CS70: 0 | CU70: 0 | CW70: 0 | CY70: 0 | DA70: 0 | DC70: 0 | DE70: 0 | DG70: 0 | DI70: 0 | DK70: 0 | DM70: 0 | DO70: 0 | DQ70: 0 | DS70: 0 | DU70: 0 | DW70: 0 | DY70: 0 | EA70: 0
D71: Blusa social branca, tecido leve em algodão | E71: =E65 -> 4 | F71: =F70 -> 0.43 | G71: 16 | H71: 28 | I71: =I22 -> 81.2175 | M71: =IF(SUM(L$56:L$60)>0,$H71*$I71,0)/SUM($I$57:$I66) -> 0 | O71: =IF(SUM(N$56:N$60)>0,$H71*$I71,0)/SUM($I$57:$I66) -> 0 | Q71: 142.130625 | S71: 142.130625 | U71: =IF(SUM(T$56:T$60)>0,$H71*$I71,0)/SUM($I$57:$I$59) -> 142.130625 | W71: 0 | Y71: 0 | AA71: 0 | AC71: 0 | AE71: 0 | AG71: 0 | AI71: 0 | AK71: 0 | AM71: 0 | AO71: 0 | AQ71: 0 | AS71: 0 | AU71: 0 | AW71: 0 | AY71: 0 | BA71: 0 | BC71: 0 | BE71: 0 | BG71: 0 | BI71: 0 | BK71: 0 | BM71: 0 | BO71: 0 | BQ71: 0 | BS71: 0 | BU71: 0 | BW71: 0 | BY71: 0 | CA71: 0 | CC71: 0 | CE71: 0 | CG71: 0 | CI71: 0 | CK71: 0 | CM71: 0 | CO71: 0 | CQ71: 0 | CS71: 0 | CU71: 0 | CW71: 0 | CY71: 0 | DA71: 0 | DC71: 0 | DE71: 0 | DG71: 0 | DI71: 0 | DK71: 0 | DM71: 0 | DO71: 0 | DQ71: 0 | DS71: 0 | DU71: 0 | DW71: 0 | DY71: 0 | EA71: 0
D72: Lenço na cor preta, tecido em poliéster | E72: 4 | F72: =F71 -> 0.43 | G72: 16 | H72: 28 | I72: =I23 -> 34.95 | M72: =IF(SUM(L$56:L$60)>0,$H72*$I72,0)/SUM($I$57:$I67) -> 0 | O72: =IF(SUM(N$56:N$60)>0,$H72*$I72,0)/SUM($I$57:$I67) -> 0 | Q72: 61.1625 | S72: 61.1625 | U72: =IF(SUM(T$56:T$60)>0,$H72*$I72,0)/SUM($I$57:$I$59) -> 61.1625 | W72: 0 | Y72: 0 | AA72: 0 | AC72: 0 | AE72: 0 | AG72: 0 | AI72: 0 | AK72: 0 | AM72: 0 | AO72: 0 | AQ72: 0 | AS72: 0 | AU72: 0 | AW72: 0 | AY72: 0 | BA72: 0 | BC72: 0 | BE72: 0 | BG72: 0 | BI72: 0 | BK72: 0 | BM72: 0 | BO72: 0 | BQ72: 0 | BS72: 0 | BU72: 0 | BW72: 0 | BY72: 0 | CA72: 0 | CC72: 0 | CE72: 0 | CG72: 0 | CI72: 0 | CK72: 0 | CM72: 0 | CO72: 0 | CQ72: =IF(SUM(CP$56:CP$60)>0,$H72*$I72,0) -> 0 | CS72: 0 | CU72: 0 | CW72: 0 | CY72: 0 | DA72: 0 | DC72: 0 | DE72: 0 | DG72: 0 | DI72: 0 | DK72: 0 | DM72: 0 | DO72: 0 | DQ72: 0 | DS72: 0 | DU72: 0 | DW72: 0 | DY72: 0 | EA72: 0
D73: Cinto em couro na cor preta | E73: 2 | F73: 0.43 | G73: 16 | H73: =ROUNDUP(E73*F73*G73,0) -> 14 | I73: 36.5 | M73: =IF(SUM(L$56:L$60)>0,$H73*$I73,0)/SUM($I$57:$I68) -> 0 | O73: =IF(SUM(N$56:N$60)>0,$H73*$I73,0)/SUM($I$57:$I68) -> 0 | Q73: 31.9375 | S73: 31.9375 | U73: =IF(SUM(T$56:T$60)>0,$H73*$I73,0)/SUM($I$57:$I$59) -> 31.9375 | W73: 0 | Y73: 0 | AA73: 0 | AC73: 0 | AE73: 0 | AG73: =IF(SUM(AF$56:AF$60)>0,$H73*$I73,0) -> 0 | AI73: 0 | AK73: 0 | AM73: 0 | AO73: 0 | AQ73: 0 | AS73: 0 | AU73: 0 | AW73: 0 | AY73: 0 | BA73: 0 | BC73: 0 | BE73: 0 | BG73: 0 | BI73: 0 | BK73: 0 | BM73: 0 | BO73: 0 | BQ73: 0 | BS73: 0 | BU73: 0 | BW73: 0 | BY73: 0 | CA73: 0 | CC73: 0 | CE73: 0 | CG73: 0 | CI73: 0 | CK73: 0 | CM73: 0 | CO73: 0 | CQ73: 0 | CS73: 0 | CU73: 0 | CW73: 0 | CY73: 0 | DA73: 0 | DC73: 0 | DE73: 0 | DG73: 0 | DI73: 0 | DK73: 0 | DM73: 0 | DO73: 0 | DQ73: 0 | DS73: 0 | DU73: 0 | DW73: 0 | DY73: 0 | EA73: 0
D74: Meia social na cor preta | E74: 4 | F74: 0.43 | G74: 16 | H74: 28 | I74: 25.95 | M74: =IF(SUM(L$56:L$60)>0,$H74*$I74,0)/SUM($I$57:$I69) -> 0 | O74: =IF(SUM(N$56:N$60)>0,$H74*$I74,0)/SUM($I$57:$I69) -> 0 | Q74: 45.4125 | S74: 45.4125 | U74: =IF(SUM(T$56:T$60)>0,$H74*$I74,0)/SUM($I$57:$I$59) -> 45.4125 | W74: 0 | Y74: 0 | AA74: 0 | AC74: 0 | AE74: 0 | AG74: 0 | AI74: 0 | AK74: 0 | AM74: 0 | AO74: 0 | AQ74: 0 | AS74: 0 | AU74: 0 | AW74: 0 | AY74: 0 | BA74: 0 | BC74: 0 | BE74: 0 | BG74: 0 | BI74: 0 | BK74: 0 | BM74: 0 | BO74: 0 | BQ74: 0 | BS74: 0 | BU74: 0 | BW74: 0 | BY74: 0 | CA74: 0 | CC74: 0 | CE74: 0 | CG74: 0 | CI74: 0 | CK74: 0 | CM74: 0 | CO74: 0 | CQ74: 0 | CS74: 0 | CU74: 0 | CW74: 0 | CY74: 0 | DA74: 0 | DC74: 0 | DE74: 0 | DG74: 0 | DI74: 0 | DK74: 0 | DM74: 0 | DO74: 0 | DQ74: 0 | DS74: 0 | DU74: 0 | DW74: 0 | DY74: 0 | EA74: 0
D75: Sapato social preto, em couro acolchoado, com solo antiderrapante | E75: 4 | F75: 0.43 | G75: 16 | H75: 28 | I75: 149.9666667 | M75: =IF(SUM(L$56:L$60)>0,$H75*$I75,0)/SUM($I$57:$I70) -> 0 | O75: =IF(SUM(N$56:N$60)>0,$H75*$I75,0)/SUM($I$57:$I70) -> 0 | Q75: 262.4416667 | S75: 262.4416667 | U75: =IF(SUM(T$56:T$60)>0,$H75*$I75,0)/SUM($I$57:$I$59) -> 262.4416667 | W75: 0 | Y75: 0 | AA75: 0 | AC75: 0 | AE75: 0 | AG75: 0 | AI75: 0 | AK75: 0 | AM75: 0 | AO75: 0 | AQ75: 0 | AS75: 0 | AU75: 0 | AW75: 0 | AY75: 0 | BA75: 0 | BC75: 0 | BE75: 0 | BG75: 0 | BI75: 0 | BK75: 0 | BM75: 0 | BO75: 0 | BQ75: 0 | BS75: 0 | BU75: 0 | BW75: 0 | BY75: 0 | CA75: 0 | CC75: 0 | CE75: 0 | CG75: 0 | CI75: 0 | CK75: 0 | CM75: 0 | CO75: 0 | CQ75: 0 | CS75: 0 | CU75: 0 | CW75: 0 | CY75: 0 | DA75: 0 | DC75: 0 | DE75: 0 | DG75: 0 | DI75: 0 | DK75: 0 | DM75: 0 | DO75: 0 | DQ75: 0 | DS75: 0 | DU75: 0 | DW75: 0 | DY75: 0 | EA75: 0
M76: =IF(SUM(L$8:L$11)>0,$E76*$I76,0) -> 0 | O76: =IF(SUM(N$8:N$11)>0,$E76*$I76,0) -> 0 | Q76: 0 | S76: 0 | U76: =IF(SUM(T$56:T$60)>0,$H76*$I76,0)/SUM($I$57:$I$59) -> 0 | W76: =IF(SUM(V$8:V$11)>0,$E76*$I76,0) -> 0 | Y76: =IF(SUM(X$8:X$11)>0,$E76*$I76,0) -> 0 | AA76: =IF(SUM(Z$8:Z$11)>0,$E76*$I76,0) -> 0 | AC76: =IF(SUM(AB$8:AB$11)>0,$E76*$I76,0) -> 0 | AE76: =IF(SUM(AD$8:AD$11)>0,$E76*$I76,0) -> 0 | AG76: =IF(SUM(AF$8:AF$11)>0,$E76*$I76,0) -> 0 | AI76: =IF(SUM(AH$8:AH$11)>0,$E76*$I76,0) -> 0 | AK76: =IF(SUM(AJ$8:AJ$11)>0,$E76*$I76,0) -> 0 | AM76: =IF(SUM(AL$8:AL$11)>0,$E76*$I76,0) -> 0 | AO76: =IF(SUM(AN$8:AN$11)>0,$E76*$I76,0) -> 0 | AQ76: =IF(SUM(AP$8:AP$11)>0,$E76*$I76,0) -> 0 | AS76: =IF(SUM(AR$8:AR$11)>0,$E76*$I76,0) -> 0 | AU76: =IF(SUM(AT$8:AT$11)>0,$E76*$I76,0) -> 0 | AW76: =IF(SUM(AV$8:AV$11)>0,$E76*$I76,0) -> 0 | AY76: =IF(SUM(AX$8:AX$11)>0,$E76*$I76,0) -> 0 | BA76: =IF(SUM(AZ$8:AZ$11)>0,$E76*$I76,0) -> 0 | BC76: =IF(SUM(BB$8:BB$11)>0,$E76*$I76,0) -> 0 | BE76: =IF(SUM(BD$8:BD$11)>0,$E76*$I76,0) -> 0 | BG76: =IF(SUM(BF$8:BF$11)>0,$E76*$I76,0) -> 0 | BI76: =IF(SUM(BH$8:BH$11)>0,$E76*$I76,0) -> 0 | BK76: =IF(SUM(BJ$8:BJ$11)>0,$E76*$I76,0) -> 0 | BM76: =IF(SUM(BL$8:BL$11)>0,$E76*$I76,0) -> 0 | BO76: =IF(SUM(BN$8:BN$11)>0,$E76*$I76,0) -> 0 | BQ76: =IF(SUM(BP$8:BP$11)>0,$E76*$I76,0) -> 0 | BS76: =IF(SUM(BR$8:BR$11)>0,$E76*$I76,0) -> 0 | BU76: =IF(SUM(BT$8:BT$11)>0,$E76*$I76,0) -> 0 | BW76: =IF(SUM(BV$8:BV$11)>0,$E76*$I76,0) -> 0 | BY76: =IF(SUM(BX$8:BX$11)>0,$E76*$I76,0) -> 0 | CA76: =IF(SUM(BZ$8:BZ$11)>0,$E76*$I76,0) -> 0 | CC76: =IF(SUM(CB$8:CB$11)>0,$E76*$I76,0) -> 0 | CE76: =IF(SUM(CD$8:CD$11)>0,$E76*$I76,0) -> 0 | CG76: =IF(SUM(CF$8:CF$11)>0,$E76*$I76,0) -> 0 | CI76: =IF(SUM(CH$8:CH$11)>0,$E76*$I76,0) -> 0 | CK76: =IF(SUM(CJ$8:CJ$11)>0,$E76*$I76,0) -> 0 | CM76: =IF(SUM(CL$8:CL$11)>0,$E76*$I76,0) -> 0 | CO76: =IF(SUM(CN$8:CN$11)>0,$E76*$I76,0) -> 0 | CQ76: =IF(SUM(CP$8:CP$11)>0,$E76*$I76,0) -> 0 | CS76: =IF(SUM(CR$8:CR$11)>0,$E76*$I76,0) -> 0 | CU76: =IF(SUM(CT$8:CT$11)>0,$E76*$I76,0) -> 0 | CW76: =IF(SUM(CV$8:CV$11)>0,$E76*$I76,0) -> 0 | CY76: =IF(SUM(CX$8:CX$11)>0,$E76*$I76,0) -> 0 | DA76: =IF(SUM(CZ$8:CZ$11)>0,$E76*$I76,0) -> 0 | DC76: =IF(SUM(DB$8:DB$11)>0,$E76*$I76,0) -> 0 | DE76: =IF(SUM(DD$8:DD$11)>0,$E76*$I76,0) -> 0 | DG76: =IF(SUM(DF$8:DF$11)>0,$E76*$I76,0) -> 0 | DI76: =IF(SUM(DH$8:DH$11)>0,$E76*$I76,0) -> 0 | DK76: =IF(SUM(DJ$8:DJ$11)>0,$E76*$I76,0) -> 0 | DM76: =IF(SUM(DL$8:DL$11)>0,$E76*$I76,0) -> 0 | DO76: =IF(SUM(DN$8:DN$11)>0,$E76*$I76,0) -> 0 | DQ76: =IF(SUM(DP$8:DP$11)>0,$E76*$I76,0) -> 0 | DS76: =IF(SUM(DR$8:DR$11)>0,$E76*$I76,0) -> 0 | DU76: =IF(SUM(DT$8:DT$11)>0,$E76*$I76,0) -> 0 | DW76: =IF(SUM(DV$8:DV$11)>0,$E76*$I76,0) -> 0 | DY76: =IF(SUM(DX$8:DX$11)>0,$E76*$I76,0) -> 0 | EA76: =IF(SUM(DZ$8:DZ$11)>0,$E76*$I76,0) -> 0
C78: CATEGORIAS | I78: QUANTIDADE
L79: =IF($C79=L$4,1,0) -> 0 | N79: 0 | P79: 0 | R79: 0 | T79: 0 | V79: 0 | X79: 0 | Z79: 0 | AB79: =IF($C79=AB$4,1,0) -> 0 | AD79: 0 | AF79: 0 | AH79: 0 | AJ79: 0 | AL79: =IF($C79=AL$4,1,0) -> 0 | AN79: 0 | AP79: 0 | AR79: 0 | AT79: 0 | AV79: 0 | AX79: 0 | AZ79: 0 | BB79: 0 | BD79: 0 | BF79: 0 | BH79: 0 | BJ79: 0 | BL79: 0 | BN79: 0 | BP79: 0 | BR79: 0 | BT79: 0 | BV79: 0 | BX79: 0 | BZ79: 0 | CB79: 0 | CD79: 0 | CF79: 0 | CH79: 0 | CJ79: 0 | CL79: 0 | CN79: 0 | CP79: 0 | CR79: 0 | CT79: 0 | CV79: 0 | CX79: =IF($C79=CX$4,1,0) -> 0 | CZ79: 0 | DB79: 0 | DD79: 0 | DF79: 0 | DH79: 0 | DJ79: 0 | DL79: 0 | DN79: 0 | DP79: 0 | DR79: 0 | DT79: 0 | DV79: 0 | DX79: 0 | DZ79: 0
C80: 6 | D80: =HLOOKUP($C80,'Dados Gerais'!$D$5:$BK$10,6) -> ALMOXARIFE | F80: 1 | G80: 1 | I80: =HLOOKUP($C80,'Dados Gerais'!$D$5:$BK$14,10) -> 2 | L80: 0 | N80: 0 | P80: 0 | R80: 0 | T80: 0 | V80: 1 | X80: 0 | Z80: 0 | AB80: 0 | AD80: 0 | AF80: =IF($C80=AF$4,1,0) -> 0 | AH80: 0 | AJ80: 0 | AL80: 0 | AN80: 0 | AP80: 0 | AR80: 0 | AT80: 0 | AV80: 0 | AX80: 0 | AZ80: 0 | BB80: 0 | BD80: 0 | BF80: 0 | BH80: 0 | BJ80: 0 | BL80: 0 | BN80: 0 | BP80: 0 | BR80: 0 | BT80: 0 | BV80: 0 | BX80: 0 | BZ80: 0 | CB80: 0 | CD80: 0 | CF80: 0 | CH80: 0 | CJ80: 0 | CL80: 0 | CN80: 0 | CP80: 0 | CR80: 0 | CT80: 0 | CV80: 0 | CX80: 0 | CZ80: 0 | DB80: 0 | DD80: 0 | DF80: 0 | DH80: 0 | DJ80: 0 | DL80: 0 | DN80: 0 | DP80: 0 | DR80: 0 | DT80: 0 | DV80: 0 | DX80: 0 | DZ80: 0
C81: 7 | D81: =HLOOKUP($C81,'Dados Gerais'!$D$5:$BK$10,6) -> SERVENTE | F81: =I81-G81 -> 87 | G81: 64 | I81: =HLOOKUP($C81,'Dados Gerais'!$D$5:$BK$14,10) -> 151 | L81: 0 | N81: 0 | P81: 0 | R81: 0 | T81: 0 | V81: =IF($C81=V$4,1,0) -> 0 | X81: 1 | Z81: 0 | AB81: 0 | AD81: 0 | AF81: 0 | AH81: 0 | AJ81: 0 | AL81: 0 | AN81: 0 | AP81: 0 | AR81: 0 | AT81: 0 | AV81: 0 | AX81: 0 | AZ81: 0 | BB81: 0 | BD81: 0 | BF81: 0 | BH81: 0 | BJ81: 0 | BL81: 0 | BN81: 0 | BP81: 0 | BR81: 0 | BT81: 0 | BV81: 0 | BX81: 0 | BZ81: 0 | CB81: 0 | CD81: 0 | CF81: 0 | CH81: 0 | CJ81: 0 | CL81: 0 | CN81: 0 | CP81: 0 | CR81: 0 | CT81: 0 | CV81: 0 | CX81: 0 | CZ81: 0 | DB81: 0 | DD81: 0 | DF81: 0 | DH81: 0 | DJ81: 0 | DL81: 0 | DN81: 0 | DP81: 0 | DR81: 0 | DT81: 0 | DV81: 0 | DX81: 0 | DZ81: 0
C82: 8 | D82: =HLOOKUP($C82,'Dados Gerais'!$D$5:$BK$10,6) -> SERVENTE COM ADICIONAL DE INSALUBRIDADE | F82: =I82-G82 -> 15 | G82: 10 | I82: =HLOOKUP($C82,'Dados Gerais'!$D$5:$BK$14,10) -> 25 | L82: 0 | N82: 0 | P82: 0 | R82: 0 | T82: 0 | V82: 0 | X82: 0 | Z82: 1 | AB82: 0 | AD82: 0 | AF82: =IF($C82=AF$4,1,0) -> 0 | AH82: 0 | AJ82: 0 | AL82: 0 | AN82: 0 | AP82: 0 | AR82: 0 | AT82: 0 | AV82: 0 | AX82: 0 | AZ82: 0 | BB82: 0 | BD82: 0 | BF82: 0 | BH82: 0 | BJ82: 0 | BL82: 0 | BN82: 0 | BP82: 0 | BR82: 0 | BT82: 0 | BV82: 0 | BX82: 0 | BZ82: 0 | CB82: 0 | CD82: 0 | CF82: 0 | CH82: 0 | CJ82: 0 | CL82: 0 | CN82: 0 | CP82: 0 | CR82: 0 | CT82: 0 | CV82: 0 | CX82: 0 | CZ82: 0 | DB82: 0 | DD82: 0 | DF82: 0 | DH82: 0 | DJ82: 0 | DL82: 0 | DN82: 0 | DP82: 0 | DR82: 0 | DT82: 0 | DV82: 0 | DX82: 0 | DZ82: 0
C83: 9 | D83: =HLOOKUP($C83,'Dados Gerais'!$D$5:$BK$10,6) -> SERVENTE COM ADICIONAL DE INSALUBRIDADE E ADICIONAL NOTURNO | F83: -1 | G83: 3 | I83: =HLOOKUP($C83,'Dados Gerais'!$D$5:$BK$14,10) -> 2 | L83: 0 | N83: 0 | P83: 0 | R83: 0 | T83: 0 | V83: 0 | X83: 0 | Z83: 0 | AB83: 1 | AD83: 0 | AF83: 0 | AH83: 0 | AJ83: 0 | AL83: 0 | AN83: 0 | AP83: 0 | AR83: 0 | AT83: 0 | AV83: 0 | AX83: 0 | AZ83: 0 | BB83: 0 | BD83: 0 | BF83: 0 | BH83: 0 | BJ83: 0 | BL83: 0 | BN83: 0 | BP83: 0 | BR83: 0 | BT83: 0 | BV83: 0 | BX83: 0 | BZ83: 0 | CB83: 0 | CD83: 0 | CF83: 0 | CH83: 0 | CJ83: 0 | CL83: 0 | CN83: 0 | CP83: 0 | CR83: 0 | CT83: 0 | CV83: 0 | CX83: 0 | CZ83: 0 | DB83: 0 | DD83: 0 | DF83: 0 | DH83: 0 | DJ83: 0 | DL83: 0 | DN83: 0 | DP83: 0 | DR83: 0 | DT83: 0 | DV83: 0 | DX83: 0 | DZ83: 0
L84: 0 | N84: 0 | P84: 0 | R84: 0 | T84: 0 | V84: 0 | X84: 0 | Z84: 0 | AB84: 0 | AD84: 0 | AF84: 0 | AH84: 0 | AJ84: 0 | AL84: 0 | AN84: 0 | AP84: 0 | AR84: 0 | AT84: 0 | AV84: 0 | AX84: 0 | AZ84: 0 | BB84: 0 | BD84: 0 | BF84: 0 | BH84: 0 | BJ84: 0 | BL84: 0 | BN84: 0 | BP84: 0 | BR84: 0 | BT84: 0 | BV84: 0 | BX84: 0 | BZ84: 0 | CB84: 0 | CD84: 0 | CF84: 0 | CH84: 0 | CJ84: 0 | CL84: 0 | CN84: 0 | CP84: 0 | CR84: 0 | CT84: 0 | CV84: 0 | CX84: 0 | CZ84: 0 | DB84: 0 | DD84: 0 | DF84: 0 | DH84: 0 | DJ84: 0 | DL84: 0 | DN84: 0 | DP84: 0 | DR84: 0 | DT84: 0 | DV84: 0 | DX84: 0 | DZ84: 0
C86: ITEM | D86: DESCRIÇÃO | E86: QUANT ANUAL POR POSTO | F86: % ESTIMADO POR GÊNERO | G86: Nº DE POSTOS | H86: QUANT ANUAL TOTAL ESTIMADA | I86: VALOR
M87: =IF(SUM(L$8:L$11)>0,$E87*$I87,0) -> 0 | O87: =IF(SUM(N$8:N$11)>0,$E87*$I87,0) -> 0 | Q87: 0 | S87: 0 | U87: =IF(SUM(T$56:T$60)>0,$H87*$I87,0)/SUM($I$57:$I$59) -> 0 | W87: =IF(SUM(V$8:V$11)>0,$E87*$I87,0) -> 0 | Y87: =IF(SUM(X$8:X$11)>0,$E87*$I87,0) -> 0 | AA87: =IF(SUM(Z$8:Z$11)>0,$E87*$I87,0) -> 0 | AC87: =IF(SUM(AB$8:AB$11)>0,$E87*$I87,0) -> 0 | AE87: =IF(SUM(AD$8:AD$11)>0,$E87*$I87,0) -> 0 | AG87: =IF(SUM(AF$8:AF$11)>0,$E87*$I87,0) -> 0 | AI87: =IF(SUM(AH$8:AH$11)>0,$E87*$I87,0) -> 0 | AK87: =IF(SUM(AJ$8:AJ$11)>0,$E87*$I87,0) -> 0 | AM87: =IF(SUM(AL$8:AL$11)>0,$E87*$I87,0) -> 0 | AO87: =IF(SUM(AN$8:AN$11)>0,$E87*$I87,0) -> 0 | AQ87: =IF(SUM(AP$8:AP$11)>0,$E87*$I87,0) -> 0 | AS87: =IF(SUM(AR$8:AR$11)>0,$E87*$I87,0) -> 0 | AU87: =IF(SUM(AT$8:AT$11)>0,$E87*$I87,0) -> 0 | AW87: =IF(SUM(AV$8:AV$11)>0,$E87*$I87,0) -> 0 | AY87: =IF(SUM(AX$8:AX$11)>0,$E87*$I87,0) -> 0 | BA87: =IF(SUM(AZ$8:AZ$11)>0,$E87*$I87,0) -> 0 | BC87: =IF(SUM(BB$8:BB$11)>0,$E87*$I87,0) -> 0 | BE87: =IF(SUM(BD$8:BD$11)>0,$E87*$I87,0) -> 0 | BG87: =IF(SUM(BF$8:BF$11)>0,$E87*$I87,0) -> 0 | BI87: =IF(SUM(BH$8:BH$11)>0,$E87*$I87,0) -> 0 | BK87: =IF(SUM(BJ$8:BJ$11)>0,$E87*$I87,0) -> 0 | BM87: =IF(SUM(BL$8:BL$11)>0,$E87*$I87,0) -> 0 | BO87: =IF(SUM(BN$8:BN$11)>0,$E87*$I87,0) -> 0 | BQ87: =IF(SUM(BP$8:BP$11)>0,$E87*$I87,0) -> 0 | BS87: =IF(SUM(BR$8:BR$11)>0,$E87*$I87,0) -> 0 | BU87: =IF(SUM(BT$8:BT$11)>0,$E87*$I87,0) -> 0 | BW87: =IF(SUM(BV$8:BV$11)>0,$E87*$I87,0) -> 0 | BY87: =IF(SUM(BX$8:BX$11)>0,$E87*$I87,0) -> 0 | CA87: =IF(SUM(BZ$8:BZ$11)>0,$E87*$I87,0) -> 0 | CC87: =IF(SUM(CB$8:CB$11)>0,$E87*$I87,0) -> 0 | CE87: =IF(SUM(CD$8:CD$11)>0,$E87*$I87,0) -> 0 | CG87: =IF(SUM(CF$8:CF$11)>0,$E87*$I87,0) -> 0 | CI87: =IF(SUM(CH$8:CH$11)>0,$E87*$I87,0) -> 0 | CK87: =IF(SUM(CJ$8:CJ$11)>0,$E87*$I87,0) -> 0 | CM87: =IF(SUM(CL$8:CL$11)>0,$E87*$I87,0) -> 0 | CO87: =IF(SUM(CN$8:CN$11)>0,$E87*$I87,0) -> 0 | CQ87: =IF(SUM(CP$8:CP$11)>0,$E87*$I87,0) -> 0 | CS87: =IF(SUM(CR$8:CR$11)>0,$E87*$I87,0) -> 0 | CU87: =IF(SUM(CT$8:CT$11)>0,$E87*$I87,0) -> 0 | CW87: =IF(SUM(CV$8:CV$11)>0,$E87*$I87,0) -> 0 | CY87: =IF(SUM(CX$8:CX$11)>0,$E87*$I87,0) -> 0 | DA87: =IF(SUM(CZ$8:CZ$11)>0,$E87*$I87,0) -> 0 | DC87: =IF(SUM(DB$8:DB$11)>0,$E87*$I87,0) -> 0 | DE87: =IF(SUM(DD$8:DD$11)>0,$E87*$I87,0) -> 0 | DG87: =IF(SUM(DF$8:DF$11)>0,$E87*$I87,0) -> 0 | DI87: =IF(SUM(DH$8:DH$11)>0,$E87*$I87,0) -> 0 | DK87: =IF(SUM(DJ$8:DJ$11)>0,$E87*$I87,0) -> 0 | DM87: =IF(SUM(DL$8:DL$11)>0,$E87*$I87,0) -> 0 | DO87: =IF(SUM(DN$8:DN$11)>0,$E87*$I87,0) -> 0 | DQ87: =IF(SUM(DP$8:DP$11)>0,$E87*$I87,0) -> 0 | DS87: =IF(SUM(DR$8:DR$11)>0,$E87*$I87,0) -> 0 | DU87: =IF(SUM(DT$8:DT$11)>0,$E87*$I87,0) -> 0 | DW87: =IF(SUM(DV$8:DV$11)>0,$E87*$I87,0) -> 0 | DY87: =IF(SUM(DX$8:DX$11)>0,$E87*$I87,0) -> 0 | EA87: =IF(SUM(DZ$8:DZ$11)>0,$E87*$I87,0) -> 0
C88: MASCULINO | D88: Calça com elástico e bolso laterais, na cor azul marinho, tecido brim 100% algodão | E88: 4 | F88: =ROUNDUP(78/180,2) -> 0.44 | G88: =SUM($I$80:$I$83) -> 180 | H88: =ROUNDUP(E88*F88*G88,0) -> 317 | I88: 59.85 | M88: =IF(SUM(L$79:L$83)>0,$H88*$I88,0)/SUM($I$80:$I$83) -> 0 | O88: =IF(SUM(N$79:N$83)>0,$H88*$I88,0)/SUM($I$80:$I$83) -> 0 | Q88: =IF(SUM(P$79:P$85)>0,$H88*$I88,0)/SUM($I$57:$I$59) -> 0 | S88: =IF(SUM(R$79:R$85)>0,$H88*$I88,0)/SUM($I$57:$I$59) -> 0 | U88: =IF(SUM(T$79:T$85)>0,$H88*$I88,0)/SUM($I$57:$I$59) -> 0 | W88: =IF(SUM(V$79:V$83)>0,$H88*$I88,0)/SUM($I$80:$I$83) -> 105.4025 | Y88: =IF(SUM(X$79:X$83)>0,$H88*$I88,0)/SUM($I$80:$I$83) -> 105.4025 | AA88: =IF(SUM(Z$79:Z$83)>0,$H88*$I88,0)/SUM($I$80:$I$83) -> 105.4025 | AC88: =IF(SUM(AB$79:AB$83)>0,$H88*$I88,0)/SUM($I$80:$I$83) -> 105.4025 | AE88: =IF(SUM(AD$79:AD$83)>0,$H88*$I88,0)/SUM($I$80:$I$83) -> 0 | AG88: =IF(SUM(AF$79:AF$83)>0,$H88*$I88,0)/SUM($I$80:$I$83) -> 0 | AI88: =IF(SUM(AH$79:AH$83)>0,$H88*$I88,0)/SUM($I$80:$I$83) -> 0 | AK88: =IF(SUM(AJ$79:AJ$83)>0,$H88*$I88,0)/SUM($I$80:$I$83) -> 0 | AM88: =IF(SUM(AL$79:AL$83)>0,$H88*$I88,0)/SUM($I$80:$I$83) -> 0 | AO88: =IF(SUM(AN$79:AN$83)>0,$H88*$I88,0)/SUM($I$80:$I$83) -> 0 | AQ88: =IF(SUM(AP$79:AP$83)>0,$H88*$I88,0)/SUM($I$80:$I$83) -> 0 | AS88: =IF(SUM(AR$79:AR$83)>0,$H88*$I88,0)/SUM($I$80:$I$83) -> 0 | AU88: =IF(SUM(AT$79:AT$83)>0,$H88*$I88,0)/SUM($I$80:$I$83) -> 0 | AW88: =IF(SUM(AV$79:AV$83)>0,$H88*$I88,0)/SUM($I$80:$I$83) -> 0 | AY88: =IF(SUM(AX$79:AX$83)>0,$H88*$I88,0)/SUM($I$80:$I$83) -> 0 | BA88: =IF(SUM(AZ$79:AZ$83)>0,$H88*$I88,0)/SUM($I$80:$I$83) -> 0 | BC88: =IF(SUM(BB$79:BB$83)>0,$H88*$I88,0)/SUM($I$80:$I$83) -> 0 | BE88: =IF(SUM(BD$79:BD$83)>0,$H88*$I88,0)/SUM($I$80:$I$83) -> 0 | BG88: =IF(SUM(BF$79:BF$83)>0,$H88*$I88,0)/SUM($I$80:$I$83) -> 0 | BI88: =IF(SUM(BH$79:BH$83)>0,$H88*$I88,0)/SUM($I$80:$I$83) -> 0 | BK88: =IF(SUM(BJ$79:BJ$83)>0,$H88*$I88,0)/SUM($I$80:$I$83) -> 0 | BM88: =IF(SUM(BL$79:BL$83)>0,$H88*$I88,0)/SUM($I$80:$I$83) -> 0 | BO88: =IF(SUM(BN$79:BN$83)>0,$H88*$I88,0)/SUM($I$80:$I$83) -> 0 | BQ88: =IF(SUM(BP$79:BP$83)>0,$H88*$I88,0)/SUM($I$80:$I$83) -> 0 | BS88: =IF(SUM(BR$79:BR$83)>0,$H88*$I88,0)/SUM($I$80:$I$83) -> 0 | BU88: =IF(SUM(BT$79:BT$83)>0,$H88*$I88,0)/SUM($I$80:$I$83) -> 0 | BW88: =IF(SUM(BV$79:BV$83)>0,$H88*$I88,0)/SUM($I$80:$I$83) -> 0 | BY88: =IF(SUM(BX$79:BX$83)>0,$H88*$I88,0)/SUM($I$80:$I$83) -> 0 | CA88: =IF(SUM(BZ$79:BZ$83)>0,$H88*$I88,0)/SUM($I$80:$I$83) -> 0 | CC88: =IF(SUM(CB$79:CB$83)>0,$H88*$I88,0)/SUM($I$80:$I$83) -> 0 | CE88: =IF(SUM(CD$79:CD$83)>0,$H88*$I88,0)/SUM($I$80:$I$83) -> 0 | CG88: =IF(SUM(CF$79:CF$83)>0,$H88*$I88,0)/SUM($I$80:$I$83) -> 0 | CI88: =IF(SUM(CH$79:CH$83)>0,$H88*$I88,0)/SUM($I$80:$I$83) -> 0 | CK88: =IF(SUM(CJ$79:CJ$83)>0,$H88*$I88,0)/SUM($I$80:$I$83) -> 0 | CM88: =IF(SUM(CL$79:CL$83)>0,$H88*$I88,0)/SUM($I$80:$I$83) -> 0 | CO88: =IF(SUM(CN$79:CN$83)>0,$H88*$I88,0)/SUM($I$80:$I$83) -> 0 | CQ88: =IF(SUM(CP$79:CP$83)>0,$H88*$I88,0)/SUM($I$80:$I$83) -> 0 | CS88: =IF(SUM(CR$79:CR$83)>0,$H88*$I88,0)/SUM($I$80:$I$83) -> 0 | CU88: =IF(SUM(CT$79:CT$83)>0,$H88*$I88,0)/SUM($I$80:$I$83) -> 0 | CW88: =IF(SUM(CV$79:CV$83)>0,$H88*$I88,0)/SUM($I$80:$I$83) -> 0 | CY88: =IF(SUM(CX$79:CX$83)>0,$H88*$I88,0)/SUM($I$80:$I$83) -> 0 | DA88: =IF(SUM(CZ$79:CZ$83)>0,$H88*$I88,0)/SUM($I$80:$I$83) -> 0 | DC88: =IF(SUM(DB$79:DB$83)>0,$H88*$I88,0)/SUM($I$80:$I$83) -> 0 | DE88: =IF(SUM(DD$79:DD$83)>0,$H88*$I88,0)/SUM($I$80:$I$83) -> 0 | DG88: =IF(SUM(DF$79:DF$83)>0,$H88*$I88,0)/SUM($I$80:$I$83) -> 0 | DI88: =IF(SUM(DH$79:DH$83)>0,$H88*$I88,0)/SUM($I$80:$I$83) -> 0 | DK88: =IF(SUM(DJ$79:DJ$83)>0,$H88*$I88,0)/SUM($I$80:$I$83) -> 0 | DM88: =IF(SUM(DL$79:DL$83)>0,$H88*$I88,0)/SUM($I$80:$I$83) -> 0 | DO88: =IF(SUM(DN$79:DN$83)>0,$H88*$I88,0)/SUM($I$80:$I$83) -> 0 | DQ88: =IF(SUM(DP$79:DP$83)>0,$H88*$I88,0)/SUM($I$80:$I$83) -> 0 | DS88: =IF(SUM(DR$79:DR$83)>0,$H88*$I88,0)/SUM($I$80:$I$83) -> 0 | DU88: =IF(SUM(DT$79:DT$83)>0,$H88*$I88,0)/SUM($I$80:$I$83) -> 0 | DW88: =IF(SUM(DV$79:DV$83)>0,$H88*$I88,0)/SUM($I$80:$I$83) -> 0 | DY88: =IF(SUM(DX$79:DX$83)>0,$H88*$I88,0)/SUM($I$80:$I$83) -> 0 | EA88: =IF(SUM(DZ$79:DZ$83)>0,$H88*$I88,0)/SUM($I$80:$I$83) -> 0
D89: Camisa nas cores cinza e azul marinho, tecido leve 100% algodão | E89: 4 | F89: =F88 -> 0.44 | G89: =G88 -> 180 | H89: =ROUNDUP(E89*F89*G89,0) -> 317 | I89: 31.45 | M89: =IF(SUM(L$79:L$83)>0,$H89*$I89,0)/SUM($I$80:$I$83) -> 0 | O89: =IF(SUM(N$79:N$83)>0,$H89*$I89,0)/SUM($I$80:$I$83) -> 0 | Q89: =IF(SUM(P$79:P$85)>0,$H89*$I89,0)/SUM($I$57:$I$59) -> 0 | S89: 0 | U89: =IF(SUM(T$79:T$85)>0,$H89*$I89,0)/SUM($I$57:$I$59) -> 0 | W89: =IF(SUM(V$79:V$83)>0,$H89*$I89,0)/SUM($I$80:$I$83) -> 55.38694444 | Y89: 55.38694444 | AA89: =IF(SUM(Z$79:Z$83)>0,$H89*$I89,0)/SUM($I$80:$I$83) -> 55.38694444 | AC89: =IF(SUM(AB$79:AB$83)>0,$H89*$I89,0)/SUM($I$80:$I$83) -> 55.38694444 | AE89: =IF(SUM(AD$79:AD$83)>0,$H89*$I89,0)/SUM($I$80:$I$83) -> 0 | AG89: =IF(SUM(AF$79:AF$83)>0,$H89*$I89,0)/SUM($I$80:$I$83) -> 0 | AI89: 0 | AK89: 0 | AM89: 0 | AO89: 0 | AQ89: 0 | AS89: 0 | AU89: 0 | AW89: 0 | AY89: 0 | BA89: 0 | BC89: 0 | BE89: 0 | BG89: 0 | BI89: 0 | BK89: 0 | BM89: 0 | BO89: 0 | BQ89: 0 | BS89: 0 | BU89: 0 | BW89: 0 | BY89: 0 | CA89: 0 | CC89: 0 | CE89: 0 | CG89: 0 | CI89: 0 | CK89: 0 | CM89: 0 | CO89: 0 | CQ89: 0 | CS89: 0 | CU89: 0 | CW89: 0 | CY89: 0 | DA89: 0 | DC89: 0 | DE89: 0 | DG89: 0 | DI89: 0 | DK89: 0 | DM89: 0 | DO89: 0 | DQ89: 0 | DS89: 0 | DU89: 0 | DW89: 0 | DY89: 0 | EA89: 0
D90: Meia social na cor preta | E90: 4 | F90: =F89 -> 0.44 | G90: =G89 -> 180 | H90: 317 | I90: =I68 -> 14.5 | M90: 0 | O90: =IF(SUM(N$79:N$83)>0,$H90*$I90,0)/SUM($I$80:$I$83) -> 0 | Q90: 0 | S90: 0 | U90: =IF(SUM(T$79:T$85)>0,$H90*$I90,0)/SUM($I$57:$I$59) -> 0 | W90: =IF(SUM(V$79:V$83)>0,$H90*$I90,0)/SUM($I$80:$I$83) -> 25.53611111 | Y90: 25.53611111 | AA90: =IF(SUM(Z$79:Z$83)>0,$H90*$I90,0)/SUM($I$80:$I$83) -> 25.53611111 | AC90: =IF(SUM(AB$79:AB$83)>0,$H90*$I90,0)/SUM($I$80:$I$83) -> 25.53611111 | AE90: =IF(SUM(AD$79:AD$83)>0,$H90*$I90,0)/SUM($I$80:$I$83) -> 0 | AG90: 0 | AI90: 0 | AK90: 0 | AM90: 0 | AO90: 0 | AQ90: 0 | AS90: 0 | AU90: 0 | AW90: 0 | AY90: 0 | BA90: 0 | BC90: 0 | BE90: 0 | BG90: 0 | BI90: 0 | BK90: 0 | BM90: 0 | BO90: 0 | BQ90: 0 | BS90: 0 | BU90: 0 | BW90: 0 | BY90: 0 | CA90: 0 | CC90: 0 | CE90: 0 | CG90: 0 | CI90: 0 | CK90: 0 | CM90: 0 | CO90: 0 | CQ90: 0 | CS90: 0 | CU90: 0 | CW90: 0 | CY90: 0 | DA90: 0 | DC90: 0 | DE90: 0 | DG90: 0 | DI90: 0 | DK90: 0 | DM90: 0 | DO90: 0 | DQ90: 0 | DS90: 0 | DU90: 0 | DW90: 0 | DY90: 0 | EA90: 0
C91: FEMININO | D91: Calça com elástico e bolso laterais, na cor azul marinho, tecido brim 100% algodão | E91: =E88 -> 4 | F91: =100%-F90 -> 0.56 | G91: 180 | H91: 404 | I91: 59.9 | M91: 0 | O91: =IF(SUM(N$79:N$83)>0,$H91*$I91,0)/SUM($I$80:$I$83) -> 0 | Q91: 0 | S91: 0 | U91: =IF(SUM(T$79:T$85)>0,$H91*$I91,0)/SUM($I$57:$I$59) -> 0 | W91: =IF(SUM(V$79:V$83)>0,$H91*$I91,0)/SUM($I$80:$I$83) -> 134.4422222 | Y91: 134.4422222 | AA91: =IF(SUM(Z$79:Z$83)>0,$H91*$I91,0)/SUM($I$80:$I$83) -> 134.4422222 | AC91: =IF(SUM(AB$79:AB$83)>0,$H91*$I91,0)/SUM($I$80:$I$83) -> 134.4422222 | AE91: =IF(SUM(AD$79:AD$83)>0,$H91*$I91,0)/SUM($I$80:$I$83) -> 0 | AG91: 0 | AI91: 0 | AK91: 0 | AM91: 0 | AO91: 0 | AQ91: 0 | AS91: 0 | AU91: 0 | AW91: 0 | AY91: 0 | BA91: 0 | BC91: 0 | BE91: 0 | BG91: 0 | BI91: 0 | BK91: 0 | BM91: 0 | BO91: 0 | BQ91: 0 | BS91: 0 | BU91: 0 | BW91: 0 | BY91: 0 | CA91: 0 | CC91: 0 | CE91: 0 | CG91: 0 | CI91: 0 | CK91: 0 | CM91: 0 | CO91: 0 | CQ91: 0 | CS91: 0 | CU91: 0 | CW91: 0 | CY91: 0 | DA91: 0 | DC91: 0 | DE91: 0 | DG91: 0 | DI91: 0 | DK91: 0 | DM91: 0 | DO91: 0 | DQ91: 0 | DS91: 0 | DU91: 0 | DW91: 0 | DY91: 0 | EA91: 0
D92: Blusa nas cores cinza e azul marinho, tecido leve 100% algodão | E92: =E89 -> 4 | F92: =F91 -> 0.56 | G92: 180 | H92: 404 | I92: 62.5 | M92: =IF(SUM(L$79:L$83)>0,$H92*$I92,0)/SUM($I$80:$I$83) -> 0 | O92: =IF(SUM(N$79:N$83)>0,$H92*$I92,0)/SUM($I$80:$I$83) -> 0 | Q92: 0 | S92: 0 | U92: =IF(SUM(T$79:T$85)>0,$H92*$I92,0)/SUM($I$57:$I$59) -> 0 | W92: =IF(SUM(V$79:V$83)>0,$H92*$I92,0)/SUM($I$80:$I$83) -> 140.2777778 | Y92: =IF(SUM(X$79:X$83)>0,$H92*$I92,0)/SUM($I$80:$I$83) -> 140.2777778 | AA92: =IF(SUM(Z$79:Z$83)>0,$H92*$I92,0)/SUM($I$80:$I$83) -> 140.2777778 | AC92: =IF(SUM(AB$79:AB$83)>0,$H92*$I92,0)/SUM($I$80:$I$83) -> 140.2777778 | AE92: =IF(SUM(AD$79:AD$83)>0,$H92*$I92,0)/SUM($I$80:$I$83) -> 0 | AG92: =IF(SUM(AF$79:AF$83)>0,$H92*$I92,0)/SUM($I$80:$I$83) -> 0 | AI92: =IF(SUM(AH$79:AH$83)>0,$H92*$I92,0)/SUM($I$80:$I$83) -> 0 | AK92: =IF(SUM(AJ$79:AJ$83)>0,$H92*$I92,0)/SUM($I$80:$I$83) -> 0 | AM92: =IF(SUM(AL$79:AL$83)>0,$H92*$I92,0)/SUM($I$80:$I$83) -> 0 | AO92: =IF(SUM(AN$79:AN$83)>0,$H92*$I92,0)/SUM($I$80:$I$83) -> 0 | AQ92: =IF(SUM(AP$79:AP$83)>0,$H92*$I92,0)/SUM($I$80:$I$83) -> 0 | AS92: =IF(SUM(AR$79:AR$83)>0,$H92*$I92,0)/SUM($I$80:$I$83) -> 0 | AU92: =IF(SUM(AT$79:AT$83)>0,$H92*$I92,0)/SUM($I$80:$I$83) -> 0 | AW92: =IF(SUM(AV$79:AV$83)>0,$H92*$I92,0)/SUM($I$80:$I$83) -> 0 | AY92: =IF(SUM(AX$79:AX$83)>0,$H92*$I92,0)/SUM($I$80:$I$83) -> 0 | BA92: =IF(SUM(AZ$79:AZ$83)>0,$H92*$I92,0)/SUM($I$80:$I$83) -> 0 | BC92: =IF(SUM(BB$79:BB$83)>0,$H92*$I92,0)/SUM($I$80:$I$83) -> 0 | BE92: =IF(SUM(BD$79:BD$83)>0,$H92*$I92,0)/SUM($I$80:$I$83) -> 0 | BG92: =IF(SUM(BF$79:BF$83)>0,$H92*$I92,0)/SUM($I$80:$I$83) -> 0 | BI92: =IF(SUM(BH$79:BH$83)>0,$H92*$I92,0)/SUM($I$80:$I$83) -> 0 | BK92: =IF(SUM(BJ$79:BJ$83)>0,$H92*$I92,0)/SUM($I$80:$I$83) -> 0 | BM92: =IF(SUM(BL$79:BL$83)>0,$H92*$I92,0)/SUM($I$80:$I$83) -> 0 | BO92: =IF(SUM(BN$79:BN$83)>0,$H92*$I92,0)/SUM($I$80:$I$83) -> 0 | BQ92: =IF(SUM(BP$79:BP$83)>0,$H92*$I92,0)/SUM($I$80:$I$83) -> 0 | BS92: =IF(SUM(BR$79:BR$83)>0,$H92*$I92,0)/SUM($I$80:$I$83) -> 0 | BU92: =IF(SUM(BT$79:BT$83)>0,$H92*$I92,0)/SUM($I$80:$I$83) -> 0 | BW92: =IF(SUM(BV$79:BV$83)>0,$H92*$I92,0)/SUM($I$80:$I$83) -> 0 | BY92: =IF(SUM(BX$79:BX$83)>0,$H92*$I92,0)/SUM($I$80:$I$83) -> 0 | CA92: =IF(SUM(BZ$79:BZ$83)>0,$H92*$I92,0)/SUM($I$80:$I$83) -> 0 | CC92: =IF(SUM(CB$79:CB$83)>0,$H92*$I92,0)/SUM($I$80:$I$83) -> 0 | CE92: =IF(SUM(CD$79:CD$83)>0,$H92*$I92,0)/SUM($I$80:$I$83) -> 0 | CG92: =IF(SUM(CF$79:CF$83)>0,$H92*$I92,0)/SUM($I$80:$I$83) -> 0 | CI92: =IF(SUM(CH$79:CH$83)>0,$H92*$I92,0)/SUM($I$80:$I$83) -> 0 | CK92: =IF(SUM(CJ$79:CJ$83)>0,$H92*$I92,0)/SUM($I$80:$I$83) -> 0 | CM92: =IF(SUM(CL$79:CL$83)>0,$H92*$I92,0)/SUM($I$80:$I$83) -> 0 | CO92: =IF(SUM(CN$79:CN$83)>0,$H92*$I92,0)/SUM($I$80:$I$83) -> 0 | CQ92: =IF(SUM(CP$79:CP$83)>0,$H92*$I92,0)/SUM($I$80:$I$83) -> 0 | CS92: =IF(SUM(CR$79:CR$83)>0,$H92*$I92,0)/SUM($I$80:$I$83) -> 0 | CU92: =IF(SUM(CT$79:CT$83)>0,$H92*$I92,0)/SUM($I$80:$I$83) -> 0 | CW92: =IF(SUM(CV$79:CV$83)>0,$H92*$I92,0)/SUM($I$80:$I$83) -> 0 | CY92: =IF(SUM(CX$79:CX$83)>0,$H92*$I92,0)/SUM($I$80:$I$83) -> 0 | DA92: =IF(SUM(CZ$79:CZ$83)>0,$H92*$I92,0)/SUM($I$80:$I$83) -> 0 | DC92: =IF(SUM(DB$79:DB$83)>0,$H92*$I92,0)/SUM($I$80:$I$83) -> 0 | DE92: =IF(SUM(DD$79:DD$83)>0,$H92*$I92,0)/SUM($I$80:$I$83) -> 0 | DG92: =IF(SUM(DF$79:DF$83)>0,$H92*$I92,0)/SUM($I$80:$I$83) -> 0 | DI92: =IF(SUM(DH$79:DH$83)>0,$H92*$I92,0)/SUM($I$80:$I$83) -> 0 | DK92: =IF(SUM(DJ$79:DJ$83)>0,$H92*$I92,0)/SUM($I$80:$I$83) -> 0 | DM92: =IF(SUM(DL$79:DL$83)>0,$H92*$I92,0)/SUM($I$80:$I$83) -> 0 | DO92: =IF(SUM(DN$79:DN$83)>0,$H92*$I92,0)/SUM($I$80:$I$83) -> 0 | DQ92: =IF(SUM(DP$79:DP$83)>0,$H92*$I92,0)/SUM($I$80:$I$83) -> 0 | DS92: =IF(SUM(DR$79:DR$83)>0,$H92*$I92,0)/SUM($I$80:$I$83) -> 0 | DU92: =IF(SUM(DT$79:DT$83)>0,$H92*$I92,0)/SUM($I$80:$I$83) -> 0 | DW92: =IF(SUM(DV$79:DV$83)>0,$H92*$I92,0)/SUM($I$80:$I$83) -> 0 | DY92: =IF(SUM(DX$79:DX$83)>0,$H92*$I92,0)/SUM($I$80:$I$83) -> 0 | EA92: =IF(SUM(DZ$79:DZ$83)>0,$H92*$I92,0)/SUM($I$80:$I$83) -> 0
D93: Meia social na cor preta | E93: 4 | F93: =F92 -> 0.56 | G93: 180 | H93: 404 | I93: =I74 -> 25.95 | M93: 0 | O93: =IF(SUM(N$79:N$83)>0,$H93*$I93,0)/SUM($I$80:$I$83) -> 0 | Q93: 0 | S93: 0 | U93: =IF(SUM(T$79:T$85)>0,$H93*$I93,0)/SUM($I$57:$I$59) -> 0 | W93: =IF(SUM(V$79:V$83)>0,$H93*$I93,0)/SUM($I$80:$I$83) -> 58.24333333 | Y93: 58.24333333 | AA93: =IF(SUM(Z$79:Z$83)>0,$H93*$I93,0)/SUM($I$80:$I$83) -> 58.24333333 | AC93: =IF(SUM(AB$79:AB$83)>0,$H93*$I93,0)/SUM($I$80:$I$83) -> 58.24333333 | AE93: =IF(SUM(AD$79:AD$83)>0,$H93*$I93,0)/SUM($I$80:$I$83) -> 0 | AG93: 0 | AI93: 0 | AK93: 0 | AM93: 0 | AO93: 0 | AQ93: 0 | AS93: 0 | AU93: 0 | AW93: 0 | AY93: 0 | BA93: 0 | BC93: 0 | BE93: 0 | BG93: 0 | BI93: 0 | BK93: 0 | BM93: 0 | BO93: 0 | BQ93: 0 | BS93: 0 | BU93: 0 | BW93: 0 | BY93: 0 | CA93: 0 | CC93: 0 | CE93: 0 | CG93: 0 | CI93: 0 | CK93: 0 | CM93: 0 | CO93: 0 | CQ93: =IF(SUM(CP$79:CP$83)>0,$H93*$I93,0)/SUM($I$80:$I$83) -> 0 | CS93: 0 | CU93: 0 | CW93: 0 | CY93: 0 | DA93: 0 | DC93: 0 | DE93: 0 | DG93: 0 | DI93: 0 | DK93: 0 | DM93: 0 | DO93: 0 | DQ93: 0 | DS93: 0 | DU93: 0 | DW93: 0 | DY93: 0 | EA93: 0
M94: =IF(SUM(L$79:L$83)>0,$H94*$I94,0)/SUM($I86:$I89) -> 0 | O94: =IF(SUM(N$79:N$83)>0,$H94*$I94,0) -> 0 | Q94: 0 | S94: 0 | U94: =IF(SUM(T$79:T$83)>0,$H94*$I94,0) -> 0 | W94: 0 | Y94: 0 | AA94: 0 | AC94: 0 | AE94: 0 | AG94: =IF(SUM(AF$79:AF$83)>0,$H94*$I94,0) -> 0 | AI94: =IF(SUM(AH$79:AH$83)>0,$H94*$I94,0) -> 0 | AK94: =IF(SUM(AJ$79:AJ$83)>0,$H94*$I94,0) -> 0 | AM94: =IF(SUM(AL$79:AL$83)>0,$H94*$I94,0) -> 0 | AO94: =IF(SUM(AN$79:AN$83)>0,$H94*$I94,0) -> 0 | AQ94: =IF(SUM(AP$79:AP$83)>0,$H94*$I94,0) -> 0 | AS94: =IF(SUM(AR$79:AR$83)>0,$H94*$I94,0) -> 0 | AU94: =IF(SUM(AT$79:AT$83)>0,$H94*$I94,0) -> 0 | AW94: =IF(SUM(AV$79:AV$83)>0,$H94*$I94,0) -> 0 | AY94: =IF(SUM(AX$79:AX$83)>0,$H94*$I94,0) -> 0 | BA94: =IF(SUM(AZ$79:AZ$83)>0,$H94*$I94,0) -> 0 | BC94: =IF(SUM(BB$79:BB$83)>0,$H94*$I94,0) -> 0 | BE94: =IF(SUM(BD$79:BD$83)>0,$H94*$I94,0) -> 0 | BG94: =IF(SUM(BF$79:BF$83)>0,$H94*$I94,0) -> 0 | BI94: =IF(SUM(BH$79:BH$83)>0,$H94*$I94,0) -> 0 | BK94: =IF(SUM(BJ$79:BJ$83)>0,$H94*$I94,0) -> 0 | BM94: =IF(SUM(BL$79:BL$83)>0,$H94*$I94,0) -> 0 | BO94: =IF(SUM(BN$79:BN$83)>0,$H94*$I94,0) -> 0 | BQ94: =IF(SUM(BP$79:BP$83)>0,$H94*$I94,0) -> 0 | BS94: =IF(SUM(BR$79:BR$83)>0,$H94*$I94,0) -> 0 | BU94: =IF(SUM(BT$79:BT$83)>0,$H94*$I94,0) -> 0 | BW94: =IF(SUM(BV$79:BV$83)>0,$H94*$I94,0) -> 0 | BY94: =IF(SUM(BX$79:BX$83)>0,$H94*$I94,0) -> 0 | CA94: =IF(SUM(BZ$79:BZ$83)>0,$H94*$I94,0) -> 0 | CC94: =IF(SUM(CB$79:CB$83)>0,$H94*$I94,0) -> 0 | CE94: =IF(SUM(CD$79:CD$83)>0,$H94*$I94,0) -> 0 | CG94: =IF(SUM(CF$79:CF$83)>0,$H94*$I94,0) -> 0 | CI94: =IF(SUM(CH$79:CH$83)>0,$H94*$I94,0) -> 0 | CK94: =IF(SUM(CJ$79:CJ$83)>0,$H94*$I94,0) -> 0 | CM94: =IF(SUM(CL$79:CL$83)>0,$H94*$I94,0) -> 0 | CO94: =IF(SUM(CN$79:CN$83)>0,$H94*$I94,0) -> 0 | CQ94: =IF(SUM(CP$79:CP$83)>0,$H94*$I94,0) -> 0 | CS94: =IF(SUM(CR$79:CR$83)>0,$H94*$I94,0) -> 0 | CU94: =IF(SUM(CT$79:CT$83)>0,$H94*$I94,0) -> 0 | CW94: =IF(SUM(CV$79:CV$83)>0,$H94*$I94,0) -> 0 | CY94: =IF(SUM(CX$79:CX$83)>0,$H94*$I94,0) -> 0 | DA94: =IF(SUM(CZ$79:CZ$83)>0,$H94*$I94,0) -> 0 | DC94: =IF(SUM(DB$79:DB$83)>0,$H94*$I94,0) -> 0 | DE94: =IF(SUM(DD$79:DD$83)>0,$H94*$I94,0) -> 0 | DG94: =IF(SUM(DF$79:DF$83)>0,$H94*$I94,0) -> 0 | DI94: =IF(SUM(DH$79:DH$83)>0,$H94*$I94,0) -> 0 | DK94: =IF(SUM(DJ$79:DJ$83)>0,$H94*$I94,0) -> 0 | DM94: =IF(SUM(DL$79:DL$83)>0,$H94*$I94,0) -> 0 | DO94: =IF(SUM(DN$79:DN$83)>0,$H94*$I94,0) -> 0 | DQ94: =IF(SUM(DP$79:DP$83)>0,$H94*$I94,0) -> 0 | DS94: =IF(SUM(DR$79:DR$83)>0,$H94*$I94,0) -> 0 | DU94: =IF(SUM(DT$79:DT$83)>0,$H94*$I94,0) -> 0 | DW94: =IF(SUM(DV$79:DV$83)>0,$H94*$I94,0) -> 0 | DY94: =IF(SUM(DX$79:DX$83)>0,$H94*$I94,0) -> 0 | EA94: =IF(SUM(DZ$79:DZ$83)>0,$H94*$I94,0) -> 0

Sheet EPI
B4: EQUIPAMENTOS DE PROTEÇÃO INDIVIDUAL - AQUISIÇÃO | J4: 1 | L4: =J4+1 -> 2 | N4: =L4+1 -> 3 | P4: =N4+1 -> 4 | R4: =P4+1 -> 5 | T4: =R4+1 -> 6 | V4: =T4+1 -> 7 | X4: =V4+1 -> 8 | Z4: =X4+1 -> 9 | AB4: =Z4+1 -> 10 | AD4: =AB4+1 -> 11 | AF4: =AD4+1 -> 12 | AH4: =AF4+1 -> 13 | AJ4: =AH4+1 -> 14 | AL4: =AJ4+1 -> 15 | AN4: =AL4+1 -> 16 | AP4: =AN4+1 -> 17 | AR4: =AP4+1 -> 18 | AT4: =AR4+1 -> 19 | AV4: =AT4+1 -> 20 | AX4: =AV4+1 -> 21 | AZ4: =AX4+1 -> 22 | BB4: =AZ4+1 -> 23 | BD4: =BB4+1 -> 24 | BF4: =BD4+1 -> 25 | BH4: =BF4+1 -> 26 | BJ4: =BH4+1 -> 27 | BL4: =BJ4+1 -> 28 | BN4: =BL4+1 -> 29 | BP4: =BN4+1 -> 30 | BR4: =BP4+1 -> 31 | BT4: =BR4+1 -> 32 | BV4: =BT4+1 -> 33 | BX4: =BV4+1 -> 34 | BZ4: =BX4+1 -> 35 | CB4: =BZ4+1 -> 36 | CD4: =CB4+1 -> 37 | CF4: =CD4+1 -> 38 | CH4: =CF4+1 -> 39 | CJ4: =CH4+1 -> 40 | CL4: =CJ4+1 -> 41 | CN4: =CL4+1 -> 42 | CP4: =CN4+1 -> 43 | CR4: =CP4+1 -> 44 | CT4: =CR4+1 -> 45 | CV4: =CT4+1 -> 46 | CX4: =CV4+1 -> 47 | CZ4: =CX4+1 -> 48 | DB4: =CZ4+1 -> 49 | DD4: =DB4+1 -> 50 | DF4: =DD4+1 -> 51 | DH4: =DF4+1 -> 52 | DJ4: =DH4+1 -> 53 | DL4: =DJ4+1 -> 54 | DN4: =DL4+1 -> 55 | DP4: =DN4+1 -> 56 | DR4: =DP4+1 -> 57 | DT4: =DR4+1 -> 58 | DV4: =DT4+1 -> 59 | DX4: =DV4+1 -> 60
J6: =ROUND(SUM(K5:K107),2) -> 117.26 | L6: =ROUND(SUM(M5:M107),2) -> 234.52 | N6: =ROUND(SUM(O5:O107),2) -> 240 | P6: =ROUND(SUM(Q5:Q107),2) -> 240 | R6: =ROUND(SUM(S5:S107),2) -> 240 | T6: =ROUND(SUM(U5:U107),2) -> 364.44 | V6: =ROUND(SUM(W5:W107),2) -> 468.91 | X6: =ROUND(SUM(Y5:Y107),2) -> 468.91 | Z6: =ROUND(SUM(AA5:AA107),2) -> 468.91 | AB6: =ROUND(SUM(AC5:AC107),2) -> 0 | AD6: =ROUND(SUM(AE5:AE107),2) -> 0 | AF6: =ROUND(SUM(AG5:AG107),2) -> 0 | AH6: =ROUND(SUM(AI5:AI107),2) -> 0 | AJ6: =ROUND(SUM(AK5:AK107),2) -> 0 | AL6: =ROUND(SUM(AM5:AM107),2) -> 0 | AN6: =ROUND(SUM(AO5:AO107),2) -> 0 | AP6: =ROUND(SUM(AQ5:AQ107),2) -> 0 | AR6: =ROUND(SUM(AS5:AS107),2) -> 0 | AT6: =ROUND(SUM(AU5:AU107),2) -> 0 | AV6: =ROUND(SUM(AW5:AW107),2) -> 0 | AX6: =ROUND(SUM(AY5:AY107),2) -> 0 | AZ6: =ROUND(SUM(BA5:BA107),2) -> 0 | BB6: =ROUND(SUM(BC5:BC107),2) -> 0 | BD6: =ROUND(SUM(BE5:BE107),2) -> 0 | BF6: =ROUND(SUM(BG5:BG107),2) -> 0 | BH6: =ROUND(SUM(BI5:BI107),2) -> 0 | BJ6: =ROUND(SUM(BK5:BK107),2) -> 0 | BL6: =ROUND(SUM(BM5:BM107),2) -> 0 | BN6: =ROUND(SUM(BO5:BO107),2) -> 0 | BP6: =ROUND(SUM(BQ5:BQ107),2) -> 0 | BR6: =ROUND(SUM(BS5:BS107),2) -> 0 | BT6: =ROUND(SUM(BU5:BU107),2) -> 0 | BV6: =ROUND(SUM(BW5:BW107),2) -> 0 | BX6: =ROUND(SUM(BY5:BY107),2) -> 0 | BZ6: =ROUND(SUM(CA5:CA107),2) -> 0 | CB6: =ROUND(SUM(CC5:CC107),2) -> 0 | CD6: =ROUND(SUM(CE5:CE107),2) -> 0 | CF6: =ROUND(SUM(CG5:CG107),2) -> 0 | CH6: =ROUND(SUM(CI5:CI107),2) -> 0 | CJ6: =ROUND(SUM(CK5:CK107),2) -> 0 | CL6: =ROUND(SUM(CM5:CM107),2) -> 0 | CN6: =ROUND(SUM(CO5:CO107),2) -> 0 | CP6: =ROUND(SUM(CQ5:CQ107),2) -> 0 | CR6: =ROUND(SUM(CS5:CS107),2) -> 0 | CT6: =ROUND(SUM(CU5:CU107),2) -> 0 | CV6: =ROUND(SUM(CW5:CW107),2) -> 0 | CX6: =ROUND(SUM(CY5:CY107),2) -> 0 | CZ6: =ROUND(SUM(DA5:DA107),2) -> 0 | DB6: =ROUND(SUM(DC5:DC107),2) -> 0 | DD6: =ROUND(SUM(DE5:DE107),2) -> 0 | DF6: =ROUND(SUM(DG5:DG107),2) -> 0 | DH6: =ROUND(SUM(DI5:DI107),2) -> 0 | DJ6: =ROUND(SUM(DK5:DK107),2) -> 0 | DL6: =ROUND(SUM(DM5:DM107),2) -> 0 | DN6: =ROUND(SUM(DO5:DO107),2) -> 0 | DP6: =ROUND(SUM(DQ5:DQ107),2) -> 0 | DR6: =ROUND(SUM(DS5:DS107),2) -> 0 | DT6: =ROUND(SUM(DU5:DU107),2) -> 0 | DV6: =ROUND(SUM(DW5:DW107),2) -> 0 | DX6: =ROUND(SUM(DY5:DY107),2) -> 0
C7: CATEGORIAS | G7: QUANTIDADE
J8: =IF($C8=J$4,1,0) -> 0 | L8: =IF($C8=L$4,1,0) -> 0 | N8: =IF($C8=N$4,1,0) -> 0 | P8: =IF($C8=P$4,1,0) -> 0 | R8: =IF($C8=R$4,1,0) -> 0 | T8: =IF($C8=T$4,1,0) -> 0 | V8: =IF($C8=V$4,1,0) -> 0 | X8: =IF($C8=X$4,1,0) -> 0 | Z8: =IF($C8=Z$4,1,0) -> 0 | AB8: =IF($C8=AB$4,1,0) -> 0 | AD8: =IF($C8=AD$4,1,0) -> 0 | AF8: =IF($C8=AF$4,1,0) -> 0 | AH8: =IF($C8=AH$4,1,0) -> 0 | AJ8: =IF($C8=AJ$4,1,0) -> 0 | AL8: =IF($C8=AL$4,1,0) -> 0 | AN8: =IF($C8=AN$4,1,0) -> 0 | AP8: =IF($C8=AP$4,1,0) -> 0 | AR8: =IF($C8=AR$4,1,0) -> 0 | AT8: =IF($C8=AT$4,1,0) -> 0 | AV8: =IF($C8=AV$4,1,0) -> 0 | AX8: =IF($C8=AX$4,1,0) -> 0 | AZ8: =IF($C8=AZ$4,1,0) -> 0 | BB8: =IF($C8=BB$4,1,0) -> 0 | BD8: =IF($C8=BD$4,1,0) -> 0 | BF8: =IF($C8=BF$4,1,0) -> 0 | BH8: =IF($C8=BH$4,1,0) -> 0 | BJ8: =IF($C8=BJ$4,1,0) -> 0 | BL8: =IF($C8=BL$4,1,0) -> 0 | BN8: =IF($C8=BN$4,1,0) -> 0 | BP8: =IF($C8=BP$4,1,0) -> 0 | BR8: =IF($C8=BR$4,1,0) -> 0 | BT8: =IF($C8=BT$4,1,0) -> 0 | BV8: =IF($C8=BV$4,1,0) -> 0 | BX8: =IF($C8=BX$4,1,0) -> 0 | BZ8: =IF($C8=BZ$4,1,0) -> 0 | CB8: =IF($C8=CB$4,1,0) -> 0 | CD8: =IF($C8=CD$4,1,0) -> 0 | CF8: =IF($C8=CF$4,1,0) -> 0 | CH8: =IF($C8=CH$4,1,0) -> 0 | CJ8: =IF($C8=CJ$4,1,0) -> 0 | CL8: =IF($C8=CL$4,1,0) -> 0 | CN8: =IF($C8=CN$4,1,0) -> 0 | CP8: =IF($C8=CP$4,1,0) -> 0 | CR8: =IF($C8=CR$4,1,0) -> 0 | CT8: =IF($C8=CT$4,1,0) -> 0 | CV8: =IF($C8=CV$4,1,0) -> 0 | CX8: =IF($C8=CX$4,1,0) -> 0 | CZ8: =IF($C8=CZ$4,1,0) -> 0 | DB8: =IF($C8=DB$4,1,0) -> 0 | DD8: =IF($C8=DD$4,1,0) -> 0 | DF8: =IF($C8=DF$4,1,0) -> 0 | DH8: =IF($C8=DH$4,1,0) -> 0 | DJ8: =IF($C8=DJ$4,1,0) -> 0 | DL8: =IF($C8=DL$4,1,0) -> 0 | DN8: =IF($C8=DN$4,1,0) -> 0 | DP8: =IF($C8=DP$4,1,0) -> 0 | DR8: =IF($C8=DR$4,1,0) -> 0 | DT8: =IF($C8=DT$4,1,0) -> 0 | DV8: =IF($C8=DV$4,1,0) -> 0 | DX8: =IF($C8=DX$4,1,0) -> 0
C9: 1 | D9: =HLOOKUP($C9,'Dados Gerais'!$D$5:$BK$10,6) -> ENCARREGADO GERAL | G9: =HLOOKUP($C9,'Dados Gerais'!$D$5:$BK$14,10) -> 1 | J9: =IF($C9=J$4,1,0) -> 1 | L9: 0 | N9: 0 | P9: 0 | R9: 0 | T9: 0 | V9: 0 | X9: 0 | Z9: 0 | AB9: 0 | AD9: 0 | AF9: 0 | AH9: 0 | AJ9: 0 | AL9: 0 | AN9: 0 | AP9: 0 | AR9: 0 | AT9: 0 | AV9: 0 | AX9: 0 | AZ9: 0 | BB9: 0 | BD9: 0 | BF9: 0 | BH9: 0 | BJ9: 0 | BL9: 0 | BN9: 0 | BP9: 0 | BR9: 0 | BT9: 0 | BV9: 0 | BX9: 0 | BZ9: 0 | CB9: 0 | CD9: 0 | CF9: 0 | CH9: 0 | CJ9: 0 | CL9: 0 | CN9: 0 | CP9: 0 | CR9: 0 | CT9: 0 | CV9: 0 | CX9: 0 | CZ9: 0 | DB9: 0 | DD9: 0 | DF9: 0 | DH9: 0 | DJ9: 0 | DL9: 0 | DN9: 0 | DP9: 0 | DR9: 0 | DT9: 0 | DV9: 0 | DX9: 0
J10: =IF($C10=J$4,1,0) -> 0 | L10: 0 | N10: 0 | P10: 0 | R10: 0 | T10: 0 | V10: 0 | X10: 0 | Z10: 0 | AB10: 0 | AD10: 0 | AF10: 0 | AH10: 0 | AJ10: 0 | AL10: 0 | AN10: 0 | AP10: 0 | AR10: 0 | AT10: 0 | AV10: 0 | AX10: 0 | AZ10: 0 | BB10: 0 | BD10: 0 | BF10: 0 | BH10: 0 | BJ10: 0 | BL10: 0 | BN10: 0 | BP10: 0 | BR10: 0 | BT10: 0 | BV10: 0 | BX10: 0 | BZ10: 0 | CB10: 0 | CD10: 0 | CF10: 0 | CH10: 0 | CJ10: 0 | CL10: 0 | CN10: 0 | CP10: 0 | CR10: 0 | CT10: 0 | CV10: 0 | CX10: 0 | CZ10: 0 | DB10: 0 | DD10: 0 | DF10: 0 | DH10: 0 | DJ10: 0 | DL10: 0 | DN10: 0 | DP10: 0 | DR10: 0 | DT10: 0 | DV10: 0 | DX10: 0
C12: ITEM | D12: DESCRIÇÃO | E12: QUANT ANUAL POR POSTO | F12: UNIDADE | G12: VALOR
K13: =IF(SUM(J$8:J$10)>0,$E13*$G13,0) -> 0 | M13: =IF(SUM(L$8:L$10)>0,$E13*$G13,0) -> 0 | O13: =IF(SUM(N$8:N$10)>0,$E13*$G13,0) -> 0 | Q13: =IF(SUM(P$8:P$10)>0,$E13*$G13,0) -> 0 | S13: =IF(SUM(R$8:R$10)>0,$E13*$G13,0) -> 0 | U13: =IF(SUM(T$8:T$10)>0,$E13*$G13,0) -> 0 | W13: =IF(SUM(V$8:V$10)>0,$E13*$G13,0) -> 0 | Y13: =IF(SUM(X$8:X$10)>0,$E13*$G13,0) -> 0 | AA13: =IF(SUM(Z$8:Z$10)>0,$E13*$G13,0) -> 0 | AC13: =IF(SUM(AB$8:AB$10)>0,$E13*$G13,0) -> 0 | AE13: =IF(SUM(AD$8:AD$10)>0,$E13*$G13,0) -> 0 | AG13: =IF(SUM(AF$8:AF$10)>0,$E13*$G13,0) -> 0 | AI13: =IF(SUM(AH$8:AH$10)>0,$E13*$G13,0) -> 0 | AK13: =IF(SUM(AJ$8:AJ$10)>0,$E13*$G13,0) -> 0 | AM13: =IF(SUM(AL$8:AL$10)>0,$E13*$G13,0) -> 0 | AO13: =IF(SUM(AN$8:AN$10)>0,$E13*$G13,0) -> 0 | AQ13: =IF(SUM(AP$8:AP$10)>0,$E13*$G13,0) -> 0 | AS13: =IF(SUM(AR$8:AR$10)>0,$E13*$G13,0) -> 0 | AU13: =IF(SUM(AT$8:AT$10)>0,$E13*$G13,0) -> 0 | AW13: =IF(SUM(AV$8:AV$10)>0,$E13*$G13,0) -> 0 | AY13: =IF(SUM(AX$8:AX$10)>0,$E13*$G13,0) -> 0 | BA13: =IF(SUM(AZ$8:AZ$10)>0,$E13*$G13,0) -> 0 | BC13: =IF(SUM(BB$8:BB$10)>0,$E13*$G13,0) -> 0 | BE13: =IF(SUM(BD$8:BD$10)>0,$E13*$G13,0) -> 0 | BG13: =IF(SUM(BF$8:BF$10)>0,$E13*$G13,0) -> 0 | BI13: =IF(SUM(BH$8:BH$10)>0,$E13*$G13,0) -> 0 | BK13: =IF(SUM(BJ$8:BJ$10)>0,$E13*$G13,0) -> 0 | BM13: =IF(SUM(BL$8:BL$10)>0,$E13*$G13,0) -> 0 | BO13: =IF(SUM(BN$8:BN$10)>0,$E13*$G13,0) -> 0 | BQ13: =IF(SUM(BP$8:BP$10)>0,$E13*$G13,0) -> 0 | BS13: =IF(SUM(BR$8:BR$10)>0,$E13*$G13,0) -> 0 | BU13: =IF(SUM(BT$8:BT$10)>0,$E13*$G13,0) -> 0 | BW13: =IF(SUM(BV$8:BV$10)>0,$E13*$G13,0) -> 0 | BY13: =IF(SUM(BX$8:BX$10)>0,$E13*$G13,0) -> 0 | CA13: =IF(SUM(BZ$8:BZ$10)>0,$E13*$G13,0) -> 0 | CC13: =IF(SUM(CB$8:CB$10)>0,$E13*$G13,0) -> 0 | CE13: =IF(SUM(CD$8:CD$10)>0,$E13*$G13,0) -> 0 | CG13: =IF(SUM(CF$8:CF$10)>0,$E13*$G13,0) -> 0 | CI13: =IF(SUM(CH$8:CH$10)>0,$E13*$G13,0) -> 0 | CK13: =IF(SUM(CJ$8:CJ$10)>0,$E13*$G13,0) -> 0 | CM13: =IF(SUM(CL$8:CL$10)>0,$E13*$G13,0) -> 0 | CO13: =IF(SUM(CN$8:CN$10)>0,$E13*$G13,0) -> 0 | CQ13: =IF(SUM(CP$8:CP$10)>0,$E13*$G13,0) -> 0 | CS13: =IF(SUM(CR$8:CR$10)>0,$E13*$G13,0) -> 0 | CU13: =IF(SUM(CT$8:CT$10)>0,$E13*$G13,0) -> 0 | CW13: =IF(SUM(CV$8:CV$10)>0,$E13*$G13,0) -> 0 | CY13: =IF(SUM(CX$8:CX$10)>0,$E13*$G13,0) -> 0 | DA13: =IF(SUM(CZ$8:CZ$10)>0,$E13*$G13,0) -> 0 | DC13: =IF(SUM(DB$8:DB$10)>0,$E13*$G13,0) -> 0 | DE13: =IF(SUM(DD$8:DD$10)>0,$E13*$G13,0) -> 0 | DG13: =IF(SUM(DF$8:DF$10)>0,$E13*$G13,0) -> 0 | DI13: =IF(SUM(DH$8:DH$10)>0,$E13*$G13,0) -> 0 | DK13: =IF(SUM(DJ$8:DJ$10)>0,$E13*$G13,0) -> 0 | DM13: =IF(SUM(DL$8:DL$10)>0,$E13*$G13,0) -> 0 | DO13: =IF(SUM(DN$8:DN$10)>0,$E13*$G13,0) -> 0 | DQ13: =IF(SUM(DP$8:DP$10)>0,$E13*$G13,0) -> 0 | DS13: =IF(SUM(DR$8:DR$10)>0,$E13*$G13,0) -> 0 | DU13: =IF(SUM(DT$8:DT$10)>0,$E13*$G13,0) -> 0 | DW13: =IF(SUM(DV$8:DV$10)>0,$E13*$G13,0) -> 0 | DY13: =IF(SUM(DX$8:DX$10)>0,$E13*$G13,0) -> 0
C14: 1 | D14: Calçado de segurança tipo sapato com resistência a objetos pontiagudos, fechamento em elástico, couro preto, forração em tecido, bico de composite, palmilha de montagem têxtil resistente à perfuração, solado de PU (poliuretano), bidensidade sem cadarço. Ref. MARLUVAS. | E14: 1 | F14: PAR | G14: 117.26 | K14: =IF(SUM(J$8:J$10)>0,$E14*$G14,0) -> 117.26 | M14: =IF(SUM(L$8:L$10)>0,$E14*$G14,0) -> 0 | O14: =IF(SUM(N$8:N$10)>0,$E14*$G14,0) -> 0 | Q14: =IF(SUM(P$8:P$10)>0,$E14*$G14,0) -> 0 | S14: =IF(SUM(R$8:R$10)>0,$E14*$G14,0) -> 0 | U14: =IF(SUM(T$8:T$10)>0,$E14*$G14,0) -> 0 | W14: =IF(SUM(V$8:V$10)>0,$E14*$G14,0) -> 0 | Y14: =IF(SUM(X$8:X$10)>0,$E14*$G14,0) -> 0 | AA14: =IF(SUM(Z$8:Z$10)>0,$E14*$G14,0) -> 0 | AC14: =IF(SUM(AB$8:AB$10)>0,$E14*$G14,0) -> 0 | AE14: =IF(SUM(AD$8:AD$10)>0,$E14*$G14,0) -> 0 | AG14: =IF(SUM(AF$8:AF$10)>0,$E14*$G14,0) -> 0 | AI14: =IF(SUM(AH$8:AH$10)>0,$E14*$G14,0) -> 0 | AK14: =IF(SUM(AJ$8:AJ$10)>0,$E14*$G14,0) -> 0 | AM14: =IF(SUM(AL$8:AL$10)>0,$E14*$G14,0) -> 0 | AO14: =IF(SUM(AN$8:AN$10)>0,$E14*$G14,0) -> 0 | AQ14: =IF(SUM(AP$8:AP$10)>0,$E14*$G14,0) -> 0 | AS14: =IF(SUM(AR$8:AR$10)>0,$E14*$G14,0) -> 0 | AU14: =IF(SUM(AT$8:AT$10)>0,$E14*$G14,0) -> 0 | AW14: =IF(SUM(AV$8:AV$10)>0,$E14*$G14,0) -> 0 | AY14: =IF(SUM(AX$8:AX$10)>0,$E14*$G14,0) -> 0 | BA14: =IF(SUM(AZ$8:AZ$10)>0,$E14*$G14,0) -> 0 | BC14: =IF(SUM(BB$8:BB$10)>0,$E14*$G14,0) -> 0 | BE14: =IF(SUM(BD$8:BD$10)>0,$E14*$G14,0) -> 0 | BG14: =IF(SUM(BF$8:BF$10)>0,$E14*$G14,0) -> 0 | BI14: =IF(SUM(BH$8:BH$10)>0,$E14*$G14,0) -> 0 | BK14: =IF(SUM(BJ$8:BJ$10)>0,$E14*$G14,0) -> 0 | BM14: =IF(SUM(BL$8:BL$10)>0,$E14*$G14,0) -> 0 | BO14: =IF(SUM(BN$8:BN$10)>0,$E14*$G14,0) -> 0 | BQ14: =IF(SUM(BP$8:BP$10)>0,$E14*$G14,0) -> 0 | BS14: =IF(SUM(BR$8:BR$10)>0,$E14*$G14,0) -> 0 | BU14: =IF(SUM(BT$8:BT$10)>0,$E14*$G14,0) -> 0 | BW14: =IF(SUM(BV$8:BV$10)>0,$E14*$G14,0) -> 0 | BY14: =IF(SUM(BX$8:BX$10)>0,$E14*$G14,0) -> 0 | CA14: =IF(SUM(BZ$8:BZ$10)>0,$E14*$G14,0) -> 0 | CC14: =IF(SUM(CB$8:CB$10)>0,$E14*$G14,0) -> 0 | CE14: =IF(SUM(CD$8:CD$10)>0,$E14*$G14,0) -> 0 | CG14: =IF(SUM(CF$8:CF$10)>0,$E14*$G14,0) -> 0 | CI14: =IF(SUM(CH$8:CH$10)>0,$E14*$G14,0) -> 0 | CK14: =IF(SUM(CJ$8:CJ$10)>0,$E14*$G14,0) -> 0 | CM14: =IF(SUM(CL$8:CL$10)>0,$E14*$G14,0) -> 0 | CO14: =IF(SUM(CN$8:CN$10)>0,$E14*$G14,0) -> 0 | CQ14: =IF(SUM(CP$8:CP$10)>0,$E14*$G14,0) -> 0 | CS14: =IF(SUM(CR$8:CR$10)>0,$E14*$G14,0) -> 0 | CU14: =IF(SUM(CT$8:CT$10)>0,$E14*$G14,0) -> 0 | CW14: =IF(SUM(CV$8:CV$10)>0,$E14*$G14,0) -> 0 | CY14: =IF(SUM(CX$8:CX$10)>0,$E14*$G14,0) -> 0 | DA14: =IF(SUM(CZ$8:CZ$10)>0,$E14*$G14,0) -> 0 | DC14: =IF(SUM(DB$8:DB$10)>0,$E14*$G14,0) -> 0 | DE14: =IF(SUM(DD$8:DD$10)>0,$E14*$G14,0) -> 0 | DG14: =IF(SUM(DF$8:DF$10)>0,$E14*$G14,0) -> 0 | DI14: =IF(SUM(DH$8:DH$10)>0,$E14*$G14,0) -> 0 | DK14: =IF(SUM(DJ$8:DJ$10)>0,$E14*$G14,0) -> 0 | DM14: =IF(SUM(DL$8:DL$10)>0,$E14*$G14,0) -> 0 | DO14: =IF(SUM(DN$8:DN$10)>0,$E14*$G14,0) -> 0 | DQ14: =IF(SUM(DP$8:DP$10)>0,$E14*$G14,0) -> 0 | DS14: =IF(SUM(DR$8:DR$10)>0,$E14*$G14,0) -> 0 | DU14: =IF(SUM(DT$8:DT$10)>0,$E14*$G14,0) -> 0 | DW14: =IF(SUM(DV$8:DV$10)>0,$E14*$G14,0) -> 0 | DY14: 0
C16: CATEGORIAS | G16: QUANTIDADE
J17: =IF($C17=J$4,1,0) -> 0 | L17: =IF($C17=L$4,1,0) -> 0 | N17: =IF($C17=N$4,1,0) -> 0 | P17: =IF($C17=P$4,1,0) -> 0 | R17: =IF($C17=R$4,1,0) -> 0 | T17: =IF($C17=T$4,1,0) -> 0 | V17: =IF($C17=V$4,1,0) -> 0 | X17: =IF($C17=X$4,1,0) -> 0 | Z17: =IF($C17=Z$4,1,0) -> 0 | AB17: =IF($C17=AB$4,1,0) -> 0 | AD17: =IF($C17=AD$4,1,0) -> 0 | AF17: =IF($C17=AF$4,1,0) -> 0 | AH17: =IF($C17=AH$4,1,0) -> 0 | AJ17: =IF($C17=AJ$4,1,0) -> 0 | AL17: =IF($C17=AL$4,1,0) -> 0 | AN17: =IF($C17=AN$4,1,0) -> 0 | AP17: =IF($C17=AP$4,1,0) -> 0 | AR17: =IF($C17=AR$4,1,0) -> 0 | AT17: =IF($C17=AT$4,1,0) -> 0 | AV17: =IF($C17=AV$4,1,0) -> 0 | AX17: =IF($C17=AX$4,1,0) -> 0 | AZ17: =IF($C17=AZ$4,1,0) -> 0 | BB17: =IF($C17=BB$4,1,0) -> 0 | BD17: =IF($C17=BD$4,1,0) -> 0 | BF17: =IF($C17=BF$4,1,0) -> 0 | BH17: =IF($C17=BH$4,1,0) -> 0 | BJ17: =IF($C17=BJ$4,1,0) -> 0 | BL17: =IF($C17=BL$4,1,0) -> 0 | BN17: =IF($C17=BN$4,1,0) -> 0 | BP17: =IF($C17=BP$4,1,0) -> 0 | BR17: =IF($C17=BR$4,1,0) -> 0 | BT17: =IF($C17=BT$4,1,0) -> 0 | BV17: =IF($C17=BV$4,1,0) -> 0 | BX17: =IF($C17=BX$4,1,0) -> 0 | BZ17: =IF($C17=BZ$4,1,0) -> 0 | CB17: =IF($C17=CB$4,1,0) -> 0 | CD17: =IF($C17=CD$4,1,0) -> 0 | CF17: =IF($C17=CF$4,1,0) -> 0 | CH17: =IF($C17=CH$4,1,0) -> 0 | CJ17: =IF($C17=CJ$4,1,0) -> 0 | CL17: =IF($C17=CL$4,1,0) -> 0 | CN17: =IF($C17=CN$4,1,0) -> 0 | CP17: =IF($C17=CP$4,1,0) -> 0 | CR17: =IF($C17=CR$4,1,0) -> 0 | CT17: =IF($C17=CT$4,1,0) -> 0 | CV17: =IF($C17=CV$4,1,0) -> 0 | CX17: =IF($C17=CX$4,1,0) -> 0 | CZ17: =IF($C17=CZ$4,1,0) -> 0 | DB17: =IF($C17=DB$4,1,0) -> 0 | DD17: =IF($C17=DD$4,1,0) -> 0 | DF17: =IF($C17=DF$4,1,0) -> 0 | DH17: =IF($C17=DH$4,1,0) -> 0 | DJ17: =IF($C17=DJ$4,1,0) -> 0 | DL17: =IF($C17=DL$4,1,0) -> 0 | DN17: =IF($C17=DN$4,1,0) -> 0 | DP17: =IF($C17=DP$4,1,0) -> 0 | DR17: =IF($C17=DR$4,1,0) -> 0 | DT17: =IF($C17=DT$4,1,0) -> 0 | DV17: =IF($C17=DV$4,1,0) -> 0 | DX17: =IF($C17=DX$4,1,0) -> 0
C18: 2 | D18: =HLOOKUP($C18,'Dados Gerais'!$D$5:$BK$10,6) -> ENCARREGADO SETORIAL | G18: =HLOOKUP($C18,'Dados Gerais'!$D$5:$BK$14,10) -> 1 | J18: =IF($C18=J$4,1,0) -> 0 | L18: 1 | N18: 0 | P18: 0 | R18: 0 | T18: 0 | V18: 0 | X18: 0 | Z18: 0 | AB18: 0 | AD18: 0 | AF18: 0 | AH18: 0 | AJ18: 0 | AL18: 0 | AN18: 0 | AP18: 0 | AR18: 0 | AT18: 0 | AV18: 0 | AX18: 0 | AZ18: 0 | BB18: 0 | BD18: 0 | BF18: 0 | BH18: 0 | BJ18: 0 | BL18: 0 | BN18: 0 | BP18: 0 | BR18: 0 | BT18: 0 | BV18: 0 | BX18: 0 | BZ18: 0 | CB18: 0 | CD18: 0 | CF18: 0 | CH18: 0 | CJ18: 0 | CL18: 0 | CN18: 0 | CP18: 0 | CR18: 0 | CT18: 0 | CV18: 0 | CX18: 0 | CZ18: 0 | DB18: 0 | DD18: 0 | DF18: 0 | DH18: 0 | DJ18: 0 | DL18: 0 | DN18: 0 | DP18: 0 | DR18: 0 | DT18: 0 | DV18: 0 | DX18: 0
J19: =IF($C19=J$4,1,0) -> 0 | L19: 0 | N19: 0 | P19: 0 | R19: 0 | T19: 0 | V19: 0 | X19: 0 | Z19: 0 | AB19: 0 | AD19: 0 | AF19: 0 | AH19: 0 | AJ19: 0 | AL19: 0 | AN19: 0 | AP19: 0 | AR19: 0 | AT19: 0 | AV19: 0 | AX19: 0 | AZ19: 0 | BB19: 0 | BD19: 0 | BF19: 0 | BH19: 0 | BJ19: 0 | BL19: 0 | BN19: 0 | BP19: 0 | BR19: 0 | BT19: 0 | BV19: 0 | BX19: 0 | BZ19: 0 | CB19: 0 | CD19: 0 | CF19: 0 | CH19: 0 | CJ19: 0 | CL19: 0 | CN19: 0 | CP19: 0 | CR19: 0 | CT19: 0 | CV19: 0 | CX19: 0 | CZ19: 0 | DB19: 0 | DD19: 0 | DF19: 0 | DH19: 0 | DJ19: 0 | DL19: 0 | DN19: 0 | DP19: 0 | DR19: 0 | DT19: 0 | DV19: 0 | DX19: 0
C21: ITEM | D21: DESCRIÇÃO | E21: QUANT ANUAL POR POSTO | F21: UNIDADE | G21: VALOR
K22: =IF(SUM(J$8:J$10)>0,$E22*$G22,0) -> 0 | M22: =IF(SUM(L$8:L$10)>0,$E22*$G22,0) -> 0 | O22: =IF(SUM(N$8:N$10)>0,$E22*$G22,0) -> 0 | Q22: =IF(SUM(P$8:P$10)>0,$E22*$G22,0) -> 0 | S22: =IF(SUM(R$8:R$10)>0,$E22*$G22,0) -> 0 | U22: =IF(SUM(T$8:T$10)>0,$E22*$G22,0) -> 0 | W22: =IF(SUM(V$8:V$10)>0,$E22*$G22,0) -> 0 | Y22: =IF(SUM(X$8:X$10)>0,$E22*$G22,0) -> 0 | AA22: =IF(SUM(Z$8:Z$10)>0,$E22*$G22,0) -> 0 | AC22: =IF(SUM(AB$8:AB$10)>0,$E22*$G22,0) -> 0 | AE22: =IF(SUM(AD$8:AD$10)>0,$E22*$G22,0) -> 0 | AG22: =IF(SUM(AF$8:AF$10)>0,$E22*$G22,0) -> 0 | AI22: =IF(SUM(AH$8:AH$10)>0,$E22*$G22,0) -> 0 | AK22: =IF(SUM(AJ$8:AJ$10)>0,$E22*$G22,0) -> 0 | AM22: =IF(SUM(AL$8:AL$10)>0,$E22*$G22,0) -> 0 | AO22: =IF(SUM(AN$8:AN$10)>0,$E22*$G22,0) -> 0 | AQ22: =IF(SUM(AP$8:AP$10)>0,$E22*$G22,0) -> 0 | AS22: =IF(SUM(AR$8:AR$10)>0,$E22*$G22,0) -> 0 | AU22: =IF(SUM(AT$8:AT$10)>0,$E22*$G22,0) -> 0 | AW22: =IF(SUM(AV$8:AV$10)>0,$E22*$G22,0) -> 0 | AY22: =IF(SUM(AX$8:AX$10)>0,$E22*$G22,0) -> 0 | BA22: =IF(SUM(AZ$8:AZ$10)>0,$E22*$G22,0) -> 0 | BC22: =IF(SUM(BB$8:BB$10)>0,$E22*$G22,0) -> 0 | BE22: =IF(SUM(BD$8:BD$10)>0,$E22*$G22,0) -> 0 | BG22: =IF(SUM(BF$8:BF$10)>0,$E22*$G22,0) -> 0 | BI22: =IF(SUM(BH$8:BH$10)>0,$E22*$G22,0) -> 0 | BK22: =IF(SUM(BJ$8:BJ$10)>0,$E22*$G22,0) -> 0 | BM22: =IF(SUM(BL$8:BL$10)>0,$E22*$G22,0) -> 0 | BO22: =IF(SUM(BN$8:BN$10)>0,$E22*$G22,0) -> 0 | BQ22: =IF(SUM(BP$8:BP$10)>0,$E22*$G22,0) -> 0 | BS22: =IF(SUM(BR$8:BR$10)>0,$E22*$G22,0) -> 0 | BU22: =IF(SUM(BT$8:BT$10)>0,$E22*$G22,0) -> 0 | BW22: =IF(SUM(BV$8:BV$10)>0,$E22*$G22,0) -> 0 | BY22: =IF(SUM(BX$8:BX$10)>0,$E22*$G22,0) -> 0 | CA22: =IF(SUM(BZ$8:BZ$10)>0,$E22*$G22,0) -> 0 | CC22: =IF(SUM(CB$8:CB$10)>0,$E22*$G22,0) -> 0 | CE22: =IF(SUM(CD$8:CD$10)>0,$E22*$G22,0) -> 0 | CG22: =IF(SUM(CF$8:CF$10)>0,$E22*$G22,0) -> 0 | CI22: =IF(SUM(CH$8:CH$10)>0,$E22*$G22,0) -> 0 | CK22: =IF(SUM(CJ$8:CJ$10)>0,$E22*$G22,0) -> 0 | CM22: =IF(SUM(CL$8:CL$10)>0,$E22*$G22,0) -> 0 | CO22: =IF(SUM(CN$8:CN$10)>0,$E22*$G22,0) -> 0 | CQ22: =IF(SUM(CP$8:CP$10)>0,$E22*$G22,0) -> 0 | CS22: =IF(SUM(CR$8:CR$10)>0,$E22*$G22,0) -> 0 | CU22: =IF(SUM(CT$8:CT$10)>0,$E22*$G22,0) -> 0 | CW22: =IF(SUM(CV$8:CV$10)>0,$E22*$G22,0) -> 0 | CY22: =IF(SUM(CX$8:CX$10)>0,$E22*$G22,0) -> 0 | DA22: =IF(SUM(CZ$8:CZ$10)>0,$E22*$G22,0) -> 0 | DC22: =IF(SUM(DB$8:DB$10)>0,$E22*$G22,0) -> 0 | DE22: =IF(SUM(DD$8:DD$10)>0,$E22*$G22,0) -> 0 | DG22: =IF(SUM(DF$8:DF$10)>0,$E22*$G22,0) -> 0 | DI22: =IF(SUM(DH$8:DH$10)>0,$E22*$G22,0) -> 0 | DK22: =IF(SUM(DJ$8:DJ$10)>0,$E22*$G22,0) -> 0 | DM22: =IF(SUM(DL$8:DL$10)>0,$E22*$G22,0) -> 0 | DO22: =IF(SUM(DN$8:DN$10)>0,$E22*$G22,0) -> 0 | DQ22: =IF(SUM(DP$8:DP$10)>0,$E22*$G22,0) -> 0 | DS22: =IF(SUM(DR$8:DR$10)>0,$E22*$G22,0) -> 0 | DU22: =IF(SUM(DT$8:DT$10)>0,$E22*$G22,0) -> 0 | DW22: =IF(SUM(DV$8:DV$10)>0,$E22*$G22,0) -> 0 | DY22: =IF(SUM(DX$8:DX$10)>0,$E22*$G22,0) -> 0
C23: 1 | D23: Calçado de segurança tipo sapato com resistência a objetos pontiagudos, fechamento em elástico, couro preto, forração em tecido, bico de composite, palmilha de montagem têxtil resistente à perfuração, solado de PU (poliuretano), bidensidade sem cadarço. Ref. MARLUVAS. | E23: 2 | F23: PAR | G23: =G14 -> 117.26 | K23: =IF(SUM(J$17:J$19)>0,$E23*$G23,0) -> 0 | M23: =IF(SUM(L$17:L$19)>0,$E23*$G23,0) -> 234.52 | O23: =IF(SUM(N$17:N$19)>0,$E23*$G23,0) -> 0 | Q23: =IF(SUM(P$17:P$19)>0,$E23*$G23,0) -> 0 | S23: =IF(SUM(R$17:R$19)>0,$E23*$G23,0) -> 0 | U23: =IF(SUM(T$17:T$19)>0,$E23*$G23,0) -> 0 | W23: =IF(SUM(V$17:V$19)>0,$E23*$G23,0) -> 0 | Y23: =IF(SUM(X$17:X$19)>0,$E23*$G23,0) -> 0 | AA23: =IF(SUM(Z$17:Z$19)>0,$E23*$G23,0) -> 0 | AC23: =IF(SUM(AB$17:AB$19)>0,$E23*$G23,0) -> 0 | AE23: =IF(SUM(AD$17:AD$19)>0,$E23*$G23,0) -> 0 | AG23: =IF(SUM(AF$17:AF$19)>0,$E23*$G23,0) -> 0 | AI23: =IF(SUM(AH$17:AH$19)>0,$E23*$G23,0) -> 0 | AK23: =IF(SUM(AJ$17:AJ$19)>0,$E23*$G23,0) -> 0 | AM23: =IF(SUM(AL$17:AL$19)>0,$E23*$G23,0) -> 0 | AO23: =IF(SUM(AN$17:AN$19)>0,$E23*$G23,0) -> 0 | AQ23: =IF(SUM(AP$17:AP$19)>0,$E23*$G23,0) -> 0 | AS23: =IF(SUM(AR$17:AR$19)>0,$E23*$G23,0) -> 0 | AU23: =IF(SUM(AT$17:AT$19)>0,$E23*$G23,0) -> 0 | AW23: =IF(SUM(AV$17:AV$19)>0,$E23*$G23,0) -> 0 | AY23: =IF(SUM(AX$17:AX$19)>0,$E23*$G23,0) -> 0 | BA23: =IF(SUM(AZ$17:AZ$19)>0,$E23*$G23,0) -> 0 | BC23: =IF(SUM(BB$17:BB$19)>0,$E23*$G23,0) -> 0 | BE23: =IF(SUM(BD$17:BD$19)>0,$E23*$G23,0) -> 0 | BG23: =IF(SUM(BF$17:BF$19)>0,$E23*$G23,0) -> 0 | BI23: =IF(SUM(BH$17:BH$19)>0,$E23*$G23,0) -> 0 | BK23: =IF(SUM(BJ$17:BJ$19)>0,$E23*$G23,0) -> 0 | BM23: =IF(SUM(BL$17:BL$19)>0,$E23*$G23,0) -> 0 | BO23: =IF(SUM(BN$17:BN$19)>0,$E23*$G23,0) -> 0 | BQ23: =IF(SUM(BP$17:BP$19)>0,$E23*$G23,0) -> 0 | BS23: =IF(SUM(BR$17:BR$19)>0,$E23*$G23,0) -> 0 | BU23: =IF(SUM(BT$17:BT$19)>0,$E23*$G23,0) -> 0 | BW23: =IF(SUM(BV$17:BV$19)>0,$E23*$G23,0) -> 0 | BY23: =IF(SUM(BX$17:BX$19)>0,$E23*$G23,0) -> 0 | CA23: =IF(SUM(BZ$17:BZ$19)>0,$E23*$G23,0) -> 0 | CC23: =IF(SUM(CB$17:CB$19)>0,$E23*$G23,0) -> 0 | CE23: =IF(SUM(CD$17:CD$19)>0,$E23*$G23,0) -> 0 | CG23: =IF(SUM(CF$17:CF$19)>0,$E23*$G23,0) -> 0 | CI23: =IF(SUM(CH$17:CH$19)>0,$E23*$G23,0) -> 0 | CK23: =IF(SUM(CJ$17:CJ$19)>0,$E23*$G23,0) -> 0 | CM23: =IF(SUM(CL$17:CL$19)>0,$E23*$G23,0) -> 0 | CO23: =IF(SUM(CN$17:CN$19)>0,$E23*$G23,0) -> 0 | CQ23: =IF(SUM(CP$17:CP$19)>0,$E23*$G23,0) -> 0 | CS23: =IF(SUM(CR$17:CR$19)>0,$E23*$G23,0) -> 0 | CU23: =IF(SUM(CT$17:CT$19)>0,$E23*$G23,0) -> 0 | CW23: =IF(SUM(CV$17:CV$19)>0,$E23*$G23,0) -> 0 | CY23: =IF(SUM(CX$17:CX$19)>0,$E23*$G23,0) -> 0 | DA23: =IF(SUM(CZ$17:CZ$19)>0,$E23*$G23,0) -> 0 | DC23: =IF(SUM(DB$17:DB$19)>0,$E23*$G23,0) -> 0 | DE23: =IF(SUM(DD$17:DD$19)>0,$E23*$G23,0) -> 0 | DG23: =IF(SUM(DF$17:DF$19)>0,$E23*$G23,0) -> 0 | DI23: =IF(SUM(DH$17:DH$19)>0,$E23*$G23,0) -> 0 | DK23: =IF(SUM(DJ$17:DJ$19)>0,$E23*$G23,0) -> 0 | DM23: =IF(SUM(DL$17:DL$19)>0,$E23*$G23,0) -> 0 | DO23: =IF(SUM(DN$17:DN$19)>0,$E23*$G23,0) -> 0 | DQ23: =IF(SUM(DP$17:DP$19)>0,$E23*$G23,0) -> 0 | DS23: =IF(SUM(DR$17:DR$19)>0,$E23*$G23,0) -> 0 | DU23: =IF(SUM(DT$17:DT$19)>0,$E23*$G23,0) -> 0 | DW23: =IF(SUM(DV$17:DV$19)>0,$E23*$G23,0) -> 0 | DY23: =IF(SUM(DX$17:DX$19)>0,$E23*$G23,0) -> 0
K24: =IF(SUM(J$17:J$19)>0,$E24*$G24,0) -> 0 | M24: =IF(SUM(L$17:L$19)>0,$E24*$G24,0) -> 0 | O24: =IF(SUM(N$17:N$19)>0,$E24*$G24,0) -> 0 | Q24: =IF(SUM(P$17:P$19)>0,$E24*$G24,0) -> 0 | S24: =IF(SUM(R$17:R$19)>0,$E24*$G24,0) -> 0 | U24: =IF(SUM(T$17:T$19)>0,$E24*$G24,0) -> 0 | W24: =IF(SUM(V$17:V$19)>0,$E24*$G24,0) -> 0 | Y24: =IF(SUM(X$17:X$19)>0,$E24*$G24,0) -> 0 | AA24: =IF(SUM(Z$17:Z$19)>0,$E24*$G24,0) -> 0 | AC24: =IF(SUM(AB$17:AB$19)>0,$E24*$G24,0) -> 0 | AE24: =IF(SUM(AD$17:AD$19)>0,$E24*$G24,0) -> 0 | AG24: =IF(SUM(AF$17:AF$19)>0,$E24*$G24,0) -> 0 | AI24: =IF(SUM(AH$17:AH$19)>0,$E24*$G24,0) -> 0 | AK24: =IF(SUM(AJ$17:AJ$19)>0,$E24*$G24,0) -> 0 | AM24: =IF(SUM(AL$17:AL$19)>0,$E24*$G24,0) -> 0 | AO24: =IF(SUM(AN$17:AN$19)>0,$E24*$G24,0) -> 0 | AQ24: =IF(SUM(AP$17:AP$19)>0,$E24*$G24,0) -> 0 | AS24: =IF(SUM(AR$17:AR$19)>0,$E24*$G24,0) -> 0 | AU24: =IF(SUM(AT$17:AT$19)>0,$E24*$G24,0) -> 0 | AW24: =IF(SUM(AV$17:AV$19)>0,$E24*$G24,0) -> 0 | AY24: =IF(SUM(AX$17:AX$19)>0,$E24*$G24,0) -> 0 | BA24: =IF(SUM(AZ$17:AZ$19)>0,$E24*$G24,0) -> 0 | BC24: =IF(SUM(BB$17:BB$19)>0,$E24*$G24,0) -> 0 | BE24: =IF(SUM(BD$17:BD$19)>0,$E24*$G24,0) -> 0 | BG24: =IF(SUM(BF$17:BF$19)>0,$E24*$G24,0) -> 0 | BI24: =IF(SUM(BH$17:BH$19)>0,$E24*$G24,0) -> 0 | BK24: =IF(SUM(BJ$17:BJ$19)>0,$E24*$G24,0) -> 0 | BM24: =IF(SUM(BL$17:BL$19)>0,$E24*$G24,0) -> 0 | BO24: =IF(SUM(BN$17:BN$19)>0,$E24*$G24,0) -> 0 | BQ24: =IF(SUM(BP$17:BP$19)>0,$E24*$G24,0) -> 0 | BS24: =IF(SUM(BR$17:BR$19)>0,$E24*$G24,0) -> 0 | BU24: =IF(SUM(BT$17:BT$19)>0,$E24*$G24,0) -> 0 | BW24: =IF(SUM(BV$17:BV$19)>0,$E24*$G24,0) -> 0 | BY24: =IF(SUM(BX$17:BX$19)>0,$E24*$G24,0) -> 0 | CA24: =IF(SUM(BZ$17:BZ$19)>0,$E24*$G24,0) -> 0 | CC24: =IF(SUM(CB$17:CB$19)>0,$E24*$G24,0) -> 0 | CE24: =IF(SUM(CD$17:CD$19)>0,$E24*$G24,0) -> 0 | CG24: =IF(SUM(CF$17:CF$19)>0,$E24*$G24,0) -> 0 | CI24: =IF(SUM(CH$17:CH$19)>0,$E24*$G24,0) -> 0 | CK24: =IF(SUM(CJ$17:CJ$19)>0,$E24*$G24,0) -> 0 | CM24: =IF(SUM(CL$17:CL$19)>0,$E24*$G24,0) -> 0 | CO24: =IF(SUM(CN$17:CN$19)>0,$E24*$G24,0) -> 0 | CQ24: =IF(SUM(CP$17:CP$19)>0,$E24*$G24,0) -> 0 | CS24: =IF(SUM(CR$17:CR$19)>0,$E24*$G24,0) -> 0 | CU24: =IF(SUM(CT$17:CT$19)>0,$E24*$G24,0) -> 0 | CW24: =IF(SUM(CV$17:CV$19)>0,$E24*$G24,0) -> 0 | CY24: =IF(SUM(CX$17:CX$19)>0,$E24*$G24,0) -> 0 | DA24: =IF(SUM(CZ$17:CZ$19)>0,$E24*$G24,0) -> 0 | DC24: =IF(SUM(DB$17:DB$19)>0,$E24*$G24,0) -> 0 | DE24: =IF(SUM(DD$17:DD$19)>0,$E24*$G24,0) -> 0 | DG24: =IF(SUM(DF$17:DF$19)>0,$E24*$G24,0) -> 0 | DI24: =IF(SUM(DH$17:DH$19)>0,$E24*$G24,0) -> 0 | DK24: =IF(SUM(DJ$17:DJ$19)>0,$E24*$G24,0) -> 0 | DM24: =IF(SUM(DL$17:DL$19)>0,$E24*$G24,0) -> 0 | DO24: =IF(SUM(DN$17:DN$19)>0,$E24*$G24,0) -> 0 | DQ24: =IF(SUM(DP$17:DP$19)>0,$E24*$G24,0) -> 0 | DS24: =IF(SUM(DR$17:DR$19)>0,$E24*$G24,0) -> 0 | DU24: =IF(SUM(DT$17:DT$19)>0,$E24*$G24,0) -> 0 | DW24: =IF(SUM(DV$17:DV$19)>0,$E24*$G24,0) -> 0 | DY24: 0
C25: CATEGORIAS | G25: QUANTIDADE
J26: =IF($C26=J$4,1,0) -> 0 | L26: =IF($C26=L$4,1,0) -> 0 | N26: =IF($C26=N$4,1,0) -> 0 | P26: =IF($C26=P$4,1,0) -> 0 | R26: =IF($C26=R$4,1,0) -> 0 | T26: =IF($C26=T$4,1,0) -> 0 | V26: =IF($C26=V$4,1,0) -> 0 | X26: =IF($C26=X$4,1,0) -> 0 | Z26: =IF($C26=Z$4,1,0) -> 0 | AB26: =IF($C26=AB$4,1,0) -> 0 | AD26: =IF($C26=AD$4,1,0) -> 0 | AF26: =IF($C26=AF$4,1,0) -> 0 | AH26: =IF($C26=AH$4,1,0) -> 0 | AJ26: =IF($C26=AJ$4,1,0) -> 0 | AL26: =IF($C26=AL$4,1,0) -> 0 | AN26: =IF($C26=AN$4,1,0) -> 0 | AP26: =IF($C26=AP$4,1,0) -> 0 | AR26: =IF($C26=AR$4,1,0) -> 0 | AT26: =IF($C26=AT$4,1,0) -> 0 | AV26: =IF($C26=AV$4,1,0) -> 0 | AX26: =IF($C26=AX$4,1,0) -> 0 | AZ26: =IF($C26=AZ$4,1,0) -> 0 | BB26: =IF($C26=BB$4,1,0) -> 0 | BD26: =IF($C26=BD$4,1,0) -> 0 | BF26: =IF($C26=BF$4,1,0) -> 0 | BH26: =IF($C26=BH$4,1,0) -> 0 | BJ26: =IF($C26=BJ$4,1,0) -> 0 | BL26: =IF($C26=BL$4,1,0) -> 0 | BN26: =IF($C26=BN$4,1,0) -> 0 | BP26: =IF($C26=BP$4,1,0) -> 0 | BR26: =IF($C26=BR$4,1,0) -> 0 | BT26: =IF($C26=BT$4,1,0) -> 0 | BV26: =IF($C26=BV$4,1,0) -> 0 | BX26: =IF($C26=BX$4,1,0) -> 0 | BZ26: =IF($C26=BZ$4,1,0) -> 0 | CB26: =IF($C26=CB$4,1,0) -> 0 | CD26: =IF($C26=CD$4,1,0) -> 0 | CF26: =IF($C26=CF$4,1,0) -> 0 | CH26: =IF($C26=CH$4,1,0) -> 0 | CJ26: =IF($C26=CJ$4,1,0) -> 0 | CL26: =IF($C26=CL$4,1,0) -> 0 | CN26: =IF($C26=CN$4,1,0) -> 0 | CP26: =IF($C26=CP$4,1,0) -> 0 | CR26: =IF($C26=CR$4,1,0) -> 0 | CT26: =IF($C26=CT$4,1,0) -> 0 | CV26: =IF($C26=CV$4,1,0) -> 0 | CX26: =IF($C26=CX$4,1,0) -> 0 | CZ26: =IF($C26=CZ$4,1,0) -> 0 | DB26: =IF($C26=DB$4,1,0) -> 0 | DD26: =IF($C26=DD$4,1,0) -> 0 | DF26: =IF($C26=DF$4,1,0) -> 0 | DH26: =IF($C26=DH$4,1,0) -> 0 | DJ26: =IF($C26=DJ$4,1,0) -> 0 | DL26: =IF($C26=DL$4,1,0) -> 0 | DN26: =IF($C26=DN$4,1,0) -> 0 | DP26: =IF($C26=DP$4,1,0) -> 0 | DR26: =IF($C26=DR$4,1,0) -> 0 | DT26: =IF($C26=DT$4,1,0) -> 0 | DV26: =IF($C26=DV$4,1,0) -> 0 | DX26: =IF($C26=DX$4,1,0) -> 0
C27: 3 | D27: =HLOOKUP($C27,'Dados Gerais'!$D$5:$BK$10,6) -> ENCARREGADO DE SERVIÇO | G27: =HLOOKUP($C27,'Dados Gerais'!$D$5:$BK$14,10) -> 13 | J27: =IF($C27=J$4,1,0) -> 0 | L27: 0 | N27: 1 | P27: 0 | R27: 0 | T27: 0 | V27: 0 | X27: 0 | Z27: 0 | AB27: 0 | AD27: 0 | AF27: 0 | AH27: 0 | AJ27: 0 | AL27: 0 | AN27: 0 | AP27: 0 | AR27: 0 | AT27: 0 | AV27: 0 | AX27: 0 | AZ27: 0 | BB27: 0 | BD27: 0 | BF27: 0 | BH27: 0 | BJ27: 0 | BL27: 0 | BN27: 0 | BP27: 0 | BR27: 0 | BT27: 0 | BV27: 0 | BX27: 0 | BZ27: 0 | CB27: 0 | CD27: 0 | CF27: 0 | CH27: 0 | CJ27: 0 | CL27: 0 | CN27: 0 | CP27: 0 | CR27: 0 | CT27: 0 | CV27: 0 | CX27: 0 | CZ27: 0 | DB27: 0 | DD27: 0 | DF27: 0 | DH27: 0 | DJ27: 0 | DL27: 0 | DN27: 0 | DP27: 0 | DR27: 0 | DT27: 0 | DV27: 0 | DX27: 0
C28: 4 | D28: =HLOOKUP($C28,'Dados Gerais'!$D$5:$BK$10,6) -> ENCARREGADO DE SERVIÇO COM ADICIONAL DE INSALUBRIDADE | G28: =HLOOKUP($C28,'Dados Gerais'!$D$5:$BK$14,10) -> 2 | J28: =IF($C28=J$4,1,0) -> 0 | L28: 0 | N28: 0 | P28: 1 | R28: 0 | T28: 0 | V28: 0 | X28: 0 | Z28: 0 | AB28: 0 | AD28: 0 | AF28: 0 | AH28: 0 | AJ28: 0 | AL28: 0 | AN28: 0 | AP28: 0 | AR28: 0 | AT28: 0 | AV28: 0 | AX28: 0 | AZ28: 0 | BB28: 0 | BD28: 0 | BF28: 0 | BH28: 0 | BJ28: 0 | BL28: 0 | BN28: 0 | BP28: 0 | BR28: 0 | BT28: 0 | BV28: 0 | BX28: 0 | BZ28: 0 | CB28: 0 | CD28: 0 | CF28: 0 | CH28: 0 | CJ28: 0 | CL28: 0 | CN28: 0 | CP28: 0 | CR28: 0 | CT28: 0 | CV28: 0 | CX28: 0 | CZ28: 0 | DB28: 0 | DD28: 0 | DF28: 0 | DH28: 0 | DJ28: 0 | DL28: 0 | DN28: 0 | DP28: 0 | DR28: 0 | DT28: 0 | DV28: 0 | DX28: 0
J29: =IF($C29=J$4,1,0) -> 0 | L29: 0 | N29: 0 | P29: 0 | R29: 0 | T29: 0 | V29: 0 | X29: 0 | Z29: 0 | AB29: 0 | AD29: 0 | AF29: 0 | AH29: 0 | AJ29: 0 | AL29: 0 | AN29: 0 | AP29: 0 | AR29: 0 | AT29: 0 | AV29: 0 | AX29: 0 | AZ29: 0 | BB29: 0 | BD29: 0 | BF29: 0 | BH29: 0 | BJ29: 0 | BL29: 0 | BN29: 0 | BP29: 0 | BR29: 0 | BT29: 0 | BV29: 0 | BX29: 0 | BZ29: 0 | CB29: 0 | CD29: 0 | CF29: 0 | CH29: 0 | CJ29: 0 | CL29: 0 | CN29: 0 | CP29: 0 | CR29: 0 | CT29: 0 | CV29: 0 | CX29: 0 | CZ29: 0 | DB29: 0 | DD29: 0 | DF29: 0 | DH29: 0 | DJ29: 0 | DL29: 0 | DN29: 0 | DP29: 0 | DR29: 0 | DT29: 0 | DV29: 0 | DX29: 0
C31: ITEM | D31: DESCRIÇÃO | E31: QUANT ANUAL POR POSTO | F31: UNIDADE | G31: VALOR
K32: =IF(SUM(J$8:J$10)>0,$E32*$G32,0) -> 0 | M32: =IF(SUM(L$8:L$10)>0,$E32*$G32,0) -> 0 | O32: =IF(SUM(N$8:N$10)>0,$E32*$G32,0) -> 0 | Q32: =IF(SUM(P$8:P$10)>0,$E32*$G32,0) -> 0 | S32: =IF(SUM(R$8:R$10)>0,$E32*$G32,0) -> 0 | U32: =IF(SUM(T$8:T$10)>0,$E32*$G32,0) -> 0 | W32: =IF(SUM(V$8:V$10)>0,$E32*$G32,0) -> 0 | Y32: =IF(SUM(X$8:X$10)>0,$E32*$G32,0) -> 0 | AA32: =IF(SUM(Z$8:Z$10)>0,$E32*$G32,0) -> 0 | AC32: =IF(SUM(AB$8:AB$10)>0,$E32*$G32,0) -> 0 | AE32: =IF(SUM(AD$8:AD$10)>0,$E32*$G32,0) -> 0 | AG32: =IF(SUM(AF$8:AF$10)>0,$E32*$G32,0) -> 0 | AI32: =IF(SUM(AH$8:AH$10)>0,$E32*$G32,0) -> 0 | AK32: =IF(SUM(AJ$8:AJ$10)>0,$E32*$G32,0) -> 0 | AM32: =IF(SUM(AL$8:AL$10)>0,$E32*$G32,0) -> 0 | AO32: =IF(SUM(AN$8:AN$10)>0,$E32*$G32,0) -> 0 | AQ32: =IF(SUM(AP$8:AP$10)>0,$E32*$G32,0) -> 0 | AS32: =IF(SUM(AR$8:AR$10)>0,$E32*$G32,0) -> 0 | AU32: =IF(SUM(AT$8:AT$10)>0,$E32*$G32,0) -> 0 | AW32: =IF(SUM(AV$8:AV$10)>0,$E32*$G32,0) -> 0 | AY32: =IF(SUM(AX$8:AX$10)>0,$E32*$G32,0) -> 0 | BA32: =IF(SUM(AZ$8:AZ$10)>0,$E32*$G32,0) -> 0 | BC32: =IF(SUM(BB$8:BB$10)>0,$E32*$G32,0) -> 0 | BE32: =IF(SUM(BD$8:BD$10)>0,$E32*$G32,0) -> 0 | BG32: =IF(SUM(BF$8:BF$10)>0,$E32*$G32,0) -> 0 | BI32: =IF(SUM(BH$8:BH$10)>0,$E32*$G32,0) -> 0 | BK32: =IF(SUM(BJ$8:BJ$10)>0,$E32*$G32,0) -> 0 | BM32: =IF(SUM(BL$8:BL$10)>0,$E32*$G32,0) -> 0 | BO32: =IF(SUM(BN$8:BN$10)>0,$E32*$G32,0) -> 0 | BQ32: =IF(SUM(BP$8:BP$10)>0,$E32*$G32,0) -> 0 | BS32: =IF(SUM(BR$8:BR$10)>0,$E32*$G32,0) -> 0 | BU32: =IF(SUM(BT$8:BT$10)>0,$E32*$G32,0) -> 0 | BW32: =IF(SUM(BV$8:BV$10)>0,$E32*$G32,0) -> 0 | BY32: =IF(SUM(BX$8:BX$10)>0,$E32*$G32,0) -> 0 | CA32: =IF(SUM(BZ$8:BZ$10)>0,$E32*$G32,0) -> 0 | CC32: =IF(SUM(CB$8:CB$10)>0,$E32*$G32,0) -> 0 | CE32: =IF(SUM(CD$8:CD$10)>0,$E32*$G32,0) -> 0 | CG32: =IF(SUM(CF$8:CF$10)>0,$E32*$G32,0) -> 0 | CI32: =IF(SUM(CH$8:CH$10)>0,$E32*$G32,0) -> 0 | CK32: =IF(SUM(CJ$8:CJ$10)>0,$E32*$G32,0) -> 0 | CM32: =IF(SUM(CL$8:CL$10)>0,$E32*$G32,0) -> 0 | CO32: =IF(SUM(CN$8:CN$10)>0,$E32*$G32,0) -> 0 | CQ32: =IF(SUM(CP$8:CP$10)>0,$E32*$G32,0) -> 0 | CS32: =IF(SUM(CR$8:CR$10)>0,$E32*$G32,0) -> 0 | CU32: =IF(SUM(CT$8:CT$10)>0,$E32*$G32,0) -> 0 | CW32: =IF(SUM(CV$8:CV$10)>0,$E32*$G32,0) -> 0 | CY32: =IF(SUM(CX$8:CX$10)>0,$E32*$G32,0) -> 0 | DA32: =IF(SUM(CZ$8:CZ$10)>0,$E32*$G32,0) -> 0 | DC32: =IF(SUM(DB$8:DB$10)>0,$E32*$G32,0) -> 0 | DE32: =IF(SUM(DD$8:DD$10)>0,$E32*$G32,0) -> 0 | DG32: =IF(SUM(DF$8:DF$10)>0,$E32*$G32,0) -> 0 | DI32: =IF(SUM(DH$8:DH$10)>0,$E32*$G32,0) -> 0 | DK32: =IF(SUM(DJ$8:DJ$10)>0,$E32*$G32,0) -> 0 | DM32: =IF(SUM(DL$8:DL$10)>0,$E32*$G32,0) -> 0 | DO32: =IF(SUM(DN$8:DN$10)>0,$E32*$G32,0) -> 0 | DQ32: =IF(SUM(DP$8:DP$10)>0,$E32*$G32,0) -> 0 | DS32: =IF(SUM(DR$8:DR$10)>0,$E32*$G32,0) -> 0 | DU32: =IF(SUM(DT$8:DT$10)>0,$E32*$G32,0) -> 0 | DW32: =IF(SUM(DV$8:DV$10)>0,$E32*$G32,0) -> 0 | DY32: =IF(SUM(DX$8:DX$10)>0,$E32*$G32,0) -> 0
C33: 1 | D33: Calçado de segurança tipo sapato com resistência a objetos pontiagudos, fechamento em elástico, couro preto, forração em tecido, bico de composite, palmilha de montagem têxtil resistente à perfuração, solado de PU (poliuretano), bidensidade sem cadarço. Ref. MARLUVAS. | E33: 2 | F33: PAR | G33: =G23 -> 117.26 | K33: =IF(SUM(J$26:J$29)>0,$E33*$G33,0) -> 0 | M33: =IF(SUM(L$26:L$29)>0,$E33*$G33,0) -> 0 | O33: =IF(SUM(N$26:N$29)>0,$E33*$G33,0) -> 234.52 | Q33: =IF(SUM(P$26:P$29)>0,$E33*$G33,0) -> 234.52 | S33: =IF(SUM(R$26:R$29)>0,$E33*$G33,0) -> 0 | U33: =IF(SUM(T$26:T$29)>0,$E33*$G33,0) -> 0 | W33: =IF(SUM(V$26:V$29)>0,$E33*$G33,0) -> 0 | Y33: =IF(SUM(X$26:X$29)>0,$E33*$G33,0) -> 0 | AA33: =IF(SUM(Z$26:Z$29)>0,$E33*$G33,0) -> 0 | AC33: =IF(SUM(AB$26:AB$29)>0,$E33*$G33,0) -> 0 | AE33: =IF(SUM(AD$26:AD$29)>0,$E33*$G33,0) -> 0 | AG33: =IF(SUM(AF$26:AF$29)>0,$E33*$G33,0) -> 0 | AI33: =IF(SUM(AH$26:AH$29)>0,$E33*$G33,0) -> 0 | AK33: =IF(SUM(AJ$26:AJ$29)>0,$E33*$G33,0) -> 0 | AM33: =IF(SUM(AL$26:AL$29)>0,$E33*$G33,0) -> 0 | AO33: =IF(SUM(AN$26:AN$29)>0,$E33*$G33,0) -> 0 | AQ33: =IF(SUM(AP$26:AP$29)>0,$E33*$G33,0) -> 0 | AS33: =IF(SUM(AR$26:AR$29)>0,$E33*$G33,0) -> 0 | AU33: =IF(SUM(AT$26:AT$29)>0,$E33*$G33,0) -> 0 | AW33: =IF(SUM(AV$26:AV$29)>0,$E33*$G33,0) -> 0 | AY33: =IF(SUM(AX$26:AX$29)>0,$E33*$G33,0) -> 0 | BA33: =IF(SUM(AZ$26:AZ$29)>0,$E33*$G33,0) -> 0 | BC33: =IF(SUM(BB$26:BB$29)>0,$E33*$G33,0) -> 0 | BE33: =IF(SUM(BD$26:BD$29)>0,$E33*$G33,0) -> 0 | BG33: =IF(SUM(BF$26:BF$29)>0,$E33*$G33,0) -> 0 | BI33: =IF(SUM(BH$26:BH$29)>0,$E33*$G33,0) -> 0 | BK33: =IF(SUM(BJ$26:BJ$29)>0,$E33*$G33,0) -> 0 | BM33: =IF(SUM(BL$26:BL$29)>0,$E33*$G33,0) -> 0 | BO33: =IF(SUM(BN$26:BN$29)>0,$E33*$G33,0) -> 0 | BQ33: =IF(SUM(BP$26:BP$29)>0,$E33*$G33,0) -> 0 | BS33: =IF(SUM(BR$26:BR$29)>0,$E33*$G33,0) -> 0 | BU33: =IF(SUM(BT$26:BT$29)>0,$E33*$G33,0) -> 0 | BW33: =IF(SUM(BV$26:BV$29)>0,$E33*$G33,0) -> 0 | BY33: =IF(SUM(BX$26:BX$29)>0,$E33*$G33,0) -> 0 | CA33: =IF(SUM(BZ$26:BZ$29)>0,$E33*$G33,0) -> 0 | CC33: =IF(SUM(CB$26:CB$29)>0,$E33*$G33,0) -> 0 | CE33: =IF(SUM(CD$26:CD$29)>0,$E33*$G33,0) -> 0 | CG33: =IF(SUM(CF$26:CF$29)>0,$E33*$G33,0) -> 0 | CI33: =IF(SUM(CH$26:CH$29)>0,$E33*$G33,0) -> 0 | CK33: =IF(SUM(CJ$26:CJ$29)>0,$E33*$G33,0) -> 0 | CM33: =IF(SUM(CL$26:CL$29)>0,$E33*$G33,0) -> 0 | CO33: =IF(SUM(CN$26:CN$29)>0,$E33*$G33,0) -> 0 | CQ33: =IF(SUM(CP$26:CP$29)>0,$E33*$G33,0) -> 0 | CS33: =IF(SUM(CR$26:CR$29)>0,$E33*$G33,0) -> 0 | CU33: =IF(SUM(CT$26:CT$29)>0,$E33*$G33,0) -> 0 | CW33: =IF(SUM(CV$26:CV$29)>0,$E33*$G33,0) -> 0 | CY33: =IF(SUM(CX$26:CX$29)>0,$E33*$G33,0) -> 0 | DA33: =IF(SUM(CZ$26:CZ$29)>0,$E33*$G33,0) -> 0 | DC33: =IF(SUM(DB$26:DB$29)>0,$E33*$G33,0) -> 0 | DE33: =IF(SUM(DD$26:DD$29)>0,$E33*$G33,0) -> 0 | DG33: =IF(SUM(DF$26:DF$29)>0,$E33*$G33,0) -> 0 | DI33: =IF(SUM(DH$26:DH$29)>0,$E33*$G33,0) -> 0 | DK33: =IF(SUM(DJ$26:DJ$29)>0,$E33*$G33,0) -> 0 | DM33: =IF(SUM(DL$26:DL$29)>0,$E33*$G33,0) -> 0 | DO33: =IF(SUM(DN$26:DN$29)>0,$E33*$G33,0) -> 0 | DQ33: =IF(SUM(DP$26:DP$29)>0,$E33*$G33,0) -> 0 | DS33: =IF(SUM(DR$26:DR$29)>0,$E33*$G33,0) -> 0 | DU33: =IF(SUM(DT$26:DT$29)>0,$E33*$G33,0) -> 0 | DW33: =IF(SUM(DV$26:DV$29)>0,$E33*$G33,0) -> 0 | DY33: =IF(SUM(DX$26:DX$29)>0,$E33*$G33,0) -> 0
C34: 2 | D34: Respirador purificador de ar tipo, peça semifacial filtrante para partículas (PFF2), com formato dobrável, solda ultra-sônica em todo o seu perímetro. Fita elástica branca fixada nas laterais externas do respirador, perfazendo uma alça na para fixação na parte superior da cabeça e a outra na parte inferior, para fixação na altura da nuca do usuário. A parte superior externa da peça possui tira de material metálico moldável, utilizada para ajuste no septo nasal. Com válvula de exalação. DEVERÁ APRESENTAR O SELO DE APROVAÇÃO DO INMETRO. Ref. 3M | E34: 2 | F34: UND | G34: 2.74 | K34: =IF(SUM(J$26:J$29)>0,$E34*$G34,0) -> 0 | M34: =IF(SUM(L$26:L$29)>0,$E34*$G34,0) -> 0 | O34: =IF(SUM(N$26:N$29)>0,$E34*$G34,0) -> 5.48 | Q34: =IF(SUM(P$26:P$29)>0,$E34*$G34,0) -> 5.48 | S34: =IF(SUM(R$26:R$29)>0,$E34*$G34,0) -> 0 | U34: =IF(SUM(T$26:T$29)>0,$E34*$G34,0) -> 0 | W34: =IF(SUM(V$26:V$29)>0,$E34*$G34,0) -> 0 | Y34: =IF(SUM(X$26:X$29)>0,$E34*$G34,0) -> 0 | AA34: =IF(SUM(Z$26:Z$29)>0,$E34*$G34,0) -> 0 | AC34: =IF(SUM(AB$26:AB$29)>0,$E34*$G34,0) -> 0 | AE34: =IF(SUM(AD$26:AD$29)>0,$E34*$G34,0) -> 0 | AG34: =IF(SUM(AF$26:AF$29)>0,$E34*$G34,0) -> 0 | AI34: =IF(SUM(AH$26:AH$29)>0,$E34*$G34,0) -> 0 | AK34: =IF(SUM(AJ$26:AJ$29)>0,$E34*$G34,0) -> 0 | AM34: =IF(SUM(AL$26:AL$29)>0,$E34*$G34,0) -> 0 | AO34: =IF(SUM(AN$26:AN$29)>0,$E34*$G34,0) -> 0 | AQ34: =IF(SUM(AP$26:AP$29)>0,$E34*$G34,0) -> 0 | AS34: =IF(SUM(AR$26:AR$29)>0,$E34*$G34,0) -> 0 | AU34: =IF(SUM(AT$26:AT$29)>0,$E34*$G34,0) -> 0 | AW34: =IF(SUM(AV$26:AV$29)>0,$E34*$G34,0) -> 0 | AY34: =IF(SUM(AX$26:AX$29)>0,$E34*$G34,0) -> 0 | BA34: =IF(SUM(AZ$26:AZ$29)>0,$E34*$G34,0) -> 0 | BC34: =IF(SUM(BB$26:BB$29)>0,$E34*$G34,0) -> 0 | BE34: =IF(SUM(BD$26:BD$29)>0,$E34*$G34,0) -> 0 | BG34: =IF(SUM(BF$26:BF$29)>0,$E34*$G34,0) -> 0 | BI34: =IF(SUM(BH$26:BH$29)>0,$E34*$G34,0) -> 0 | BK34: =IF(SUM(BJ$26:BJ$29)>0,$E34*$G34,0) -> 0 | BM34: =IF(SUM(BL$26:BL$29)>0,$E34*$G34,0) -> 0 | BO34: =IF(SUM(BN$26:BN$29)>0,$E34*$G34,0) -> 0 | BQ34: =IF(SUM(BP$26:BP$29)>0,$E34*$G34,0) -> 0 | BS34: =IF(SUM(BR$26:BR$29)>0,$E34*$G34,0) -> 0 | BU34: =IF(SUM(BT$26:BT$29)>0,$E34*$G34,0) -> 0 | BW34: =IF(SUM(BV$26:BV$29)>0,$E34*$G34,0) -> 0 | BY34: =IF(SUM(BX$26:BX$29)>0,$E34*$G34,0) -> 0 | CA34: =IF(SUM(BZ$26:BZ$29)>0,$E34*$G34,0) -> 0 | CC34: =IF(SUM(CB$26:CB$29)>0,$E34*$G34,0) -> 0 | CE34: =IF(SUM(CD$26:CD$29)>0,$E34*$G34,0) -> 0 | CG34: =IF(SUM(CF$26:CF$29)>0,$E34*$G34,0) -> 0 | CI34: =IF(SUM(CH$26:CH$29)>0,$E34*$G34,0) -> 0 | CK34: =IF(SUM(CJ$26:CJ$29)>0,$E34*$G34,0) -> 0 | CM34: =IF(SUM(CL$26:CL$29)>0,$E34*$G34,0) -> 0 | CO34: =IF(SUM(CN$26:CN$29)>0,$E34*$G34,0) -> 0 | CQ34: =IF(SUM(CP$26:CP$29)>0,$E34*$G34,0) -> 0 | CS34: =IF(SUM(CR$26:CR$29)>0,$E34*$G34,0) -> 0 | CU34: =IF(SUM(CT$26:CT$29)>0,$E34*$G34,0) -> 0 | CW34: =IF(SUM(CV$26:CV$29)>0,$E34*$G34,0) -> 0 | CY34: =IF(SUM(CX$26:CX$29)>0,$E34*$G34,0) -> 0 | DA34: =IF(SUM(CZ$26:CZ$29)>0,$E34*$G34,0) -> 0 | DC34: =IF(SUM(DB$26:DB$29)>0,$E34*$G34,0) -> 0 | DE34: =IF(SUM(DD$26:DD$29)>0,$E34*$G34,0) -> 0 | DG34: =IF(SUM(DF$26:DF$29)>0,$E34*$G34,0) -> 0 | DI34: =IF(SUM(DH$26:DH$29)>0,$E34*$G34,0) -> 0 | DK34: =IF(SUM(DJ$26:DJ$29)>0,$E34*$G34,0) -> 0 | DM34: =IF(SUM(DL$26:DL$29)>0,$E34*$G34,0) -> 0 | DO34: =IF(SUM(DN$26:DN$29)>0,$E34*$G34,0) -> 0 | DQ34: =IF(SUM(DP$26:DP$29)>0,$E34*$G34,0) -> 0 | DS34: =IF(SUM(DR$26:DR$29)>0,$E34*$G34,0) -> 0 | DU34: =IF(SUM(DT$26:DT$29)>0,$E34*$G34,0) -> 0 | DW34: =IF(SUM(DV$26:DV$29)>0,$E34*$G34,0) -> 0 | DY34: 0
C36: CATEGORIAS | G36: QUANTIDADE
J37: =IF($C37=J$4,1,0) -> 0 | L37: =IF($C37=L$4,1,0) -> 0 | N37: =IF($C37=N$4,1,0) -> 0 | P37: =IF($C37=P$4,1,0) -> 0 | R37: =IF($C37=R$4,1,0) -> 0 | T37: =IF($C37=T$4,1,0) -> 0 | V37: =IF($C37=V$4,1,0) -> 0 | X37: =IF($C37=X$4,1,0) -> 0 | Z37: =IF($C37=Z$4,1,0) -> 0 | AB37: =IF($C37=AB$4,1,0) -> 0 | AD37: =IF($C37=AD$4,1,0) -> 0 | AF37: =IF($C37=AF$4,1,0) -> 0 | AH37: =IF($C37=AH$4,1,0) -> 0 | AJ37: =IF($C37=AJ$4,1,0) -> 0 | AL37: =IF($C37=AL$4,1,0) -> 0 | AN37: =IF($C37=AN$4,1,0) -> 0 | AP37: =IF($C37=AP$4,1,0) -> 0 | AR37: =IF($C37=AR$4,1,0) -> 0 | AT37: =IF($C37=AT$4,1,0) -> 0 | AV37: =IF($C37=AV$4,1,0) -> 0 | AX37: =IF($C37=AX$4,1,0) -> 0 | AZ37: =IF($C37=AZ$4,1,0) -> 0 | BB37: =IF($C37=BB$4,1,0) -> 0 | BD37: =IF($C37=BD$4,1,0) -> 0 | BF37: =IF($C37=BF$4,1,0) -> 0 | BH37: =IF($C37=BH$4,1,0) -> 0 | BJ37: =IF($C37=BJ$4,1,0) -> 0 | BL37: =IF($C37=BL$4,1,0) -> 0 | BN37: =IF($C37=BN$4,1,0) -> 0 | BP37: =IF($C37=BP$4,1,0) -> 0 | BR37: =IF($C37=BR$4,1,0) -> 0 | BT37: =IF($C37=BT$4,1,0) -> 0 | BV37: =IF($C37=BV$4,1,0) -> 0 | BX37: =IF($C37=BX$4,1,0) -> 0 | BZ37: =IF($C37=BZ$4,1,0) -> 0 | CB37: =IF($C37=CB$4,1,0) -> 0 | CD37: =IF($C37=CD$4,1,0) -> 0 | CF37: =IF($C37=CF$4,1,0) -> 0 | CH37: =IF($C37=CH$4,1,0) -> 0 | CJ37: =IF($C37=CJ$4,1,0) -> 0 | CL37: =IF($C37=CL$4,1,0) -> 0 | CN37: =IF($C37=CN$4,1,0) -> 0 | CP37: =IF($C37=CP$4,1,0) -> 0 | CR37: =IF($C37=CR$4,1,0) -> 0 | CT37: =IF($C37=CT$4,1,0) -> 0 | CV37: =IF($C37=CV$4,1,0) -> 0 | CX37: =IF($C37=CX$4,1,0) -> 0 | CZ37: =IF($C37=CZ$4,1,0) -> 0 | DB37: =IF($C37=DB$4,1,0) -> 0 | DD37: =IF($C37=DD$4,1,0) -> 0 | DF37: =IF($C37=DF$4,1,0) -> 0 | DH37: =IF($C37=DH$4,1,0) -> 0 | DJ37: =IF($C37=DJ$4,1,0) -> 0 | DL37: =IF($C37=DL$4,1,0) -> 0 | DN37: =IF($C37=DN$4,1,0) -> 0 | DP37: =IF($C37=DP$4,1,0) -> 0 | DR37: =IF($C37=DR$4,1,0) -> 0 | DT37: =IF($C37=DT$4,1,0) -> 0 | DV37: =IF($C37=DV$4,1,0) -> 0 | DX37: =IF($C37=DX$4,1,0) -> 0
C38: 5 | D38: =HLOOKUP($C38,'Dados Gerais'!$D$5:$BK$10,6) -> AUXILIAR DE ENCARREGADO | G38: =HLOOKUP($C38,'Dados Gerais'!$D$5:$BK$14,10) -> 1 | J38: =IF($C38=J$4,1,0) -> 0 | L38: 0 | N38: 0 | P38: 0 | R38: 1 | T38: 0 | V38: 0 | X38: 0 | Z38: 0 | AB38: 0 | AD38: 0 | AF38: 0 | AH38: 0 | AJ38: 0 | AL38: 0 | AN38: 0 | AP38: 0 | AR38: 0 | AT38: 0 | AV38: 0 | AX38: 0 | AZ38: 0 | BB38: 0 | BD38: 0 | BF38: 0 | BH38: 0 | BJ38: 0 | BL38: 0 | BN38: 0 | BP38: 0 | BR38: 0 | BT38: 0 | BV38: 0 | BX38: 0 | BZ38: 0 | CB38: 0 | CD38: 0 | CF38: 0 | CH38: 0 | CJ38: 0 | CL38: 0 | CN38: 0 | CP38: 0 | CR38: 0 | CT38: 0 | CV38: 0 | CX38: 0 | CZ38: 0 | DB38: 0 | DD38: 0 | DF38: 0 | DH38: 0 | DJ38: 0 | DL38: 0 | DN38: 0 | DP38: 0 | DR38: 0 | DT38: 0 | DV38: 0 | DX38: 0
J39: =IF($C39=J$4,1,0) -> 0 | L39: 0 | N39: 0 | P39: 0 | R39: 0 | T39: 0 | V39: 0 | X39: 0 | Z39: 0 | AB39: 0 | AD39: 0 | AF39: 0 | AH39: 0 | AJ39: 0 | AL39: 0 | AN39: 0 | AP39: 0 | AR39: 0 | AT39: 0 | AV39: 0 | AX39: 0 | AZ39: 0 | BB39: 0 | BD39: 0 | BF39: 0 | BH39: 0 | BJ39: 0 | BL39: 0 | BN39: 0 | BP39: 0 | BR39: 0 | BT39: 0 | BV39: 0 | BX39: 0 | BZ39: 0 | CB39: 0 | CD39: 0 | CF39: 0 | CH39: 0 | CJ39: 0 | CL39: 0 | CN39: 0 | CP39: 0 | CR39: 0 | CT39: 0 | CV39: 0 | CX39: 0 | CZ39: 0 | DB39: 0 | DD39: 0 | DF39: 0 | DH39: 0 | DJ39: 0 | DL39: 0 | DN39: 0 | DP39: 0 | DR39: 0 | DT39: 0 | DV39: 0 | DX39: 0
C41: ITEM | D41: DESCRIÇÃO | E41: QUANT ANUAL POR POSTO | F41: UNIDADE | G41: VALOR
K42: =IF(SUM(J$8:J$10)>0,$E42*$G42,0) -> 0 | M42: =IF(SUM(L$8:L$10)>0,$E42*$G42,0) -> 0 | O42: =IF(SUM(N$8:N$10)>0,$E42*$G42,0) -> 0 | Q42: =IF(SUM(P$8:P$10)>0,$E42*$G42,0) -> 0 | S42: =IF(SUM(R$8:R$10)>0,$E42*$G42,0) -> 0 | U42: =IF(SUM(T$8:T$10)>0,$E42*$G42,0) -> 0 | W42: =IF(SUM(V$8:V$10)>0,$E42*$G42,0) -> 0 | Y42: =IF(SUM(X$8:X$10)>0,$E42*$G42,0) -> 0 | AA42: =IF(SUM(Z$8:Z$10)>0,$E42*$G42,0) -> 0 | AC42: =IF(SUM(AB$8:AB$10)>0,$E42*$G42,0) -> 0 | AE42: =IF(SUM(AD$8:AD$10)>0,$E42*$G42,0) -> 0 | AG42: =IF(SUM(AF$8:AF$10)>0,$E42*$G42,0) -> 0 | AI42: =IF(SUM(AH$8:AH$10)>0,$E42*$G42,0) -> 0 | AK42: =IF(SUM(AJ$8:AJ$10)>0,$E42*$G42,0) -> 0 | AM42: =IF(SUM(AL$8:AL$10)>0,$E42*$G42,0) -> 0 | AO42: =IF(SUM(AN$8:AN$10)>0,$E42*$G42,0) -> 0 | AQ42: =IF(SUM(AP$8:AP$10)>0,$E42*$G42,0) -> 0 | AS42: =IF(SUM(AR$8:AR$10)>0,$E42*$G42,0) -> 0 | AU42: =IF(SUM(AT$8:AT$10)>0,$E42*$G42,0) -> 0 | AW42: =IF(SUM(AV$8:AV$10)>0,$E42*$G42,0) -> 0 | AY42: =IF(SUM(AX$8:AX$10)>0,$E42*$G42,0) -> 0 | BA42: =IF(SUM(AZ$8:AZ$10)>0,$E42*$G42,0) -> 0 | BC42: =IF(SUM(BB$8:BB$10)>0,$E42*$G42,0) -> 0 | BE42: =IF(SUM(BD$8:BD$10)>0,$E42*$G42,0) -> 0 | BG42: =IF(SUM(BF$8:BF$10)>0,$E42*$G42,0) -> 0 | BI42: =IF(SUM(BH$8:BH$10)>0,$E42*$G42,0) -> 0 | BK42: =IF(SUM(BJ$8:BJ$10)>0,$E42*$G42,0) -> 0 | BM42: =IF(SUM(BL$8:BL$10)>0,$E42*$G42,0) -> 0 | BO42: =IF(SUM(BN$8:BN$10)>0,$E42*$G42,0) -> 0 | BQ42: =IF(SUM(BP$8:BP$10)>0,$E42*$G42,0) -> 0 | BS42: =IF(SUM(BR$8:BR$10)>0,$E42*$G42,0) -> 0 | BU42: =IF(SUM(BT$8:BT$10)>0,$E42*$G42,0) -> 0 | BW42: =IF(SUM(BV$8:BV$10)>0,$E42*$G42,0) -> 0 | BY42: =IF(SUM(BX$8:BX$10)>0,$E42*$G42,0) -> 0 | CA42: =IF(SUM(BZ$8:BZ$10)>0,$E42*$G42,0) -> 0 | CC42: =IF(SUM(CB$8:CB$10)>0,$E42*$G42,0) -> 0 | CE42: =IF(SUM(CD$8:CD$10)>0,$E42*$G42,0) -> 0 | CG42: =IF(SUM(CF$8:CF$10)>0,$E42*$G42,0) -> 0 | CI42: =IF(SUM(CH$8:CH$10)>0,$E42*$G42,0) -> 0 | CK42: =IF(SUM(CJ$8:CJ$10)>0,$E42*$G42,0) -> 0 | CM42: =IF(SUM(CL$8:CL$10)>0,$E42*$G42,0) -> 0 | CO42: =IF(SUM(CN$8:CN$10)>0,$E42*$G42,0) -> 0 | CQ42: =IF(SUM(CP$8:CP$10)>0,$E42*$G42,0) -> 0 | CS42: =IF(SUM(CR$8:CR$10)>0,$E42*$G42,0) -> 0 | CU42: =IF(SUM(CT$8:CT$10)>0,$E42*$G42,0) -> 0 | CW42: =IF(SUM(CV$8:CV$10)>0,$E42*$G42,0) -> 0 | CY42: =IF(SUM(CX$8:CX$10)>0,$E42*$G42,0) -> 0 | DA42: =IF(SUM(CZ$8:CZ$10)>0,$E42*$G42,0) -> 0 | DC42: =IF(SUM(DB$8:DB$10)>0,$E42*$G42,0) -> 0 | DE42: =IF(SUM(DD$8:DD$10)>0,$E42*$G42,0) -> 0 | DG42: =IF(SUM(DF$8:DF$10)>0,$E42*$G42,0) -> 0 | DI42: =IF(SUM(DH$8:DH$10)>0,$E42*$G42,0) -> 0 | DK42: =IF(SUM(DJ$8:DJ$10)>0,$E42*$G42,0) -> 0 | DM42: =IF(SUM(DL$8:DL$10)>0,$E42*$G42,0) -> 0 | DO42: =IF(SUM(DN$8:DN$10)>0,$E42*$G42,0) -> 0 | DQ42: =IF(SUM(DP$8:DP$10)>0,$E42*$G42,0) -> 0 | DS42: =IF(SUM(DR$8:DR$10)>0,$E42*$G42,0) -> 0 | DU42: =IF(SUM(DT$8:DT$10)>0,$E42*$G42,0) -> 0 | DW42: =IF(SUM(DV$8:DV$10)>0,$E42*$G42,0) -> 0 | DY42: =IF(SUM(DX$8:DX$10)>0,$E42*$G42,0) -> 0
C43: 1 | D43: Calçado de segurança tipo sapato com resistência a objetos pontiagudos, fechamento em elástico, couro preto, forração em tecido, bico de composite, palmilha de montagem têxtil resistente à perfuração, solado de PU (poliuretano), bidensidade sem cadarço. Ref. MARLUVAS. | E43: 2 | F43: PAR | G43: =G33 -> 117.26 | K43: =IF(SUM(J$37:J$39)>0,$E43*$G43,0) -> 0 | M43: =IF(SUM(L$37:L$39)>0,$E43*$G43,0) -> 0 | O43: =IF(SUM(N$37:N$39)>0,$E43*$G43,0) -> 0 | Q43: =IF(SUM(P$37:P$39)>0,$E43*$G43,0) -> 0 | S43: =IF(SUM(R$37:R$39)>0,$E43*$G43,0) -> 234.52 | U43: =IF(SUM(T$37:T$39)>0,$E43*$G43,0) -> 0 | W43: =IF(SUM(V$37:V$39)>0,$E43*$G43,0) -> 0 | Y43: =IF(SUM(X$37:X$39)>0,$E43*$G43,0) -> 0 | AA43: =IF(SUM(Z$37:Z$39)>0,$E43*$G43,0) -> 0 | AC43: =IF(SUM(AB$37:AB$39)>0,$E43*$G43,0) -> 0 | AE43: =IF(SUM(AD$37:AD$39)>0,$E43*$G43,0) -> 0 | AG43: =IF(SUM(AF$37:AF$39)>0,$E43*$G43,0) -> 0 | AI43: =IF(SUM(AH$37:AH$39)>0,$E43*$G43,0) -> 0 | AK43: =IF(SUM(AJ$37:AJ$39)>0,$E43*$G43,0) -> 0 | AM43: =IF(SUM(AL$37:AL$39)>0,$E43*$G43,0) -> 0 | AO43: =IF(SUM(AN$37:AN$39)>0,$E43*$G43,0) -> 0 | AQ43: =IF(SUM(AP$37:AP$39)>0,$E43*$G43,0) -> 0 | AS43: =IF(SUM(AR$37:AR$39)>0,$E43*$G43,0) -> 0 | AU43: =IF(SUM(AT$37:AT$39)>0,$E43*$G43,0) -> 0 | AW43: =IF(SUM(AV$37:AV$39)>0,$E43*$G43,0) -> 0 | AY43: =IF(SUM(AX$37:AX$39)>0,$E43*$G43,0) -> 0 | BA43: =IF(SUM(AZ$37:AZ$39)>0,$E43*$G43,0) -> 0 | BC43: =IF(SUM(BB$37:BB$39)>0,$E43*$G43,0) -> 0 | BE43: =IF(SUM(BD$37:BD$39)>0,$E43*$G43,0) -> 0 | BG43: =IF(SUM(BF$37:BF$39)>0,$E43*$G43,0) -> 0 | BI43: =IF(SUM(BH$37:BH$39)>0,$E43*$G43,0) -> 0 | BK43: =IF(SUM(BJ$37:BJ$39)>0,$E43*$G43,0) -> 0 | BM43: =IF(SUM(BL$37:BL$39)>0,$E43*$G43,0) -> 0 | BO43: =IF(SUM(BN$37:BN$39)>0,$E43*$G43,0) -> 0 | BQ43: =IF(SUM(BP$37:BP$39)>0,$E43*$G43,0) -> 0 | BS43: =IF(SUM(BR$37:BR$39)>0,$E43*$G43,0) -> 0 | BU43: =IF(SUM(BT$37:BT$39)>0,$E43*$G43,0) -> 0 | BW43: =IF(SUM(BV$37:BV$39)>0,$E43*$G43,0) -> 0 | BY43: =IF(SUM(BX$37:BX$39)>0,$E43*$G43,0) -> 0 | CA43: =IF(SUM(BZ$37:BZ$39)>0,$E43*$G43,0) -> 0 | CC43: =IF(SUM(CB$37:CB$39)>0,$E43*$G43,0) -> 0 | CE43: =IF(SUM(CD$37:CD$39)>0,$E43*$G43,0) -> 0 | CG43: =IF(SUM(CF$37:CF$39)>0,$E43*$G43,0) -> 0 | CI43: =IF(SUM(CH$37:CH$39)>0,$E43*$G43,0) -> 0 | CK43: =IF(SUM(CJ$37:CJ$39)>0,$E43*$G43,0) -> 0 | CM43: =IF(SUM(CL$37:CL$39)>0,$E43*$G43,0) -> 0 | CO43: =IF(SUM(CN$37:CN$39)>0,$E43*$G43,0) -> 0 | CQ43: =IF(SUM(CP$37:CP$39)>0,$E43*$G43,0) -> 0 | CS43: =IF(SUM(CR$37:CR$39)>0,$E43*$G43,0) -> 0 | CU43: =IF(SUM(CT$37:CT$39)>0,$E43*$G43,0) -> 0 | CW43: =IF(SUM(CV$37:CV$39)>0,$E43*$G43,0) -> 0 | CY43: =IF(SUM(CX$37:CX$39)>0,$E43*$G43,0) -> 0 | DA43: =IF(SUM(CZ$37:CZ$39)>0,$E43*$G43,0) -> 0 | DC43: =IF(SUM(DB$37:DB$39)>0,$E43*$G43,0) -> 0 | DE43: =IF(SUM(DD$37:DD$39)>0,$E43*$G43,0) -> 0 | DG43: =IF(SUM(DF$37:DF$39)>0,$E43*$G43,0) -> 0 | DI43: =IF(SUM(DH$37:DH$39)>0,$E43*$G43,0) -> 0 | DK43: =IF(SUM(DJ$37:DJ$39)>0,$E43*$G43,0) -> 0 | DM43: =IF(SUM(DL$37:DL$39)>0,$E43*$G43,0) -> 0 | DO43: =IF(SUM(DN$37:DN$39)>0,$E43*$G43,0) -> 0 | DQ43: =IF(SUM(DP$37:DP$39)>0,$E43*$G43,0) -> 0 | DS43: =IF(SUM(DR$37:DR$39)>0,$E43*$G43,0) -> 0 | DU43: =IF(SUM(DT$37:DT$39)>0,$E43*$G43,0) -> 0 | DW43: =IF(SUM(DV$37:DV$39)>0,$E43*$G43,0) -> 0 | DY43: =IF(SUM(DX$37:DX$39)>0,$E43*$G43,0) -> 0
